Workbook

Sheet Data
A1: Date | B1: DecDate | C1: Sesc_SS | D1: Intl_SS | E1: Solar_Flux | G1: Bin Notes | H1: Begin Bin | I1: Monthly Center | J1: Bin Avr | K1: 11-Yr Avr | L1: 11 BP | N1: 10.04 Model | O1: Lag (yrs) | P1: Cycles | Q1: Correlations | S1: Bin Notes | T1: Begin Bin | U1: 3.19-Center | V1: Bin Avr | W1: 3 Avr | X1: 9 Avr | Y1: 1-3 BP | Z1: 1-9 BP | AB1: 27-day Model | AC1: Lag (yrs) | AD1: 28.68 Model | AE1: Lag (yrs) | AF1: 9.56 Model | AG1: Lag (yrs) | AH1: Cycles | AI1: Actual | AJ1: 27.1 Correl | AL1: Bin Notes | AM1: Begin Bin | AN1: 9.56-Center | AO1: Bin Avr | AP1: 86 Avr | AQ1: 86 BP | AS1: 86-day Model | AT1: Lag (yrs) | AU1: Cycles | AV1: Correlations | AX1: Bin Notes | AY1: Begin Bin | AZ1: 28-Center | BA1: Bin Avr | BB1: 258 Avr | BC1: 258 BP | BE1: 258-day Model | BF1: Lag (yrs) | BG1: Cycles | BH1: Correlations | BJ1: Bin Notes | BK1: Begin Bin | BL1: 86-Center | BM1: Bin Avr | BN1: 3 Avr | BO1: 9 Avr | BP1: 3-9 BP | BQ1: 1-9 BP | BS1: 2.12-yr Model | BT1: Lag (yrs) | BU1: Cycles | BV1: Correlations | BX1: Bin Notes | BY1: Begin Bin | BZ1: 258-Center | CA1: Bin Avr | CB1: 6.36 Avr | CC1: 6.36 BP | CE1: 6.36-yr Model | CF1: Lag (yrs) | CG1: Cycles | CH1: Correlations | CJ1: Bin Notes | CK1: Begin Bin | CL1: 2.12-Center | CM1: Bin Avr | CN1: 19-yr Avr | CO1: 1-9 BP | CQ1: 19-yr Model | CR1: Lag (yrs) | CS1: Cycles | CT1: Correlations | CV1: Bin Notes | CW1: Begin Bin | CX1: 6.36-Center | CY1: Bin Avr | CZ1: 57-yr Avr | DA1: Bin-9 BP | DC1: 57-yr Model | DD1: Lag (yrs) | DE1: Cycles | DF1: Correlations
A2: 1700-01-01 | B2: 1700.0013 | C2: 0 | D2: 4 | E2: 0 | G2: Δt | H2: =I2 - (1/24) -> 1730 | I2: 1730.041667 | N2: =SIN((2*PI()*(I2-2000+O2)/10.04352) + 1.984402856) -> 0.385752259 | O2: 0 | P2: -9 | Q2: =CORREL(L67:L3296,N76:N3305) -> 0.3160059639 | S2: Δt | T2: =U2-(0.00873130763355885/2) -> 1867.798332 | U2: =1866.623971+0.707235918318267+(2*0.235745306106089) -> 1867.802698 | AB2: =SIN((2*PI()*(U2-2000)/0.074195756) + 2.57488197) -> -0.8854984271 | AC2: 0 | AD2: =SIN((2*PI()*(U2-2000+AE2)/0.0785817687020297) + 3.39124283) -> 0.9999999998 | AE2: 0 | AF2: =SIN((2*PI()*(U2-2000+AG2)/0.0261939229006765) + 0.748950468) -> 0.9999999986 | AG2: 0 | AH2: -4 | AI2: -0.019 | AJ2: =CORREL(Z25:Z16254,AB20:AB16249) -> -0.01939228667 | AL2: Δt | AM2: =AN2-(0.0261939229006765/2) -> 1867.789601 | AN2: =1866.623971+0.707235918318267+(2*0.235745306106089) -> 1867.802698 | AS2: =SIN((2*PI()*(AN2-2000+AT2)/0.235745306106089) + 0.083216746) -> 0.96109839 | AT2: -0.0105 | AU2: -4 | AV2: =CORREL(AQ13:AQ1231,AS17:AS1235) -> 0.044350971 | AX2: Δt | AY2: =AZ2-(0.0785817687020297/2) -> 1867.056171 | AZ2: =1866.623971+0.707235918318267-0.235745306106089 -> 1867.095462 | BE2: =SIN((2*PI()*(AZ2-2000+BF2)/0.707235918318267) + 5.263726692) -> -0.7686345106 | BF2: -0.196 | BG2: -4 | BH2: =CORREL(BC17:BC1813,BE12:BE1808) -> -0.04118300227 | BJ2: Δt | BK2: =BL2-(0.235745306106089/2) -> 1866.977589 | BL2: =1866.623971+0.707235918318267-0.235745306106089 -> 1867.095462 | BS2: =SIN((2*PI()*(BL2-2000+BT2)/2.1217077549548) + 0.707378034) -> 0.1464626322 | BT2: 0.0093 | BU2: -4 | BV2: =CORREL(BQ10:BQ603,BS5:BS598) -> -0.1593017824 | BX2: Δt | BY2: =BZ2-(0.707235918318267/2) -> 1681.681778 | BZ2: 1682.035396 | CE2: =SIN((2*PI()*(BZ2-2000+CF2)/6.3651232648644) + 1.28299025) -> 0.6559576561 | CF2: -0.8665 | CG2: -4 | CH2: =CORREL(CC30:CC461,CE25:CE456) -> -0.04479051141 | CJ2: Δt | CK2: =CL2-(2.1217077549548/2) -> 1680.974542 | CL2: 1682.035396 | CQ2: =SIN((2*PI()*(CL2-2000+CR2)/19.0953697945932) + 5.663651193) -> 0.04226035523 | CR2: -14.45 | CS2: -4 | CT2: =CORREL(CO14:CO152,CQ18:CQ156) -> -0.03270007376 | CV2: Δt | CW2: =CX2-(6.3651232648644/2) -> 1678.852834 | CX2: 1682.035396 | DC2: =SIN((2*PI()*(CX2-2000+DD2)/57.2861093837796) + 0.840686201) -> -0.1044274711 | DD2: -3.82 | DE2: -4 | DF2: =CORREL(DA10:DA49,DC5:DC44) -> -0.271844398
A3: 1700-01-02 | B3: 1700.00404 | C3: 0 | D3: 4 | E3: 0 | G3: Daily bins | H3: =H2 +(1/12) -> 1730.083333 | I3: =I2 +(1/12) -> 1730.125 | N3: =SIN((2*PI()*(I3-2000+O3)/10.04352) + 1.984402856) -> 0.3371519275 | O3: =O2 -> 0 | P3: =P2+1 -> -8 | Q3: =CORREL(L67:L3296,N75:N3304) -> 0.3337503865 | S3: 3.19 day bins | T3: =T2+0.00873130763355885 -> 1867.807063 | U3: =U2+0.00873130763355885 -> 1867.811429 | AB3: =SIN((2*PI()*(U3-2000)/0.074195756) + 2.57488197) -> -0.9673674038 | AC3: =AC2 -> 0 | AD3: =SIN((2*PI()*(U3-2000+AE3)/0.0785817687020297) + 3.39124283) -> 0.7660329499 | AE3: =AE2 -> 0 | AF3: =SIN((2*PI()*(U3-2000+AG3)/0.0261939229006765) + 0.748950468) -> -0.5000464001 | AG3: =AG2 -> 0 | AH3: -3 | AI3: -0.009 | AJ3: =CORREL(Z25:Z16254,AB19:AB16248) -> -0.008630533856 | AL3: 9.56 day bins | AM3: =AM2+0.0261939229006765 -> 1867.815794 | AN3: =AN2+0.0261939229006765 -> 1867.828891 | AS3: =SIN((2*PI()*(AN3-2000+AT3)/0.235745306106089) + 0.083216746) -> 0.9137860271 | AT3: =AT2 -> -0.0105 | AU3: -3 | AV3: =CORREL(AQ13:AQ1231,AS16:AS1234) -> 0.03932079477 | AX3: 28.68 day bins | AY3: =AY2+0.0785817687020297 -> 1867.134752 | AZ3: =AZ2+0.0785817687020297 -> 1867.174043 | BE3: =SIN((2*PI()*(AZ3-2000+BF3)/0.707235918318267) + 5.263726692) -> -0.9999918426 | BF3: =BF2 -> -0.196 | BG3: -3 | BH3: =CORREL(BC17:BC1813,BE11:BE1807) -> -0.0218100282 | BJ3: 86.04 day bins | BK3: =BK2+0.235745306106089 -> 1867.213334 | BL3: =BL2+0.235745306106089 -> 1867.331207 | BS3: =SIN((2*PI()*(BL3-2000+BT3)/2.1217077549548) + 0.707378034) -> -0.5236590334 | BT3: =BT2 -> 0.0093 | BU3: -3 | BV3: =CORREL(BQ10:BQ603,BS4:BS597) -> -0.08506326372 | BX3: 258 day bins | BY3: =BY2+0.707235918318267 -> 1682.389014 | BZ3: =BZ2+0.707235918318267 -> 1682.742632 | CE3: =SIN((2*PI()*(BZ3-2000+CF3)/6.3651232648644) + 1.28299025) -> 0.9876673206 | CF3: =CF2 -> -0.8665 | CG3: -3 | CH3: =CORREL(CC30:CC461,CE24:CE455) -> -0.02381619028 | CJ3: 2.12-yr bins | CK3: =CK2+2.1217077549548 -> 1683.09625 | CL3: =CL2+2.1217077549548 -> 1684.157104 | CQ3: =SIN((2*PI()*(CL3-2000+CR3)/19.0953697945932) + 5.663651193) -> -0.6098400536 | CR3: =CR2 -> -14.45 | CS3: -3 | CT3: =CORREL(CO14:CO152,CQ17:CQ155) -> -0.01745073536 | CV3: 6.36-yr bins | CW3: =CW2+6.3651232648644 -> 1685.217958 | CX3: =CX2+6.3651232648644 -> 1688.400519 | DC3: =SIN((2*PI()*(CX3-2000+DD3)/57.2861093837796) + 0.840686201) -> -0.7192692555 | DD3: =DD2 -> -3.82 | DE3: -3 | DF3: =CORREL(DA10:DA49,DC4:DC43) -> -0.1439643742
A4: 1700-01-03 | B4: 1700.006779 | C4: 0 | D4: 4 | E4: 0 | H4: =H3 +(1/12) -> 1730.166667 | I4: =I3 +(1/12) -> 1730.208333 | N4: 0.2876354754 | O4: =O3 -> 0 | P4: =P3+1 -> -7 | Q4: =CORREL(L67:L3296,N74:N3303) -> 0.3506024355 | T4: =T3+0.00873130763355885 -> 1867.815794 | U4: =U3+0.00873130763355885 -> 1867.82016 | AB4: -0.5440234434 | AC4: =AC3 -> 0 | AD4: 0.1736305692 | AE4: =AE3 -> 0 | AF4: -0.4999535985 | AG4: 0 | AH4: -2 | AI4: 0.007 | AJ4: =CORREL(Z25:Z16254,AB18:AB16247) -> 0.00663859161 | AM4: =AM3+0.0261939229006765 -> 1867.841988 | AN4: =AN3+0.0261939229006765 -> 1867.855085 | AS4: 0.4389030265 | AT4: =AT3 -> -0.0105 | AU4: -2 | AV4: =CORREL(AQ13:AQ1231,AS15:AS1233) -> 0.0158901517 | AY4: =AY3+0.0785817687020297 -> 1867.213334 | AZ4: =AZ3+0.0785817687020297 -> 1867.252625 | BE4: -0.7634418778 | BF4: =BF3 -> -0.196 | BG4: -2 | BH4: =CORREL(BC17:BC1813,BE10:BE1806) -> 0.00777588836 | BK4: =BK3+0.235745306106089 -> 1867.44908 | BL4: =BL3+0.235745306106089 -> 1867.566952 | BS4: -0.9487548175 | BT4: =BT3 -> 0.0093 | BU4: -2 | BV4: =CORREL(BQ10:BQ603,BS3:BS596) -> 0.02897730148 | BY4: =BY3+0.707235918318267 -> 1683.09625 | BZ4: =BZ3+0.707235918318267 -> 1683.449868 | CE4: 0.857236469 | CF4: =CF3 -> -0.8665 | CG4: -2 | CH4: =CORREL(CC30:CC461,CE23:CE454) -> 0.008235329616 | CK4: =CK3+2.1217077549548 -> 1685.217958 | CL4: =CL3+2.1217077549548 -> 1686.278812 | CQ4: -0.9765895237 | CR4: =CR3 -> -14.45 | CS4: -2 | CT4: =CORREL(CO14:CO152,CQ16:CQ154) -> 0.005889515771 | CW4: =CW3+6.3651232648644 -> 1691.583081 | CX4: =CX3+6.3651232648644 -> 1694.765643 | DC4: -0.9975569615 | DD4: =DD3 -> -3.82 | DE4: -2 | DF4: =CORREL(DA10:DA49,DC3:DC42) -> 0.05035401405
A5: 1700-01-04 | B5: 1700.009519 | C5: 0 | D5: 4 | E5: 0 | H5: 1730.25 | I5: 1730.291667 | N5: 0.2373374505 | O5: 0 | P5: -6 | Q5: =CORREL(L67:L3296,N73:N3302) -> 0.3665161832 | T5: 1867.824526 | U5: 1867.828891 | AB5: 0.1634397468 | AC5: 0 | AD5: -0.5000154845 | AE5: 0 | AF5: =SIN((2*PI()*(U5-2000+AG5)/0.0261939229006765) + 0.748950468) -> 0.9999999986 | AG5: =AG4 -> 0 | AH5: -1 | AI5: 0.018 | AJ5: =CORREL(Z25:Z16254,AB17:AB16246) -> 0.01844164408 | AM5: 1867.868182 | AN5: 1867.881279 | AS5: -0.2413475781 | AT5: -0.0105 | AU5: -1 | AV5: =CORREL(AQ13:AQ1231,AS14:AS1232) -> -0.01496421541 | AY5: 1867.291916 | AZ5: 1867.331207 | BE5: -0.1696689737 | BF5: -0.196 | BG5: -1 | BH5: =CORREL(BC17:BC1813,BE9:BE1805) -> 0.03372197527 | BK5: 1867.684825 | BL5: 1867.802698 | BS5: -0.9299176782 | BT5: 0.0093 | BU5: -1 | BV5: =CORREL(BQ10:BQ603,BS2:BS595) -> 0.1294590653 | BY5: 1683.803486 | BZ5: 1684.157104 | CE5: 0.3256951465 | CF5: -0.8665 | CG5: -1 | CH5: =CORREL(CC30:CC461,CE22:CE453) -> 0.03648550965 | CK5: 1687.339665 | CL5: 1688.400519 | CQ5: -0.8863819021 | CR5: -14.45 | CS5: -1 | CT5: =CORREL(CO14:CO152,CQ15:CQ153) -> 0.02651640278 | CW5: 1697.948204 | CX5: 1701.130766 | DC5: -0.8090766786 | DD5: -3.82 | DE5: -1 | DF5: =CORREL(DA10:DA49,DC2:DC41) -> 0.220556251
A6: 1700-01-05 | B6: 1700.012259 | C6: 0 | D6: 4 | E6: 0 | H6: 1730.333333 | I6: 1730.375 | N6: 0.1863945243 | O6: 0 | P6: -5 | Q6: =CORREL(L67:L3296,N72:N3301) -> 0.3814479029 | S6: Max Time | T6: 1867.833257 | U6: 1867.837623 | AB6: 0.785545632 | AC6: 0 | AD6: -0.939698736 | AE6: 0 | AF6: -0.5000464 | AG6: =AG5 -> 0 | AH6: 0 | AI6: 0.021 | AJ6: =CORREL(Z25:Z16254,AB25:AB16254) -> 0.02093682068 | AL6: Max Time | AM6: 1867.894376 | AN6: 1867.907473 | AO6: =AVERAGEIFS(Intl_SS,DecDate,">"&AM6,DecDate,"<="&AM7) -> 19.5 | AS6: -0.8086689686 | AT6: -0.0105 | AU6: 0 | AV6: =CORREL(AQ13:AQ1231,AS13:AS1231) -> -0.03882628228 | AX6: Max Time | AY6: 1867.370498 | AZ6: 1867.409789 | BA6: =AVERAGEIFS(Intl_SS,DecDate,">"&AY6,DecDate,"<="&AY7) -> 6.172413793 | BE6: 0.5034939289 | BF6: -0.196 | BG6: 0 | BH6: =CORREL(BC17:BC1813,BE17:BE1813) -> 0.04388279251 | BJ6: Max Time | BK6: 1867.92057 | BL6: 1868.038443 | BM6: =AVERAGEIFS(Intl_SS,DecDate,">"&BK6,DecDate,"<="&BK7) -> 23.95348837 | BS6: -0.4759617224 | BT6: 0.0093 | BU6: 0 | BV6: =CORREL(BQ10:BQ603,BS10:BS603) -> 0.1693654936 | BX6: Max Time | BY6: 1684.510722 | BZ6: 1684.86434 | CE6: -0.3582425548 | CF6: -0.8665 | CG6: 0 | CH6: =CORREL(CC30:CC461,CE30:CE461) -> 0.04767838556 | CJ6: Max Time | CK6: 1689.461373 | CL6: 1690.522227 | CQ6: -0.3814263375 | CR6: -14.45 | CS6: 0 | CT6: =CORREL(CO14:CO152,CQ14:CQ152) -> 0.03476814221 | CV6: Max Time | CW6: 1704.313327 | CX6: 1707.495889 | CY6: =AVERAGEIFS(Intl_SS,DecDate,">"&CW6,DecDate,"<="&CW7) -> 23.53399312 | DC6: -0.2420204259 | DD6: -3.82 | DE6: 0 | DF6: =CORREL(DA10:DA49,DC10:DC49) -> 0.2890324896
A7: 1700-01-06 | B7: 1700.014999 | C7: 0 | D7: 4 | E7: 0 | G7: Last Data Pt. | H7: 1730.416667 | I7: 1730.458333 | N7: 0.1349451207 | O7: 0 | P7: -4 | Q7: =CORREL(L67:L3296,N71:N3300) -> 0.3953561986 | S7: =MAX(U2:U15000) -> 1998.754849 | T7: 1867.841988 | U7: 1867.846354 | AB7: 0.9973959986 | AC7: 0 | AD7: -0.9396865053 | AE7: 0 | AF7: -0.4999535985 | AG7: =AG6 -> 0 | AH7: 1 | AI7: 0.018 | AJ7: =CORREL(Z25:Z16254,AB24:AB16253) -> 0.01751780996 | AL7: =MAX(AN2:AN15000) -> 2009.930923 | AM7: 1867.92057 | AN7: 1867.933667 | AO7: 21.2 | AS7: -0.9976051613 | AT7: -0.0105 | AU7: 1 | AV7: =CORREL(AQ13:AQ1231,AS12:AS1230) -> -0.04452293459 | AX7: =MAX(AZ2:AZ15000) -> 2010.271444 | AY7: 1867.44908 | AZ7: 1867.48837 | BA7: 5.103448276 | BE7: 0.9410664264 | BF7: -0.196 | BG7: 1 | BH7: =CORREL(BC17:BC1813,BE16:BE1812) -> 0.03351815062 | BJ7: =MAX(BL2:BL15000) -> 2011.135844 | BK7: 1868.156315 | BL7: 1868.274188 | BM7: 31.35632184 | BS7: 0.200702013 | BT7: 0.0093 | BU7: 1 | BV7: =CORREL(BQ10:BQ603,BS9:BS602) -> 0.1300239252 | BX7: =MAX(BZ2:BZ15000) -> 2013.729042 | BY7: 1685.217958 | BZ7: 1685.571576 | CE7: -0.8745545833 | CF7: -0.8665 | CG7: 1 | CH7: =CORREL(CC30:CC461,CE29:CE460) -> 0.03649521159 | CJ7: =MAX(CL2:CL15000) -> 2023.630345 | CK7: 1691.583081 | CL7: 1692.643935 | CQ7: 0.3020028496 | CR7: -14.45 | CS7: 1 | CT7: =CORREL(CO14:CO152,CQ13:CQ151) -> 0.02667679263 | CV7: =MAX(CX2:CX15000) -> 2051.212545 | CW7: 1710.678451 | CX7: 1713.861012 | CY7: 13.95135601 | DC7: 0.4382798738 | DD7: -3.82 | DE7: 1 | DF7: =CORREL(DA10:DA49,DC9:DC48) -> 0.221350468
A8: 1700-01-07 | B8: 1700.017738 | C8: 0 | D8: 4 | E8: 0 | G8: =MAX(I2:I100000) -> 2017.125 | H8: 1730.5 | I8: 1730.541667 | N8: 0.08312903958 | O8: 0 | P8: -3 | Q8: =CORREL(L67:L3296,N70:N3299) -> 0.4082021364 | T8: 1867.85072 | U8: 1867.855085 | AB8: 0.6883508295 | AC8: 0 | AD8: -0.4999845153 | AE8: 0 | AF8: 0.9999999986 | AG8: =AG7 -> 0 | AH8: 2 | AI8: 0.005 | AJ8: =CORREL(Z25:Z16254,AB23:AB16252) -> 0.004951259254 | AM8: 1867.946764 | AN8: 1867.959861 | AO8: 22.11111111 | AS8: -0.7197508119 | AT8: -0.0105 | AU8: 2 | AV8: =CORREL(AQ13:AQ1231,AS11:AS1229) -> -0.02937535181 | AY8: 1867.527661 | AZ8: 1867.566952 | BA8: 6.25 | BE8: 0.9383034842 | BF8: -0.196 | BG8: 2 | BH8: =CORREL(BC17:BC1813,BE15:BE1811) -> 0.007468589852 | BK8: 1868.392061 | BL8: 1868.509933 | BM8: 34.10465116 | BS8: 0.783455046 | BT8: 0.0093 | BU8: 2 | BV8: =CORREL(BQ10:BQ603,BS8:BS601) -> 0.02984271718 | BY8: 1685.925194 | BZ8: 1686.278812 | CE8: -0.9816528026 | CF8: -0.8665 | CG8: 2 | CH8: =CORREL(CC30:CC461,CE28:CE459) -> 0.008287713206 | CK8: 1693.704789 | CL8: 1694.765643 | CQ8: 0.8441215469 | CR8: -14.45 | CS8: 2 | CT8: =CORREL(CO14:CO152,CQ12:CQ150) -> 0.006145703592 | CW8: 1717.043574 | CX8: 1720.226136 | CY8: 36.12914335 | DC8: 0.9135041497 | DD8: -3.82 | DE8: 2 | DF8: =CORREL(DA10:DA49,DC8:DC47) -> 0.04953682149
A9: 1700-01-08 | B9: 1700.020478 | C9: 0 | D9: 4 | E9: 0 | H9: 1730.583333 | I9: 1730.625 | N9: 0.03108707747 | O9: 0 | P9: -2 | Q9: =CORREL(L67:L3296,N69:N3298) -> 0.4199493776 | S9: Observations | T9: 1867.859451 | U9: 1867.863817 | AB9: 0.01981066092 | AC9: 0 | AD9: 0.1736657861 | AE9: 0 | AF9: -0.5000464 | AG9: =AG8 -> 0 | AH9: 3 | AI9: -0.01 | AJ9: =CORREL(Z25:Z16254,AB22:AB16251) -> -0.01020178618 | AL9: Observations | AM9: 1867.972958 | AN9: 1867.986055 | AO9: 48.3 | AS9: -0.1051170585 | AT9: -0.0105 | AU9: 3 | AV9: =CORREL(AQ13:AQ1231,AS10:AS1228) -> -0.0004923421656 | AX9: Observations | AY9: 1867.606243 | AZ9: 1867.645534 | BA9: 9.413793103 | BE9: 0.4964979137 | BF9: -0.196 | BG9: 3 | BH9: =CORREL(BC17:BC1813,BE14:BE1810) -> -0.02208199164 | BJ9: Observations | BK9: 1868.627806 | BL9: 1868.745679 | BM9: 54.60465116 | BS9: 0.9996207558 | BT9: 0.0093 | BU9: 3 | BV9: =CORREL(BQ10:BQ603,BS7:BS600) -> -0.08430222992 | BX9: Observations | BY9: 1686.632429 | BZ9: 1686.986047 | CE9: -0.6294247658 | CF9: -0.8665 | CG9: 3 | CH9: =CORREL(CC30:CC461,CE27:CE458) -> -0.02378312616 | CJ9: Observations | CK9: 1695.826496 | CL9: 1696.88735 | CQ9: =SIN((2*PI()*(CL9-2000+CR9)/19.0953697945932) + 5.663651193) -> 0.9912663911 | CR9: =CR8 -> -14.45 | CS9: 3 | CT9: =CORREL(CO14:CO152,CQ11:CQ149) -> -0.01722906632 | CV9: Observations | CW9: 1723.408697 | CX9: 1726.591259 | CY9: 63.61359725 | DC9: 0.9612896814 | DD9: -3.82 | DE9: 3 | DF9: =CORREL(DA10:DA49,DC7:DC46) -> -0.1439801844
A10: 1700-01-09 | B10: 1700.023218 | C10: 0 | D10: 4 | E10: 0 | G10: Observations | H10: 1730.666667 | I10: 1730.708333 | N10: -0.02103935549 | O10: 0 | P10: -1 | Q10: =CORREL(L67:L3296,N68:N3297) -> 0.4305643107 | S10: =COUNT(U2:U15000) -> 14999 | T10: 1867.868182 | U10: 1867.872548 | AB10: =SIN((2*PI()*(U10-2000)/0.074195756) + 2.57488197) -> -0.6590757341 | AC10: =AC9 -> 0 | AD10: =SIN((2*PI()*(U10-2000+AE10)/0.0785817687020297) + 3.39124283) -> 0.7660559361 | AE10: =AE9 -> 0 | AF10: -0.4999535986 | AG10: =AG9 -> 0 | AH10: 4 | AI10: -0.02 | AJ10: =CORREL(Z25:Z16254,AB21:AB16250) -> -0.02002731416 | AL10: =COUNT(AN2:AN15000) -> 5427 | AM10: 1867.999152 | AN10: 1868.012249 | AO10: 28.22222222 | AS10: 0.5587021348 | AT10: -0.0105 | AU10: 4 | AV10: =CORREL(AQ13:AQ1231,AS9:AS1227) -> 0.02861920879 | AX10: =COUNT(AZ2:AZ15000) -> 1823 | AY10: 1867.684825 | AZ10: 1867.724116 | BA10: 18.4137931 | BE10: -0.1776245486 | BF10: -0.196 | BG10: 4 | BH10: =CORREL(BC17:BC1813,BE13:BE1809) -> -0.04129237451 | BJ10: =COUNT(BL2:BL15000) -> 612 | BK10: 1868.863551 | BL10: 1868.981424 | BM10: 64 | BN10: =AVERAGE(BM9:BM11) -> 56.14728682 | BO10: =AVERAGE(BM6:BM14) -> 56.69748136 | BP10: =BN10-BO10 -> -0.550194541 | BQ10: =BM10-BO10 -> 7.302518637 | BS10: 0.7480528045 | BT10: 0.0093 | BU10: 4 | BV10: =CORREL(BQ10:BQ603,BS6:BS599) -> -0.1590012267 | BX10: =COUNT(BZ2:BZ15000) -> 470 | BY10: 1687.339665 | BZ10: 1687.693283 | CE10: 0.01731811424 | CF10: -0.8665 | CG10: 4 | CH10: =CORREL(CC30:CC461,CE26:CE457) -> -0.04479232176 | CJ10: =COUNT(CL2:CL15000) -> 162 | CK10: 1697.948204 | CL10: 1699.009058 | CM10: =AVERAGEIFS(Intl_SS,DecDate,">"&CK10,DecDate,"<="&CK11) -> 4 | CQ10: 0.6745866742 | CR10: -14.45 | CS10: 4 | CT10: =CORREL(CO14:CO152,CQ10:CQ148) -> -0.03261668155 | CV10: =COUNT(CX2:CX15000) -> 59 | CW10: 1729.77382 | CX10: 1732.956382 | CY10: =AVERAGEIFS(Intl_SS,DecDate,">"&CW10,DecDate,"<="&CW11) -> 24.81532501 | CZ10: =AVERAGE(CY6:CY14) -> 38.60447104 | DA10: =CY10-CZ10 -> -13.78914603 | DC10: =SIN((2*PI()*(CX10-2000+DD10)/57.2861093837796) + 0.840686201) -> 0.5592770877 | DD10: =DD9 -> -3.82 | DE10: 4 | DF10: =CORREL(DA10:DA49,DC6:DC45) -> -0.2710410876
A11: 1700-01-10 | B11: 1700.025958 | C11: 0 | D11: 4 | E11: 0 | G11: =COUNT(J2:J50000) -> 3347 | H11: 1730.75 | I11: 1730.791667 | J11: =AVERAGEIFS(Intl_SS,DecDate,">"&H11,DecDate,"<="&H12) -> 41 | N11: -0.0731086196 | O11: 0 | P11: 0 | Q11: =CORREL(L67:L3296,N67:N3296) -> 0.4400161839 | T11: 1867.876914 | U11: 1867.881279 | AB11: -0.9937562088 | AC11: 0 | AD11: 0.9999999998 | AE11: 0 | AF11: 0.9999999986 | AG11: =AG10 -> 0 | AJ11: 27-day Model | AM11: 1868.025346 | AN11: 1868.038443 | AO11: 23.7 | AS11: 0.96109839 | AT11: -0.0105 | AV11: 1868 to 1899 | AY11: 1867.763407 | AZ11: 1867.802698 | BA11: 17.07142857 | BE11: =SIN((2*PI()*(AZ11-2000+BF11)/0.707235918318267) + 5.263726692) -> -0.7686345106 | BF11: =BF10 -> -0.196 | BK11: 1869.099297 | BL11: 1869.217169 | BM11: 49.8372093 | BN11: =AVERAGE(BM10:BM12) -> 68.75193798 | BO11: =AVERAGE(BM7:BM15) -> 68.93649945 | BP11: =BN11-BO11 -> -0.184561466 | BQ11: =BM11-BO11 -> -19.09929015 | BS11: 0.1464626322 | BT11: 0.0093 | BY11: 1688.046901 | BZ11: 1688.400519 | CE11: 0.6559576561 | CF11: -0.8665 | CK11: 1700.069912 | CL11: 1701.130766 | CM11: 9.263565891 | CQ11: 0.04226035523 | CR11: -14.45 | CW11: 1736.138944 | CX11: 1739.321505 | CY11: 70.42402066 | CZ11: 40.2481566 | DA11: 30.17586407 | DC11: -0.1044274711 | DD11: -3.82
A12: 1700-01-11 | B12: 1700.028697 | C12: 0 | D12: 4 | E12: 0 | H12: 1730.833333 | I12: 1730.875 | J12: 38 | N12: -0.1249792305 | O12: 0 | P12: 1 | Q12: =CORREL(L67:L3296,N66:N3295) -> 0.4482772343 | S12: BP Observ | T12: 1867.885645 | U12: 1867.890011 | AB12: -0.8094420482 | AC12: 0 | AD12: 0.7660329499 | AE12: 0 | AF12: -0.5000464 | AG12: =AG11 -> 0 | AJ12: 1800 cycles | AL12: BP Observ | AM12: 1868.05154 | AN12: 1868.064637 | AO12: 15.88888889 | AS12: 0.9137860271 | AT12: =AT11 -> -0.0105 | AV12: 135 cycles | AX12: BP Observ | AY12: 1867.841988 | AZ12: 1867.881279 | BA12: 13.89655172 | BE12: -0.9999918426 | BF12: -0.196 | BH12: 200 cycles | BJ12: BP Observ | BK12: 1869.335042 | BL12: 1869.452915 | BM12: 92.41860465 | BN12: 72.82170543 | BO12: 82.22765749 | BP12: -9.405952063 | BQ12: 10.19094716 | BS12: -0.5236590334 | BT12: 0.0093 | BV12: 66 cycles | BX12: BP Observ | BY12: 1688.754137 | BZ12: 1689.107755 | CE12: =SIN((2*PI()*(BZ12-2000+CF12)/6.3651232648644) + 1.28299025) -> 0.9876673206 | CF12: =CF11 -> -0.8665 | CH12: 48 cycles | CJ12: BP Observ | CK12: 1702.19162 | CL12: 1703.252474 | CM12: 22.1369509 | CQ12: -0.6098400536 | CR12: -14.45 | CT12: 15 cycles | CV12: BP Observ | CW12: 1742.504067 | CX12: 1745.686629 | CY12: 23.86138614 | CZ12: 47.05511121 | DA12: -23.19372507 | DC12: -0.7192692555 | DD12: -3.82 | DF12: 4.3 cycles
A13: 1700-01-12 | B13: 1700.031437 | C13: 0 | D13: 4 | E13: 0 | G13: BP Observ | H13: 1730.916667 | I13: 1730.958333 | J13: 38 | N13: -0.1765102437 | O13: 0 | P13: 2 | Q13: =CORREL(L67:L3296,N65:N3294) -> 0.4553228134 | S13: =COUNT(Z2:Z15000) -> 14976 | T13: 1867.894376 | U13: 1867.898742 | AB13: -0.2023923343 | AC13: 0 | AD13: 0.1736305692 | AE13: 0 | AF13: -0.4999535986 | AG13: =AG12 -> 0 | AJ13: ? Percentile | AL13: =COUNT(AQ2:AQ15000) -> 5398 | AM13: 1868.077734 | AN13: 1868.090831 | AO13: 15.3 | AP13: =AVERAGE(AO9:AO17) -> 25.17867565 | AQ13: =AO13-AP13 -> -9.878675645 | AS13: 0.4389030265 | AT13: -0.0105 | AV13: 70% | AX13: =COUNT(BC2:BC15000) -> 1796 | AY13: 1867.92057 | AZ13: 1867.959861 | BA13: 30.82758621 | BE13: -0.7634418778 | BF13: -0.196 | BH13: 80% | BJ13: =COUNT(BQ2:BQ15000) -> 597 | BK13: 1869.570787 | BL13: 1869.68866 | BM13: 76.20930233 | BN13: 84.14033681 | BO13: 94.00414328 | BP13: -9.863806469 | BQ13: -17.79484095 | BS13: =SIN((2*PI()*(BL13-2000+BT13)/2.1217077549548) + 0.707378034) -> -0.9487548175 | BT13: =BT12 -> 0.0093 | BV13: 99.9% | BX13: =COUNT(CC2:CC15000) -> 431 | BY13: 1689.461373 | BZ13: 1689.814991 | CE13: 0.857236469 | CF13: -0.8665 | CH13: 40% | CJ13: =COUNT(CO2:CO15000) -> 139 | CK13: 1704.313327 | CL13: 1705.374181 | CM13: 43.60903226 | CQ13: -0.9765895237 | CR13: -14.45 | CT13: 15% | CV13: =COUNT(DA2:DA15000) -> 40 | CW13: 1748.86919 | CX13: 1752.051752 | CY13: 49.17641997 | CZ13: 51.35439744 | DA13: -2.177977474 | DC13: -0.9975569615 | DD13: -3.82 | DF13: 75%
A14: 1700-01-13 | B14: 1700.034177 | C14: 0 | D14: 4 | E14: 0 | G14: =COUNT(L2:L50000) -> 3230 | H14: 1731 | I14: 1731.041667 | J14: 34 | N14: -0.2275616372 | O14: 0 | P14: 3 | Q14: =CORREL(L67:L3296,N64:N3293) -> 0.4611315081 | T14: 1867.903108 | U14: 1867.907473 | AB14: 0.5103578872 | AC14: 0 | AD14: -0.5000154845 | AE14: 0 | AF14: 0.9999999986 | AG14: =AG13 -> 0 | AJ14: lead = 0.001 | AM14: 1868.103928 | AN14: 1868.117025 | AO14: 14.5 | AP14: 22.6342312 | AQ14: -8.134231201 | AS14: -0.2413475781 | AT14: -0.0105 | AY14: 1867.999152 | AZ14: 1868.038443 | BA14: 22.64285714 | BE14: -0.1696689737 | BF14: -0.196 | BK14: 1869.806533 | BL14: 1869.924405 | BM14: 83.79310345 | BN14: 98.03568565 | BO14: 104.0971665 | BP14: -6.061480887 | BQ14: -20.30406308 | BS14: -0.9299176782 | BT14: 0.0093 | BY14: 1690.168609 | BZ14: 1690.522227 | CE14: 0.3256951465 | CF14: -0.8665 | CK14: 1706.435035 | CL14: 1707.495889 | CM14: 19.94315245 | CN14: =AVERAGE(CM10:CM18) -> 16.42918822 | CO14: =CM14-CN14 -> 3.513964232 | CQ14: -0.8863819021 | CR14: -14.45 | CW14: 1755.234314 | CX14: 1758.416875 | CY14: 41.93499785 | CZ14: =AVERAGE(CY10:CY18) -> 49.10790648 | DA14: =CY14-CZ14 -> -7.172908636 | DC14: -0.8090766786 | DD14: -3.82
A15: 1700-01-14 | B15: 1700.036916 | C15: 0 | D15: 4 | E15: 0 | H15: 1731.083333 | I15: 1731.125 | J15: 33.8 | N15: -0.2779946927 | O15: 0 | P15: 4 | Q15: =CORREL(L67:L3296,N63:N3292) -> 0.465685254 | T15: 1867.911839 | U15: 1867.916205 | AB15: 0.9565709005 | AC15: 0 | AD15: -0.939698736 | AE15: 0 | AF15: -0.5000464 | AG15: =AG14 -> 0 | AM15: 1868.130122 | AN15: 1868.143219 | AO15: 26 | AP15: 24.59719416 | AQ15: 1.402805836 | AS15: -0.8086689686 | AT15: -0.0105 | AV15: Use below. | AY15: 1868.077734 | AZ15: 1868.117025 | BA15: 18.34482759 | BE15: 0.5034939289 | BF15: -0.196 | BH15: Cells | BK15: 1870.042278 | BL15: 1870.160151 | BM15: 134.1046512 | BN15: 122.9581663 | BO15: 109.6165464 | BP15: 13.34161989 | BQ15: 24.48810478 | BS15: -0.4759617224 | BT15: 0.0093 | BV15: Cells | BY15: 1690.875845 | BZ15: 1691.229463 | CE15: -0.3582425548 | CF15: -0.8665 | CH15: Cells | CK15: 1708.556743 | CL15: 1709.617597 | CM15: 7.04516129 | CN15: 22.16318191 | CO15: -15.11802062 | CQ15: -0.3814263375 | CR15: -14.45 | CT15: Cells | CW15: 1761.599437 | CX15: 1764.781998 | CY15: 38.32716315 | CZ15: 57.04343047 | DA15: -18.71626732 | DC15: -0.2420204259 | DD15: -3.82 | DF15: Cells
A16: 1700-01-15 | B16: 1700.039656 | C16: 0 | D16: 4 | E16: 0 | H16: 1731.166667 | I16: 1731.208333 | J16: 31 | N16: -0.3276723716 | O16: 0 | P16: 5 | Q16: =CORREL(L67:L3296,N62:N3291) -> 0.4689694406 | T16: 1867.92057 | U16: 1867.924936 | AB16: 0.9032095097 | AC16: 0 | AD16: -0.9396865053 | AE16: 0 | AF16: -0.4999535986 | AG16: =AG15 -> 0 | AJ16: 1868 to 1899 | AM16: 1868.156315 | AN16: 1868.169412 | AO16: 23.36363636 | AP16: 26.04163861 | AQ16: -2.678002245 | AS16: -0.9976051613 | AT16: -0.0105 | AU16: Cycles | AV16: Correlations | AY16: 1868.156315 | AZ16: 1868.195606 | BA16: 26.43333333 | BE16: 0.9410664264 | BF16: -0.196 | BH16: 17 to 1812 | BK16: 1870.278023 | BL16: 1870.395896 | BM16: 150.9767442 | BN16: 141.7248062 | BO16: 120.0894146 | BP16: 21.63539161 | BQ16: 30.88732959 | BS16: 0.200702013 | BT16: 0.0093 | BV16: 10 to 603 | BY16: 1691.583081 | BZ16: 1691.936699 | CE16: -0.8745545833 | CF16: -0.8665 | CH16: 31 to 461 | CK16: 1710.678451 | CL16: 1711.739305 | CM16: 1 | CN16: 24.60744519 | CO16: =CM16-CN16 -> -23.60744519 | CQ16: 0.3020028496 | CR16: -14.45 | CT16: 14 to 152 | CW16: 1767.96456 | CX16: 1771.147122 | CY16: 75.21394748 | CZ16: 51.27787185 | DA16: 23.93607563 | DC16: 0.4382798738 | DD16: -3.82 | DF16: 10 to 49
A17: 1700-01-16 | B17: 1700.042396 | C17: 0 | D17: 4 | E17: 0 | H17: 1731.25 | I17: 1731.291667 | J17: 31 | N17: -0.3764596881 | O17: 0 | P17: 6 | Q17: =CORREL(L67:L3296,N61:N3290) -> 0.4709730064 | T17: 1867.929301 | U17: 1867.933667 | AB17: 0.3781419942 | AC17: 0 | AD17: -0.4999845153 | AE17: 0 | AF17: 0.9999999986 | AG17: =AG16 -> 0 | AH17: Cycles | AI17: Actual | AJ17: 28.68 Correl | AM17: 1868.182509 | AN17: 1868.195606 | AO17: 31.33333333 | AP17: 28.35398429 | AQ17: 2.979349046 | AS17: -0.719750812 | AT17: -0.0105 | AU17: -4 | AV17: =CORREL(AQ4558:AQ5418,AS4553:AS5413) -> -0.1092167626 | AY17: 1868.234897 | AZ17: 1868.274188 | BA17: 39.55172414 | BB17: =AVERAGE(BA13:BA21) -> 29.81853676 | BC17: =BA17-BB17 -> 9.733187375 | BE17: 0.9383034842 | BF17: -0.196 | BK17: 1870.513769 | BL17: 1870.631641 | BM17: =AVERAGEIFS(Intl_SS,DecDate,">"&BK17,DecDate,"<="&BK18) -> 140.0930233 | BN17: 145.503876 | BO17: 120.4795955 | BP17: 25.0242805 | BQ17: =BM17-BO17 -> 19.61342778 | BS17: 0.783455046 | BT17: 0.0093 | BY17: 1692.290317 | BZ17: 1692.643935 | CE17: -0.9816528026 | CF17: -0.8665 | CK17: 1712.800158 | CL17: 1713.861012 | CM17: 5.620645161 | CN17: 24.53954396 | CO17: -18.9188988 | CQ17: 0.8441215469 | CR17: -14.45 | CW17: 1774.329683 | CX17: 1777.512245 | CY17: 74.82271945 | CZ17: 52.69691811 | DA17: 22.12580134 | DC17: 0.9135041497 | DD17: -3.82
A18: 1700-01-17 | B18: 1700.045136 | C18: 0 | D18: 4 | E18: 0 | H18: =H17 +(1/12) -> 1731.333333 | I18: =I17 +(1/12) -> 1731.375 | J18: 30.9 | N18: -0.4242240757 | O18: 0 | P18: 7 | Q18: =CORREL(L67:L3296,N60:N3289) -> 0.4716885215 | T18: 1867.938033 | U18: 1867.942398 | AB18: -0.3444122537 | AC18: 0 | AD18: 0.1736657861 | AE18: 0 | AF18: -0.5000464 | AG18: =AG17 -> 0 | AH18: -4 | AI18: -0.03 | AJ18: =CORREL(Z25:Z3688,AD20:AD3683) -> -0.03002636206 | AM18: 1868.208703 | AN18: 1868.2218 | AO18: 25.4 | AP18: 29.13546577 | AQ18: -3.735465769 | AS18: -0.1051170585 | AT18: -0.0105 | AU18: -3 | AV18: =CORREL(AQ4558:AQ5418,AS4552:AS5412) -> -0.05780403612 | AY18: 1868.313479 | AZ18: 1868.35277 | BA18: 28.14285714 | BB18: 31.75723408 | BC18: -3.614376939 | BE18: 0.4964979137 | BF18: -0.196 | BH18: from 1868.274 | BK18: 1870.749514 | BL18: 1870.867387 | BM18: 145.4418605 | BN18: 133.0697674 | BO18: 122.3788203 | BP18: 10.69094716 | BQ18: 23.06304019 | BS18: =SIN((2*PI()*(BL18-2000+BT18)/2.1217077549548) + 0.707378034) -> 0.9996207558 | BT18: 0.0093 | BV18: from 1868.981 | BY18: 1692.997553 | BZ18: 1693.351171 | CE18: =SIN((2*PI()*(BZ18-2000+CF18)/6.3651232648644) + 1.28299025) -> -0.6294247658 | CF18: -0.8665 | CH18: from 1702.545 | CK18: 1714.921866 | CL18: 1715.98272 | CM18: 35.24418605 | CN18: 22.12391672 | CO18: 13.12026933 | CQ18: =SIN((2*PI()*(CL18-2000+CR18)/19.0953697945932) + 5.663651193) -> 0.9912663911 | CR18: -14.45 | CT18: from 1707.496 | CW18: 1780.694807 | CX18: 1783.877368 | CY18: =AVERAGEIFS(Intl_SS,DecDate,">"&CW18,DecDate,"<="&CW19) -> 43.39517865 | CZ18: 48.04202627 | DA18: =CY18-CZ18 -> -4.646847625 | DC18: =SIN((2*PI()*(CX18-2000+DD18)/57.2861093837796) + 0.840686201) -> 0.9612896814 | DD18: -3.82 | DF18: from 1732.956
A19: 1700-01-18 | B19: 1700.047875 | C19: 0 | D19: 4 | E19: 0 | H19: 1731.416667 | I19: 1731.458333 | J19: 28 | N19: -0.4708357473 | O19: 0 | P19: 8 | Q19: =CORREL(L67:L3296,N59:N3288) -> 0.4711122577 | T19: 1867.946764 | U19: 1867.95113 | AB19: -0.8870953113 | AC19: 0 | AD19: 0.7660559361 | AE19: 0 | AF19: -0.4999535986 | AG19: =AG18 -> 0 | AH19: -3 | AI19: -0.016 | AJ19: =CORREL(Z25:Z3688,AD19:AD3682) -> -0.03050587179 | AM19: 1868.234897 | AN19: 1868.247994 | AO19: 45.88888889 | AP19: 31.34657688 | AQ19: 14.54231201 | AS19: 0.5587021348 | AT19: -0.0105 | AU19: -2 | AV19: =CORREL(AQ4558:AQ5418,AS4551:AS5411) -> 0.02052444441 | AY19: 1868.392061 | AZ19: 1868.431352 | BA19: 30.24137931 | BB19: 33.95400474 | BC19: -3.712625433 | BE19: -0.1776245486 | BF19: -0.196 | BH19: to 2009.328 | BK19: 1870.985259 | BL19: 1871.103132 | BM19: 113.6744186 | BN19: 134.4031008 | BO19: 123.9739672 | BP19: 10.42913362 | BQ19: -10.29954855 | BS19: 0.7480528045 | BT19: 0.0093 | BV19: to 2008.778 | BY19: 1693.704789 | BZ19: 1694.058407 | CE19: 0.01731811424 | CF19: -0.8665 | CH19: to 2006.657 | CK19: 1717.043574 | CL19: 1718.104428 | CM19: 55.60594315 | CN19: 28.71048003 | CO19: 26.89546313 | CQ19: 0.6745866742 | CR19: -14.45 | CT19: to 2000.292 | CW19: 1787.05993 | CX19: 1790.242492 | CY19: 96.2350409 | CZ19: 46.52846622 | DA19: 49.70657467 | DC19: 0.5592770877 | DD19: -3.82 | DF19: to 1981.196
A20: 1700-01-19 | B20: 1700.050615 | C20: 0 | D20: 4 | E20: 0 | H20: 1731.5 | I20: 1731.541667 | J20: 27.9 | N20: -0.5161680483 | O20: 0 | P20: 9 | Q20: =CORREL(L67:L3296,N58:N3287) -> 0.4692442429 | T20: 1867.955495 | U20: 1867.959861 | AB20: -0.9664879728 | AC20: 0 | AD20: 0.9999999998 | AE20: 0 | AF20: 0.9999999986 | AG20: =AG19 -> 0 | AH20: -2 | AI20: 0.006 | AJ20: =CORREL(Z25:Z3688,AD18:AD3681) -> -0.01671049879 | AM20: 1868.261091 | AN20: 1868.274188 | AO20: 36.7 | AP20: 31.45768799 | AQ20: 5.242312009 | AS20: 0.96109839 | AT20: -0.0105 | AU20: -1 | AV20: =CORREL(AQ4558:AQ5418,AS4550:AS5410) -> 0.08929944191 | AY20: 1868.470643 | AZ20: 1868.509933 | BA20: 34.89655172 | BB20: 40.11410327 | BC20: -5.217551542 | BE20: -0.7686345106 | BF20: -0.196 | BK20: 1871.221004 | BL20: 1871.338877 | BM20: 144.0930233 | BN20: 117.8992248 | BO20: 119.7917966 | BP20: -1.892571802 | BQ20: 24.30122665 | BS20: 0.1464626322 | BT20: 0.0093 | BY20: 1694.412025 | BZ20: 1694.765643 | CE20: 0.6559576561 | CF20: -0.8665 | CK20: 1719.165282 | CL20: 1720.226136 | CM20: 31.26193548 | CN20: 37.90216462 | CO20: -6.640229131 | CQ20: 0.04226035523 | CR20: -14.45 | CW20: 1793.425053 | CX20: 1796.607615 | CY20: 18.53399312 | CZ20: 43.64560402 | DA20: -25.11161091 | DC20: -0.1044274711 | DD20: -3.82
A21: 1700-01-20 | B21: 1700.053355 | C21: 0 | D21: 4 | E21: 0 | H21: 1731.583333 | I21: 1731.625 | J21: 25 | N21: =SIN((2*PI()*(I21-2000+O21)/10.04352) + 1.984402856) -> -0.5600978 | O21: =O20 -> 0 | T21: 1867.964227 | U21: 1867.968592 | V21: =AVERAGEIFS(Intl_SS,DecDate,">"&T21,DecDate,"<="&T22) -> 16.33333333 | AB21: -0.5411269848 | AC21: 0 | AD21: 0.7660329499 | AE21: 0 | AF21: -0.5000463999 | AG21: =AG20 -> 0 | AH21: -1 | AI21: 0.025 | AJ21: =CORREL(Z25:Z3688,AD17:AD3680) -> 0.00490824227 | AM21: 1868.287285 | AN21: 1868.300382 | AO21: 36.7 | AP21: 33.00617284 | AQ21: 3.69382716 | AS21: 0.9137860271 | AT21: -0.0105 | AU21: 0 | AV21: =CORREL(AQ4558:AQ5418,AS4558:AS5418) -> 0.1163715622 | AY21: 1868.549224 | AZ21: 1868.588515 | BA21: =AVERAGEIFS(Intl_SS,DecDate,">"&AY21,DecDate,"<="&AY22) -> 37.28571429 | BB21: 43.22687466 | BC21: =BA21-BB21 -> -5.941160372 | BE21: -0.9999918426 | BF21: -0.196 | BK21: 1871.45675 | BL21: 1871.574622 | BM21: 95.93023256 | BN21: 111.1085271 | BO21: 115.1496777 | BP21: -4.041150613 | BQ21: -19.21944519 | BS21: -0.5236590334 | BT21: 0.0093 | BY21: 1695.11926 | BZ21: 1695.472878 | CE21: 0.9876673206 | CF21: -0.8665 | CK21: 1721.286989 | CL21: 1722.347843 | CM21: =AVERAGEIFS(Intl_SS,DecDate,">"&CK21,DecDate,"<="&CK22) -> 21.52583979 | CN21: 42.0646682 | CO21: =CM21-CN21 -> -20.53882841 | CQ21: -0.6098400536 | CR21: -14.45 | CW21: 1799.790176 | CX21: 1802.972738 | CY21: 36.63280241 | CZ21: 41.21857001 | DA21: -4.585767604 | DC21: -0.7192692555 | DD21: -3.82
A22: 1700-01-21 | B22: 1700.056095 | C22: 0 | D22: 4 | E22: 0 | H22: 1731.666667 | I22: 1731.708333 | J22: 25 | N22: -0.6025056352 | O22: 0 | Q22: 25 cycles | T22: 1867.972958 | U22: 1867.977324 | V22: 56.66666667 | AB22: 0.1668405416 | AC22: 0 | AD22: 0.1736305692 | AE22: 0 | AF22: -0.4999535986 | AG22: =AG21 -> 0 | AH22: 0 | AI22: 0.032 | AJ22: =CORREL(Z25:Z3688,AD25:AD3688) -> 0.02422517534 | AM22: 1868.313479 | AN22: 1868.326576 | AO22: =AVERAGEIFS(Intl_SS,DecDate,">"&AM22,DecDate,"<="&AM23) -> 22.33333333 | AP22: 33.08024691 | AQ22: =AO22-AP22 -> -10.74691358 | AS22: 0.4389030265 | AT22: -0.0105 | AU22: 1 | AV22: =CORREL(AQ4558:AQ5418,AS4557:AS5417) -> 0.08886059223 | AY22: 1868.627806 | AZ22: 1868.667097 | BA22: 48.27586207 | BB22: 47.30733443 | BC22: 0.9685276409 | BE22: -0.7634418778 | BF22: -0.196 | BK22: 1871.692495 | BL22: 1871.810368 | BM22: 93.30232558 | BN22: 95.79399448 | BO22: 111.1677656 | BP22: -15.37377112 | BQ22: -17.86544002 | BS22: -0.9487548175 | BT22: 0.0093 | BY22: 1695.826496 | BZ22: 1696.180114 | CE22: 0.857236469 | CF22: -0.8665 | CK22: 1723.408697 | CL22: 1724.469551 | CM22: 21.8683871 | CN22: 42.46599187 | CO22: -20.59760477 | CQ22: -0.9765895237 | CR22: -14.45 | CW22: 1806.1553 | CX22: 1809.337861 | CY22: 7.282393457 | CZ22: 39.6599448 | DA22: -32.37755135 | DC22: -0.9975569615 | DD22: -3.82
A23: 1700-01-22 | B23: 1700.058834 | C23: 0 | D23: 4 | E23: 0 | H23: 1731.75 | I23: 1731.791667 | J23: 25 | N23: -0.6432763217 | O23: 0 | Q23: 99.9 percentile | T23: 1867.981689 | U23: 1867.986055 | V23: 55.75 | AB23: 0.7876746793 | AC23: 0 | AD23: -0.5000154845 | AE23: 0 | AF23: 0.9999999986 | AG23: =AG22 -> 0 | AH23: 1 | AI23: 0.025 | AJ23: =CORREL(Z25:Z3688,AD24:AD3687) -> 0.03220772709 | AM23: 1868.339673 | AN23: 1868.35277 | AO23: 34.4 | AP23: 32.65802469 | AQ23: 1.741975309 | AS23: -0.241347578 | AT23: -0.0105 | AU23: 2 | AV23: =CORREL(AQ4558:AQ5418,AS4556:AS5416) -> 0.01982108462 | AY23: 1868.706388 | AZ23: 1868.745679 | BA23: 42.4137931 | BB23: 50.97796935 | BC23: -8.564176245 | BE23: -0.1696689737 | BF23: -0.196 | BK23: 1871.92824 | BL23: 1872.046113 | BM23: 98.14942529 | BN23: 95.97228905 | BO23: 105.0837863 | BP23: -9.111497223 | BQ23: -6.934360985 | BS23: -0.9299176782 | BT23: 0.0093 | BY23: 1696.533732 | BZ23: 1696.88735 | CE23: 0.3256951465 | CF23: -0.8665 | CK23: 1725.530405 | CL23: 1726.591259 | CM23: 79.22222222 | CN23: 41.52201421 | CO23: 37.70020801 | CQ23: -0.8863819021 | CR23: -14.45 | CW23: 1812.520423 | CX23: 1815.702985 | CY23: 28.31295738 | CZ23: 40.84088898 | DA23: -12.5279316 | DC23: -0.8090766786 | DD23: -3.82
A24: 1700-01-23 | B24: 1700.061574 | C24: 0 | D24: 4 | E24: 0 | H24: 1731.833333 | I24: 1731.875 | J24: 22 | N24: -0.6822990762 | O24: 0 | Q24: 1730 to 2004 | T24: 1867.990421 | U24: 1867.994786 | V24: 30 | AB24: 0.9971413916 | AC24: 0 | AD24: -0.939698736 | AE24: 0 | AF24: -0.5000463999 | AG24: =AG23 -> 0 | AH24: 2 | AI24: 0.006 | AJ24: =CORREL(Z25:Z3688,AD23:AD3686) -> 0.02512426446 | AM24: 1868.365867 | AN24: 1868.378964 | AO24: 27 | AP24: 31.96666667 | AQ24: -4.966666667 | AS24: -0.8086689685 | AT24: -0.0105 | AU24: 3 | AV24: =CORREL(AQ4558:AQ5418,AS4555:AS5415) -> -0.05841181269 | AY24: 1868.78497 | AZ24: 1868.824261 | BA24: 73.78571429 | BB24: 53.19252874 | BC24: 20.59318555 | BE24: 0.5034939289 | BF24: -0.196 | BK24: 1872.163986 | BL24: 1872.281858 | BM24: 96.46511628 | BN24: 101.2707387 | BO24: 102.6948974 | BP24: -1.424158722 | BQ24: -6.229781104 | BS24: -0.4759617224 | BT24: 0.0093 | BY24: 1697.240968 | BZ24: 1697.594586 | CE24: -0.3582425548 | CF24: -0.8665 | CK24: 1727.652113 | CL24: 1728.712967 | CM24: 89.77032258 | CN24: 43.57914886 | CO24: 46.19117372 | CQ24: -0.3814263375 | CR24: -14.45 | CW24: 1818.885546 | CX24: 1822.068108 | CY24: 12.38140336 | CZ24: 38.63408038 | DA24: -26.25267702 | DC24: -0.2420204259 | DD24: -3.82
A25: 1700-01-24 | B25: 1700.064314 | C25: 0 | D25: 4 | E25: 0 | H25: 1731.916667 | I25: 1731.958333 | J25: 22 | N25: -0.7194678648 | O25: 0 | T25: 1867.999152 | U25: 1868.003518 | V25: =AVERAGEIFS(Intl_SS,DecDate,">"&T25,DecDate,"<="&T26) -> 17.33333333 | W25: =AVERAGE(V24:V26) -> 22.66666667 | X25: =AVERAGE(V21:V29) -> 33.24074074 | Y25: =V25-W25 -> -5.333333333 | Z25: =V25-X25 -> -15.90740741 | AB25: 0.6858455383 | AC25: 0 | AD25: -0.9396865053 | AE25: 0 | AF25: -0.4999535987 | AG25: =AG24 -> 0 | AH25: 3 | AI25: -0.016 | AJ25: =CORREL(Z25:Z3688,AD22:AD3685) -> 0.006279692867 | AM25: 1868.392061 | AN25: 1868.405158 | AO25: 37.3 | AP25: 31.63333333 | AQ25: 5.666666667 | AS25: -0.9976051613 | AT25: -0.0105 | AU25: 4 | AV25: =CORREL(AQ4558:AQ5418,AS4554:AS5414) -> -0.109444514 | AY25: 1868.863551 | AZ25: 1868.902842 | BA25: 54.44827586 | BB25: 54.75574713 | BC25: -0.3074712644 | BE25: 0.9410664264 | BF25: -0.196 | BK25: 1872.399731 | BL25: 1872.517604 | BM25: 109.1976744 | BN25: 103.3062016 | BO25: 93.13417387 | BP25: 10.17202768 | BQ25: 16.06350055 | BS25: 0.200702013 | BT25: 0.0093 | BY25: 1697.948204 | BZ25: 1698.301822 | CE25: -0.8745545833 | CF25: -0.8665 | CK25: 1729.77382 | CL25: 1730.834674 | CM25: 38.4625323 | CN25: 50.72423847 | CO25: -12.26170617 | CQ25: 0.3020028496 | CR25: -14.45 | CW25: 1825.250669 | CX25: 1828.433231 | CY25: 53.37064141 | CZ25: 40.40332197 | DA25: 12.96731944 | DC25: 0.4382798738 | DD25: -3.82
A26: 1700-01-25 | B26: 1700.067053 | C26: 0 | D26: 4 | E26: 0 | H26: 1732 | I26: 1732.041667 | J26: 15 | N26: -0.754681691 | O26: 0 | T26: 1868.007883 | U26: 1868.012249 | V26: 20.66666667 | W26: =AVERAGE(V25:V27) -> 28.22222222 | X26: =AVERAGE(V22:V30) -> 33.2037037 | Y26: =V26-W26 -> -7.555555556 | Z26: =V26-X26 -> -12.53703704 | AB26: 0.0163630875 | AC26: 0 | AD26: -0.4999845154 | AE26: 0 | AF26: 0.9999999986 | AG26: =AG25 -> 0 | AH26: 4 | AI26: -0.03 | AJ26: =CORREL(Z25:Z3688,AD21:AD3684) -> -0.01550236938 | AM26: 1868.418255 | AN26: 1868.431352 | AO26: 32 | AP26: 31.08888889 | AQ26: 0.9111111111 | AS26: -0.719750812 | AT26: -0.0105 | AY26: 1868.942133 | AZ26: 1868.981424 | BA26: 76.27586207 | BB26: 56.21209633 | BC26: 20.06376574 | BE26: 0.9383034842 | BF26: -0.196 | BK26: 1872.635476 | BL26: 1872.753349 | BM26: 104.255814 | BN26: 101.379845 | BO26: 88.70652529 | BP26: 12.67331967 | BQ26: 15.54928866 | BS26: 0.783455046 | BT26: 0.0093 | BY26: 1698.65544 | BZ26: 1699.009058 | CE26: -0.9816528026 | CF26: -0.8665 | CK26: 1731.895528 | CL26: 1732.956382 | CM26: 9.23255814 | CN26: 52.94933178 | CO26: -43.71677364 | CQ26: 0.8441215469 | CR26: -14.45 | CW26: 1831.615793 | CX26: 1834.798354 | CY26: 60.79509255 | CZ26: 43.83365631 | DA26: 16.96143624 | DC26: 0.9135041497 | DD26: -3.82
A27: 1700-01-26 | B27: 1700.069793 | C27: 0 | D27: 4 | E27: 0 | H27: 1732.083333 | I27: 1732.125 | J27: 14.86666667 | N27: -0.7878448707 | O27: 0 | T27: 1868.016615 | U27: 1868.02098 | V27: 46.66666667 | W27: 33.77777778 | X27: 28.68518519 | Y27: 12.88888889 | Z27: 17.98148148 | AB27: -0.6616650756 | AC27: 0 | AD27: 0.173665786 | AE27: 0 | AF27: -0.5000463999 | AG27: =AG26 -> 0 | AJ27: 407 cycles | AM27: 1868.444449 | AN27: 1868.457546 | AO27: 21.6 | AP27: 34.4345679 | AQ27: -12.8345679 | AS27: -0.1051170586 | AT27: -0.0105 | AV27: 106 cycles | AY27: 1869.020715 | AZ27: 1869.060006 | BA27: 61.17857143 | BB27: 62.33853311 | BC27: -1.159961686 | BE27: 0.4964979137 | BF27: -0.196 | BK27: 1872.871222 | BL27: 1872.989094 | BM27: 90.68604651 | BN27: 95.70542636 | BO27: 84.12254596 | BP27: 11.58288039 | BQ27: 6.563500549 | BS27: 0.9996207558 | BT27: 0.0093 | BY27: 1699.362676 | BZ27: 1699.716294 | CA27: =AVERAGEIFS(Intl_SS,DecDate,">"&BY27,DecDate,"<="&BY28) -> 4 | CE27: -0.6294247658 | CF27: -0.8665 | CK27: 1734.017236 | CL27: 1735.07809 | CM27: 26.7483871 | CN27: 52.09685866 | CO27: -25.34847156 | CQ27: 0.9912663911 | CR27: -14.45 | CW27: 1837.980916 | CX27: 1841.163478 | CY27: 54.02367628 | CZ27: 46.99543283 | DA27: 7.028243455 | DC27: 0.9612896814 | DD27: -3.82
A28: 1700-01-27 | B28: 1700.072533 | C28: 0 | D28: 4 | E28: 0 | H28: 1732.166667 | I28: 1732.208333 | J28: 13 | N28: -0.8188672919 | O28: 0 | T28: 1868.025346 | U28: 1868.029712 | V28: 34 | W28: 34.13888889 | X28: 24.26851852 | Y28: -0.1388888889 | Z28: 9.731481481 | AB28: -0.9941350206 | AC28: 0 | AD28: 0.7660559361 | AE28: 0 | AF28: -0.4999535987 | AG28: =AG27 -> 0 | AJ28: 75% | AM28: 1868.470643 | AN28: 1868.48374 | AO28: 39.66666667 | AP28: 33.69012346 | AQ28: 5.97654321 | AS28: 0.5587021348 | AT28: -0.0105 | AV28: 99% | AY28: 1869.099297 | AZ28: 1869.138588 | BA28: 50.17241379 | BB28: 69.87110016 | BC28: -19.69868637 | BE28: -0.1776245486 | BF28: -0.196 | BK28: 1873.106967 | BL28: 1873.22484 | BM28: 92.1744186 | BN28: 80.30232558 | BO28: 79.58010336 | BP28: 0.7222222222 | BQ28: 12.59431525 | BS28: 0.7480528045 | BT28: 0.0093 | BY28: 1700.069912 | BZ28: 1700.42353 | CA28: 5.666666667 | CE28: 0.01731811424 | CF28: -0.8665 | CK28: 1736.138944 | CL28: 1737.199798 | CM28: 74.12015504 | CN28: 44.78247451 | CO28: 29.33768053 | CQ28: 0.6745866742 | CR28: -14.45 | CW28: 1844.346039 | CX28: 1847.528601 | CY28: 76.37376344 | CZ28: 52.68364631 | DA28: 23.69011713 | DC28: 0.5592770877 | DD28: -3.82
A29: 1700-01-28 | B29: 1700.075273 | C29: 0 | D29: 4 | E29: 0 | H29: 1732.25 | I29: 1732.291667 | J29: 13 | N29: -0.8476646593 | O29: 0 | T29: 1868.034077 | U29: 1868.038443 | V29: 21.75 | W29: 23.91666667 | X29: 22.67592593 | Y29: -2.166666667 | Z29: -0.9259259259 | AB29: -0.8074124937 | AC29: 0 | AD29: 0.9999999998 | AE29: 0 | AF29: 0.9999999986 | AG29: =AG28 -> 0 | AJ29: Lag = -0.0090 | AM29: 1868.496836 | AN29: 1868.509933 | AO29: 33.7 | AP29: 34.33209877 | AQ29: -0.6320987654 | AS29: 0.96109839 | AT29: -0.0105 | AY29: 1869.177878 | AZ29: 1869.217169 | BA29: 48.96551724 | BB29: 68.62903667 | BC29: -19.66351943 | BE29: -0.7686345106 | BF29: -0.196 | BK29: 1873.342712 | BL29: 1873.460585 | BM29: 58.04651163 | BN29: 68.76744186 | BO29: 73.59043928 | BP29: -4.822997416 | BQ29: -15.54392765 | BS29: 0.1464626322 | BT29: 0.0093 | BY29: 1700.777148 | BZ29: 1701.130766 | CA29: 9.166666667 | CE29: 0.6559576561 | CF29: -0.8665 | CK29: 1738.260652 | CL29: 1739.321505 | CM29: 95.56774194 | CN29: 39.69774444 | CO29: 55.8699975 | CQ29: 0.04226035523 | CR29: -14.45 | CW29: 1850.711163 | CX29: 1853.893724 | CY29: =AVERAGEIFS(Intl_SS,DecDate,">"&CW29,DecDate,"<="&CW30) -> 34.45716746 | CZ29: 54.19663248 | DA29: =CY29-CZ29 -> -19.73946502 | DC29: -0.1044274711 | DD29: -3.82
A30: 1700-01-29 | B30: 1700.078012 | C30: 0 | D30: 4 | E30: 0 | H30: 1732.333333 | I30: 1732.375 | J30: 12.93333333 | N30: -0.8741587238 | O30: 0 | T30: 1868.042808 | U30: 1868.047174 | V30: 16 | W30: 17.91666667 | X30: 22.58333333 | Y30: -1.916666667 | Z30: -6.583333333 | AB30: -0.1990143595 | AC30: 0 | AD30: 0.7660329499 | AE30: 0 | AF30: -0.5000463999 | AG30: =AG29 -> 0 | AM30: 1868.52303 | AN30: 1868.536127 | AO30: 31.8 | AP30: 35.45432099 | AQ30: -3.654320988 | AS30: 0.9137860271 | AT30: -0.0105 | AV30: Cells | AY30: 1869.25646 | AZ30: 1869.295751 | BA30: 50.39285714 | BB30: 71.64819376 | BC30: -21.25533662 | BE30: -0.9999918426 | BF30: -0.196 | BK30: 1873.578458 | BL30: 1873.69633 | BM30: 56.08139535 | BN30: 55.39147287 | BO30: 67.02713178 | BP30: -11.63565891 | BQ30: -10.94573643 | BS30: -0.5236590334 | BT30: 0.0093 | BY30: 1701.484384 | BZ30: 1701.838002 | CA30: 12.95736434 | CE30: 0.9876673206 | CF30: -0.8665 | CK30: 1740.382359 | CL30: 1741.443213 | CM30: 41.55167959 | CN30: 44.40219425 | CO30: -2.850514666 | CQ30: -0.6098400536 | CR30: -14.45 | CW30: 1857.076286 | CX30: 1860.258847 | CY30: 67.50581145 | CZ30: 52.77834138 | DA30: 14.72747008 | DC30: -0.7192692555 | DD30: -3.82
A31: 1700-01-30 | B31: 1700.080752 | C31: 0 | D31: 4 | E31: 0 | H31: 1732.416667 | I31: 1732.458333 | J31: 11 | N31: -0.8982774948 | O31: 0 | T31: 1868.05154 | U31: 1868.055905 | V31: =AVERAGEIFS(Intl_SS,DecDate,">"&T31,DecDate,"<="&T32) -> 16 | W31: 16 | X31: 22.17592593 | Y31: 0 | Z31: =V31-X31 -> -6.175925926 | AB31: 0.5133201164 | AC31: 0 | AD31: 0.1736305693 | AE31: 0 | AF31: -0.4999535987 | AG31: =AG30 -> 0 | AJ31: 1900 to 1928 | AM31: 1868.549224 | AN31: 1868.562321 | AO31: 52.44444444 | AP31: 35.23209877 | AQ31: 17.21234568 | AS31: =SIN((2*PI()*(AN31-2000+AT31)/0.235745306106089) + 0.083216746) -> 0.4389030265 | AT31: -0.0105 | AV31: 4554 to 5410 | AY31: 1869.335042 | AZ31: 1869.374333 | BA31: 103.4137931 | BB31: 71.56390257 | BC31: 31.84989053 | BE31: -0.7634418778 | BF31: -0.196 | BK31: 1873.814203 | BL31: 1873.932075 | BM31: 52.04651163 | BN31: 55.13178295 | BO31: 58.99743087 | BP31: -3.865647925 | BQ31: -6.950919243 | BS31: -0.9487548175 | BT31: 0.0093 | BY31: 1702.19162 | BZ31: 1702.545238 | CA31: 17.22868217 | CB31: =AVERAGE(CA27:CA35) -> 21.04866328 | CC31: =CA31-CB31 -> -3.819981111 | CE31: 0.857236469 | CF31: -0.8665 | CK31: 1742.504067 | CL31: 1743.564921 | CM31: 14.19612903 | CN31: 48.66346327 | CO31: -34.46733424 | CQ31: -0.9765895237 | CR31: -14.45 | CW31: 1863.441409 | CX31: 1866.623971 | CY31: 35.7383821 | CZ31: 51.42811006 | DA31: -15.68972796 | DC31: -0.9975569615 | DD31: -3.82
A32: 1700-01-31 | B32: 1700.083492 | C32: 0 | D32: 4 | E32: 0 | H32: 1732.5 | I32: 1732.541667 | J32: 10.93333333 | N32: -0.9199554359 | O32: 0 | T32: 1868.060271 | U32: 1868.064637 | V32: 16 | W32: 15.88888889 | X32: 18.32407407 | Y32: 0.1111111111 | Z32: -2.324074074 | AB32: 0.9575703436 | AC32: 0 | AD32: -0.5000154845 | AE32: 0 | AF32: 0.9999999986 | AG32: =AG31 -> 0 | AH32: Cycles | AI32: Actual | AJ32: 28.68 Correl | AM32: 1868.575418 | AN32: 1868.588515 | AO32: 27.7 | AP32: 40.12098765 | AQ32: -12.42098765 | AS32: -0.241347578 | AT32: -0.0105 | AY32: 1869.413624 | AZ32: 1869.452915 | BA32: 110.2068966 | BB32: 72.6908867 | BC32: 37.51600985 | BE32: -0.1696689737 | BF32: -0.196 | BK32: 1874.049948 | BL32: 1874.167821 | BM32: 57.26744186 | BN32: 50.62403101 | BO32: 51.87985981 | BP32: -1.255828804 | BQ32: 5.387582049 | BS32: -0.9299176782 | BT32: 0.0093 | BY32: 1702.898856 | BZ32: 1703.252474 | CA32: 21.09689922 | CB32: 25.00602762 | CC32: -3.909128398 | CE32: 0.3256951465 | CF32: -0.8665 | CK32: 1744.625775 | CL32: 1745.686629 | CM32: 13.39276486 | CN32: 47.81815861 | CO32: -34.42539376 | CQ32: -0.8863819021 | CR32: -14.45 | CW32: 1869.806532 | CX32: 1872.989094 | CY32: 79.50687876 | CZ32: 48.5018324 | DA32: 31.00504636 | DC32: -0.8090766786 | DD32: -3.82
A33: 1700-02-01 | B33: 1700.086232 | C33: 0 | D33: 4 | E33: 0 | H33: 1732.583333 | I33: 1732.625 | J33: 9 | N33: -0.9391336432 | O33: 0 | T33: 1868.069002 | U33: 1868.073368 | V33: 15.66666667 | W33: 16.05555556 | X33: 16.28703704 | Y33: -0.3888888889 | Z33: -0.6203703704 | AB33: 0.9017242021 | AC33: 0 | AD33: -0.939698736 | AE33: 0 | AF33: -0.5000463998 | AG33: =AG32 -> 0 | AH33: -4 | AI33: -0.041 | AJ33: =CORREL(Z3690:Z7010,AD3694:AD7014) -> -0.04172699187 | AM33: 1868.601612 | AN33: 1868.614709 | AO33: 32.77777778 | AP33: 40.29382716 | AQ33: -7.516049383 | AS33: -0.8086689685 | AT33: -0.0105 | AV33: from 1987.037 | AY33: 1869.492206 | AZ33: 1869.531496 | BA33: 62.60714286 | BB33: 73.88245758 | BC33: -11.27531472 | BE33: 0.5034939289 | BF33: -0.196 | BK33: 1874.285693 | BL33: 1874.403566 | BM33: 42.55813953 | BN33: 49.98449612 | BO33: 44.37985981 | BP33: 5.604636312 | BQ33: -1.821720277 | BS33: -0.4759617224 | BT33: 0.0093 | BY33: 1703.606092 | BZ33: 1703.959709 | CA33: 28.08527132 | CB33: 27.1877675 | CC33: 0.8975038161 | CE33: -0.3582425548 | CF33: -0.8665 | CK33: 1746.747483 | CL33: 1747.808336 | CM33: 44.00775194 | CN33: 40.94362517 | CO33: 3.064126772 | CQ33: -0.3814263375 | CR33: -14.45 | CW33: 1876.171656 | CX33: 1879.354217 | CY33: 25.99827883 | CZ33: 44.49625646 | DA33: -18.49797763 | DC33: -0.2420204259 | DD33: -3.82
A34: 1700-02-02 | B34: 1700.088971 | C34: 0 | D34: 4 | E34: 0 | H34: 1732.666667 | I34: 1732.708333 | J34: 9 | N34: -0.955760005 | O34: 0 | T34: 1868.077734 | U34: 1868.082099 | V34: 16.5 | W34: 16.38888889 | X34: 15.35185185 | Y34: 0.1111111111 | Z34: 1.148148148 | AB34: 0.3749476459 | AC34: 0 | AD34: -0.9396865053 | AE34: 0 | AF34: -0.4999535987 | AG34: =AG33 -> 0 | AH34: -3 | AI34: -0.022 | AJ34: =CORREL(Z3690:Z7010,AD3693:AD7013) -> -0.03975523278 | AM34: 1868.627806 | AN34: 1868.640903 | AO34: 47.4 | AP34: 41.32716049 | AQ34: 6.072839506 | AS34: -0.9976051613 | AT34: -0.0105 | AV34: to 2009.459 | AY34: 1869.570787 | AZ34: 1869.610078 | BA34: 81.62068966 | BB34: 80.41885605 | BC34: 1.201833607 | BE34: 0.9410664264 | BF34: -0.196 | BK34: 1874.521439 | BL34: 1874.639311 | BM34: 50.12790698 | BN34: 41.55818409 | BO34: 39.93024741 | BP34: 1.627936678 | BQ34: 10.19765957 | BS34: 0.200702013 | BT34: 0.0093 | BY34: 1704.313327 | BZ34: 1704.666945 | CA34: 37.003861 | CB34: 28.50344364 | CC34: 8.500417361 | CE34: -0.8745545833 | CF34: -0.8665 | CK34: 1748.86919 | CL34: 1749.930044 | CM34: 80.80258065 | CN34: 35.24718068 | CO34: 45.55539996 | CQ34: 0.3020028496 | CR34: -14.45 | CW34: 1882.536779 | CX34: 1885.71934 | CY34: 40.60602151 | CZ34: 43.00206701 | DA34: -2.396045504 | DC34: 0.4382798738 | DD34: -3.82
A35: 1700-02-03 | B35: 1700.091711 | C35: 0 | D35: 4 | E35: 0 | H35: 1732.75 | I35: 1732.791667 | J35: 9 | N35: -0.9697893435 | O35: 0 | T35: 1868.086465 | U35: 1868.090831 | V35: 17 | W35: 15.16666667 | X35: 15.18518519 | Y35: 1.833333333 | Z35: 1.814814815 | AB35: -0.3476473767 | AC35: 0 | AD35: -0.4999845154 | AE35: 0 | AF35: 0.9999999986 | AG35: =AG34 -> 0 | AH35: -2 | AI35: 0.008 | AJ35: =CORREL(Z3690:Z7010,AD3692:AD7012) -> -0.01918155844 | AM35: 1868.654 | AN35: 1868.667097 | AO35: 30 | AP35: 42.56049383 | AQ35: -12.56049383 | AS35: -0.719750812 | AT35: -0.0105 | AY35: 1869.649369 | AZ35: 1869.68866 | BA35: 75.51724138 | BB35: 84.00738916 | BC35: -8.490147783 | BE35: 0.9383034843 | BF35: -0.196 | BK35: 1874.757184 | BL35: 1874.875057 | BM35: 31.98850575 | BN35: 36.24810657 | BO35: 35.68735335 | BP35: 0.5607532151 | BQ35: -3.698847605 | BS35: 0.783455046 | BT35: 0.0093 | BY35: 1705.020563 | BZ35: 1705.374181 | CA35: 54.23255814 | CB35: 28.56588981 | CC35: 25.66666833 | CE35: -0.9816528026 | CF35: -0.8665 | CK35: 1750.990898 | CL35: 1752.051752 | CM35: 47.58397933 | CN35: 38.32151019 | CO35: 9.262469136 | CQ35: 0.8441215469 | CR35: -14.45 | CW35: 1888.901902 | CX35: 1892.084464 | CY35: 48.64301075 | CZ35: 42.32835356 | DA35: 6.314657197 | DC35: 0.9135041497 | DD35: -3.82
A36: 1700-02-04 | B36: 1700.094451 | C36: 0 | D36: 4 | E36: 0 | H36: 1732.833333 | I36: 1732.875 | J36: 7 | N36: -0.9811835379 | O36: 0 | T36: 1868.095196 | U36: 1868.099562 | V36: 12 | W36: 14.88888889 | X36: 17.2962963 | Y36: -2.888888889 | Z36: -5.296296296 | AB36: -0.8886816483 | AC36: 0 | AD36: 0.173665786 | AE36: 0 | AF36: -0.5000463998 | AG36: =AG35 -> 0 | AH36: -1 | AI36: 0.033 | AJ36: =CORREL(Z3690:Z7010,AD3691:AD7011) -> 0.01036738027 | AM36: 1868.680194 | AN36: 1868.693291 | AO36: 65.6 | AP36: 42.65925926 | AQ36: 22.94074074 | AS36: -0.1051170586 | AT36: -0.0105 | AY36: 1869.727951 | AZ36: 1869.767242 | BA36: 71.32142857 | BB36: 82.24712644 | BC36: -10.92569787 | BE36: 0.4964979137 | BF36: -0.196 | BK36: 1874.992929 | BL36: 1875.110802 | BM36: 26.62790698 | BN36: 27.76361044 | BO36: 32.12790698 | BP36: -4.364296534 | BQ36: -5.5 | BS36: 0.9996207558 | BT36: 0.0093 | BY36: 1705.727799 | BZ36: 1706.081417 | CA36: 39.61627907 | CB36: 27.69896475 | CC36: 11.91731432 | CE36: -0.6294247658 | CF36: -0.8665 | CK36: 1753.112606 | CL36: 1754.17346 | CM36: 19.14064516 | CN36: 43.21301122 | CO36: -24.07236605 | CQ36: 0.9912663911 | CR36: -14.45 | CW36: 1895.267025 | CX36: 1898.449587 | CY36: 27.68717728 | CZ36: 41.8833832 | DA36: -14.19620592 | DC36: 0.9612896814 | DD36: -3.82
A37: 1700-02-05 | B37: 1700.09719 | C37: 0 | D37: 4 | E37: 0 | H37: 1732.916667 | I37: 1732.958333 | J37: 7 | N37: -0.9899116273 | O37: 0 | T37: 1868.103928 | U37: 1868.108293 | V37: 15.66666667 | W37: 13.66666667 | X37: 18.14814815 | Y37: 2 | Z37: -2.481481481 | AB37: -0.9655970506 | AC37: 0 | AD37: 0.766055936 | AE37: 0 | AF37: -0.4999535987 | AG37: =AG36 -> 0 | AH37: 0 | AI37: 0.043 | AJ37: =CORREL(Z3690:Z7010,AD3690:AD7010) -> 0.03506530654 | AM37: 1868.706388 | AN37: 1868.719485 | AO37: 41.22222222 | AP37: 51.42592593 | AQ37: -10.2037037 | AS37: 0.5587021348 | AT37: -0.0105 | AY37: 1869.806533 | AZ37: 1869.845824 | BA37: 60.89655172 | BB37: 85.19348659 | BC37: -24.29693487 | BE37: -0.1776245486 | BF37: -0.196 | BK37: 1875.228675 | BL37: 1875.346547 | BM37: 24.6744186 | BN37: 23.10077519 | BO37: 27.6498708 | BP37: -4.549095607 | BQ37: -2.975452196 | BS37: 0.7480528045 | BT37: 0.0093 | BY37: 1706.435035 | BZ37: 1706.788653 | CA37: 25.30232558 | CB37: 26.20600168 | CC37: -0.9036761014 | CE37: 0.01731811424 | CF37: -0.8665 | CK37: 1755.234314 | CL37: 1756.295167 | CM37: 12.24935401 | CN37: 45.4394782 | CO37: -33.1901242 | CQ37: 0.6745866742 | CR37: -14.45 | CW37: 1901.632149 | CX37: 1904.81471 | CY37: 40.32358003 | CZ37: 37.9802294 | DA37: 2.34335063 | DC37: 0.5592770877 | DD37: -3.82
A38: 1700-02-06 | B38: 1700.09993 | C38: 0 | D38: 4 | E38: 0 | H38: 1733 | I38: 1733.041667 | J38: 7 | N38: -0.9959498955 | O38: 0 | T38: 1868.112659 | U38: 1868.117025 | V38: 13.33333333 | W38: 14.5 | X38: 18.55555556 | Y38: -1.166666667 | Z38: -5.222222222 | AB38: -0.5382240924 | AC38: 0 | AD38: 0.9999999998 | AE38: 0 | AF38: 0.9999999986 | AG38: =AG37 -> 0 | AH38: 1 | AI38: 0.033 | AJ38: =CORREL(Z3690:Z7010,AD3689:AD7009) -> 0.04335578617 | AM38: 1868.732582 | AN38: 1868.745679 | AO38: 43 | AP38: 54.2037037 | AQ38: -11.2037037 | AS38: 0.96109839 | AT38: -0.0105 | AY38: 1869.885114 | AZ38: 1869.924405 | BA38: 107.7931034 | BB38: 97.83866995 | BC38: 9.954433498 | BE38: -0.7686345105 | BF38: -0.196 | BK38: 1875.46442 | BL38: 1875.582293 | BM38: 18 | BN38: 20.18992248 | BO38: 24.2248062 | BP38: -4.034883721 | BQ38: -6.224806202 | BS38: 0.1464626322 | BT38: 0.0093 | BY38: 1707.142271 | BZ38: 1707.495889 | CA38: 21.00775194 | CB38: 23.53502838 | CC38: -2.527276446 | CE38: 0.6559576561 | CF38: -0.8665 | CK38: 1757.356021 | CL38: 1758.416875 | CM38: 44.2997416 | CN38: 43.14275124 | CO38: 1.156990359 | CQ38: 0.04226035523 | CR38: -14.45 | CW38: 1907.997272 | CX38: 1911.179834 | CY38: 21.00946237 | CZ38: 42.6572709 | DA38: -21.64780854 | DC38: -0.1044274711 | DD38: -3.82
A39: 1700-02-07 | B39: 1700.10267 | C39: 0 | D39: 4 | E39: 0 | H39: 1733.083333 | I39: 1733.125 | J39: 7 | N39: -0.9992819351 | O39: 0 | T39: 1868.12139 | U39: 1868.125756 | V39: 14.5 | W39: 20.94444444 | X39: 19.13888889 | Y39: -6.444444444 | Z39: -4.638888889 | AB39: 0.1702393527 | AC39: 0 | AD39: 0.76603295 | AE39: 0 | AF39: -0.5000463998 | AG39: =AG38 -> 0 | AH39: 2 | AI39: 0.008 | AJ39: =CORREL(Z3690:Z7010,AD3688:AD7008) -> 0.0313596116 | AM39: 1868.758776 | AN39: 1868.771873 | AO39: 42.9 | AP39: 54.91481481 | AQ39: -12.01481481 | AS39: 0.9137860271 | AT39: -0.0105 | AY39: 1869.963696 | AZ39: 1870.002987 | BA39: 82.68965517 | BB39: 104.5355774 | BC39: -21.84592228 | BE39: -0.9999918426 | BF39: -0.196 | BK39: 1875.700165 | BL39: 1875.818038 | BM39: 17.89534884 | BN39: 18.63561436 | BO39: 20.49483204 | BP39: -1.859217678 | BQ39: -2.599483204 | BS39: -0.5236590334 | BT39: 0.0093 | BY39: 1707.849507 | BZ39: 1708.203125 | CA39: 13.51937984 | CB39: 19.53459938 | CC39: -6.015219538 | CE39: 0.9876673206 | CF39: -0.8665 | CK39: 1759.477729 | CL39: 1760.538583 | CM39: 69.22064516 | CN39: 43.97027813 | CO39: 25.25036704 | CQ39: -0.6098400536 | CR39: -14.45 | CW39: 1914.362395 | CX39: 1917.544957 | CY39: 61.44239037 | CZ39: 42.24848109 | DA39: 19.19390928 | DC39: -0.7192692555 | DD39: -3.82
A40: 1700-02-08 | B40: 1700.10541 | C40: 0 | D40: 4 | E40: 0 | H40: 1733.166667 | I40: 1733.208333 | J40: 7 | N40: -0.9998986923 | O40: 0 | T40: 1868.130122 | U40: 1868.134487 | V40: 35 | W40: 24.38888889 | X40: 19.52777778 | Y40: 10.61111111 | Z40: 15.47222222 | AB40: 0.7897943613 | AC40: 0 | AD40: 0.1736305693 | AE40: 0 | AF40: -0.4999535988 | AG40: =AG39 -> 0 | AH40: 3 | AI40: -0.022 | AJ40: =CORREL(Z3690:Z7010,AD3687:AD7007) -> 0.004689926247 | AM40: 1868.78497 | AN40: 1868.798067 | AO40: 53.33333333 | AP40: 57.29753086 | AQ40: -3.964197531 | AS40: 0.4389030266 | AT40: -0.0105 | AY40: 1870.042278 | AZ40: 1870.081569 | BA40: 87.57142857 | BB40: 114.3286809 | BC40: -26.75725233 | BE40: -0.7634418778 | BF40: -0.196 | BK40: 1875.935911 | BL40: 1876.053783 | BM40: 20.01149425 | BN40: 18.29065312 | BO40: 19.03228489 | BP40: -0.7416317681 | BQ40: 0.9792093617 | BS40: -0.9487548175 | BT40: 0.0093 | BY40: 1708.556743 | BZ40: 1708.910361 | CA40: 9.426356589 | CB40: 13.6198707 | CC40: -4.193514112 | CE40: 0.857236469 | CF40: -0.8665 | CK40: 1761.599437 | CL40: 1762.660291 | CM40: 58.21963824 | CN40: 48.6340737 | CO40: 9.585564539 | CQ40: -0.9765895237 | CR40: -14.45 | CW40: 1920.727518 | CX40: 1923.91008 | CY40: 31.73364888 | CZ40: 48.61034489 | DA40: -16.87669601 | DC40: -0.9975569615 | DD40: -3.82
A41: 1700-02-09 | B41: 1700.108149 | C41: 0 | D41: 4 | E41: 0 | H41: 1733.25 | I41: 1733.291667 | J41: 7 | N41: -0.9977984911 | O41: 0 | T41: 1868.138853 | U41: 1868.143219 | V41: 23.66666667 | W41: 26 | X41: 21.4537037 | Y41: -2.333333333 | Z41: 2.212962963 | AB41: 0.996874929 | AC41: 0 | AD41: -0.5000154845 | AE41: 0 | AF41: 0.9999999986 | AG41: =AG40 -> 0 | AH41: 4 | AI41: -0.041 | AJ41: =CORREL(Z3690:Z7010,AD3686:AD7006) -> -0.02417422772 | AM41: 1868.811164 | AN41: 1868.824261 | AO41: 106.6 | AP41: 56.4308642 | AQ41: 50.1691358 | AS41: -0.241347578 | AT41: -0.0105 | AY41: 1870.12086 | AZ41: 1870.160151 | BA41: 136.7241379 | BB41: 122.7450739 | BC41: 13.97906404 | BE41: -0.1696689737 | BF41: -0.196 | BK41: 1876.171656 | BL41: 1876.289529 | BM41: 16.96511628 | BN41: 16.23638956 | BO41: 18.12014019 | BP41: -1.883750631 | BQ41: -1.155023909 | BS41: -0.9299176782 | BT41: 0.0093 | BY41: 1709.263979 | BZ41: 1709.617597 | CA41: 7.66023166 | CB41: 9.329173027 | CC41: -1.668941367 | CE41: 0.3256951465 | CF41: -0.8665 | CK41: 1763.721145 | CL41: 1764.781998 | CM41: 33.43096774 | CN41: 51.82028396 | CO41: -18.38931622 | CQ41: -0.8863819021 | CR41: -14.45 | CW41: 1927.092642 | CX41: 1930.275203 | CY41: 44.37849462 | CZ41: 55.67393257 | DA41: -11.29543795 | DC41: -0.8090766786 | DD41: -3.82
A42: 1700-02-10 | B42: 1700.110889 | C42: 0 | D42: 4 | E42: 0 | H42: 1733.333333 | I42: 1733.375 | J42: 7 | N42: -0.9929870383 | O42: 0 | T42: 1868.147584 | U42: 1868.15195 | V42: 19.33333333 | W42: 21.58333333 | X42: 21.97222222 | Y42: -2.25 | Z42: -2.638888889 | AB42: 0.6833320926 | AC42: 0 | AD42: -0.939698736 | AE42: 0 | AF42: -0.5000463998 | AG42: =AG41 -> 0 | AJ42: 369 cycles | AM42: 1868.837357 | AN42: 1868.850454 | AO42: 57.77777778 | AP42: 58.09506173 | AQ42: -0.3172839506 | AS42: -0.8086689685 | AT42: -0.0105 | AY42: 1870.199441 | AZ42: 1870.238732 | BA42: 176.4137931 | BB42: 130.1216475 | BC42: 46.29214559 | BE42: 0.5034939289 | BF42: -0.196 | BK42: 1876.407401 | BL42: 1876.525274 | BM42: 11.73255814 | BN42: 15.08527132 | BO42: 17.07362856 | BP42: -1.988357243 | BQ42: -5.341070421 | BS42: -0.4759617224 | BT42: 0.0093 | BY42: 1709.971215 | BZ42: 1710.324833 | CA42: 4.046511628 | CB42: 6.656907738 | CC42: -2.61039611 | CE42: -0.3582425548 | CF42: -0.8665 | CK42: 1765.842852 | CL42: 1766.903706 | CM42: 23.3372093 | CN42: 51.87085753 | CO42: -28.53364823 | CQ42: -0.3814263375 | CR42: -14.45 | CW42: 1933.457765 | CX42: 1936.640327 | CY42: 68.09165232 | CZ42: 58.61743849 | DA42: 9.474213837 | DC42: -0.2420204259 | DD42: -3.82
A43: 1700-02-11 | B43: 1700.113629 | C43: 0 | D43: 4 | E43: 0 | H43: 1733.416667 | I43: 1733.458333 | J43: 6.935483871 | N43: -0.9854774077 | O43: 0 | T43: 1868.156315 | U43: 1868.160681 | V43: 21.75 | W43: 20.52777778 | X43: 23.34259259 | Y43: 1.222222222 | Z43: -1.592592593 | AB43: 0.01291531952 | AC43: 0 | AD43: -0.9396865053 | AE43: 0 | AF43: -0.4999535988 | AG43: =AG42 -> 0 | AJ43: 95% | AM43: 1868.863551 | AN43: 1868.876648 | AO43: 53.8 | AP43: 63.26790123 | AQ43: -9.467901235 | AS43: -0.9976051613 | AT43: -0.0105 | AY43: 1870.278023 | AZ43: 1870.317314 | BA43: 141.8928571 | BB43: 136.3936782 | BC43: 5.499178982 | BE43: 0.9410664264 | BF43: -0.196 | BK43: 1876.643147 | BL43: 1876.761019 | BM43: 16.55813953 | BN43: 15.70542636 | BO43: 16.42246577 | BP43: -0.7170394131 | BQ43: 0.1356737652 | BS43: 0.200702013 | BT43: 0.0093 | BY43: 1710.678451 | BZ43: 1711.032069 | CA43: 1 | CB43: 4.722799211 | CC43: -3.722799211 | CE43: -0.8745545833 | CF43: -0.8665 | CK43: 1767.96456 | CL43: 1769.025414 | CM43: 88.25032258 | CN43: 57.35305678 | CO43: 30.8972658 | CQ43: 0.3020028496 | CR43: -14.45 | CW43: 1939.822888 | CX43: 1943.00545 | CY43: 36.92691316 | CZ43: 65.29620161 | DA43: -28.36928845 | DC43: 0.4382798738 | DD43: -3.82
A44: 1700-02-12 | B44: 1700.116368 | C44: 0 | D44: 4 | E44: 0 | H44: 1733.5 | I44: 1733.541667 | J44: 6 | N44: -0.9752900047 | O44: 0 | T44: 1868.165047 | U44: 1868.169412 | V44: 20.5 | W44: 23.86111111 | X44: 27.06481481 | Y44: -3.361111111 | Z44: -6.564814815 | AB44: -0.6642465501 | AC44: 0 | AD44: -0.4999845154 | AE44: 0 | AF44: 0.9999999986 | AG44: =AG43 -> 0 | AJ44: Lag = -0.0079 | AM44: 1868.889745 | AN44: 1868.902842 | AO44: 51.44444444 | AP44: 67.87901235 | AQ44: -16.4345679 | AS44: -0.719750812 | AT44: -0.0105 | AY44: 1870.356605 | AZ44: 1870.395896 | BA44: 163.6551724 | BB44: 141.4626437 | BC44: 22.19252874 | BE44: 0.9383034843 | BF44: -0.196 | BK44: 1876.878892 | BL44: 1876.996764 | BM44: 18.8255814 | BN44: 17.93410853 | BO44: 15.62660014 | BP44: 2.307508391 | BQ44: 3.198981259 | BS44: 0.783455046 | BT44: 0.0093 | BY44: 1711.385687 | BZ44: 1711.739305 | CA44: 1 | CB44: 4.552263227 | CC44: -3.552263227 | CE44: -0.9816528026 | CF44: -0.8665 | CK44: 1770.086268 | CL44: 1771.147122 | CM44: 89.55813953 | CN44: 62.78947255 | CO44: 26.76866698 | CQ44: 0.8441215469 | CR44: -14.45 | CW44: 1946.188011 | CX44: 1949.370573 | CY44: 105.8997849 | CZ44: 62.46960387 | DA44: 43.43018107 | DC44: 0.9135041497 | DD44: -3.82
A45: 1700-02-13 | B45: 1700.119108 | C45: 0 | D45: 4 | E45: 0 | H45: 1733.583333 | I45: 1733.625 | J45: 6 | N45: -0.9624525109 | O45: 0 | T45: 1868.173778 | U45: 1868.178144 | V45: 29.33333333 | W45: 23.38888889 | X45: 26.58333333 | Y45: 5.944444444 | Z45: 2.75 | AB45: -0.9945020124 | AC45: 0 | AD45: 0.173665786 | AE45: 0 | AF45: -0.5000463998 | AG45: =AG44 -> 0 | AM45: 1868.915939 | AN45: 1868.929036 | AO45: 57.8 | AP45: 69.38518519 | AQ45: -11.58518519 | AS45: -0.1051170586 | AT45: -0.0105 | AY45: 1870.435187 | AZ45: 1870.474478 | BA45: 147.0689655 | BB45: 148.2324849 | BC45: -1.163519431 | BE45: 0.4964979137 | BF45: -0.196 | BK45: 1877.114637 | BL45: 1877.23251 | BM45: 18.41860465 | BN45: 17.5 | BO45: 14.39664083 | BP45: 3.103359173 | BQ45: 4.021963824 | BS45: 0.9996207558 | BT45: 0.0093 | BY45: 1712.092923 | BZ45: 1712.44654 | CA45: 1 | CB45: 6.136242555 | CC45: -5.136242555 | CE45: -0.6294247658 | CF45: -0.8665 | CK45: 1772.207976 | CL45: 1773.268829 | CM45: 47.81653747 | CN45: 62.7354961 | CO45: -14.91895863 | CQ45: 0.9912663911 | CR45: -14.45 | CW45: 1952.553135 | CX45: 1955.735696 | CY45: 91.25946644 | CZ45: 72.08538721 | DA45: 19.17407923 | DC45: 0.9612896814 | DD45: -3.82
A46: 1700-02-14 | B46: 1700.121848 | C46: 0 | D46: 4 | E46: 0 | H46: 1733.666667 | I46: 1733.708333 | J46: 5.967741935 | N46: -0.9469998088 | O46: 0 | T46: 1868.182509 | U46: 1868.186875 | V46: 20.33333333 | W46: 25.11111111 | X46: 26.28703704 | Y46: -4.777777778 | Z46: -5.953703704 | AB46: -0.8053733393 | AC46: 0 | AD46: =SIN((2*PI()*(U46-2000+AE46)/0.0785817687020297) + 3.39124283) -> 0.766055936 | AE46: 0 | AF46: -0.4999535988 | AG46: =AG45 -> 0 | AJ46: 1929 to 1957 | AM46: 1868.942133 | AN46: 1868.95523 | AO46: 56.2 | AP46: 61.00740741 | AQ46: -4.807407407 | AS46: 0.5587021347 | AT46: -0.0105 | AY46: 1870.513769 | AZ46: 1870.553059 | BA46: 127.2857143 | BB46: 149.8071976 | BC46: -22.52148331 | BE46: -0.1776245486 | BF46: -0.196 | BK46: 1877.350382 | BL46: 1877.468255 | BM46: 15.25581395 | BN46: 15.27131783 | BO46: 13.30749354 | BP46: 1.963824289 | BQ46: 1.948320413 | BS46: 0.7480528045 | BT46: 0.0093 | BY46: 1712.800158 | BZ46: 1713.153776 | CA46: 1.251937984 | CB46: 9.203710355 | CC46: -7.95177237 | CE46: 0.01731811424 | CF46: -0.8665 | CK46: 1774.329683 | CL46: 1775.390537 | CM46: 12.70451613 | CN46: 60.98839932 | CO46: -48.28388319 | CQ46: 0.6745866742 | CR46: -14.45 | CW46: 1958.918258 | CX46: 1962.10082 | CY46: 66.81513328 | CZ46: 75.01805149 | DA46: -8.202918213 | DC46: 0.5592770877 | DD46: -3.82
A47: 1700-02-15 | B47: 1700.124588 | C47: 0 | D47: 4 | E47: 0 | H47: 1733.75 | I47: 1733.791667 | J47: 5 | N47: -0.9289738869 | O47: 0 | T47: 1868.191241 | U47: 1868.195606 | V47: 25.66666667 | W47: 31.33333333 | X47: 27.02777778 | Y47: -5.666666667 | Z47: -1.361111111 | AB47: -0.1956340185 | AC47: 0 | AD47: 0.9999999998 | AE47: 0 | AF47: 0.9999999986 | AG47: =AG46 -> 0 | AH47: Cycles | AI47: Actual | AJ47: 28.68 Correl | AM47: 1868.968327 | AN47: 1868.981424 | AO47: 89.55555556 | AP47: 64.45185185 | AQ47: 25.1037037 | AS47: 0.96109839 | AT47: -0.0105 | AY47: 1870.59235 | AZ47: 1870.631641 | BA47: 164.2413793 | BB47: 145.4317187 | BC47: 18.80966065 | BE47: -0.7686345105 | BF47: -0.196 | BK47: 1877.586128 | BL47: 1877.704 | BM47: 12.13953488 | BN47: 12.70930233 | BO47: 12.3372093 | BP47: 0.3720930233 | BQ47: -0.1976744186 | BS47: 0.1464626322 | BT47: 0.0093 | BY47: 1713.507394 | BZ47: 1713.861012 | CA47: 3.600775194 | CB47: 13.95220303 | CC47: -10.35142784 | CE47: 0.6559576561 | CF47: -0.8665 | CK47: 1776.451391 | CL47: 1777.512245 | CM47: 93.63953488 | CN47: 64.48179582 | CO47: 29.15773906 | CQ47: 0.04226035523 | CR47: -14.45 | CW47: 1965.283381 | CX47: 1968.465943 | CY47: 81.11833046 | CZ47: 74.1897078 | DA47: 6.928622663 | DC47: -0.1044274711 | DD47: -3.82
A48: 1700-02-16 | B48: 1700.127327 | C48: 0 | D48: 4 | E48: 0 | H48: 1733.833333 | I48: 1733.875 | J48: 5 | N48: -0.908423726 | O48: 0 | T48: 1868.199972 | U48: 1868.204338 | V48: 48 | W48: 34.77777778 | X48: 29.2037037 | Y48: 13.22222222 | Z48: 18.7962963 | AB48: 0.5162762424 | AC48: 0 | AD48: 0.76603295 | AE48: 0 | AF48: -0.5000463997 | AG48: =AG47 -> 0 | AH48: -4 | AI48: -0.029 | AJ48: =CORREL(Z7012:Z10332,AD7016:AD10336) -> 0.02509989505 | AM48: 1868.994521 | AN48: 1869.007618 | AO48: 84.4 | AP48: 64.74074074 | AQ48: 19.65925926 | AS48: 0.9137860271 | AT48: -0.0105 | AY48: 1870.670932 | AZ48: 1870.710223 | BA48: 128.3103448 | BB48: 139.749179 | BC48: -11.43883415 | BE48: -0.9999918426 | BF48: -0.196 | BK48: 1877.821873 | BL48: 1877.939746 | BM48: 10.73255814 | BN48: 10.60465116 | BO48: 10.88113695 | BP48: -0.2764857881 | BQ48: -0.1485788114 | BS48: -0.5236590334 | BT48: 0.0093 | BY48: 1714.21463 | BZ48: 1714.568248 | CA48: 11.98455598 | CB48: 20.1856225 | CC48: -8.201066515 | CE48: 0.9876673206 | CF48: -0.8665 | CK48: 1778.573099 | CL48: 1779.633953 | CM48: 118.1483871 | CN48: 69.17247201 | CO48: 48.97591509 | CQ48: -0.6098400536 | CR48: -14.45 | CW48: 1971.648505 | CX48: 1974.831066 | CY48: 36.00301075 | CZ48: 79.56290793 | DA48: -43.55989717 | DC48: -0.7192692555 | DD48: -3.82
A49: 1700-02-17 | B49: 1700.130067 | C49: 0 | D49: 4 | E49: 0 | H49: 1733.916667 | I49: 1733.958333 | J49: 5 | N49: -0.8854051655 | O49: 0 | T49: 1868.208703 | U49: 1868.213069 | V49: 30.66666667 | W49: 33.22222222 | X49: 32.07407407 | Y49: -2.555555556 | Z49: -1.407407407 | AB49: 0.9585584015 | AC49: 0 | AD49: 0.1736305693 | AE49: 0 | AF49: -0.4999535988 | AG49: =AG48 -> 0 | AH49: -3 | AI49: -0.015 | AJ49: =CORREL(Z7012:Z10332,AD7015:AD10335) -> 0.030555455 | AM49: 1869.020715 | AN49: 1869.033812 | AO49: 66.88888889 | AP49: 64.67901235 | AQ49: 2.209876543 | AS49: 0.4389030266 | AT49: -0.0105 | AY49: 1870.749514 | AZ49: 1870.788805 | BA49: 148.5 | BB49: 133.1055008 | BC49: 15.39449918 | BE49: -0.7634418778 | BF49: -0.196 | BK49: 1878.057618 | BL49: 1878.175491 | BM49: 8.941860465 | BN49: 8.945736434 | BO49: 8.917312661 | BP49: 0.02842377261 | BQ49: 0.02454780362 | BS49: -0.9487548175 | BT49: 0.0093 | BY49: 1714.921866 | BZ49: 1715.275484 | CA49: 23.68217054 | CB49: 26.82774136 | CC49: -3.14557082 | CE49: 0.857236469 | CF49: -0.8665 | CK49: 1780.694807 | CL49: 1781.75566 | CM49: 57.73385013 | CN49: 70.09181851 | CO49: -12.35796838 | CQ49: -0.9765895237 | CR49: -14.45 | CW49: 1978.013628 | CX49: 1981.196189 | CY49: 118.2756989 | CZ49: 70.10186852 | DA49: 48.1738304 | DC49: -0.9975569615 | DD49: -3.82
A50: 1700-02-18 | B50: 1700.132807 | C50: 0 | D50: 4 | E50: 0 | H50: 1734 | I50: 1734.041667 | J50: 4 | N50: -0.8599807523 | O50: 0 | T50: 1868.217435 | U50: 1868.2218 | V50: 21 | W50: 25.88888889 | X50: 34.37037037 | Y50: -4.888888889 | Z50: -13.37037037 | AB50: 0.9002281733 | AC50: 0 | AD50: -0.5000154844 | AE50: 0 | AF50: 0.9999999986 | AG50: =AG49 -> 0 | AH50: -2 | AI50: 0.005 | AJ50: =CORREL(Z7012:Z10332,AD7014:AD10334) -> 0.02171377797 | AM50: 1869.046909 | AN50: 1869.060006 | AO50: 31.2 | AP50: 63.06790123 | AQ50: -31.86790123 | AS50: -0.241347578 | AT50: -0.0105 | AY50: 1870.828096 | AZ50: 1870.867387 | BA50: 150.8965517 | BB50: 132.9445813 | BC50: 17.95197044 | BE50: -0.1696689737 | BF50: -0.196 | BK50: 1878.293364 | BL50: 1878.411236 | BM50: 7.162790698 | BN50: 6.368217054 | BO50: 7.552971576 | BP50: -1.184754522 | BQ50: -0.3901808786 | BS50: -0.9299176782 | BT50: 0.0093 | BY50: 1715.629102 | BZ50: 1715.98272 | CA50: 35.26744186 | CB50: 32.15418408 | CC50: 3.113257776 | CE50: 0.3256951465 | CF50: -0.8665 | CK50: 1782.816514 | CL50: 1783.877368 | CM50: 17.70709677 | CN50: 71.4904691 | CO50: -53.78337232 | CQ50: -0.8863819021 | CR50: -14.45 | CW50: 1984.378751 | CX50: 1987.561313 | CY50: 70.77247312 | DC50: -0.8090766786 | DD50: -3.82
A51: 1700-02-19 | B51: 1700.135547 | C51: 0 | D51: 4 | E51: 0 | H51: 1734.083333 | I51: 1734.125 | J51: 6.266666667 | N51: -0.8322195706 | O51: 0 | T51: 1868.226166 | U51: 1868.230532 | V51: 26 | W51: 29.44444444 | X51: 36.27777778 | Y51: -3.444444444 | Z51: -10.27777778 | AB51: 0.3717488397 | AC51: 0 | AD51: -0.9396987359 | AE51: 0 | AF51: -0.5000463997 | AG51: =AG50 -> 0 | AH51: -1 | AI51: 0.023 | AJ51: =CORREL(Z7012:Z10332,AD7013:AD10333) -> 0.002711982903 | AM51: 1869.073103 | AN51: 1869.0862 | AO51: 88.77777778 | AP51: 63.74567901 | AQ51: 25.03209877 | AS51: -0.8086689685 | AT51: -0.0105 | AY51: 1870.906677 | AZ51: 1870.945968 | BA51: 137.0344828 | BB51: 136.6112479 | BC51: 0.4232348112 | BE51: 0.5034939289 | BF51: -0.196 | BK51: 1878.529109 | BL51: 1878.646982 | BM51: 3 | BN51: 4.53875969 | BO51: 7.26873385 | BP51: -2.72997416 | BQ51: -4.26873385 | BS51: -0.4759617224 | BT51: 0.0093 | BY51: 1716.336338 | BZ51: 1716.689956 | CA51: 46.78294574 | CB51: 36.1856225 | CC51: 10.59732324 | CE51: -0.3582425548 | CF51: -0.8665 | CK51: 1784.938222 | CL51: 1785.999076 | CM51: 54.77777778 | CN51: 74.10781677 | CO51: -19.33003899 | CQ51: -0.3814263375 | CR51: -14.45 | CW51: 1990.743874 | CX51: 1993.926436 | CY51: 60.63655914 | DC51: -0.2420204259 | DD51: -3.82
A52: 1700-02-20 | B52: 1700.138286 | C52: 0 | D52: 4 | E52: 0 | H52: 1734.166667 | I52: 1734.208333 | J52: 10 | N52: -0.8021970537 | O52: 0 | T52: 1868.234897 | U52: 1868.239263 | V52: 41.33333333 | W52: 37.88888889 | X52: 36.5 | Y52: 3.444444444 | Z52: 4.833333333 | AB52: -0.3508783663 | AC52: 0 | AD52: -0.9396865053 | AE52: 0 | AF52: -0.4999535989 | AG52: =AG51 -> 0 | AH52: 0 | AI52: 0.031 | AJ52: =CORREL(Z7012:Z10332,AD7012:AD10332) -> -0.0175587791 | AM52: 1869.099297 | AN52: 1869.112394 | AO52: 56.4 | AP52: 60.19012346 | AQ52: -3.790123457 | AS52: -0.9976051613 | AT52: -0.0105 | AY52: 1870.985259 | AZ52: 1871.02455 | BA52: 90.75 | BB52: 134.354543 | BC52: -43.60454297 | BE52: 0.9410664264 | BF52: -0.196 | BK52: 1878.764854 | BL52: 1878.882727 | BM52: 3.453488372 | BN52: 2.534883721 | BO52: 7.5342006 | BP52: -4.999316879 | BQ52: -4.080712228 | BS52: 0.200702013 | BT52: 0.0093 | BY52: 1717.043574 | BZ52: 1717.397192 | CA52: 57.10077519 | CB52: 39.10771569 | CC52: 17.9930595 | CE52: -0.8745545833 | CF52: -0.8665 | CK52: 1787.05993 | CL52: 1788.120784 | CM52: 130.4664083 | CN52: 65.25510359 | CO52: 65.21130468 | CQ52: 0.3020028496 | CR52: -14.45 | CW52: 1997.108998 | CX52: 2000.291559 | CY52: 85.28571429 | DC52: 0.4382798738 | DD52: -3.82
A53: 1700-02-21 | B53: 1700.141026 | C53: 0 | D53: 4 | E53: 0 | H53: 1734.25 | I53: 1734.291667 | J53: 10.25806452 | N53: -0.7699947801 | O53: 0 | T53: 1868.243629 | U53: 1868.247994 | V53: 46.33333333 | W53: 45.88888889 | X53: 36.12962963 | Y53: 0.4444444444 | Z53: 10.2037037 | AB53: -0.8902574192 | AC53: 0 | AD53: -0.4999845154 | AE53: 0 | AF53: 0.9999999986 | AG53: =AG52 -> 0 | AH53: 1 | AI53: 0.023 | AJ53: =CORREL(Z7012:Z10332,AD7011:AD10331) -> -0.02961359322 | AM53: 1869.125491 | AN53: 1869.138588 | AO53: 50.88888889 | AP53: 53.91234568 | AQ53: -3.02345679 | AS53: -0.719750812 | AT53: -0.0105 | AY53: 1871.063841 | AZ53: 1871.103132 | BA53: 103.862069 | BB53: 134.3890257 | BC53: -30.52695676 | BE53: 0.9383034843 | BF53: -0.196 | BK53: 1879.0006 | BL53: 1879.118472 | BM53: 1.151162791 | BN53: 3.581395349 | BO53: 9.157786094 | BP53: -5.576390745 | BQ53: -8.006623303 | BS53: 0.783455046 | BT53: 0.0093 | BY53: 1717.75081 | BZ53: 1718.104428 | CA53: 60.77906977 | CB53: 40.70460826 | CC53: 20.0744615 | CE53: -0.9816528026 | CF53: -0.8665 | CK53: 1789.181638 | CL53: 1790.242492 | CM53: 97.83225806 | CN53: 52.72420753 | CO53: 45.10805053 | CQ53: 0.8441215469 | CR53: -14.45 | CW53: 2003.474121 | CX53: 2006.656683 | CY53: 20.75043029 | DC53: 0.9135041497 | DD53: -3.82
A54: 1700-02-22 | B54: 1700.143766 | C54: 0 | D54: 4 | E54: 0 | H54: 1734.333333 | I54: 1734.375 | J54: 14 | N54: -0.7357002508 | O54: 0 | T54: 1868.25236 | U54: 1868.256726 | V54: 50 | W54: 44.61111111 | X54: 38.87037037 | Y54: 5.388888889 | Z54: 11.12962963 | AB54: -0.9646946478 | AC54: 0 | AD54: 0.173665786 | AE54: 0 | AF54: -0.5000463997 | AG54: =AG53 -> 0 | AH54: 2 | AI54: 0.005 | AJ54: =CORREL(Z7012:Z10332,AD7010:AD10330) -> -0.02781187796 | AM54: 1869.151685 | AN54: 1869.164782 | AO54: 43.3 | AP54: 49.91234568 | AQ54: -6.612345679 | AS54: -0.1051170586 | AT54: -0.0105 | AY54: 1871.142423 | AZ54: 1871.181714 | BA54: 145.6206897 | BB54: 127.377121 | BC54: 18.24356869 | BE54: 0.4964979137 | BF54: -0.196 | BK54: 1879.236345 | BL54: 1879.354218 | BM54: 6.139534884 | BN54: 6.662790698 | BO54: 10.82316077 | BP54: -4.160370073 | BQ54: -4.683625887 | BS54: 0.9996207558 | BT54: 0.0093 | BY54: 1718.458046 | BZ54: 1718.811664 | CA54: 48.9379845 | CB54: 40.96214487 | CC54: 7.975839627 | CE54: -0.6294247658 | CF54: -0.8665 | CK54: 1791.303345 | CL54: 1792.364199 | CM54: 60.40439276 | CN54: 48.70999565 | CO54: 11.69439712 | CQ54: 0.9912663911 | CR54: -14.45 | CW54: 2009.839244 | CX54: 2013.021806 | DC54: 0.9612896814 | DD54: -3.82
A55: 1700-02-23 | B55: 1700.146505 | C55: 0 | D55: 4 | E55: 0 | H55: 1734.416667 | I55: 1734.458333 | J55: 14.25806452 | N55: -0.6994066519 | O55: 0 | T55: 1868.261091 | U55: 1868.265457 | V55: 37.5 | W55: 38.38888889 | X55: 40.42592593 | Y55: -0.8888888889 | Z55: -2.925925926 | AB55: -0.5353148007 | AC55: 0 | AD55: 0.766055936 | AE55: 0 | AF55: -0.4999535989 | AG55: =AG54 -> 0 | AH55: 3 | AI55: -0.015 | AJ55: =CORREL(Z7012:Z10332,AD7009:AD10329) -> -0.0129966759 | AM55: 1869.177878 | AN55: 1869.190975 | AO55: 62.3 | AP55: 51.47901235 | AQ55: 10.82098765 | AS55: 0.5587021347 | AT55: -0.0105 | AY55: 1871.221004 | AZ55: 1871.260295 | BA55: 160.2857143 | BB55: 121.4882321 | BC55: 38.79748221 | BE55: -0.1776245486 | BF55: -0.196 | BK55: 1879.47209 | BL55: 1879.589963 | BM55: 12.69767442 | BN55: 11.12198164 | BO55: 14.044091 | BP55: -2.922109359 | BQ55: -1.346416585 | BS55: 0.7480528045 | BT55: 0.0093 | BY55: 1719.165282 | BZ55: 1719.5189 | CA55: 37.53488372 | CB55: 39.56292006 | CC55: -2.028036342 | CE55: 0.01731811424 | CF55: -0.8665 | CK55: 1793.425053 | CL55: 1794.485907 | CM55: 36.26064516 | CN55: 51.65784335 | CO55: -15.39719819 | CQ55: 0.6745866742 | CR55: -14.45 | CW55: 2016.204367 | CX55: 2019.386929 | DC55: 0.5592770877 | DD55: -3.82
A56: 1700-02-24 | B56: 1700.149245 | C56: 0 | D56: 4 | E56: 0 | H56: 1734.5 | I56: 1734.541667 | J56: 18 | N56: -0.6612126018 | O56: 0 | T56: 1868.269822 | U56: 1868.274188 | V56: 27.66666667 | W56: 36.61111111 | X56: 40.2037037 | Y56: -8.944444444 | Z56: -12.53703704 | AB56: 0.1736361397 | AC56: 0 | AD56: 0.9999999998 | AE56: 0 | AF56: 0.9999999986 | AG56: =AG55 -> 0 | AH56: 4 | AI56: -0.029 | AJ56: =CORREL(Z7012:Z10332,AD7008:AD10328) -> 0.007899815254 | AM56: 1869.204072 | AN56: 1869.217169 | AO56: 57.55555556 | AP56: 50.00987654 | AQ56: 7.545679012 | AS56: 0.96109839 | AT56: -0.0105 | AY56: 1871.299586 | AZ56: 1871.338877 | BA56: 143.9310345 | BB56: 117.8330597 | BC56: 26.09797482 | BE56: -0.7686345105 | BF56: -0.196 | BK56: 1879.707835 | BL56: 1879.825708 | BM56: 14.52873563 | BN56: 17.52374588 | BO56: 18.97949152 | BP56: -1.455745641 | BQ56: -4.450755888 | BS56: 0.1464626322 | BT56: 0.0093 | BY56: 1719.872518 | BZ56: 1720.226136 | CA56: 29.8996139 | CB56: 36.13182618 | CC56: -6.232212279 | CE56: 0.6559576561 | CF56: -0.8665 | CK56: 1795.546761 | CL56: 1796.607615 | CM56: 13.96511628 | CN56: 50.46533041 | CO56: -36.50021413 | CQ56: 0.04226035523 | CR56: -14.45 | CW56: 2022.569491 | CX56: 2025.752052 | DC56: -0.1044274711 | DD56: -3.82
A57: 1700-02-25 | B57: 1700.151985 | C57: 0 | D57: 4 | E57: 0 | H57: 1734.583333 | I57: 1734.625 | J57: 18 | N57: -0.6212218826 | O57: 0 | T57: 1868.278554 | U57: 1868.282919 | V57: 44.66666667 | W57: 42.55555556 | X57: 37.46296296 | Y57: 2.111111111 | Z57: 7.203703704 | AB57: 0.791904653 | AC57: 0 | AD57: 0.76603295 | AE57: 0 | AF57: -0.5000463997 | AG57: =AG56 -> 0 | AJ57: 369 cycles | AM57: 1869.230266 | AN57: 1869.243363 | AO57: 27.9 | AP57: 59.19876543 | AQ57: -31.29876543 | AS57: 0.9137860271 | AT57: -0.0105 | AY57: 1871.378168 | AZ57: 1871.417459 | BA57: 128.6206897 | BB57: 117.3435961 | BC57: 11.2770936 | BE57: -0.9999918426 | BF57: -0.196 | BK57: 1879.943581 | BL57: 1880.061453 | BM57: 25.34482759 | BN57: 21.26793193 | BO57: 22.7068817 | BP57: -1.438949776 | BQ57: 2.637945885 | BS57: -0.5236590334 | BT57: 0.0093 | BY57: 1720.579754 | BZ57: 1720.933372 | CA57: 26.35658915 | CB57: 31.11804496 | CC57: -4.761455808 | CE57: 0.9876673206 | CF57: -0.8665 | CK57: 1797.668469 | CL57: 1798.729323 | CM57: 5.370322581 | CN57: 37.73033184 | CO57: -32.36000926 | CQ57: -0.6098400536 | CR57: -14.45 | CW57: 2028.934614 | CX57: 2032.117176 | DC57: -0.7192692555 | DD57: -3.82
A58: 1700-02-26 | B58: 1700.154725 | C58: 0 | D58: 4 | E58: 0 | H58: 1734.666667 | I58: 1734.708333 | J58: 22 | N58: -0.5795431584 | O58: 0 | T58: 1868.287285 | U58: 1868.291651 | V58: 55.33333333 | W58: 45 | X58: 35.72222222 | Y58: 10.33333333 | Z58: 19.61111111 | AB58: 0.996596614 | AC58: 0 | AD58: 0.1736305693 | AE58: 0 | AF58: -0.4999535989 | AG58: =AG57 -> 0 | AJ58: 75% | AM58: 1869.25646 | AN58: 1869.269557 | AO58: 30.88888889 | AP58: 63.14444444 | AQ58: -32.25555556 | AS58: 0.4389030266 | AT58: -0.0105 | AY58: 1871.45675 | AZ58: 1871.496041 | BA58: 85.39285714 | BB58: 115.8827313 | BC58: -30.48987411 | BE58: -0.7634418778 | BF58: -0.196 | BK58: 1880.179326 | BL58: 1880.297199 | BM58: 23.93023256 | BN58: 28.47540765 | BO58: 28.2198016 | BP58: 0.2556060471 | BQ58: -4.28956904 | BS58: -0.9487548175 | BT58: 0.0093 | BY58: 1721.286989 | BZ58: 1721.640607 | CA58: 26 | CB58: 26.77022039 | CC58: -0.7702203865 | CE58: 0.857236469 | CF58: -0.8665 | CK58: 1799.790176 | CL58: 1800.85103 | CM58: 21.60594315 | CN58: 27.37993758 | CO58: -5.773994425 | CQ58: -0.9765895237 | CR58: -14.45 | CW58: 2035.299737 | CX58: 2038.482299 | DC58: -0.9975569615 | DD58: -3.82
A59: 1700-02-27 | B59: 1700.157464 | C59: 0 | D59: 4 | E59: 0 | H59: 1734.75 | I59: 1734.791667 | J59: 22 | N59: -0.53628968 | O59: 0 | T59: 1868.296016 | U59: 1868.300382 | V59: 35 | W59: 38.11111111 | X59: 32.35185185 | Y59: -3.111111111 | Z59: 2.648148148 | AB59: 0.6808105223 | AC59: 0 | AD59: -0.5000154844 | AE59: 0 | AF59: 0.9999999986 | AG59: =AG58 -> 0 | AJ59: Lag = -0.05131 | AM59: 1869.282654 | AN59: 1869.295751 | AO59: 45.3 | AP59: 67.51851852 | AQ59: -22.21851852 | AS59: -0.2413475779 | AT59: -0.0105 | AY59: 1871.535332 | AZ59: 1871.574622 | BA59: 97.89655172 | BB59: 111.1202791 | BC59: -13.22372742 | BE59: -0.1696689737 | BF59: -0.196 | BK59: 1880.415071 | BL59: 1880.532944 | BM59: 36.15116279 | BN59: 35.83333333 | BO59: 34.77794113 | BP59: 1.055392201 | BQ59: 1.373221658 | BS59: -0.9299176782 | BT59: 0.0093 | BY59: 1721.994225 | BZ59: 1722.347843 | CA59: 22.6744186 | CB59: 24.88606879 | CC59: -2.211650188 | CE59: 0.3256951465 | CF59: -0.8665 | CK59: 1801.911884 | CL59: 1802.972738 | CM59: 44.2377261 | CN59: 20.81505098 | CO59: 23.42267511 | CQ59: -0.8863819021 | CR59: -14.45 | CW59: 2041.66486 | CX59: 2044.847422 | DC59: -0.8090766786 | DD59: -3.82
A60: 1700-02-28 | B60: 1700.160204 | C60: 0 | D60: 4 | E60: 0 | H60: 1734.833333 | I60: 1734.875 | J60: 25 | N60: -0.4915789772 | O60: 0 | T60: 1868.304748 | U60: 1868.309113 | V60: 24 | W60: 25.22222222 | X60: 31.37037037 | Y60: -1.222222222 | Z60: -7.37037037 | AB60: 0.009467397981 | AC60: 0 | AD60: -0.9396987359 | AE60: 0 | AF60: -0.5000463997 | AG60: =AG59 -> 0 | AM60: 1869.308848 | AN60: 1869.321945 | AO60: 75.55555556 | AP60: 76.31851852 | AQ60: -0.762962963 | AS60: -0.8086689685 | AT60: -0.0105 | AY60: 1871.613913 | AZ60: 1871.653204 | BA60: 104.137931 | BB60: 103.3567323 | BC60: 0.7811986864 | BE60: 0.5034939289 | BF60: -0.196 | BK60: 1880.650817 | BL60: 1880.768689 | BM60: 47.41860465 | BN60: 40.18992248 | BO60: 39.95106775 | BP60: 0.2388547328 | BQ60: 7.467536903 | BS60: -0.4759617224 | BT60: 0.0093 | BY60: 1722.701461 | BZ60: 1723.055079 | CA60: 15.90310078 | CB60: 26.026465 | CC60: -10.12336423 | CE60: -0.3582425548 | CF60: -0.8665 | CK60: 1804.033592 | CL60: 1805.094446 | CM60: 44.04516129 | CN60: 18.06946681 | CO60: 25.97569448 | CQ60: -0.3814263375 | CR60: -14.45 | CW60: 2048.029984 | CX60: 2051.212545 | DC60: -0.2420204259 | DD60: -3.82
A61: 1700-03-01 | B61: 1700.162944 | C61: 0 | D61: 5 | E61: 0 | H61: 1734.916667 | I61: 1734.958333 | J61: 25 | N61: -0.4455325396 | O61: 0 | T61: 1868.313479 | U61: 1868.317845 | V61: 16.66666667 | W61: 23.77777778 | X61: 32.92592593 | Y61: -7.111111111 | Z61: -16.25925926 | AB61: -0.6668201269 | AC61: 0 | AD61: -0.9396865053 | AE61: 0 | AF61: -0.4999535989 | AG61: =AG60 -> 0 | AJ61: 1958 to 1986 | AM61: 1869.335042 | AN61: 1869.348139 | AO61: 139.1 | AP61: 78.57777778 | AQ61: 60.52222222 | AS61: -0.9976051613 | AT61: -0.0105 | AY61: 1871.692495 | AZ61: 1871.731786 | BA61: 86.34482759 | BB61: 96.51122058 | BC61: -10.16639299 | BE61: 0.9410664264 | BF61: -0.196 | BK61: 1880.886562 | BL61: 1881.004435 | BM61: 37 | BN61: 45.0620155 | BO61: 43.78120823 | BP61: 1.280807271 | BQ61: -6.781208233 | BS61: 0.200702013 | BT61: 0.0093 | BY61: 1723.408697 | BZ61: 1723.762315 | CA61: 11.97674419 | CB61: 31.40023745 | CC61: -19.42349326 | CE61: -0.8745545833 | CF61: -0.8665 | CK61: 1806.1553 | CL61: 1807.216154 | CM61: 15.85142119 | CN61: 20.535565 | CO61: -4.684143814 | CQ61: 0.3020028496 | CR61: -14.45
A62: 1700-03-02 | B62: 1700.165684 | C62: 0 | D62: 5 | E62: 0 | H62: 1735 | I62: 1735.041667 | J62: 27 | N62: -0.3982754859 | O62: 0 | T62: 1868.32221 | U62: 1868.326576 | V62: 30.66666667 | W62: 22.33333333 | X62: 31.65740741 | Y62: 8.333333333 | Z62: -0.9907407407 | AB62: -0.9948571799 | AC62: 0 | AD62: -0.4999845154 | AE62: 0 | AF62: 0.9999999986 | AG62: =AG61 -> 0 | AH62: Cycles | AI62: Actual | AJ62: 28.68 Correl | AM62: 1869.361236 | AN62: 1869.374333 | AO62: 86.4 | AP62: 87.47777778 | AQ62: -1.077777778 | AS62: -0.719750812 | AT62: -0.0105 | AY62: 1871.771077 | AZ62: 1871.810368 | BA62: 90.71428571 | BB62: 95.59781062 | BC62: -4.883524904 | BE62: 0.9383034843 | BF62: -0.196 | BK62: 1881.122307 | BL62: 1881.24018 | BM62: 50.76744186 | BN62: 50.97674419 | BO62: 49.53100775 | BP62: 1.445736434 | BQ62: 1.236434109 | BS62: 0.783455046 | BT62: 0.0093 | BY62: 1724.115933 | BZ62: 1724.469551 | CA62: 21.64864865 | CB62: 40.87224434 | CC62: -19.22359569 | CE62: -0.9816528026 | CF62: -0.8665 | CK62: 1808.277007 | CL62: 1809.337861 | CM62: 4.678709677 | CN62: 24.0742343 | CO62: -19.39552462 | CQ62: 0.8441215469 | CR62: -14.45
A63: 1700-03-03 | B63: 1700.168423 | C63: 0 | D63: 5 | E63: 0 | H63: 1735.083333 | I63: 1735.125 | J63: 27.2 | N63: -0.3499362246 | O63: 0 | T63: 1868.330942 | U63: 1868.335307 | V63: 19.66666667 | W63: 26.33333333 | X63: 27.62037037 | Y63: -6.666666667 | Z63: -7.953703704 | AB63: -0.8033246093 | AC63: 0 | AD63: 0.1736657859 | AE63: 0 | AF63: -0.5000463996 | AG63: =AG62 -> 0 | AH63: -4 | AI63: -0.036 | AJ63: =CORREL(Z10333:Z13653,AD10337:AD13657) -> -0.005229477951 | AM63: 1869.38743 | AN63: 1869.400527 | AO63: 82.66666667 | AP63: 91.07037037 | AQ63: -8.403703704 | AS63: -0.1051170587 | AT63: -0.0105 | AY63: 1871.849659 | AZ63: 1871.88895 | BA63: 102.7586207 | BB63: 95.69975369 | BC63: 7.058866995 | BE63: 0.4964979137 | BF63: -0.196 | BK63: 1881.358053 | BL63: 1881.475925 | BM63: 65.1627907 | BN63: 58.39534884 | BO63: 52.79069767 | BP63: 5.604651163 | BQ63: 12.37209302 | BS63: 0.9996207558 | BT63: 0.0093 | BY63: 1724.823169 | BZ63: 1725.176787 | CA63: 31.98062016 | CB63: 49.67543125 | CC63: -17.69481109 | CE63: -0.6294247658 | CF63: -0.8665 | CK63: 1810.398715 | CL63: 1811.459569 | CM63: 1.320413437 | CN63: 24.17722986 | CO63: -22.85681643 | CQ63: 0.9912663911 | CR63: -14.45
A64: 1700-03-04 | B64: 1700.171163 | C64: 0 | D64: 5 | E64: 0 | H64: 1735.166667 | I64: 1735.208333 | J64: 30 | N64: -0.3006461049 | O64: 0 | T64: 1868.339673 | U64: 1868.344039 | V64: 28.66666667 | W64: 30 | X64: 27.80555556 | Y64: -1.333333333 | Z64: 0.8611111111 | AB64: -0.1922513515 | AC64: 0 | AD64: 0.766055936 | AE64: 0 | AF64: -0.4999535989 | AG64: =AG63 -> 0 | AH64: -3 | AI64: -0.019 | AJ64: =CORREL(Z10333:Z13653,AD10336:AD13656) -> -0.02826584063 | AM64: 1869.413624 | AN64: 1869.426721 | AO64: 141.5 | AP64: 91.12592593 | AQ64: 50.37407407 | AS64: 0.5587021347 | AT64: -0.0105 | AY64: 1871.92824 | AZ64: 1871.967531 | BA64: 90.4137931 | BB64: 96.40569239 | BC64: -5.991899288 | BE64: -0.1776245486 | BF64: -0.196 | BK64: 1881.593798 | BL64: 1881.711671 | BM64: 59.25581395 | BN64: 57.80620155 | BO64: 54.41860465 | BP64: 3.387596899 | BQ64: 4.837209302 | BS64: 0.7480528045 | BT64: 0.0093 | BY64: 1725.530405 | BZ64: 1725.884023 | CA64: 47.79844961 | CB64: 57.63925553 | CC64: -9.840805922 | CE64: 0.01731811424 | CF64: -0.8665 | CK64: 1812.520423 | CL64: 1813.581277 | CM64: 11.5503876 | CN64: 20.03625944 | CO64: -8.485871838 | CQ64: 0.6745866742 | CR64: -14.45
A65: 1700-03-05 | B65: 1700.173903 | C65: 0 | D65: 5 | E65: 0 | H65: 1735.25 | I65: 1735.291667 | J65: 30 | N65: -0.2505390595 | O65: 0 | T65: 1868.348404 | U65: 1868.35277 | V65: 41.66666667 | W65: 34.52777778 | X65: 27.9537037 | Y65: 7.138888889 | Z65: 13.71296296 | AB65: 0.51922623 | AC65: 0 | AD65: 0.9999999998 | AE65: 0 | AF65: 0.9999999986 | AG65: =AG64 -> 0 | AH65: -2 | AI65: 0.007 | AJ65: =CORREL(Z10333:Z13653,AD10335:AD13655) -> -0.03807630234 | AM65: 1869.439818 | AN65: 1869.452915 | AO65: 77.88888889 | AP65: 91.69382716 | AQ65: -13.80493827 | AS65: 0.96109839 | AT65: -0.0105 | AY65: 1872.006822 | AZ65: 1872.046113 | BA65: 82.32142857 | BB65: 95.84630542 | BC65: -13.52487685 | BE65: -0.7686345105 | BF65: -0.196 | BK65: 1881.829543 | BL65: 1881.947416 | BM65: 49 | BN65: 61.78294574 | BO65: 56.18346253 | BP65: 5.599483204 | BQ65: -7.183462532 | BS65: 0.1464626322 | BT65: 0.0093 | BY65: 1726.237641 | BZ65: 1726.591259 | CA65: 78.26356589 | CB65: 63.62900109 | CC65: 14.6345648 | CE65: 0.6559576561 | CF65: -0.8665 | CK65: 1814.642131 | CL65: 1815.702985 | CM65: 36.16 | CN65: 15.9900414 | CO65: 20.1699586 | CQ65: 0.04226035523 | CR65: -14.45
A66: 1700-03-06 | B66: 1700.176642 | C66: 0 | D66: 5 | E66: 0 | H66: 1735.333333 | I66: 1735.375 | J66: 30.1 | N66: -0.1997512409 | O66: 0 | T66: 1868.357136 | U66: 1868.361501 | V66: 33.25 | W66: 31.30555556 | X66: 29.10185185 | Y66: 1.944444444 | Z66: 4.148148148 | AB66: 0.9595350625 | AC66: 0 | AD66: 0.76603295 | AE66: 0 | AF66: -0.5000463996 | AG66: =AG65 -> 0 | AH66: -1 | AI66: 0.029 | AJ66: =CORREL(Z10333:Z13653,AD10334:AD13654) -> -0.03007043901 | AM66: 1869.466012 | AN66: 1869.479109 | AO66: 108 | AP66: 81.32716049 | AQ66: 26.67283951 | AS66: 0.9137860271 | AT66: -0.0105 | AY66: 1872.085404 | AZ66: 1872.124695 | BA66: 120.4 | BB66: 99.29074986 | BC66: 21.10925014 | BE66: -0.9999918426 | BF66: -0.196 | BK66: 1882.065289 | BL66: 1882.183161 | BM66: 77.09302326 | BN66: 59.78682171 | BO66: 57.55813953 | BP66: 2.228682171 | BQ66: 19.53488372 | BS66: -0.5236590334 | BT66: 0.0093 | BY66: 1726.944877 | BZ66: 1727.298495 | CA66: 111.6046512 | CB66: 67.77801057 | CC66: 43.82664059 | CE66: 0.9876673206 | CF66: -0.8665 | CK66: 1816.763838 | CL66: 1817.824692 | CM66: 37.21834625 | CN66: 18.00841636 | CO66: 19.20992989 | CQ66: -0.6098400536 | CR66: -14.45
A67: 1700-03-07 | B67: 1700.179382 | C67: 0 | D67: 5 | E67: 0 | H67: 1735.416667 | I67: 1735.458333 | J67: 33 | K67: =AVERAGE(J2:J132) -> 49.73846289 | L67: =J67-K67 -> -16.73846289 | N67: -0.1484206515 | O67: 0 | T67: 1868.365867 | U67: 1868.370233 | V67: 19 | W67: 29.63888889 | X67: 28.94444444 | Y67: -10.63888889 | Z67: -9.944444444 | AB67: 0.8987214411 | AC67: 0 | AD67: 0.1736305693 | AE67: 0 | AF67: -0.499953599 | AG67: =AG66 -> 0 | AH67: 0 | AI67: 0.038 | AJ67: =CORREL(Z10333:Z13653,AD10333:AD13653) -> -0.007994283075 | AM67: 1869.492206 | AN67: 1869.505303 | AO67: 63.22222222 | AP67: 83.06049383 | AQ67: -19.8382716 | AS67: =SIN((2*PI()*(AN67-2000+AT67)/0.235745306106089) + 0.083216746) -> 0.4389030266 | AT67: -0.0105 | AY67: 1872.163986 | AZ67: 1872.203277 | BA67: 86.31034483 | BB67: 101.6558292 | BC67: -15.3454844 | BE67: -0.7634418778 | BF67: -0.196 | BK67: 1882.301034 | BL67: 1882.418907 | BM67: 53.26744186 | BN67: 60.3875969 | BO67: 58.69638243 | BP67: 1.69121447 | BQ67: -5.428940568 | BS67: -0.9487548175 | BT67: 0.0093 | BY67: 1727.652113 | BZ67: 1728.005731 | CA67: 105.2286822 | CB67: 69.67493074 | CC67: 35.55375143 | CE67: 0.857236469 | CF67: -0.8665 | CK67: 1818.885546 | CL67: 1819.9464 | CM67: 22.53290323 | CN67: 24.19154566 | CO67: -1.658642438 | CQ67: -0.9765895237 | CR67: -14.45
A68: 1700-03-08 | B68: 1700.182122 | C68: 0 | D68: 5 | E68: 0 | H68: 1735.5 | I68: 1735.541667 | J68: 33.1 | K68: =AVERAGE(J3:J133) -> 49.79749978 | L68: =J68-K68 -> -16.69749978 | N68: -0.09668676855 | O68: 0 | T68: =T67+0.00873130763355885 -> 1868.374598 | U68: =U67+0.00873130763355885 -> 1868.378964 | V68: 36.66666667 | W68: 27 | X68: 33.24074074 | Y68: 9.666666667 | Z68: 3.425925926 | AB68: 0.3685456134 | AC68: 0 | AD68: -0.5000154844 | AE68: 0 | AF68: 0.9999999986 | AG68: =AG67 -> 0 | AH68: 1 | AI68: 0.029 | AJ68: =CORREL(Z10333:Z13653,AD10332:AD13652) -> 0.01782248676 | AM68: =AM67+0.0261939229006765 -> 1869.518399 | AN68: =AN67+0.0261939229006765 -> 1869.531496 | AO68: 45.8 | AP68: 84.85061728 | AQ68: -39.05061728 | AS68: -0.2413475779 | AT68: -0.0105 | AY68: =AY67+0.0785817687020297 -> 1872.242567 | AZ68: =AZ67+0.0785817687020297 -> 1872.281858 | BA68: 104.25 | BB68: 101.1654078 | BC68: 3.084592228 | BE68: -0.1696689737 | BF68: -0.196 | BK68: =BK67+0.235745306106089 -> 1882.536779 | BL68: =BL67+0.235745306106089 -> 1882.654652 | BM68: 50.80232558 | BN68: 55.79069767 | BO68: 58.99741602 | BP68: -3.206718346 | BQ68: -8.195090439 | BS68: -0.9299176782 | BT68: 0.0093 | BY68: =BY67+0.707235918318267 -> 1728.359349 | BZ68: =BZ67+0.707235918318267 -> 1728.712967 | CA68: 94.34883721 | CB68: 69.1602882 | CC68: 25.18854901 | CE68: 0.3256951465 | CF68: -0.8665 | CK68: =CK67+2.1217077549548 -> 1821.007254 | CL68: =CL67+2.1217077549548 -> 1822.068108 | CM68: 6.968992248 | CN68: 31.35063951 | CO68: -24.38164726 | CQ68: -0.8863819021 | CR68: -14.45
A69: 1700-03-09 | B69: 1700.184862 | C69: 0 | D69: 5 | E69: 0 | H69: 1735.583333 | I69: 1735.625 | J69: 36 | K69: 49.80719736 | L69: -13.80719736 | N69: -0.04469016504 | O69: 0 | T69: 1868.383329 | U69: 1868.387695 | V69: 25.33333333 | W69: 29.66666667 | X69: 34.31481481 | Y69: -4.333333333 | Z69: -8.981481481 | AB69: -0.3541051841 | AC69: 0 | AD69: -0.9396987359 | AE69: 0 | AF69: =SIN((2*PI()*(U69-2000+AG69)/0.0261939229006765) + 0.748950468) -> -0.5000463996 | AG69: =AG68 -> 0 | AH69: 2 | AI69: 0.006 | AJ69: =CORREL(Z10333:Z13653,AD10331:AD13651) -> 0.03529991696 | AM69: 1869.544593 | AN69: 1869.55769 | AO69: 80.66666667 | AP69: 75.25061728 | AQ69: 5.416049383 | AS69: -0.8086689685 | AT69: -0.0105 | AY69: 1872.321149 | AZ69: 1872.36044 | BA69: 99.10344828 | BB69: 101.7746032 | BC69: -2.671154899 | BE69: 0.5034939289 | BF69: -0.196 | BK69: 1882.772524 | BL69: 1882.890397 | BM69: 63.30232558 | BN69: 54.49224806 | BO69: 60.25968992 | BP69: -5.76744186 | BQ69: 3.042635659 | BS69: -0.4759617224 | BT69: 0.0093 | BY69: 1729.066585 | BZ69: 1729.420203 | CA69: 69.81081081 | CB69: 65.42557674 | CC69: 4.385234071 | CE69: -0.3582425548 | CF69: -0.8665 | CK69: 1823.128962 | CL69: 1824.189816 | CM69: 7.629198966 | CN69: 32.87432599 | CO69: -25.24512702 | CQ69: -0.3814263375 | CR69: -14.45
A70: 1700-03-10 | B70: 1700.187601 | C70: 0 | D70: 5 | E70: 0 | H70: 1735.666667 | I70: 1735.708333 | J70: 36 | K70: 49.81353978 | L70: -13.81353978 | N70: 0.007427872092 | O70: 0 | T70: 1868.392061 | U70: 1868.396426 | V70: 27 | W70: 27.19444444 | X70: 33.24074074 | Y70: -0.1944444444 | Z70: -6.240740741 | AB70: -0.8918226053 | AC70: 0 | AD70: -0.9396865053 | AE70: 0 | AF70: -0.499953599 | AG70: =AG69 -> 0 | AH70: 3 | AI70: -0.019 | AJ70: =CORREL(Z10333:Z13653,AD10330:AD13650) -> 0.0362601237 | AM70: 1869.570787 | AN70: 1869.583884 | AO70: 45.8 | AP70: 79.49753086 | AQ70: -33.69753086 | AS70: -0.9976051613 | AT70: -0.0105 | AY70: 1872.399731 | AZ70: 1872.439022 | BA70: 117.3448276 | BB70: 105.381746 | BC70: 11.96308155 | BE70: 0.9410664264 | BF70: -0.196 | BK70: 1883.00827 | BL70: 1883.126142 | BM70: 49.37209302 | BN70: 57.89534884 | BO70: 65.01192492 | BP70: -7.116576079 | BQ70: -15.63983189 | BS70: 0.200702013 | BT70: 0.0093 | BY70: 1729.77382 | BZ70: 1730.127438 | CA70: 49.31782946 | CB70: 57.57975417 | CC70: -8.261924715 | CE70: -0.8745545833 | CF70: -0.8665 | CK70: 1825.250669 | CL70: 1826.311523 | CM70: 34.01679587 | CN70: 32.20837617 | CO70: 1.808419698 | CQ70: 0.3020028496 | CR70: -14.45
A71: 1700-03-11 | B71: 1700.190341 | C71: 0 | D71: 5 | E71: 0 | H71: 1735.75 | I71: 1735.791667 | J71: 36 | K71: 49.77533709 | L71: -13.77533709 | N71: 0.05952572596 | O71: 0 | T71: 1868.400792 | U71: 1868.405158 | V71: 29.25 | W71: 38.19444444 | X71: 32.39814815 | Y71: -8.944444444 | Z71: -3.148148148 | AB71: -0.9637807751 | AC71: 0 | AD71: -0.4999845155 | AE71: 0 | AF71: 0.9999999986 | AG71: =AG70 -> 0 | AH71: 4 | AI71: -0.036 | AJ71: =CORREL(Z10333:Z13653,AD10329:AD13649) -> 0.02025381558 | AM71: 1869.596981 | AN71: 1869.610078 | AO71: 102 | AP71: 74.09753086 | AQ71: 27.90246914 | AS71: -0.7197508121 | AT71: -0.0105 | AY71: 1872.478313 | AZ71: 1872.517604 | BA71: 112 | BB71: 103.38711 | BC71: 8.612889984 | BE71: 0.9383034843 | BF71: -0.196 | BK71: 1883.244015 | BL71: 1883.361888 | BM71: 61.01162791 | BN71: 59.41860465 | BO71: 64.65791975 | BP71: -5.239315097 | BQ71: -3.646291841 | BS71: 0.783455046 | BT71: 0.0093 | BY71: 1730.481056 | BZ71: 1730.834674 | CA71: 38.72093023 | CB71: 45.83040017 | CC71: -7.109469935 | CE71: -0.9816528026 | CF71: -0.8665 | CK71: 1827.372377 | CL71: 1828.433231 | CM71: 60.32687339 | CN71: 42.18354126 | CO71: 18.14333213 | CQ71: 0.8441215469 | CR71: -14.45
A72: 1700-03-12 | B72: 1700.193081 | C72: 0 | D72: 5 | E72: 0 | H72: 1735.833333 | I72: 1735.875 | J72: 39 | K72: 49.73773601 | L72: -10.73773601 | N72: 0.1114618345 | O72: 0 | T72: 1868.409523 | U72: 1868.413889 | V72: 58.33333333 | W72: 41.97222222 | X72: 32.00925926 | Y72: 16.36111111 | Z72: 26.32407407 | AB72: -0.5323991443 | AC72: 0 | AD72: 0.1736657859 | AE72: 0 | AF72: -0.5000463996 | AG72: =AG71 -> 0 | AJ72: 369 cycles | AM72: 1869.623175 | AN72: 1869.636272 | AO72: 98.77777778 | AP72: 75.46790123 | AQ72: 23.30987654 | AS72: -0.1051170587 | AT72: -0.0105 | AY72: 1872.556895 | AZ72: 1872.596185 | BA72: 98.34482759 | BB72: 105.9848112 | BC72: -7.63998358 | BE72: 0.4964979137 | BF72: -0.196 | BK72: 1883.47976 | BL72: 1883.597633 | BM72: 67.87209302 | BN72: 66.5 | BO72: 64.61916006 | BP72: 1.880839942 | BQ72: 3.252932965 | BS72: 0.9996207558 | BT72: 0.0093 | BY72: 1731.188292 | BZ72: 1731.54191 | CA72: 27.34883721 | CB72: 35.5677538 | CC72: -8.218916591 | CE72: -0.6294247658 | CF72: -0.8665 | CK72: 1829.494085 | CL72: 1830.554939 | CM72: 65.75225806 | CN72: 50.21465237 | CO72: 15.5376057 | CQ72: 0.9912663911 | CR72: -14.45
A73: 1700-03-13 | B73: 1700.195821 | C73: 0 | D73: 5 | E73: 0 | H73: 1735.916667 | I73: 1735.958333 | J73: 39 | K73: 49.69915995 | L73: -10.69915995 | N73: 0.1630950752 | O73: 0 | T73: 1868.418255 | U73: 1868.42262 | V73: 38.33333333 | W73: 42.88888889 | X73: 30.78703704 | Y73: -4.555555556 | Z73: 7.546296296 | AB73: 0.1770308623 | AC73: 0 | AD73: 0.766055936 | AE73: 0 | AF73: -0.499953599 | AG73: =AG72 -> 0 | AJ73: 90% | AM73: 1869.649369 | AN73: 1869.662466 | AO73: 55.1 | AP73: 78.99012346 | AQ73: -23.89012346 | AS73: 0.5587021347 | AT73: -0.0105 | AY73: 1872.635476 | AZ73: 1872.674767 | BA73: 95.89655172 | BB73: 102.6673508 | BC73: -6.770799124 | BE73: -0.1776245486 | BF73: -0.196 | BK73: 1883.715506 | BL73: 1883.833378 | BM73: 70.61627907 | BN73: 76.75282901 | BO73: 64.47574921 | BP73: 12.27707981 | BQ73: 6.140529864 | BS73: 0.7480528045 | BT73: 0.0093 | BY73: 1731.895528 | BZ73: 1732.249146 | CA73: 14.18604651 | CB73: 28.08498033 | CC73: -13.89893382 | CE73: 0.01731811424 | CF73: -0.8665 | CK73: 1831.615793 | CL73: 1832.676647 | CM73: 25.26356589 | CN73: 54.67373936 | CO73: -29.41017347 | CQ73: =SIN((2*PI()*(CL73-2000+CR73)/19.0953697945932) + 5.663651193) -> 0.6745866742 | CR73: =CR72 -> -14.45
A74: 1700-03-14 | B74: 1700.19856 | C74: 0 | D74: 5 | E74: 0 | H74: 1736 | I74: 1736.041667 | J74: 58 | K74: 49.61622072 | L74: 8.383779278 | N74: 0.2142851485 | O74: 0 | T74: 1868.426986 | U74: 1868.431352 | V74: 32 | W74: 32 | X74: 30.82407407 | Y74: 0 | Z74: 1.175925926 | AB74: =SIN((2*PI()*(U74-2000)/0.074195756) + 2.57488197) -> 0.7940055292 | AC74: =AC73 -> 0 | AD74: =SIN((2*PI()*(U74-2000+AE74)/0.0785817687020297) + 3.39124283) -> 0.9999999998 | AE74: =AE73 -> 0 | AF74: 0.9999999986 | AG74: =AG73 -> 0 | AJ74: Lag = -0.0224 | AM74: 1869.675563 | AN74: 1869.68866 | AO74: 116.1111111 | AP74: 76.71851852 | AQ74: 39.39259259 | AS74: 0.96109839 | AT74: -0.0105 | AY74: 1872.714058 | AZ74: 1872.753349 | BA74: 114.7857143 | BB74: 101.3685003 | BC74: 13.41721401 | BE74: -0.7686345105 | BF74: -0.196 | BK74: 1883.951251 | BL74: 1884.069124 | BM74: 91.77011494 | BN74: 78.76445692 | BO74: 63.13308979 | BP74: 15.63136713 | BQ74: 28.63702516 | BS74: 0.1464626322 | BT74: 0.0093 | BY74: 1732.602764 | BZ74: 1732.956382 | CA74: 7.651162791 | CB74: =AVERAGE(CA70:CA78) -> 24.82047163 | CC74: -17.16930884 | CE74: 0.6559576561 | CF74: -0.8665 | CK74: 1833.7375 | CL74: 1834.798354 | CM74: 30.16645161 | CN74: 56.05990072 | CO74: -25.8934491 | CQ74: 0.04226035523 | CR74: -14.45
A75: 1700-03-15 | B75: 1700.2013 | C75: 0 | D75: 5 | E75: 0 | H75: 1736.083333 | I75: 1736.125 | J75: =AVERAGEIFS(Intl_SS,DecDate,">"&H75,DecDate,"<="&H76) -> 58.2 | K75: 49.53301902 | L75: 8.666980976 | N75: 0.264892959 | O75: 0 | T75: 1868.435717 | U75: 1868.440083 | V75: 25.66666667 | W75: 24.38888889 | X75: 31.30555556 | Y75: 1.277777778 | Z75: -5.638888889 | AB75: 0.9963064497 | AC75: 0 | AD75: 0.76603295 | AE75: 0 | AF75: -0.5000463995 | AG75: =AG74 -> 0 | AM75: 1869.701757 | AN75: 1869.714854 | AO75: 59.4 | AP75: 75.72962963 | AQ75: -16.32962963 | AS75: 0.9137860272 | AT75: -0.0105 | AY75: 1872.79264 | AZ75: 1872.831931 | BA75: 102.4482759 | BB75: 101.5715654 | BC75: 0.8767104543 | BE75: =SIN((2*PI()*(AZ75-2000+BF75)/0.707235918318267) + 5.263726692) -> -0.9999918426 | BF75: =BF74 -> -0.196 | BK75: 1884.186996 | BL75: 1884.304869 | BM75: 73.90697674 | BN75: =AVERAGE(BM74:BM76) -> 72.86523211 | BO75: =AVERAGE(BM71:BM79) -> 64.11241795 | BP75: =BN75-BO75 -> 8.752814161 | BQ75: 9.794558793 | BS75: -0.5236590334 | BT75: 0.0093 | BY75: 1733.31 | BZ75: 1733.663618 | CA75: 5.860465116 | CB75: 26.44407198 | CC75: -20.58360686 | CE75: 0.9876673206 | CF75: -0.8665 | CK75: 1835.859208 | CL75: 1836.920062 | CM75: 126.994832 | CN75: 56.63638576 | CO75: 70.35844628 | CQ75: -0.6098400536 | CR75: -14.45
A76: 1700-03-16 | B76: 1700.20404 | C76: 0 | D76: 5 | E76: 0 | H76: 1736.166667 | I76: 1736.208333 | J76: 61 | K76: 49.40681277 | L76: 11.59318723 | N76: 0.3147809934 | O76: 0 | T76: 1868.444449 | U76: 1868.448814 | V76: 15.5 | W76: 22.27777778 | X76: 31.94444444 | Y76: -6.777777778 | Z76: -16.44444444 | AB76: 0.6782808575 | AC76: 0 | AD76: 0.1736305694 | AE76: 0 | AF76: -0.499953599 | AG76: =AG75 -> 0 | AJ76: 1987 to 2009 | AM76: 1869.727951 | AN76: 1869.741048 | AO76: 75.55555556 | AP76: 71.34074074 | AQ76: 4.214814815 | AS76: 0.4389030267 | AT76: =AT75 -> -0.0105 | AY76: 1872.871222 | AZ76: 1872.910512 | BA76: 109.6896552 | BB76: 98.32635468 | BC76: 11.36330049 | BE76: -0.7634418778 | BF76: -0.196 | BK76: 1884.422742 | BL76: 1884.540614 | BM76: 52.91860465 | BN76: 58.77906977 | BO76: 65.24807687 | BP76: -6.469007099 | BQ76: -12.32947221 | BS76: -0.9487548175 | BT76: 0.0093 | BY76: 1734.017236 | BZ76: 1734.370854 | CA76: 12.86486486 | CB76: 30.25716414 | CC76: -17.39229928 | CE76: =SIN((2*PI()*(BZ76-2000+CF76)/6.3651232648644) + 1.28299025) -> 0.857236469 | CF76: =CF75 -> -0.8665 | CK76: 1837.980916 | CL76: 1839.04177 | CM76: 94.81290323 | CN76: 60.69682217 | CO76: 34.11608106 | CQ76: -0.9765895237 | CR76: -14.45
A77: 1700-03-17 | B77: 1700.206779 | C77: 0 | D77: 5 | E77: 0 | H77: 1736.25 | I77: 1736.291667 | J77: 61 | K77: 49.34574407 | L77: 11.65425593 | N77: 0.3638136943 | O77: 0 | T77: 1868.45318 | U77: 1868.457546 | V77: 25.66666667 | W77: 22.27777778 | X77: 31.31481481 | Y77: 3.388888889 | Z77: -5.648148148 | AB77: 0.00601936388 | AC77: 0 | AD77: -0.5000154844 | AE77: 0 | AF77: 0.9999999986 | AG77: =AG76 -> 0 | AH77: Cycles | AI77: Actual | AJ77: 28.68 Correl | AM77: 1869.754145 | AN77: 1869.767242 | AO77: 77.5 | AP77: =AVERAGE(AO73:AO81) -> 69.8962963 | AQ77: 7.603703704 | AS77: -0.2413475779 | AT77: -0.0105 | AY77: 1872.949803 | AZ77: 1872.989094 | BA77: 74.39285714 | BB77: =AVERAGE(BA73:BA81) -> 95.61343733 | BC77: -21.22058019 | BE77: -0.1696689737 | BF77: -0.196 | BK77: 1884.658487 | BL77: 1884.77636 | BM77: 49.51162791 | BN77: 51.21620779 | BO77: 62.61500193 | BP77: -11.39879414 | BQ77: -13.10337402 | BS77: =SIN((2*PI()*(BL77-2000+BT77)/2.1217077549548) + 0.707378034) -> -0.9299176782 | BT77: =BT76 -> 0.0093 | BY77: 1734.724472 | BZ77: 1735.07809 | CA77: 27.00387597 | CB77: 36.70634588 | CC77: -9.702469912 | CE77: 0.3256951465 | CF77: -0.8665 | CK77: 1840.102624 | CL77: 1841.163478 | CM77: 47.10077519 | CN77: 63.72993324 | CO77: -16.62915805 | CQ77: -0.8863819021 | CR77: -14.45
A78: 1700-03-18 | B78: 1700.209519 | C78: 0 | D78: 5 | E78: 0 | H78: 1736.333333 | I78: 1736.375 | J78: 61.1 | K78: 49.30757613 | L78: 11.79242387 | N78: 0.4118578284 | O78: 0 | T78: 1868.461911 | U78: 1868.466277 | V78: 25.66666667 | W78: 27.55555556 | X78: 31.58333333 | Y78: -1.888888889 | Z78: -5.916666667 | AB78: -0.6693857755 | AC78: 0 | AD78: -0.9396987359 | AE78: 0 | AF78: -0.5000463995 | AG78: =AG77 -> 0 | AH78: -4 | AI78: -0.109 | AJ78: =CORREL(Z13661:Z16254,AD13656:AD16249) -> -0.1055967188 | AM78: 1869.780339 | AN78: 1869.793436 | AO78: 60.22222222 | AP78: 73.2962963 | AQ78: -13.07407407 | AS78: -0.8086689685 | AT78: -0.0105 | AY78: 1873.028385 | AZ78: 1873.067676 | BA78: 87.4137931 | BB78: 91.11535304 | BC78: -3.701559934 | BE78: 0.5034939288 | BF78: -0.196 | BK78: 1884.894232 | BL78: 1885.012105 | BM78: 51.2183908 | BN78: 52.97202174 | BO78: 58.38631976 | BP78: -5.414298019 | BQ78: -7.167928955 | BS78: -0.4759617224 | BT78: 0.0093 | BY78: 1735.431708 | BZ78: 1735.785326 | CA78: 40.43023256 | CB78: 46.93632004 | CC78: -6.506087483 | CE78: -0.3582425548 | CF78: -0.8665 | CK78: 1842.224331 | CL78: 1843.285185 | CM78: 20.10465116 | CN78: =AVERAGE(CM74:CM82) -> 67.69562374 | CO78: -47.59097258 | CQ78: -0.3814263375 | CR78: -14.45
A79: 1700-03-19 | B79: 1700.212259 | C79: 0 | D79: 5 | E79: 0 | H79: 1736.416667 | I79: 1736.458333 | J79: 64 | K79: 49.22360667 | L79: 14.77639333 | N79: 0.4587828486 | O79: 0 | T79: 1868.470643 | U79: 1868.475008 | V79: 31.33333333 | W79: 30.66666667 | X79: 31.25 | Y79: 0.6666666667 | Z79: 0.08333333333 | AB79: -0.995200519 | AC79: 0 | AD79: -0.9396865054 | AE79: 0 | AF79: -0.499953599 | AG79: =AG78 -> 0 | AH79: -3 | AI79: -0.058 | AJ79: =CORREL(Z13661:Z16254,AD13655:AD16248) -> -0.05063493193 | AM79: 1869.806533 | AN79: 1869.81963 | AO79: 36.9 | AP79: 72.08641975 | AQ79: -35.18641975 | AS79: -0.9976051613 | AT79: -0.0105 | AY79: 1873.106967 | AZ79: 1873.146258 | BA79: 119.1724138 | BB79: 84.38437329 | BC79: 34.7880405 | BE79: 0.9410664264 | BF79: -0.196 | BK79: 1885.129978 | BL79: 1885.24785 | BM79: 58.18604651 | BN79: 60.21233182 | BO79: 52.7929995 | BP79: 7.419332324 | BQ79: 5.393047017 | BS79: 0.200702013 | BT79: 0.0093 | BY79: 1736.138944 | BZ79: 1736.492562 | CA79: 63.93023256 | CB79: 57.01926678 | CC79: 6.910965783 | CE79: -0.8745545833 | CF79: -0.8665 | CK79: 1844.346039 | CL79: 1845.406893 | CM79: 39.20516129 | CN79: 68.06156782 | CO79: -28.85640653 | CQ79: 0.3020028496 | CR79: -14.45
A80: 1700-03-20 | B80: 1700.214999 | C80: 0 | D80: 5 | E80: 0 | H80: =H79 +(1/12) -> 1736.5 | I80: =I79 +(1/12) -> 1736.541667 | J80: 64.1 | K80: 49.17017155 | L80: 14.92982845 | N80: 0.5044612485 | O80: 0 | T80: 1868.479374 | U80: 1868.48374 | V80: 35 | W80: 39.66666667 | X80: 31.62037037 | Y80: -4.666666667 | Z80: 3.37962963 | AB80: -0.8012663281 | AC80: 0 | AD80: -0.4999845155 | AE80: 0 | AF80: 0.9999999986 | AG80: =AG79 -> 0 | AH80: -2 | AI80: 0.02 | AJ80: =CORREL(Z13661:Z16254,AD13654:AD16247) -> 0.02800706032 | AM80: 1869.832727 | AN80: 1869.845824 | AO80: 62.5 | AP80: 80.17530864 | AQ80: -17.67530864 | AS80: -0.7197508121 | AT80: -0.0105 | AY80: 1873.185549 | AZ80: 1873.22484 | BA80: 82.79310345 | BB80: 80.19567597 | BC80: 2.597427477 | BE80: 0.9383034843 | BF80: -0.196 | BK80: 1885.365723 | BL80: 1885.483595 | BM80: 71.23255814 | BN80: 57.86434109 | BO80: 48.13925273 | BP80: 9.72508836 | BQ80: 23.09330541 | BS80: 0.783455046 | BT80: 0.0093 | BY80: 1736.84618 | BZ80: 1737.199798 | CA80: 73.03875969 | CB80: 65.48352173 | CC80: 7.555237962 | CE80: -0.9816528026 | CF80: -0.8665 | CK80: 1846.467747 | CL80: 1847.528601 | CM80: 96.87080103 | CN80: 54.94988397 | CO80: 41.92091706 | CQ80: 0.8441215469 | CR80: -14.45
A81: 1700-03-21 | B81: 1700.217738 | C81: 0 | D81: 5 | E81: 0 | H81: 1736.583333 | I81: 1736.625 | J81: 67 | K81: 49.08009521 | L81: 17.91990479 | N81: 0.5487689094 | O81: 0 | T81: 1868.488105 | U81: 1868.492471 | V81: 52.66666667 | W81: 42.80555556 | X81: 33.12037037 | Y81: 9.861111111 | Z81: 19.5462963 | AB81: -0.1888663987 | AC81: 0 | AD81: 0.1736657859 | AE81: 0 | AF81: -0.5000463995 | AG81: =AG80 -> 0 | AH81: -1 | AI81: 0.089 | AJ81: =CORREL(Z13661:Z16254,AD13653:AD16246) -> 0.09357257996 | AM81: 1869.85892 | AN81: 1869.872017 | AO81: 85.77777778 | AP81: 80.74320988 | AQ81: 5.034567901 | AS81: -0.1051170587 | AT81: -0.0105 | AY81: 1873.26413 | AZ81: 1873.303421 | BA81: 73.92857143 | BB81: 75.23015873 | BC81: -1.301587302 | BE81: 0.4964979138 | BF81: -0.196 | BK81: 1885.601468 | BL81: 1885.719341 | BM81: =AVERAGEIFS(Intl_SS,DecDate,">"&BK81,DecDate,"<="&BK82) -> 44.1744186 | BN81: 49.32170543 | BO81: 44.86535092 | BP81: 4.45635451 | BQ81: =BM81-BO81 -> -0.6909323116 | BS81: 0.9996207558 | BT81: 0.0093 | BY81: 1737.553416 | BZ81: 1737.907034 | CA81: 85.39147287 | CB81: 70.83402339 | CC81: 14.55744948 | CE81: -0.6294247658 | CF81: -0.8665 | CK81: 1848.589455 | CL81: 1849.650309 | CM81: 93.05025773 | CN81: 49.40765212 | CO81: 43.64260562 | CQ81: 0.9912663911 | CR81: -14.45
A82: 1700-03-22 | B82: 1700.220478 | C82: 0 | D82: 5 | E82: 0 | H82: 1736.666667 | I82: 1736.708333 | J82: 67 | K82: 49.01088402 | L82: 17.98911598 | N82: 0.591585437 | O82: 0 | T82: 1868.496836 | U82: 1868.501202 | V82: 40.75 | W82: 40.80555556 | X82: 32.26851852 | Y82: -0.05555555556 | Z82: 8.481481481 | AB82: 0.5221700442 | AC82: 0 | AD82: 0.766055936 | AE82: 0 | AF82: -0.4999535991 | AG82: =AG81 -> 0 | AH82: 0 | AI82: 0.116 | AJ82: =CORREL(Z13661:Z16254,AD13661:AD16254) -> 0.1153385499 | AM82: 1869.885114 | AN82: 1869.898211 | AO82: 85.7 | AP82: 81.39876543 | AQ82: 4.301234568 | AS82: 0.5587021347 | AT82: -0.0105 | AY82: 1873.342712 | AZ82: 1873.382003 | BA82: 55.4137931 | BB82: 72.86083744 | BC82: -17.44704433 | BE82: -0.1776245486 | BF82: -0.196 | BK82: 1885.837213 | BL82: 1885.955086 | BM82: 32.55813953 | BN82: 39.3875969 | BO82: 40.30979536 | BP82: -0.9221984615 | BQ82: -7.751655826 | BS82: 0.7480528045 | BT82: 0.0093 | BY82: 1738.260652 | BZ82: 1738.614269 | CA82: 106.255814 | CB82: 72.33488472 | CC82: 33.92092923 | CE82: 0.01731811424 | CF82: -0.8665 | CK82: 1850.711163 | CL82: 1851.772016 | CM82: 60.95478036 | CN82: 54.65136527 | CO82: 6.303415094 | CQ82: 0.6745866742 | CR82: -14.45
A83: 1700-03-23 | B83: 1700.223218 | C83: 0 | D83: 5 | E83: 0 | H83: 1736.75 | I83: 1736.791667 | J83: 67 | K83: 48.93454814 | L83: 18.06545186 | N83: 0.6327944887 | O83: 0 | T83: 1868.505568 | U83: 1868.509933 | V83: 29 | W83: 32.91666667 | X83: 34.33333333 | Y83: -3.916666667 | Z83: -5.333333333 | AB83: 0.960500315 | AC83: 0 | AD83: 0.9999999998 | AE83: 0 | AF83: 0.9999999986 | AG83: =AG82 -> 0 | AH83: 1 | AI83: 0.089 | AJ83: =CORREL(Z13661:Z16254,AD13660:AD16253) -> 0.08312388908 | AM83: 1869.911308 | AN83: 1869.924405 | AO83: 105.2222222 | AP83: 84.01851852 | AQ83: 21.2037037 | AS83: 0.96109839 | AT83: -0.0105 | AY83: 1873.421294 | AZ83: 1873.460585 | BA83: 54.20689655 | BB83: 68.69978106 | BC83: -14.49288451 | BE83: -0.7686345105 | BF83: -0.196 | BK83: 1886.072959 | BL83: 1886.190831 | BM83: 41.43023256 | BN83: 35.3372093 | BO83: 35.93281654 | BP83: -0.5956072351 | BQ83: 5.497416021 | BS83: 0.1464626322 | BT83: 0.0093 | BY83: 1738.967887 | BZ83: 1739.321505 | CA83: 98.3976834 | CB83: 70.41197344 | CC83: 27.98570996 | CE83: 0.6559576561 | CF83: -0.8665 | CK83: 1852.83287 | CL83: 1853.893724 | CM83: 33.45994832 | CN83: 59.44593891 | CO83: -25.98599059 | CQ83: 0.04226035523 | CR83: -14.45
A84: 1700-03-24 | B84: 1700.225958 | C84: 0 | D84: 5 | E84: 0 | H84: 1736.833333 | I84: 1736.875 | J84: 70 | K84: 48.85897562 | L84: 21.14102438 | N84: 0.6722840899 | O84: 0 | T84: 1868.514299 | U84: 1868.518665 | V84: 29 | W84: 29 | X84: 36.55555556 | Y84: 0 | Z84: -7.555555556 | AB84: 0.8972040235 | AC84: 0 | AD84: 0.76603295 | AE84: 0 | AF84: -0.5000463995 | AG84: =AG83 -> 0 | AH84: 2 | AI84: 0.02 | AJ84: =CORREL(Z13661:Z16254,AD13659:AD16252) -> 0.01204297503 | AM84: 1869.937502 | AN84: 1869.950599 | AO84: 132.2 | AP84: 88.25185185 | AQ84: 43.94814815 | AS84: 0.9137860272 | AT84: -0.0105 | AY84: 1873.499876 | AZ84: 1873.539167 | BA84: 64.75 | BB84: 62.55418719 | BC84: 2.195812808 | BE84: -0.9999918426 | BF84: -0.196 | BK84: 1886.308704 | BL84: 1886.426577 | BM84: 32.02325581 | BN84: 32.30232558 | BO84: 31.29715762 | BP84: 1.005167959 | BQ84: 0.7260981912 | BS84: -0.5236590334 | BT84: 0.0093 | BY84: 1739.675123 | BZ84: 1740.028741 | CA84: =AVERAGEIFS(Intl_SS,DecDate,">"&BY84,DecDate,"<="&BY85) -> 82.03875969 | CB84: 65.36460048 | CC84: =CA84-CB84 -> 16.67415921 | CE84: 0.9876673206 | CF84: -0.8665 | CK84: 1854.954578 | CL84: 1856.015432 | CM84: 8.989677419 | CN84: 59.74500701 | CO84: -50.75532959 | CQ84: -0.6098400536 | CR84: -14.45
A85: 1700-03-25 | B85: 1700.228697 | C85: 0 | D85: 5 | E85: 0 | H85: 1736.916667 | I85: 1736.958333 | J85: 70 | K85: 48.80528605 | L85: 21.19471395 | N85: =SIN((2*PI()*(I85-2000+O85)/10.04352) + 1.984402856) -> 0.7099469382 | O85: =O84 -> 0 | T85: 1868.52303 | U85: 1868.527396 | V85: 29 | W85: 25.33333333 | X85: 39.92592593 | Y85: 3.666666667 | Z85: -10.92592593 | AB85: 0.3653380053 | AC85: 0 | AD85: 0.1736305694 | AE85: 0 | AF85: -0.4999535991 | AG85: =AG84 -> 0 | AH85: 3 | AI85: -0.058 | AJ85: =CORREL(Z13661:Z16254,AD13658:AD16251) -> -0.06468887381 | AM85: 1869.963696 | AN85: 1869.976793 | AO85: 80.66666667 | AP85: 89.88518519 | AQ85: -9.218518519 | AS85: 0.4389030267 | AT85: -0.0105 | AY85: 1873.578458 | AZ85: 1873.617748 | BA85: =AVERAGEIFS(Intl_SS,DecDate,">"&AY85,DecDate,"<="&AY86) -> 65 | BB85: 57.53119869 | BC85: =BA85-BB85 -> 7.468801314 | BE85: -0.7634418778 | BF85: -0.196 | BK85: 1886.544449 | BL85: 1886.662322 | BM85: 23.45348837 | BN85: 21.32945736 | BO85: 25.94186047 | BP85: -4.612403101 | BQ85: -2.488372093 | BS85: -0.9487548175 | BT85: 0.0093 | BY85: 1740.382359 | BZ85: 1740.735977 | CA85: 61.01937984 | CB85: 58.99250746 | CC85: 2.026872387 | CE85: 0.857236469 | CF85: -0.8665 | CK85: 1857.076286 | CL85: 1858.13714 | CM85: =AVERAGEIFS(Intl_SS,DecDate,">"&CK85,DecDate,"<="&CK86) -> 44.93281654 | CN85: 50.7705597 | CO85: =CM85-CN85 -> -5.837743158 | CQ85: -0.9765895237 | CR85: -14.45
A86: 1700-03-26 | B86: 1700.231437 | C86: 0 | D86: 5 | E86: 0 | H86: 1737 | I86: 1737.041667 | J86: 71 | K86: 48.74498071 | L86: 22.25501929 | N86: 0.7456806948 | O86: 0 | T86: 1868.531762 | U86: 1868.536127 | V86: 18 | W86: 30.41666667 | X86: 38.59259259 | Y86: -12.41666667 | Z86: -20.59259259 | AB86: -0.3573277917 | AC86: 0 | AD86: -0.5000154843 | AE86: 0 | AF86: 0.9999999986 | AG86: =AG85 -> 0 | AH86: 4 | AI86: -0.109 | AJ86: =CORREL(Z13661:Z16254,AD13657:AD16250) -> -0.1111645297 | AM86: 1869.98989 | AN86: 1870.002987 | AO86: =AVERAGEIFS(Intl_SS,DecDate,">"&AM86,DecDate,"<="&AM87) -> 83.4 | AP86: 92.7617284 | AQ86: =AO86-AP86 -> -9.361728395 | AS86: -0.2413475779 | AT86: -0.0105 | AY86: 1873.657039 | AZ86: 1873.69633 | BA86: 53.06896552 | BB86: 55.40421456 | BC86: -2.335249042 | BE86: -0.1696689737 | BF86: -0.196 | BK86: 1886.780195 | BL86: 1886.898067 | BM86: 8.511627907 | BN86: 14.59689922 | BO86: 22.38372093 | BP86: -7.786821705 | BQ86: -13.87209302 | BS86: -0.9299176782 | BT86: 0.0093 | BY86: 1741.089595 | BZ86: 1741.443213 | CA86: 40.51162791 | CB86: 50.43978696 | CC86: -9.928159056 | CE86: 0.3256951465 | CF86: -0.8665 | CK86: 1859.197994 | CL86: 1860.258847 | CM86: 94.29419355 | CN86: 45.89744862 | CO86: 48.39674493 | CQ86: -0.8863819021 | CR86: -14.45
A87: 1700-03-27 | B87: 1700.234177 | C87: 0 | D87: 5 | E87: 0 | H87: 1737.083333 | I87: 1737.125 | J87: 71.2 | K87: 48.70655832 | L87: 22.49344168 | N87: 0.7793882627 | O87: 0 | T87: 1868.540493 | U87: 1868.544859 | V87: 44.25 | W87: 37.86111111 | X87: 37.69444444 | Y87: 6.388888889 | Z87: 6.555555556 | AB87: -0.8933771879 | AC87: 0 | AD87: -0.9396987359 | AE87: 0 | AF87: -0.5000463995 | AG87: =AG86 -> 0 | AJ87: 288 cycles | AM87: 1870.016084 | AN87: 1870.029181 | AO87: 83.8 | AP87: 99.30617284 | AQ87: -15.50617284 | AS87: -0.8086689684 | AT87: -0.0105 | AY87: 1873.735621 | AZ87: 1873.774912 | BA87: 49.96428571 | BB87: 56.67241379 | BC87: -6.708128079 | BE87: 0.5034939288 | BF87: -0.196 | BK87: 1887.01594 | BL87: 1887.133813 | BM87: 11.8255814 | BN87: 12.26744186 | BO87: 20.36512816 | BP87: -8.097686299 | BQ87: -8.539546764 | BS87: -0.4759617224 | BT87: 0.0093 | BY87: 1741.796831 | BZ87: 1742.150449 | CA87: 23.12403101 | CB87: 39.05391272 | CC87: -15.92988171 | CE87: -0.3582425548 | CF87: -0.8665 | CK87: 1861.319701 | CL87: 1862.380555 | CM87: 63.25581395 | CN87: 52.71680994 | CO87: 10.53900401 | CQ87: -0.3814263375 | CR87: -14.45
A88: 1700-03-28 | B88: 1700.236916 | C88: 0 | D88: 5 | E88: 0 | H88: 1737.166667 | I88: 1737.208333 | J88: 74 | K88: 48.66075679 | L88: 25.33924321 | N88: 0.8109780506 | O88: 0 | T88: 1868.549224 | U88: 1868.55359 | V88: 51.33333333 | W88: 53.63888889 | X88: 37.55555556 | Y88: -2.305555556 | Z88: 13.77777778 | AB88: -0.9628554434 | AC88: 0 | AD88: -0.9396865054 | AE88: 0 | AF88: -0.4999535991 | AG88: =AG87 -> 0 | AJ88: 99.9% | AM88: 1870.042278 | AN88: 1870.055375 | AO88: 75 | AP88: 100.2320988 | AQ88: -25.23209877 | AS88: -0.9976051613 | AT88: -0.0105 | AY88: 1873.814203 | AZ88: 1873.853494 | BA88: 63.86206897 | BB88: 57.21264368 | BC88: 6.649425287 | BE88: 0.9410664264 | BF88: -0.196 | BK88: 1887.251685 | BL88: 1887.369558 | BM88: 16.46511628 | BN88: 17.10852713 | BO88: 16.76693694 | BP88: 0.3415901868 | BQ88: -0.3018206659 | BS88: 0.200702013 | BT88: 0.0093 | BY88: 1742.504067 | BZ88: 1742.857685 | CA88: 18.50387597 | CB88: 29.77156891 | CC88: -11.26769294 | CE88: -0.8745545833 | CF88: -0.8665 | CK88: 1863.441409 | CL88: 1864.502263 | CM88: 41.89677419 | CN88: 58.34799848 | CO88: -16.45122429 | CQ88: 0.3020028496 | CR88: -14.45
A89: 1700-03-29 | B89: 1700.239656 | C89: 0 | D89: 5 | E89: 0 | H89: 1737.25 | I89: 1737.291667 | J89: 74 | K89: 48.61495527 | L89: 25.38504473 | N89: 0.8403642216 | O89: 0 | T89: 1868.557956 | U89: 1868.562321 | V89: 65.33333333 | W89: 52.44444444 | X89: 36.85185185 | Y89: 12.88888889 | Z89: 28.48148148 | AB89: -0.5294771579 | AC89: 0 | AD89: -0.4999845155 | AE89: 0 | AF89: 0.9999999986 | AG89: =AG88 -> 0 | AJ89: Lag = 0.00089 | AM89: 1870.068472 | AN89: 1870.081569 | AO89: 77.2 | AP89: 102.1765432 | AQ89: -24.97654321 | AS89: -0.7197508121 | AT89: -0.0105 | AY89: 1873.892785 | AZ89: 1873.932075 | BA89: 37.5862069 | BB89: 55.07375479 | BC89: -17.48754789 | BE89: 0.9383034843 | BF89: -0.196 | BK89: 1887.487431 | BL89: 1887.605303 | BM89: 23.03488372 | BN89: 17.21705426 | BO89: 13.90647183 | BP89: 3.310582435 | BQ89: 9.128411892 | BS89: 0.783455046 | BT89: 0.0093 | BY89: 1743.211303 | BZ89: 1743.564921 | CA89: 15.68992248 | CB89: 23.04934669 | CC89: -7.359424208 | CE89: -0.9816528026 | CF89: -0.8665 | CK89: 1865.563117 | CL89: 1866.623971 | CM89: 16.10077519 | CN89: 60.91715803 | CO89: -44.81638284 | CQ89: 0.8441215469 | CR89: -14.45
A90: 1700-03-30 | B90: 1700.242396 | C90: 0 | D90: 5 | E90: 0 | H90: 1737.333333 | I90: 1737.375 | J90: 74.1 | K90: 48.5920545 | L90: 25.5079455 | N90: 0.8674669268 | O90: 0 | T90: 1868.566687 | U90: 1868.571053 | V90: 40.66666667 | W90: =AVERAGE(V89:V91) -> 46.22222222 | X90: =AVERAGE(V86:V94) -> 36.59259259 | Y90: =V90-W90 -> -5.555555556 | Z90: 4.074074074 | AB90: 0.18042348 | AC90: 0 | AD90: 0.1736657859 | AE90: 0 | AF90: -0.5000463994 | AG90: =AG89 -> 0 | AM90: 1870.094666 | AN90: 1870.107763 | AO90: 111.6666667 | AP90: 109.0530864 | AQ90: 2.613580247 | AS90: -0.1051170587 | AT90: -0.0105 | AY90: 1873.971366 | AZ90: 1874.010657 | BA90: 54.78571429 | BB90: 52.28831418 | BC90: 2.497400109 | BE90: 0.4964979138 | BF90: -0.196 | BK90: 1887.723176 | BL90: 1887.841049 | BM90: 12.15116279 | BN90: 16.52561704 | BO90: 12.28760878 | BP90: 4.238008257 | BQ90: -0.1364459889 | BS90: 0.9996207558 | BT90: 0.0093 | BY90: 1743.918539 | BZ90: 1744.272157 | CA90: 8.416988417 | CB90: 19.54288674 | CC90: -11.12589832 | CE90: -0.6294247658 | CF90: -0.8665 | CK90: 1867.684825 | CL90: 1868.745678 | CM90: 49.19225806 | CN90: 57.52424962 | CO90: -8.331991558 | CQ90: 0.9912663911 | CR90: -14.45
A91: 1700-03-31 | B91: 1700.245136 | C91: 0 | D91: 5 | E91: 0 | H91: 1737.416667 | I91: 1737.458333 | J91: 77 | K91: 48.56152015 | L91: 28.43847985 | N91: 0.8922125216 | O91: 0 | T91: 1868.575418 | U91: 1868.579784 | V91: 32.66666667 | W91: 33.69444444 | X91: 37.25925926 | Y91: -1.027777778 | Z91: -4.592592593 | AB91: 0.796096965 | AC91: 0 | AD91: 0.7660559359 | AE91: 0 | AF91: -0.4999535991 | AG91: =AG90 -> 0 | AM91: 1870.12086 | AN91: 1870.133957 | AO91: 144.6 | AP91: 120.1753086 | AQ91: 24.42469136 | AS91: 0.5587021346 | AT91: -0.0105 | AY91: 1874.049948 | AZ91: 1874.089239 | BA91: 66.82758621 | BB91: 49.85536398 | BC91: 16.97222222 | BE91: -0.1776245486 | BF91: -0.196 | BK91: 1887.958921 | BL91: 1888.076794 | BM91: 14.3908046 | BN91: 11.86282634 | BO91: 12.13644599 | BP91: -0.2736196501 | BQ91: 2.254358609 | BS91: 0.7480528045 | BT91: 0.0093 | BY91: 1744.625775 | BZ91: 1744.979393 | CA91: 3.782945736 | CB91: 20.16605642 | CC91: -16.38311069 | CE91: 0.01731811424 | CF91: -0.8665 | CK91: 1869.806532 | CL91: 1870.867386 | CM91: 122.3290323 | CN91: 48.25230028 | CO91: 74.07673198 | CQ91: 0.6745866742 | CR91: -14.45
A92: 1700-04-01 | B92: 1700.247875 | C92: 0 | D92: 5 | E92: 0 | H92: 1737.5 | I92: 1737.541667 | J92: 77.1 | K92: 48.58442091 | L92: 28.51557909 | N92: 0.9145337665 | O92: 0 | T92: 1868.58415 | U92: 1868.588515 | V92: 27.75 | W92: 27.69444444 | X92: 37.63888889 | Y92: 0.05555555556 | Z92: -9.888888889 | AB92: 0.9960044397 | AC92: 0 | AD92: 0.9999999998 | AE92: 0 | AF92: 0.9999999986 | AG92: =AG91 -> 0 | AM92: 1870.147054 | AN92: 1870.160151 | AO92: 113.5555556 | AP92: 133.0641975 | AQ92: -19.50864198 | AS92: 0.9610983899 | AT92: -0.0105 | AY92: 1874.12853 | AZ92: 1874.167821 | BA92: 59.06896552 | BB92: 50.64504652 | BC92: 8.423918993 | BE92: -0.7686345105 | BF92: -0.196 | BK92: 1888.194667 | BL92: 1888.312539 | BM92: 9.046511628 | BN92: 9.905461998 | BO92: 11.79536072 | BP92: -1.88989872 | BQ92: -2.74884909 | BS92: 0.1464626322 | BT92: 0.0093 | BY92: 1745.333011 | BZ92: 1745.686629 | CA92: 14.85658915 | CB92: 23.86803747 | CC92: -9.011448325 | CE92: 0.6559576561 | CF92: -0.8665 | CK92: 1871.92824 | CL92: 1872.989094 | CM92: 84.14064516 | CN92: 47.08950958 | CO92: 37.05113558 | CQ92: 0.04226035523 | CR92: -14.45
A93: 1700-04-02 | B93: 1700.250615 | C93: 0 | D93: 5 | E93: 0 | H93: 1737.583333 | I93: 1737.625 | J93: 80 | K93: 48.60833949 | L93: 31.39166051 | N93: 0.9343700095 | O93: 0 | T93: 1868.592881 | U93: 1868.597247 | V93: 22.66666667 | W93: 25.69444444 | X93: 38.30555556 | Y93: -3.027777778 | Z93: -15.63888889 | AB93: 0.6757431281 | AC93: 0 | AD93: 0.76603295 | AE93: 0 | AF93: -0.5000463994 | AG93: =AG92 -> 0 | AM93: 1870.173248 | AN93: 1870.186345 | AO93: 149.7 | AP93: 137.1012346 | AQ93: 12.59876543 | AS93: 0.9137860272 | AT93: -0.0105 | AY93: 1874.207112 | AZ93: 1874.246403 | BA93: 45.5 | BB93: 50.94006568 | BC93: -5.440065681 | BE93: -0.9999918426 | BF93: -0.196 | BK93: 1888.430412 | BL93: 1888.548284 | BM93: 6.279069767 | BN93: 8.069767442 | BO93: 11.2850248 | BP93: -3.215257358 | BQ93: -5.005955033 | BS93: -0.5236590334 | BT93: 0.0093 | BY93: 1746.040247 | BZ93: 1746.393865 | CA93: 21.53875969 | CB93: 29.65098321 | CC93: -8.112223519 | CE93: 0.9876673206 | CF93: -0.8665 | CK93: 1874.049948 | CL93: 1875.110802 | CM93: 32.1121134 | CN93: 49.61811173 | CO93: -17.50599833 | CQ93: -0.6098400536 | CR93: -14.45
A94: 1700-04-03 | B94: 1700.253355 | C94: 0 | D94: 5 | E94: 0 | H94: 1737.666667 | I94: 1737.708333 | J94: 80 | K94: 48.64599852 | L94: 31.35400148 | N94: 0.9516673509 | O94: 0 | T94: 1868.601612 | U94: 1868.605978 | V94: 26.66666667 | W94: 24.44444444 | X94: 35.15740741 | Y94: 2.222222222 | Z94: -8.490740741 | AB94: 0.002571258211 | AC94: 0 | AD94: 0.1736305694 | AE94: 0 | AF94: -0.4999535992 | AG94: =AG93 -> 0 | AM94: 1870.199441 | AN94: 1870.212538 | AO94: 142.5555556 | AP94: 145.8123457 | AQ94: -3.256790123 | AS94: 0.4389030267 | AT94: -0.0105 | AY94: 1874.285693 | AZ94: 1874.324984 | BA94: 39.93103448 | BB94: 52.17378216 | BC94: -12.24274767 | BE94: -0.7634418778 | BF94: -0.196 | BK94: 1888.666157 | BL94: 1888.78403 | BM94: 8.88372093 | BN94: 7.437984496 | BO94: 9.894843922 | BP94: -2.456859426 | BQ94: -1.011122991 | BS94: -0.9487548175 | BT94: 0.0093 | BY94: 1746.747483 | BZ94: 1747.1011 | CA94: 29.46124031 | CB94: 37.6150802 | CC94: -8.153839886 | CE94: 0.857236469 | CF94: -0.8665 | CK94: 1876.171656 | CL94: 1877.232509 | CM94: 14.39664083 | CN94: 52.81508653 | CO94: -38.41844571 | CQ94: -0.9765895237 | CR94: -14.45
A95: 1700-04-04 | B95: 1700.256095 | C95: 0 | D95: 5 | E95: 0 | H95: 1737.75 | I95: 1737.791667 | J95: 80 | K95: 48.67653287 | L95: 31.32346713 | N95: 0.9663787898 | O95: 0 | T95: 1868.610343 | U95: 1868.614709 | V95: =AVERAGEIFS(Intl_SS,DecDate,">"&T95,DecDate,"<="&T96) -> 24 | W95: 32.77777778 | X95: 36.34259259 | Y95: -8.777777778 | Z95: =V95-X95 -> -12.34259259 | AB95: -0.6719434654 | AC95: 0 | AD95: -0.5000154843 | AE95: 0 | AF95: 0.9999999986 | AG95: =AG94 -> 0 | AM95: 1870.225635 | AN95: 1870.238732 | AO95: 183.5 | AP95: 150.8740741 | AQ95: 32.62592593 | AS95: -0.2413475778 | AT95: -0.0105 | AY95: 1874.364275 | AZ95: 1874.403566 | BA95: 31.17241379 | BB95: 49.93568692 | BC95: -18.76327313 | BE95: -0.1696689737 | BF95: -0.196 | BK95: 1888.901902 | BL95: 1889.019775 | BM95: 7.151162791 | BN95: 8.263565891 | BO95: 9.263744097 | BP95: -1.000178205 | BQ95: -2.112581306 | BS95: -0.9299176782 | BT95: 0.0093 | BY95: 1747.454718 | BZ95: 1747.808336 | CA95: 46.12015504 | CB95: 46.06487218 | CC95: 0.05528285761 | CE95: 0.3256951465 | CF95: -0.8665 | CK95: 1878.293363 | CL95: 1879.354217 | CM95: 10.84664948 | CN95: 48.71487148 | CO95: -37.868222 | CQ95: -0.8863819021 | CR95: -14.45
A96: 1700-04-05 | B96: 1700.258834 | C96: 0 | D96: 5 | E96: 0 | H96: 1737.833333 | I96: 1737.875 | J96: 83 | K96: 48.70757613 | L96: 34.29242387 | N96: 0.9784643517 | O96: 0 | T96: 1868.619075 | U96: 1868.62344 | V96: 47.66666667 | W96: 43 | X96: 35.19444444 | Y96: 4.666666667 | Z96: 12.47222222 | AB96: -0.9955320254 | AC96: 0 | AD96: -0.9396987359 | AE96: 0 | AF96: -0.5000463994 | AG96: =AG95 -> 0 | AM96: 1870.251829 | AN96: 1870.264926 | AO96: 199.8 | AP96: 159.0962963 | AQ96: 40.7037037 | AS96: -0.8086689684 | AT96: -0.0105 | AY96: 1874.442857 | AZ96: 1874.482148 | BA96: 57.07142857 | BB96: 46.23836891 | BC96: 10.83305966 | BE96: 0.5034939288 | BF96: -0.196 | BK96: 1889.137648 | BL96: 1889.25552 | BM96: 8.755813953 | BN96: 9.259689922 | BO96: 8.136342036 | BP96: 1.123347887 | BQ96: 0.6194719178 | BS96: -0.4759617224 | BT96: 0.0093 | BY96: 1748.161954 | BZ96: 1748.515572 | CA96: 56.44186047 | CB96: 51.81035022 | CC96: 4.631510248 | CE96: -0.3582425548 | CF96: -0.8665 | CK96: 1880.415071 | CL96: 1881.475925 | CM96: 52.79069767 | CN96: 36.15544496 | CO96: 16.63525272 | CQ96: -0.3814263375 | CR96: -14.45
A97: 1700-04-06 | B97: 1700.261574 | C97: 0 | D97: 5 | E97: 0 | H97: 1737.916667 | I97: 1737.958333 | J97: 83 | K97: 48.7531232 | L97: 34.2468768 | N97: 0.9878911973 | O97: 0 | T97: 1868.627806 | U97: 1868.632172 | V97: 57.33333333 | W97: 47.33333333 | X97: 35.40740741 | Y97: 10 | Z97: 21.92592593 | AB97: -0.7991985201 | AC97: 0 | AD97: -0.9396865054 | AE97: 0 | AF97: -0.4999535992 | AG97: =AG96 -> 0 | AM97: 1870.278023 | AN97: 1870.29112 | AO97: 111.3333333 | AP97: 164.5407407 | AQ97: -53.20740741 | AS97: -0.9976051613 | AT97: -0.0105 | AY97: 1874.521439 | AZ97: 1874.56073 | BA97: 66.51724138 | BB97: 42.92036125 | BC97: 23.59688013 | BE97: 0.9410664264 | BF97: -0.196 | BK97: 1889.373393 | BL97: 1889.491266 | BM97: 11.87209302 | BN97: 10.38372093 | BO97: 7.937375627 | BP97: 2.446345303 | BQ97: 3.934717396 | BS97: 0.200702013 | BT97: 0.0093 | BY97: 1748.86919 | BZ97: 1749.222808 | CA97: 70.5503876 | CB97: 55.10578519 | CC97: 15.44460241 | CE97: -0.8745545833 | CF97: -0.8665 | CK97: 1882.536779 | CL97: 1883.597633 | CM97: 64.65419355 | CN97: 33.10727291 | CO97: 31.54692063 | CQ97: 0.3020028496 | CR97: -14.45
A98: 1700-04-07 | B98: 1700.264314 | C98: 0 | D98: 5 | E98: 0 | H98: 1738 | I98: 1738.041667 | J98: 90 | K98: 48.79180005 | L98: 41.20819995 | N98: 0.9946337118 | O98: 0 | T98: 1868.636537 | U98: 1868.640903 | V98: 37 | W98: 48.55555556 | X98: 37.11111111 | Y98: -11.55555556 | Z98: -0.1111111111 | AB98: -0.1854792003 | AC98: 0 | AD98: -0.4999845155 | AE98: 0 | AF98: 0.9999999986 | AG98: =AG97 -> 0 | AM98: 1870.304217 | AN98: 1870.317314 | AO98: 155.6 | AP98: 160.0962963 | AQ98: -4.496296296 | AS98: -0.7197508121 | AT98: -0.0105 | AY98: 1874.600021 | AZ98: 1874.639311 | BA98: 48.68965517 | BB98: 41.55446086 | BC98: 7.135194308 | BE98: 0.9383034843 | BF98: -0.196 | BK98: 1889.609138 | BL98: 1889.727011 | BM98: 10.52325581 | BN98: 9.622204402 | BO98: 8.808176661 | BP98: 0.8140277407 | BQ98: 1.715079153 | BS98: 0.783455046 | BT98: 0.0093 | BY98: 1749.576426 | BZ98: 1749.930044 | CA98: 87.36679537 | CB98: 57.46194367 | CC98: 29.9048517 | CE98: -0.9816528026 | CF98: -0.8665 | CK98: 1884.658487 | CL98: 1885.71934 | CM98: 44.87354839 | CN98: 38.42012053 | CO98: 6.453427858 | CQ98: 0.8441215469 | CR98: -14.45
A99: 1700-04-08 | B99: 1700.267053 | C99: 0 | D99: 5 | E99: 0 | H99: 1738.083333 | I99: 1738.125 | J99: 90.53333333 | K99: 48.84498071 | L99: 41.68835262 | N99: 0.9986735741 | O99: 0 | T99: 1868.645269 | U99: 1868.649634 | V99: 51.33333333 | W99: 36.88888889 | X99: 40.17592593 | Y99: 14.44444444 | Z99: 11.15740741 | AB99: 0.52510765 | AC99: 0 | AD99: 0.1736657858 | AE99: 0 | AF99: -0.5000463994 | AG99: =AG98 -> 0 | AM99: 1870.330411 | AN99: 1870.343508 | AO99: 157.2222222 | AP99: 155.4012346 | AQ99: 1.820987654 | AS99: -0.1051170588 | AT99: -0.0105 | AY99: 1874.678602 | AZ99: 1874.717893 | BA99: 34.64285714 | BB99: 39.62958402 | BC99: -4.986726875 | BE99: 0.4964979138 | BF99: -0.196 | BK99: 1889.844884 | BL99: 1889.962756 | BM99: 6.471264368 | BN99: 7.079568743 | BO99: 9.297840744 | BP99: -2.218272001 | BQ99: -2.826576376 | BS99: 0.9996207558 | BT99: 0.0093 | BY99: 1750.283662 | BZ99: 1750.63728 | CA99: 84.46511628 | CB99: 57.89174557 | CC99: 26.57337071 | CE99: -0.6294247658 | CF99: -0.8665 | CK99: 1886.780194 | CL99: 1887.841048 | CM99: 12.29032258 | CN99: 42.15311026 | CO99: -29.86278768 | CQ99: 0.9912663911 | CR99: -14.45
A100: 1700-04-09 | B100: 1700.269793 | C100: 0 | D100: 5 | E100: 0 | H100: 1738.166667 | I100: 1738.208333 | J100: 98 | K100: 48.89078224 | L100: 49.10921776 | N100: 0.9999998069 | O100: 0 | T100: 1868.654 | U100: 1868.658366 | V100: 22.33333333 | W100: 34.44444444 | X100: 45.73148148 | Y100: -12.11111111 | Z100: -23.39814815 | AB100: 0.9614541475 | AC100: 0 | AD100: 0.7660559359 | AE100: 0 | AF100: -0.4999535992 | AG100: =AG99 -> 0 | AM100: 1870.356605 | AN100: 1870.369702 | AO100: 218.6 | AP100: 155.7901235 | AQ100: 62.80987654 | AS100: 0.5587021346 | AT100: -0.0105 | AY100: 1874.757184 | AZ100: 1874.796475 | BA100: 33.55172414 | BB100: 38.55295567 | BC100: -5.001231527 | BE100: -0.1776245486 | BF100: -0.196 | BK100: 1890.080629 | BL100: 1890.198502 | BM100: 4.244186047 | BN100: 5.990421456 | BO100: 10.60016633 | BP100: -4.609744869 | BQ100: -6.355980279 | BS100: 0.7480528045 | BT100: 0.0093 | BY100: 1750.990898 | BZ100: 1751.344516 | CA100: 55.49224806 | CB100: 54.13593161 | CC100: 1.356316449 | CE100: 0.01731811424 | CF100: -0.8665 | CK100: 1888.901902 | CL100: 1889.962756 | CM100: 9.294193548 | CN100: 43.68680152 | CO100: -34.39260797 | CQ100: 0.6745866742 | CR100: -14.45
A101: 1700-04-10 | B101: 1700.272533 | C101: 0 | D101: 5 | E101: 0 | H101: 1738.25 | I101: 1738.291667 | J101: 98 | K101: 48.93658376 | L101: 49.06341624 | N101: 0.9986088066 | O101: 0 | T101: 1868.662731 | U101: 1868.667097 | V101: 29.66666667 | W101: 30 | X101: 48.47222222 | Y101: -0.3333333333 | Z101: -18.80555556 | AB101: 0.8956759384 | AC101: 0 | AD101: 0.9999999998 | AE101: 0 | AF101: 0.9999999986 | AG101: =AG100 -> 0 | AM101: 1870.382799 | AN101: 1870.395896 | AO101: 162.5555556 | AP101: 151.1345679 | AQ101: 11.42098765 | AS101: 0.9610983899 | AT101: -0.0105 | AY101: 1874.835766 | AZ101: 1874.875057 | BA101: 29.20689655 | BB101: 36.17337165 | BC101: -6.966475096 | BE101: -0.7686345105 | BF101: -0.196 | BK101: 1890.316374 | BL101: 1890.434247 | BM101: 7.255813953 | BN101: 8.53875969 | BO101: 13.88311206 | BP101: -5.344352372 | BQ101: -6.627298108 | BS101: 0.1464626322 | BT101: 0.0093 | BY101: 1751.698134 | BZ101: 1752.051752 | CA101: 44.51550388 | CB101: 49.17606809 | CC101: -4.660564219 | CE101: 0.6559576561 | CF101: -0.8665 | CK101: 1891.02361 | CL101: 1892.084464 | CM101: 56.70709677 | CN101: 38.97830106 | CO101: 17.72879572 | CQ101: 0.04226035523 | CR101: -14.45
A102: 1700-04-11 | B102: 1700.275273 | C102: 0 | D102: 5 | E102: 0 | H102: 1738.333333 | I102: 1738.375 | J102: 98.26666667 | K102: 48.99765247 | L102: 49.2690142 | N102: 0.9945043529 | O102: 0 | T102: 1868.671463 | U102: 1868.675828 | V102: 38 | W102: 40.63888889 | X102: 47.73148148 | Y102: -2.638888889 | Z102: -9.731481481 | AB102: 0.3621260535 | AC102: 0 | AD102: 0.7660329501 | AE102: 0 | AF102: -0.5000463994 | AG102: =AG101 -> 0 | AM102: 1870.408993 | AN102: 1870.42209 | AO102: 109.7 | AP102: 155.9493827 | AQ102: -46.24938272 | AS102: 0.9137860272 | AT102: -0.0105 | AY102: 1874.914348 | AZ102: 1874.953638 | BA102: 33.20689655 | BB102: 32.28256705 | BC102: 0.9243295019 | BE102: -0.9999918426 | BF102: -0.196 | BK102: 1890.55212 | BL102: 1890.669992 | BM102: 14.11627907 | BN102: 11.55426357 | BO102: 18.08983041 | BP102: -6.535566842 | BQ102: -3.973551338 | BS102: -0.5236590334 | BT102: 0.0093 | BY102: 1752.40537 | BZ102: 1752.758988 | CA102: 42.74418605 | CB102: 42.3164643 | CC102: 0.4277217417 | CE102: 0.9876673206 | CF102: -0.8665 | CK102: 1893.145318 | CL102: 1894.206171 | CM102: 79.92774194 | CN102: 33.0478753 | CO102: 46.87986663 | CQ102: -0.6098400536 | CR102: -14.45
A103: 1700-04-12 | B103: 1700.278012 | C103: 0 | D103: 5 | E103: 0 | H103: 1738.416667 | I103: 1738.458333 | J103: 106 | K103: 49.05108758 | L103: 56.94891242 | N103: 0.9876975985 | O103: 0 | T103: 1868.680194 | U103: 1868.68456 | V103: 54.25 | W103: 55.41666667 | X103: 47.5462963 | Y103: -1.166666667 | Z103: 6.703703704 | AB103: -0.3605461508 | AC103: 0 | AD103: 0.1736305694 | AE103: 0 | AF103: -0.4999535992 | AG103: =AG102 -> 0 | AM103: 1870.435187 | AN103: 1870.448284 | AO103: 100.3 | AP103: 152.0271605 | AQ103: -51.72716049 | AS103: 0.4389030267 | AT103: -0.0105 | AY103: 1874.992929 | AZ103: 1875.03222 | BA103: 22.60714286 | BB103: 29.15996169 | BC103: -6.552818829 | BE103: -0.7634418779 | BF103: -0.196 | BK103: 1890.787865 | BL103: 1890.905738 | BM103: 13.29069767 | BN103: 15.42635659 | BO103: 21.50843506 | BP103: -6.08207847 | BQ103: -8.217737385 | BS103: -0.9487548175 | BT103: 0.0093 | BY103: 1753.112606 | BZ103: 1753.466224 | CA103: 33.32945736 | CB103: 33.66373683 | CC103: -0.3342794622 | CE103: 0.857236469 | CF103: -0.8665 | CK103: 1895.267025 | CL103: 1896.327879 | CM103: 47.99354839 | CN103: 33.71713739 | CO103: 14.27641099 | CQ103: -0.9765895237 | CR103: -14.45
A104: 1700-04-13 | B104: 1700.280752 | C104: 0 | D104: 5 | E104: 0 | H104: 1738.5 | I104: 1738.541667 | J104: 106.3333333 | K104: 49.1045227 | L104: 57.22881064 | N104: 0.978207039 | O104: 0 | T104: 1868.688925 | U104: 1868.693291 | V104: 74 | W104: 66.86111111 | X104: 46.02777778 | Y104: 7.138888889 | Z104: 27.97222222 | AB104: -0.8949211485 | AC104: 0 | AD104: -0.5000154843 | AE104: 0 | AF104: 0.9999999986 | AG104: =AG103 -> 0 | AM104: 1870.461381 | AN104: 1870.474478 | AO104: 187 | AP104: 146.5209877 | AQ104: 40.47901235 | AS104: -0.2413475778 | AT104: -0.0105 | AY104: 1875.071511 | AZ104: 1875.110802 | BA104: 21.48275862 | BB104: 27.77435687 | BC104: -6.291598248 | BE104: -0.1696689737 | BF104: -0.196 | BK104: 1891.02361 | BL104: 1891.141483 | BM104: 18.87209302 | BN104: 23.48837209 | BO104: 27.70894591 | BP104: -4.220573822 | BQ104: -8.836852891 | BS104: -0.9299176782 | BT104: 0.0093 | BY104: 1753.819842 | BZ104: 1754.17346 | CA104: 12.31782946 | CB104: 26.32781951 | CC104: -14.00999006 | CE104: 0.3256951465 | CF104: -0.8665 | CK104: 1897.388733 | CL104: 1898.449587 | CM104: 24.6498708 | CN104: 38.8811182 | CO104: -14.2312474 | CQ104: -0.8863819021 | CR104: -14.45
A105: 1700-04-14 | B105: 1700.283492 | C105: 0 | D105: 5 | E105: 0 | H105: 1738.583333 | I105: 1738.625 | J105: 116 | K105: 49.12742346 | L105: 66.87257654 | N105: 0.9660584623 | O105: 0 | T105: 1868.697657 | U105: 1868.702022 | V105: 72.33333333 | W105: 65.66666667 | X105: 47.43518519 | Y105: 6.666666667 | Z105: 24.89814815 | AB105: -0.9619186637 | AC105: 0 | AD105: -0.9396987359 | AE105: 0 | AF105: -0.5000463993 | AG105: =AG104 -> 0 | AM105: 1870.487575 | AN105: 1870.500672 | AO105: 157.9 | AP105: 133.0209877 | AQ105: 24.87901235 | AS105: -0.8086689684 | AT105: -0.0105 | AY105: 1875.150093 | AZ105: 1875.189384 | BA105: 35.65517241 | BB105: 26.46305419 | BC105: 9.192118227 | BE105: 0.5034939288 | BF105: -0.196 | BK105: 1891.259355 | BL105: 1891.377228 | BM105: 38.30232558 | BN105: 35.63565891 | BO105: 35.24382964 | BP105: 0.3918292792 | BQ105: 3.058495946 | BS105: -0.4759617224 | BT105: 0.0093 | BY105: 1754.527078 | BZ105: 1754.880696 | CA105: 11.8030888 | CB105: 24.28905982 | CC105: -12.48597102 | CE105: -0.3582425548 | CF105: -0.8665 | CK105: 1899.510441 | CL105: 1900.571295 | CM105: 10.41419355 | CN105: 42.90412877 | CO105: -32.48993522 | CQ105: -0.3814263375 | CR105: -14.45
A106: 1700-04-15 | B106: 1700.286232 | C106: 0 | D106: 5 | E106: 0 | H106: 1738.666667 | I106: 1738.708333 | J106: 111.8709677 | K106: 49.14930641 | L106: 62.72166133 | N106: 0.9512848792 | O106: 0 | T106: 1868.706388 | U106: 1868.710754 | V106: 50.66666667 | W106: 52.77777778 | X106: 50.32407407 | Y106: -2.111111111 | Z106: 0.3425925926 | AB106: -0.5265488761 | AC106: 0 | AD106: -0.9396865054 | AE106: 0 | AF106: -0.4999535992 | AG106: =AG105 -> 0 | AM106: 1870.513769 | AN106: 1870.526866 | AO106: 154.6666667 | AP106: 128.8358025 | AQ106: 25.8308642 | AS106: -0.9976051613 | AT106: -0.0105 | AY106: 1875.228675 | AZ106: 1875.267966 | BA106: 31.5 | BB106: 25.25998905 | BC106: 6.240010947 | BE106: 0.9410664264 | BF106: -0.196 | BK106: 1891.495101 | BL106: 1891.612973 | BM106: 49.73255814 | BN106: 43.10852713 | BO106: 43.9854317 | BP106: -0.876904571 | BQ106: 5.747126437 | BS106: 0.200702013 | BT106: 0.0093 | BY106: 1755.234314 | BZ106: 1755.587932 | CA106: 8.813953488 | CB106: 24.92084277 | CC106: -16.10688928 | CE106: -0.8745545833 | CF106: -0.8665 | CK106: 1901.632149 | CL106: 1902.693003 | CM106: 11.28036176 | CN106: 37.99316103 | CO106: -26.71279927 | CQ106: 0.3020028496 | CR106: -14.45
A107: 1700-04-16 | B107: 1700.288971 | C107: 0 | D107: 5 | E107: 0 | H107: 1738.75 | I107: 1738.791667 | J107: 108 | K107: 49.15694 | L107: 58.84306 | N107: 0.9339264327 | O107: 0 | T107: 1868.715119 | U107: 1868.719485 | V107: 35.33333333 | W107: 41.22222222 | X107: 50.65740741 | Y107: -5.888888889 | Z107: -15.32407407 | AB107: 0.1838139526 | AC107: 0 | AD107: -0.4999845155 | AE107: =AE106 -> 0 | AF107: 0.9999999986 | AG107: =AG106 -> 0 | AM107: 1870.539962 | AN107: 1870.553059 | AO107: 120.3 | AP107: 146.291358 | AQ107: -25.99135802 | AS107: -0.7197508121 | AT107: -0.0105 | AY107: 1875.307256 | AZ107: 1875.346547 | BA107: 20.5862069 | BB107: 23.12588944 | BC107: -2.53968254 | BE107: 0.9383034843 | BF107: -0.196 | BK107: 1891.730846 | BL107: 1891.848719 | BM107: 41.29069767 | BN107: 51.09970596 | BO107: 49.71282188 | BP107: 1.386884077 | BQ107: -8.422124209 | BS107: 0.783455046 | BT107: 0.0093 | BY107: 1755.941549 | BZ107: 1756.295167 | CA107: 9.492248062 | CB107: 25.23307361 | CC107: -15.74082554 | CE107: -0.9816528026 | CF107: -0.8665 | CK107: 1903.753856 | CL107: 1904.81471 | CM107: 50.89690722 | CN107: 29.66412396 | CO107: 21.23278326 | CQ107: 0.8441215469 | CR107: -14.45
A108: 1700-04-17 | B108: 1700.291711 | C108: 0 | D108: 5 | E108: 0 | H108: 1738.833333 | I108: 1738.875 | J108: 105.9354839 | K108: 49.16457359 | L108: 56.77091028 | N108: 0.91403029 | O108: 0 | T108: 1868.72385 | U108: 1868.728216 | V108: 37.66666667 | W108: 36 | X108: 49.33333333 | Y108: 1.666666667 | Z108: -11.66666667 | AB108: 0.7981789354 | AC108: 0 | AD108: 0.1736657858 | AE108: 0 | AF108: -0.5000463993 | AG108: =AG107 -> 0 | AM108: 1870.566156 | AN108: 1870.579253 | AO108: 107.6666667 | AP108: 145.7246914 | AQ108: -38.05802469 | AS108: -0.1051170588 | AT108: -0.0105 | AY108: 1875.385838 | AZ108: 1875.425129 | BA108: 22.17241379 | BB108: 21.77271483 | BC108: 0.39969896 | BE108: 0.4964979138 | BF108: -0.196 | BK108: 1891.966591 | BL108: 1892.084464 | BM108: 62.27586207 | BN108: 58.54156643 | BO108: 56.69990199 | BP108: 1.841664439 | BQ108: 5.575960082 | BS108: 0.9996207558 | BT108: 0.0093 | BY108: 1756.648785 | BZ108: 1757.002403 | CA108: 18.44186047 | CB108: 28.33074437 | CC108: -9.888883901 | CE108: -0.6294247658 | CF108: -0.8665 | CK108: 1905.875564 | CL108: 1906.936418 | CM108: 58.76614987 | CN108: 28.94376406 | CO108: 29.82238582 | CQ108: 0.9912663911 | CR108: -14.45
A109: 1700-04-18 | B109: 1700.294451 | C109: 0 | D109: 5 | E109: 0 | H109: 1738.916667 | I109: 1738.958333 | J109: 104 | K109: 49.17219076 | L109: 54.82780924 | N109: 0.8916505133 | O109: 0 | T109: 1868.732582 | U109: 1868.736947 | V109: 35 | W109: 42.77777778 | X109: 44.81481481 | Y109: -7.777777778 | Z109: -9.814814815 | AB109: 0.9956905875 | AC109: 0 | AD109: 0.7660559359 | AE109: 0 | AF109: -0.4999535993 | AG109: =AG108 -> 0 | AM109: 1870.59235 | AN109: 1870.605447 | AO109: 97.1 | AP109: 138.1938272 | AQ109: -41.09382716 | AS109: 0.5587021346 | AT109: -0.0105 | AY109: 1875.46442 | AZ109: 1875.503711 | BA109: 21.75 | BB109: 21.28995621 | BC109: 0.4600437876 | BE109: -0.1776245485 | BF109: -0.196 | BK109: 1892.202337 | BL109: 1892.320209 | BM109: 72.05813953 | BN109: 73.42141139 | BO109: 63.30196917 | BP109: 10.11944222 | BQ109: 8.756170364 | BS109: 0.7480528045 | BT109: 0.0093 | BY109: 1757.356021 | BZ109: 1757.709639 | CA109: 37.14341085 | CB109: 33.93668752 | CC109: 3.206723335 | CE109: 0.01731811424 | CF109: -0.8665 | CK109: 1907.997272 | CL109: 1909.058126 | CM109: =AVERAGEIFS(Intl_SS,DecDate,">"&CK109,DecDate,"<="&CK110) -> 45.50128866 | CN109: 35.63799317 | CO109: =CM109-CN109 -> 9.863295492 | CQ109: 0.6745866742 | CR109: -14.45
A110: 1700-04-19 | B110: 1700.29719 | C110: 0 | D110: 5 | E110: 0 | H110: 1739 | I110: 1739.041667 | J110: 102 | K110: 49.17219076 | L110: 52.82780924 | N110: 0.866847914 | O110: 0 | T110: 1868.741313 | U110: 1868.745679 | V110: 55.66666667 | W110: 43.88888889 | X110: 42.38888889 | Y110: 11.77777778 | Z110: 13.27777778 | AB110: 0.6731973643 | AC110: 0 | AD110: 0.9999999998 | AE110: 0 | AF110: 0.9999999986 | AG110: =AG109 -> 0 | AM110: 1870.618544 | AN110: 1870.631641 | AO110: 124.8888889 | AP110: 139.4938272 | AQ110: -14.60493827 | AS110: 0.9610983899 | AT110: -0.0105 | AY110: 1875.543002 | AZ110: 1875.582293 | BA110: 18.37931034 | BB110: 20.20183361 | BC110: -1.822523262 | BE110: -0.7686345105 | BF110: -0.196 | BK110: 1892.438082 | BL110: 1892.555955 | BM110: 85.93023256 | BN110: 74.5503876 | BO110: 69.94925599 | BP110: 4.601131605 | BQ110: 15.98097657 | BS110: 0.1464626322 | BT110: 0.0093 | BY110: 1758.063257 | BZ110: 1758.416875 | CA110: 50.20155039 | CB110: 41.92669746 | CC110: 8.274852926 | CE110: 0.6559576561 | CF110: -0.8665 | CK110: 1910.11898 | CL110: 1911.179834 | CM110: 12.5083871 | CN110: 40.92301405 | CO110: -28.41462695 | CQ110: 0.04226035523 | CR110: -14.45
A111: 1700-04-20 | B111: 1700.29993 | C111: 0 | D111: 5 | E111: 0 | H111: 1739.083333 | I111: 1739.125 | J111: 101.8 | K111: 49.17168185 | L111: 52.62831815 | N111: 0.8396898863 | O111: 0 | T111: 1868.750044 | U111: 1868.75441 | V111: 41 | W111: 46.33333333 | X111: 40.38888889 | Y111: -5.333333333 | Z111: 0.6111111111 | AB111: -0.0008768780299 | AC111: 0 | AD111: 0.7660329501 | AE111: 0 | AF111: -0.5000463993 | AG111: =AG110 -> 0 | AM111: 1870.644738 | AN111: 1870.657835 | AO111: 266.8 | AP111: 135.8888889 | AQ111: 130.9111111 | AS111: 0.9137860272 | AT111: -0.0105 | AY111: 1875.621584 | AZ111: 1875.660874 | BA111: 14 | BB111: 18.47564313 | BC111: -4.475643131 | BE111: -0.9999918426 | BF111: -0.196 | BK111: 1892.673827 | BL111: 1892.7917 | BM111: 65.6627907 | BN111: 75.92248062 | BO111: 73.63401051 | BP111: 2.288470106 | BQ111: -7.971219816 | BS111: -0.5236590334 | BT111: 0.0093 | BY111: 1758.770493 | BZ111: 1759.124111 | CA111: 45.55426357 | CB111: 48.80826508 | CC111: -3.25400151 | CE111: 0.9876673206 | CF111: -0.8665 | CK111: 1912.240687 | CL111: 1913.301541 | CM111: 4.966408269 | CN111: 42.5191955 | CO111: -37.55278723 | CQ111: -0.6098400536 | CR111: -14.45
A112: 1700-04-21 | B112: 1700.30267 | C112: 0 | D112: 5 | E112: 0 | H112: 1739.166667 | I112: 1739.208333 | J112: 99 | K112: 49.15666092 | L112: 49.84333908 | N112: 0.8102502249 | O112: 0 | T112: 1868.758776 | U112: 1868.763141 | V112: 42.33333333 | W112: 38.88888889 | X112: 42.31481481 | Y112: 3.444444444 | Z112: 0.01851851852 | AB112: -0.674493166 | AC112: 0 | AD112: 0.1736305695 | AE112: 0 | AF112: -0.4999535993 | AG112: =AG111 -> 0 | AM112: 1870.670932 | AN112: 1870.684029 | AO112: 95.2 | AP112: 141.5444444 | AQ112: -46.34444444 | AS112: 0.4389030267 | AT112: -0.0105 | AY112: 1875.700165 | AZ112: 1875.739456 | BA112: 10.42857143 | BB112: 18.6863711 | BC112: -8.257799672 | BE112: -0.7634418779 | BF112: -0.196 | BK112: 1892.909573 | BL112: 1893.027445 | BM112: 76.1744186 | BN112: 73.37596899 | BO112: 78.78646529 | BP112: -5.410496302 | BQ112: -2.61204669 | BS112: -0.9487548175 | BT112: 0.0093 | BY112: 1759.477729 | BZ112: 1759.831347 | CA112: 61.20849421 | CB112: 54.8220463 | CC112: 6.38644791 | CE112: 0.857236469 | CF112: -0.8665 | CK112: 1914.362395 | CL112: 1915.423249 | CM112: 41.51030928 | CN112: 38.38685097 | CO112: 3.12345831 | CQ112: -0.9765895237 | CR112: -14.45
A113: 1700-04-22 | B113: 1700.30541 | C113: 0 | D113: 5 | E113: 0 | H113: 1739.25 | I113: 1739.291667 | J113: 99 | K113: 49.14902733 | L113: 49.85097267 | N113: 0.7786089245 | O113: 0 | T113: 1868.767507 | U113: 1868.771873 | V113: 33.33333333 | W113: 42.05555556 | X113: 46.42592593 | Y113: -8.722222222 | Z113: -13.09259259 | AB113: -0.9958516953 | AC113: 0 | AD113: -0.5000154843 | AE113: 0 | AF113: 0.9999999986 | AG113: =AG112 -> 0 | AM113: 1870.697126 | AN113: 1870.710223 | AO113: 119.2222222 | AP113: 146.1987654 | AQ113: -26.97654321 | AS113: -0.2413475778 | AT113: -0.0105 | AY113: 1875.778747 | AZ113: 1875.818038 | BA113: 17.13793103 | BB113: 18.60054735 | BC113: -1.462616311 | BE113: -0.1696689738 | BF113: -0.196 | BK113: 1893.145318 | BL113: 1893.263191 | BM113: 78.29069767 | BN113: 84.19767442 | BO113: 79.86434109 | BP113: 4.333333333 | BQ113: -1.573643411 | BS113: -0.9299176782 | BT113: 0.0093 | BY113: 1760.184965 | BZ113: 1760.538583 | CA113: 62.77131783 | CB113: 57.25012554 | CC113: 5.521192289 | CE113: 0.3256951465 | CF113: -0.8665 | CK113: 1916.484103 | CL113: 1917.544957 | CM113: 84.89793282 | CN113: 38.06186657 | CO113: 46.83606624 | CQ113: -0.8863819021 | CR113: -14.45
A114: 1700-04-23 | B114: 1700.308149 | C114: 0 | D114: 5 | E114: 0 | H114: 1739.333333 | I114: 1739.375 | J114: 98.9 | K114: 49.14139375 | L114: 49.75860625 | N114: 0.7448519616 | O114: 0 | T114: 1868.776238 | U114: 1868.780604 | V114: 50.5 | W114: 38.83333333 | X114: 49.42592593 | Y114: 11.66666667 | Z114: 1.074074074 | AB114: -0.7971212099 | AC114: 0 | AD114: -0.9396987359 | AE114: 0 | AF114: -0.5000463993 | AG114: =AG113 -> 0 | AM114: 1870.72332 | AN114: 1870.736417 | AO114: 169.6 | AP114: 155.1765432 | AQ114: 14.42345679 | AS114: -0.8086689684 | AT114: -0.0105 | AY114: 1875.857329 | AZ114: 1875.89662 | BA114: 25.86206897 | BB114: 20.49737274 | BC114: 5.364696223 | BE114: 0.5034939288 | BF114: -0.196 | BK114: 1893.381063 | BL114: 1893.498936 | BM114: 98.12790698 | BN114: 86.4379845 | BO114: 83.55943152 | BP114: 2.878552972 | BQ114: 14.56847545 | BS114: -0.4759617224 | BT114: 0.0093 | BY114: 1760.892201 | BZ114: 1761.245819 | CA114: 83.71317829 | CB114: 58.78242528 | CC114: 24.93075301 | CE114: -0.3582425548 | CF114: -0.8665 | CK114: 1918.605811 | CL114: 1919.666665 | CM114: 57.97938144 | CN114: 41.00502088 | CO114: 16.97436056 | CQ114: -0.3814263375 | CR114: -14.45
A115: 1700-04-24 | B115: 1700.310889 | C115: 0 | D115: 5 | E115: 0 | H115: 1739.416667 | I115: 1739.458333 | J115: 96 | K115: 49.11849298 | L115: 46.88150702 | N115: 0.709071062 | O115: 0 | T115: 1868.78497 | U115: 1868.789335 | V115: 32.66666667 | W115: 45.27777778 | X115: 56.74074074 | Y115: -12.61111111 | Z115: -24.07407407 | AB115: -0.1820897966 | AC115: 0 | AD115: -0.9396865054 | AE115: 0 | AF115: -0.4999535993 | AG115: =AG114 -> 0 | AM115: 1870.749514 | AN115: 1870.762611 | AO115: 122.2222222 | AP115: 161.5592593 | AQ115: -39.33703704 | AS115: -0.9976051613 | AT115: -0.0105 | AY115: 1875.935911 | AZ115: 1875.975201 | BA115: 15.96428571 | BB115: 18.91499726 | BC115: -2.950711549 | BE115: 0.9410664264 | BF115: -0.196 | BK115: 1893.616809 | BL115: 1893.734681 | BM115: 82.89534884 | BN115: 89.5620155 | BO115: 82.1873385 | BP115: 7.374677003 | BQ115: 0.7080103359 | BS115: 0.200702013 | BT115: 0.0093 | BY115: 1761.599437 | BZ115: 1761.953055 | CA115: 70.74806202 | CB115: 56.2683963 | CC115: 14.47966571 | CE115: -0.8745545833 | CF115: -0.8665 | CK115: 1920.727518 | CL115: 1921.788372 | CM115: 25.64599483 | CN115: 44.68244024 | CO115: -19.0364454 | CQ115: 0.3020028496 | CR115: -14.45
A116: 1700-04-25 | B116: 1700.313629 | C116: 0 | D116: 5 | E116: 0 | H116: 1739.5 | I116: 1739.541667 | J116: 95.9 | K116: 49.10322581 | L116: 46.79677419 | N116: 0.6713634506 | O116: 0 | T116: 1868.793701 | U116: 1868.798067 | V116: 52.66666667 | W116: 53.33333333 | X116: 66.77777778 | Y116: -0.6666666667 | Z116: -14.11111111 | AB116: 0.5280390125 | AC116: 0 | AD116: -0.4999845156 | AE116: 0 | AF116: 0.9999999986 | AG116: =AG115 -> 0 | AM116: 1870.775708 | AN116: 1870.788805 | AO116: 171.2 | AP116: 142.537037 | AQ116: 28.66296296 | AS116: -0.7197508121 | AT116: -0.0105 | AY116: 1876.014492 | AZ116: 1876.053783 | BA116: 22.48275862 | BB116: 18.32495895 | BC116: 4.157799672 | BE116: 0.9383034843 | BF116: -0.196 | BK116: 1893.852554 | BL116: 1893.970427 | BM116: 87.6627907 | BN116: 80.84496124 | BO116: 81.20820339 | BP116: -0.3632421515 | BQ116: 6.454587306 | BS116: 0.783455046 | BT116: 0.0093 | BY116: 1762.306673 | BZ116: 1762.660291 | CA116: 63.61627907 | CB116: 53.62972275 | CC116: 9.986556324 | CE116: -0.9816528026 | CF116: -0.8665 | CK116: 1922.849226 | CL116: 1923.91008 | CM116: 13.70580645 | CN116: 45.85735545 | CO116: -32.15154899 | CQ116: 0.8441215469 | CR116: -14.45
A117: 1700-04-26 | B117: 1700.316368 | C117: 0 | D117: 5 | E117: 0 | H117: 1739.583333 | I117: 1739.625 | J117: 93 | K117: 49.06302224 | L117: 43.93697776 | N117: 0.6318315879 | O117: 0 | T117: 1868.802432 | U117: 1868.806798 | V117: 74.66666667 | W117: 63.11111111 | X117: 70.77777778 | Y117: 11.55555556 | Z117: 3.888888889 | AB117: 0.9623965486 | AC117: 0 | AD117: 0.1736657858 | AE117: 0 | AF117: -0.5000463993 | AG117: =AG116 -> 0 | AM117: 1870.801902 | AN117: 1870.814999 | AO117: 149.5555556 | AP117: 149.2481481 | AQ117: 0.3074074074 | AS117: -0.1051170588 | AT117: -0.0105 | AY117: 1876.093074 | AZ117: 1876.132365 | BA117: 21.4 | BB117: 17.57495895 | BC117: 3.825041051 | BE117: 0.4964979138 | BF117: -0.196 | BK117: 1894.088299 | BL117: 1894.206172 | BM117: 71.97674419 | BN117: 88.31782946 | BO117: 79.9575574 | BP117: 8.36027206 | BQ117: -7.980813211 | BS117: 0.9996207558 | BT117: 0.0093 | BY117: 1763.013909 | BZ117: 1763.367527 | CA117: 40.29457364 | CB117: 48.44850332 | CC117: -8.153929677 | CE117: -0.6294247658 | CF117: -0.8665 | CK117: 1924.970934 | CL117: 1926.031788 | CM117: 55.84129032 | CN117: 42.80925657 | CO117: 13.03203376 | CQ117: 0.9912663911 | CR117: -14.45
A118: 1700-04-27 | B118: 1700.319108 | C118: 0 | D118: 5 | E118: 0 | H118: 1739.666667 | I118: 1739.708333 | J118: 93 | K118: 49.02485431 | L118: 43.97514569 | N118: 0.5905828911 | O118: 0 | T118: 1868.811164 | U118: 1868.815529 | V118: 62 | W118: 86.05555556 | X118: 72.85185185 | Y118: -24.05555556 | Z118: -10.85185185 | AB118: 0.894137204 | AC118: 0 | AD118: 0.7660559359 | AE118: 0 | AF118: -0.4999535993 | AG118: =AG117 -> 0 | AM118: 1870.828096 | AN118: 1870.841193 | AO118: 177.9 | AP118: 154.5567901 | AQ118: 23.34320988 | AS118: 0.5587021346 | AT118: -0.0105 | AY118: 1876.171656 | AZ118: 1876.210947 | BA118: 38.82142857 | BB118: 17.78568692 | BC118: 21.03574165 | BE118: -0.1776245485 | BF118: -0.196 | BK118: 1894.324044 | BL118: 1894.441917 | BM118: 105.3139535 | BN118: 83.62403101 | BO118: 79.21595533 | BP118: 4.408075678 | BQ118: 26.09799816 | BS118: 0.7480528045 | BT118: 0.0093 | BY118: 1763.721145 | BZ118: 1764.074763 | CA118: 50.93410853 | CB118: 43.34428282 | CC118: 7.589825706 | CE118: 0.01731811424 | CF118: -0.8665 | CK118: 1927.092642 | CL118: 1928.153496 | CM118: 71.98967742 | CN118: 43.13557944 | CO118: 28.85409798 | CQ118: 0.6745866742 | CR118: -14.45
A119: 1700-04-28 | B119: 1700.321848 | C119: 0 | D119: 5 | E119: 0 | H119: 1739.75 | I119: 1739.791667 | J119: 93 | K119: 48.98522531 | L119: 44.01477469 | N119: 0.5477294426 | O119: 0 | T119: 1868.819895 | U119: 1868.824261 | V119: 121.5 | W119: 104.9444444 | X119: 72.01851852 | Y119: 16.55555556 | Z119: 49.48148148 | AB119: 0.3589097961 | AC119: 0 | AD119: 0.9999999998 | AE119: 0 | AF119: 0.9999999986 | AG119: =AG118 -> 0 | AM119: 1870.85429 | AN119: 1870.867387 | AO119: 182.3333333 | AP119: 145.8790123 | AQ119: 36.45432099 | AS119: 0.9610983899 | AT119: -0.0105 | AY119: 1876.250238 | AZ119: 1876.289529 | BA119: 4.137931034 | BB119: 16.26844554 | BC119: -12.1305145 | BE119: -0.7686345105 | BF119: -0.196 | BK119: 1894.55979 | BL119: 1894.677662 | BM119: 73.58139535 | BN119: 78.58197452 | BO119: 74.61001218 | BP119: 3.971962339 | BQ119: -1.028616829 | BS119: 0.1464626322 | BT119: 0.0093 | BY119: 1764.42838 | BZ119: 1764.781998 | CA119: 27.57528958 | CB119: 38.33179359 | CC119: -10.75650401 | CE119: 0.6559576561 | CF119: -0.8665 | CK119: 1929.214349 | CL119: 1930.275203 | CM119: 45.60516129 | CN119: 48.07197892 | CO119: -2.46681763 | CQ119: 0.04226035523 | CR119: -14.45
A120: 1700-04-29 | B120: 1700.324588 | C120: 0 | D120: 5 | E120: 0 | H120: 1739.833333 | I120: 1739.875 | J120: 90 | K120: 48.93277518 | L120: 41.06722482 | N120: 0.5033876852 | O120: 0 | T120: 1868.828626 | U120: 1868.832992 | V120: 131.3333333 | W120: 110.3888889 | X120: 72.61111111 | Y120: 20.94444444 | Z120: 58.72222222 | AB120: -0.3637602231 | AC120: 0 | AD120: 0.7660329501 | AE120: 0 | AF120: -0.5000463992 | AG120: =AG119 -> 0 | AM120: 1870.880483 | AN120: 1870.89358 | AO120: 95.6 | AP120: 141.545679 | AQ120: -45.94567901 | AS120: 0.9137860272 | AT120: -0.0105 | AY120: 1876.328819 | AZ120: 1876.36811 | BA120: 8.689655172 | BB120: 16.2302682 | BC120: -7.540613027 | BE120: -0.9999918426 | BF120: -0.196 | BK120: 1894.795535 | BL120: 1894.913408 | BM120: 56.85057471 | BN120: 65.11685824 | BO120: 72.4317176 | BP120: -7.314859366 | BQ120: -15.58114289 | BS120: -0.5236590334 | BT120: 0.0093 | BY120: 1765.135616 | BZ120: 1765.489234 | CA120: 21.80620155 | CB120: 37.15694432 | CC120: -15.35074277 | CE120: 0.9876673206 | CF120: -0.8665 | CK120: 1931.336057 | CL120: 1932.396911 | CM120: 15.54064516 | CN120: 51.72471489 | CO120: -36.18406973 | CQ120: -0.6098400536 | CR120: -14.45
A121: 1700-04-30 | B121: 1700.327327 | C121: 0 | D121: 5 | E121: 0 | H121: 1739.916667 | I121: 1739.958333 | J121: 90 | K121: 48.89314619 | L121: 41.10685381 | N121: 0.4576781059 | O121: 0 | T121: 1868.837357 | U121: 1868.841723 | V121: 78.33333333 | W121: 87.22222222 | X121: 73.4537037 | Y121: -8.888888889 | Z121: 4.87962963 | AB121: -0.8964544689 | AC121: 0 | AD121: 0.1736305695 | AE121: 0 | AF121: -0.4999535993 | AG121: =AG120 -> 0 | AM121: 1870.906677 | AN121: 1870.919774 | AO121: 155.6 | AP121: 133.0345679 | AQ121: 22.5654321 | AS121: 0.4389030268 | AT121: -0.0105 | AY121: 1876.407401 | AZ121: 1876.446692 | BA121: 3.678571429 | BB121: 15.70043788 | BC121: -12.02186645 | BE121: -0.7634418779 | BF121: -0.196 | BK121: 1895.03128 | BL121: 1895.149153 | BM121: 64.91860465 | BN121: 64.46181948 | BO121: 67.88042413 | BP121: -3.418604651 | BQ121: -2.961819478 | BS121: -0.9487548175 | BT121: 0.0093 | BY121: 1765.842852 | BZ121: 1766.19647 | CA121: 14.57751938 | CB121: 39.14617774 | CC121: -24.56865836 | CE121: 0.857236469 | CF121: -0.8665 | CK121: 1933.457765 | CL121: 1934.518619 | CM121: 14.07741935 | CN121: 52.93225233 | CO121: -38.85483298 | CQ121: -0.9765895237 | CR121: -14.45
A122: 1700-05-01 | B122: 1700.330067 | C122: 0 | D122: 5 | E122: 0 | H122: 1740 | I122: 1740.041667 | J122: 77 | K122: 48.83971107 | L122: 28.16028893 | N122: 0.4107249083 | O122: 0 | T122: 1868.846089 | U122: 1868.850454 | V122: 52 | W122: 57.77777778 | X122: 71.93518519 | Y122: -5.777777778 | Z122: -19.93518519 | AB122: -0.960970447 | AC122: 0 | AD122: -0.5000154843 | AE122: 0 | AF122: 0.9999999986 | AG122: =AG121 -> 0 | AM122: 1870.932871 | AN122: 1870.945968 | AO122: 167 | AP122: 126.8617284 | AQ122: 40.1382716 | AS122: -0.2413475778 | AT122: -0.0105 | AY122: 1876.485983 | AZ122: 1876.525274 | BA122: 19.03448276 | BB122: 15.14258347 | BC122: 3.891899288 | BE122: -0.1696689738 | BF122: -0.196 | BK122: 1895.267026 | BL122: 1895.384898 | BM122: 71.61627907 | BN122: 64.40310078 | BO122: 64.59231043 | BP122: -0.1892096587 | BQ122: 7.023968636 | BS122: -0.9299176782 | BT122: 0.0093 | BY122: 1766.550088 | BZ122: 1766.903706 | CA122: 16.83333333 | CB122: 48.32708955 | CC122: -31.49375621 | CE122: 0.3256951465 | CF122: -0.8665 | CK122: 1935.579473 | CL122: 1936.640327 | CM122: 87.83483871 | CN122: 49.8004022 | CO122: 38.03443651 | CQ122: -0.8863819021 | CR122: -14.45
A123: 1700-05-02 | B123: 1700.332807 | C123: 0 | D123: 5 | E123: 0 | H123: 1740.083333 | I123: 1740.125 | J123: 76.66666667 | K123: 48.78678486 | L123: 27.8798818 | N123: 0.3626556751 | O123: 0 | T123: 1868.85482 | U123: 1868.859186 | V123: 43 | W123: 44.33333333 | X123: 70.56481481 | Y123: -1.333333333 | Z123: -27.56481481 | AB123: -0.5236143339 | AC123: 0 | AD123: -0.9396987359 | AE123: 0 | AF123: -0.5000463992 | AG123: =AG122 -> 0 | AM123: 1870.959065 | AN123: 1870.972162 | AO123: 91.5 | AP123: 115.2728395 | AQ123: -23.77283951 | AS123: -0.8086689684 | AT123: -0.0105 | AY123: 1876.564565 | AZ123: 1876.603856 | BA123: 12.20689655 | BB123: 11.95169677 | BC123: 0.2551997811 | BE123: 0.5034939288 | BF123: -0.196 | BK123: 1895.502771 | BL123: 1895.620644 | BM123: 56.6744186 | BN123: 63.86046512 | BO123: 57.22926134 | BP123: 6.631203778 | BQ123: -0.5548427337 | BS123: -0.4759617224 | BT123: 0.0093 | BY123: 1767.257324 | BZ123: 1767.610942 | CA123: 38.60077519 | CB123: 53.30857103 | CC123: -14.70779584 | CE123: -0.3582425548 | CF123: -0.8665 | CK123: 1937.70118 | CL123: 1938.762034 | CM123: 102.4069767 | CN123: 55.7943807 | CO123: 46.61259605 | CQ123: -0.3814263375 | CR123: -14.45
A124: 1700-05-03 | B124: 1700.335547 | C124: 0 | D124: 5 | E124: 0 | H124: 1740.166667 | I124: 1740.208333 | J124: 72 | K124: 48.71808257 | L124: 23.28191743 | N124: 0.3136010217 | O124: 0 | T124: 1868.863551 | U124: 1868.867917 | V124: 38 | W124: 47.08333333 | X124: 63.25 | Y124: -9.083333333 | Z124: -25.25 | AB124: 0.1872022396 | AC124: 0 | AD124: -0.9396865054 | AE124: 0 | AF124: -0.4999535994 | AG124: =AG123 -> 0 | AM124: 1870.985259 | AN124: 1870.998356 | AO124: 83.22222222 | AP124: 104.9691358 | AQ124: -21.74691358 | AS124: -0.9976051613 | AT124: -0.0105 | AY124: 1876.643147 | AZ124: 1876.682437 | BA124: 15.62068966 | BB124: 14.09906951 | BC124: 1.521620142 | BE124: 0.9410664264 | BF124: -0.196 | BK124: 1895.738516 | BL124: 1895.856389 | BM124: 63.29069767 | BN124: 55.5554219 | BO124: 53.91401586 | BP124: 1.641406041 | BQ124: 9.376681814 | BS124: 0.200702013 | BT124: 0.0093 | BY124: 1767.96456 | BZ124: 1768.318178 | CA124: 60.1744186 | CB124: 60.08013662 | CC124: 0.09428198963 | CE124: -0.8745545833 | CF124: -0.8665 | CK124: 1939.822888 | CL124: 1940.883742 | CM124: 58.52061856 | CN124: 65.38807245 | CO124: -6.867453897 | CQ124: 0.3020028496 | CR124: -14.45
A125: 1700-05-04 | B125: 1700.338286 | C125: 0 | D125: 5 | E125: 0 | H125: 1740.25 | I125: 1740.291667 | J125: 72 | K125: 48.66513995 | L125: 23.33486005 | N125: 0.2636942411 | O125: 0 | T125: 1868.872283 | U125: 1868.876648 | V125: 60.25 | W125: 53.08333333 | X125: 54.10185185 | Y125: 7.166666667 | Z125: 6.148148148 | AB125: 0.8002514158 | AC125: 0 | AD125: -0.4999845156 | AE125: 0 | AF125: 0.9999999986 | AG125: =AG124 -> 0 | AM125: 1871.011453 | AN125: 1871.02455 | AO125: 94.6 | AP125: 111.3839506 | AQ125: -16.78395062 | AS125: -0.7197508122 | AT125: -0.0105 | AY125: 1876.721728 | AZ125: 1876.761019 | BA125: 17.71428571 | BB125: 15.69677066 | BC125: 2.017515052 | BE125: 0.9383034843 | BF125: -0.196 | BK125: 1895.974262 | BL125: 1896.092134 | BM125: 46.70114943 | BN125: 50.79185601 | BO125: 51.78203986 | BP125: -0.9901838486 | BQ125: -5.080890433 | BS125: 0.783455046 | BT125: 0.0093 | BY125: 1768.671796 | BZ125: 1769.025414 | CA125: 81.51937984 | CB125: 67.03362499 | CC125: 14.48575486 | CE125: -0.9816528026 | CF125: -0.8665 | CK125: 1941.944596 | CL125: 1943.00545 | CM125: 24.57364341 | CN125: 70.30749898 | CO125: -45.73385557 | CQ125: 0.8441215469 | CR125: -14.45
A126: 1700-05-05 | B126: 1700.341026 | C126: 0 | D126: 5 | E126: 0 | H126: 1740.333333 | I126: 1740.375 | J126: 71.83333333 | K126: 48.60407125 | L126: 23.22926209 | N126: 0.2130709416 | O126: 0 | T126: 1868.881014 | U126: 1868.88538 | V126: 61 | W126: 56.97222222 | X126: 50.34259259 | Y126: 4.027777778 | Z126: 10.65740741 | AB126: 0.995364897 | AC126: 0 | AD126: 0.1736657858 | AE126: 0 | AF126: -0.5000463992 | AG126: =AG125 -> 0 | AM126: 1871.037647 | AN126: 1871.050744 | AO126: 94 | AP126: 110.2283951 | AQ126: -16.22839506 | AS126: -0.1051170588 | AT126: -0.0105 | AY126: 1876.80031 | AZ126: 1876.839601 | BA126: 16.37931034 | BB126: 17.07731253 | BC126: -0.6980021894 | BE126: 0.4964979138 | BF126: -0.196 | BK126: 1896.210007 | BL126: 1896.32788 | BM126: 42.38372093 | BN126: 42.71046066 | BO126: 47.99521815 | BP126: -5.284757492 | BQ126: -5.611497223 | BS126: 0.9996207558 | BT126: 0.0093 | BY126: 1769.379032 | BZ126: 1769.73265 | CA126: 122.9227799 | CB126: 72.29762154 | CC126: 50.62515838 | CE126: -0.6294247658 | CF126: -0.8665 | CK126: 1944.066304 | CL126: 1945.127158 | CM126: 27.65463918 | CN126: 70.61371164 | CO126: -42.95907247 | CQ126: 0.9912663911 | CR126: -14.45
A127: 1700-05-06 | B127: 1700.343766 | C127: 0 | D127: 5 | E127: 0 | H127: 1740.416667 | I127: 1740.458333 | J127: 67 | K127: 48.55876221 | L127: 18.44123779 | N127: 0.1618686785 | O127: 0 | T127: 1868.889745 | U127: 1868.894111 | V127: 49.66666667 | W127: 55.44444444 | X127: 48.60185185 | Y127: -5.777777778 | Z127: 1.064814815 | AB127: 0.6706435965 | AC127: 0 | AD127: 0.7660559359 | AE127: 0 | AF127: -0.4999535994 | AG127: =AG126 -> 0 | AM127: 1871.063841 | AN127: 1871.076938 | AO127: 73.6 | AP127: 103.9691358 | AQ127: -30.3691358 | AS127: 0.5587021346 | AT127: -0.0105 | AY127: 1876.878892 | AZ127: 1876.918183 | BA127: 10.10344828 | BB127: 16.56951286 | BC127: -6.466064587 | BE127: -0.1776245485 | BF127: -0.196 | BK127: 1896.445752 | BL127: 1896.563625 | BM127: 39.04651163 | BN127: 41.7248062 | BO127: 42.48488224 | BP127: -0.7600760343 | BQ127: -3.438370608 | BS127: 0.7480528045 | BT127: 0.0093 | BY127: 1770.086268 | BZ127: 1770.439886 | CA127: 95.76744186 | CB127: 74.83982654 | CC127: 20.92761532 | CE127: 0.01731811424 | CF127: -0.8665 | CK127: 1946.188011 | CL127: 1947.248865 | CM127: 125.9354839 | CN127: 68.54944548 | CO127: 57.38603839 | CQ127: 0.6745866742 | CR127: -14.45
A128: 1700-05-07 | B128: 1700.346505 | C128: 0 | D128: 5 | E128: 0 | H128: 1740.5 | I128: 1740.541667 | J128: 66.83333333 | K128: 48.51296068 | L128: 18.32037265 | N128: 0.1102265805 | O128: 0 | T128: 1868.898477 | U128: 1868.902842 | V128: 55.66666667 | W128: 51.44444444 | X128: 54.60185185 | Y128: 4.222222222 | Z128: 1.064814815 | AB128: -0.004325003845 | AC128: 0 | AD128: 0.9999999998 | AE128: 0 | AF128: 0.9999999986 | AG128: =AG127 -> 0 | AM128: 1871.090035 | AN128: 1871.103132 | AO128: 89.6 | AP128: 113.5246914 | AQ128: -23.92469136 | AS128: 0.9610983899 | AT128: -0.0105 | AY128: 1876.957474 | AZ128: 1876.996764 | BA128: 23.46428571 | BB128: 17.94116037 | BC128: 5.523125342 | BE128: -0.7686345105 | BF128: -0.196 | BK128: 1896.681498 | BL128: 1896.79937 | BM128: 43.74418605 | BN128: 40.15116279 | BO128: 39.15542487 | BP128: 0.9957379192 | BQ128: 4.588761175 | BS128: 0.1464626322 | BT128: 0.0093 | BY128: 1770.793504 | BZ128: 1771.147122 | CA128: 88.51937984 | CB128: 75.19340104 | CC128: 13.3259788 | CE128: 0.6559576561 | CF128: -0.8665 | CK128: 1948.309719 | CL128: 1949.370573 | CM128: 131.9483871 | CN128: 78.03150118 | CO128: 53.91688591 | CQ128: 0.04226035523 | CR128: -14.45
A129: 1700-05-08 | B129: 1700.349245 | C129: 0 | D129: 5 | E129: 0 | H129: 1740.583333 | I129: 1740.625 | J129: 62 | K129: 48.45799885 | L129: 13.54200115 | N129: 0.05828497107 | O129: 0 | T129: 1868.907208 | U129: 1868.911574 | V129: 49 | W129: 49.72222222 | X129: 61.08333333 | Y129: -0.7222222222 | Z129: -12.08333333 | AB129: -0.6770348472 | AC129: 0 | AD129: 0.7660329501 | AE129: 0 | AF129: -0.5000463992 | AG129: =AG128 -> 0 | AM129: 1871.116229 | AN129: 1871.129326 | AO129: 153.3333333 | AP129: 119.808642 | AQ129: 33.52469136 | AS129: 0.9137860272 | AT129: -0.0105 | AY129: 1877.036055 | AZ129: 1877.075346 | BA129: 23.06896552 | BB129: 18.67296114 | BC129: 4.396004379 | BE129: -0.9999918426 | BF129: -0.196 | BK129: 1896.917243 | BL129: 1897.035115 | BM129: 37.6627907 | BN129: 37.41472868 | BO129: 35.20322849 | BP129: 2.211500193 | BQ129: 2.459562209 | BS129: -0.5236590334 | BT129: 0.0093 | BY129: 1771.50074 | BZ129: 1771.854358 | CA129: 84.3875969 | CB129: 70.59572862 | CC129: 13.79186828 | CE129: 0.9876673206 | CF129: -0.8665 | CK129: 1950.431427 | CL129: 1951.492281 | CM129: 59.81548387 | CN129: 86.66652409 | CO129: -26.85104022 | CQ129: -0.6098400536 | CR129: -14.45
A130: 1700-05-09 | B130: 1700.351985 | C130: 0 | D130: 5 | E130: 0 | H130: 1740.666667 | I130: 1740.708333 | J130: 62 | K130: 48.38217188 | L130: 13.61782812 | N130: 0.006184987765 | O130: 0 | T130: 1868.915939 | U130: 1868.920305 | V130: 44.5 | W130: 43.27777778 | X130: 61.83333333 | Y130: 1.222222222 | Z130: -17.33333333 | AB130: -0.9961595249 | AC130: 0 | AD130: 0.1736305695 | AE130: 0 | AF130: -0.4999535994 | AG130: =AG129 -> 0 | AM130: 1871.142423 | AN130: 1871.15552 | AO130: 145.2 | AP130: 127.3753086 | AQ130: 17.82469136 | AS130: 0.4389030268 | AT130: -0.0105 | AY130: 1877.114637 | AZ130: 1877.153928 | BA130: 16.10344828 | BB130: 18.43883415 | BC130: -2.335385878 | BE130: -0.7634418779 | BF130: -0.196 | BK130: 1897.152988 | BL130: 1897.270861 | BM130: 30.8372093 | BN130: 30.1744186 | BO130: 33.87209302 | BP130: -3.697674419 | BQ130: -3.034883721 | BS130: -0.9487548175 | BT130: 0.0093 | BY130: 1772.207976 | BZ130: 1772.561594 | CA130: 61.95348837 | CB130: 62.23569417 | CC130: -0.2822057938 | CE130: 0.857236469 | CF130: -0.8665 | CK130: 1952.553135 | CL130: 1953.613989 | CM130: 16.83333333 | CN130: 88.83448275 | CO130: -72.00114942 | CQ130: -0.9765895237 | CR130: -14.45
A131: 1700-05-10 | B131: 1700.354725 | C131: 0 | D131: 5 | E131: 0 | H131: 1740.75 | I131: 1740.791667 | J131: 62 | K131: 48.31346959 | L131: 13.68653041 | N131: -0.0459318016 | O131: 0 | T131: 1868.924671 | U131: 1868.929036 | V131: 36.33333333 | W131: 59.27777778 | X131: 57.05555556 | Y131: -22.94444444 | Z131: -20.72222222 | AB131: -0.7950344222 | AC131: 0 | AD131: -0.5000154842 | AE131: 0 | AF131: 0.9999999986 | AG131: =AG130 -> 0 | AM131: 1871.168617 | AN131: 1871.181714 | AO131: 110.6666667 | AP131: 136.7209877 | AQ131: -26.05432099 | AS131: =SIN((2*PI()*(AN131-2000+AT131)/0.235745306106089) + 0.083216746) -> -0.2413475777 | AT131: -0.0105 | AY131: 1877.193219 | AZ131: 1877.23251 | BA131: 14.46428571 | BB131: 17.50396825 | BC131: -3.03968254 | BE131: -0.1696689738 | BF131: -0.196 | BK131: 1897.388733 | BL131: 1897.506606 | BM131: 22.02325581 | BN131: 26.52325581 | BO131: 31.40956072 | BP131: -4.88630491 | BQ131: -9.38630491 | BS131: -0.9299176782 | BT131: 0.0093 | BY131: 1772.915212 | BZ131: 1773.268829 | CA131: 39.71317829 | CB131: 50.02377461 | CC131: -10.31059631 | CE131: 0.3256951465 | CF131: -0.8665 | CK131: 1954.674843 | CL131: 1955.735696 | CM131: 69.2564433 | CN131: 87.99126969 | CO131: -18.73482639 | CQ131: -0.8863819021 | CR131: -14.45
A132: 1700-05-11 | B132: 1700.357464 | C132: 0 | D132: 5 | E132: 0 | H132: 1740.833333 | I132: 1740.875 | J132: 57 | K132: =AVERAGE(J67:J197) -> 48.24400394 | L132: =J132-K132 -> 8.75599606 | N132: -0.09792378352 | O132: 0 | T132: =T131+0.00873130763355885 -> 1868.933402 | U132: =U131+0.00873130763355885 -> 1868.937768 | V132: 97 | W132: 76.55555556 | X132: 60.12962963 | Y132: 20.44444444 | Z132: 36.87037037 | AB132: -0.178698228 | AC132: 0 | AD132: -0.9396987359 | AE132: 0 | AF132: -0.5000463991 | AG132: =AG131 -> 0 | AM132: =AM131+0.0261939229006765 -> 1871.194811 | AN132: =AN131+0.0261939229006765 -> 1871.207908 | AO132: 177.5 | AP132: 145.0654321 | AQ132: 32.4345679 | AS132: -0.8086689684 | AT132: -0.0105 | AY132: =AY131+0.0785817687020297 -> 1877.271801 | AZ132: =AZ131+0.0785817687020297 -> 1877.311092 | BA132: 24.55172414 | BB132: 17.40051998 | BC132: 7.15120416 | BE132: 0.5034939288 | BF132: -0.196 | BK132: =BK131+0.235745306106089 -> 1897.624479 | BL132: =BL131+0.235745306106089 -> 1897.742351 | BM132: 26.70930233 | BN132: 25.48449612 | BO132: 30.75710594 | BP132: -5.272609819 | BQ132: -4.047803618 | BS132: -0.4759617224 | BT132: 0.0093 | BY132: =BY131+0.707235918318267 -> 1773.622447 | BZ132: =BZ131+0.707235918318267 -> 1773.976065 | CA132: 41.78294574 | CB132: 42.46046711 | CC132: -0.6775213752 | CE132: -0.3582425548 | CF132: -0.8665 | CK132: =CK131+2.1217077549548 -> 1956.79655 | CL132: =CL131+2.1217077549548 -> 1957.857404 | CM132: 187.745478 | CN132: 79.18922196 | CO132: 108.5562561 | CQ132: -0.3814263375 | CR132: -14.45
A133: 1700-05-12 | B133: 1700.360204 | C133: 0 | D133: 5 | E133: 0 | H133: 1740.916667 | I133: 1740.958333 | J133: 57 | K133: 48.15265534 | L133: 8.847344661 | N133: -0.1496496836 | O133: 0 | T133: 1868.942133 | U133: 1868.946499 | V133: 96.33333333 | W133: 86.77777778 | X133: 63.53703704 | Y133: 9.555555556 | Z133: 32.7962963 | AB133: 0.5309640967 | AC133: 0 | AD133: -0.9396865054 | AE133: 0 | AF133: =SIN((2*PI()*(U133-2000+AG133)/0.0261939229006765) + 0.748950468) -> -0.4999535994 | AG133: =AG132 -> 0 | AM133: 1871.221004 | AN133: 1871.234101 | AO133: 139.7777778 | AP133: 151.5876543 | AQ133: -11.80987654 | AS133: -0.9976051613 | AT133: -0.0105 | AY133: 1877.350382 | AZ133: 1877.389673 | BA133: 22.20689655 | BB133: 17.00369458 | BC133: 5.20320197 | BE133: 0.9410664264 | BF133: -0.196 | BK133: 1897.860224 | BL133: 1897.978097 | BM133: 27.72093023 | BN133: 29.71705426 | BO133: 28.74418605 | BP133: 0.9728682171 | BQ133: -1.023255814 | BS133: 0.200702013 | BT133: 0.0093 | BY133: 1774.329683 | BZ133: 1774.683301 | CA133: 18.7953668 | CB133: 42.93505798 | CC133: -24.13969119 | CE133: -0.8745545833 | CF133: -0.8665 | CK133: 1958.918258 | CL133: 1959.979112 | CM133: 136.2358247 | CN133: 76.22477751 | CO133: 60.01104723 | CQ133: 0.3020028496 | CR133: -14.45
A134: 1700-05-13 | B134: 1700.362944 | C134: 0 | D134: 5 | E134: 0 | H134: 1741 | I134: 1741.041667 | J134: 51 | K134: 48.06792251 | L134: 2.932077485 | N134: -0.2009689506 | O134: 0 | T134: 1868.950864 | U134: 1868.95523 | V134: 67 | W134: 60.44444444 | X134: 69.75925926 | Y134: 6.555555556 | Z134: -2.759259259 | AB134: 0.9633275071 | AC134: 0 | AD134: -0.4999845156 | AE134: 0 | AF134: 0.9999999986 | AG134: =AG133 -> 0 | AM134: 1871.247198 | AN134: 1871.260295 | AO134: 162.7 | AP134: 149.4148148 | AQ134: 13.28518519 | AS134: -0.7197508122 | AT134: -0.0105 | AY134: 1877.428964 | AZ134: 1877.468255 | BA134: 15.60714286 | BB134: 15.28721949 | BC134: 0.3199233716 | BE134: 0.9383034843 | BF134: -0.196 | BK134: 1898.095969 | BL134: 1898.213842 | BM134: 34.72093023 | BN134: 27.55426357 | BO134: 26.28036176 | BP134: 1.273901809 | BQ134: 8.440568475 | BS134: 0.783455046 | BT134: 0.0093 | BY134: 1775.036919 | BZ134: 1775.390537 | CA134: 6.279069767 | CB134: 51.38423972 | CC134: -45.10516995 | CE134: -0.9816528026 | CF134: -0.8665 | CK134: 1961.039966 | CL134: 1962.10082 | CM134: 44.08527132 | CN134: 79.72585278 | CO134: -35.64058146 | CQ134: 0.8441215469 | CR134: -14.45
A135: 1700-05-14 | B135: 1700.365684 | C135: 0 | D135: 5 | E135: 0 | H135: 1741.083333 | I135: 1741.125 | J135: 50.6 | K135: 47.96130674 | L135: 2.638693261 | N135: -0.251742138 | O135: 0 | T135: 1868.959596 | U135: 1868.963961 | V135: 18 | W135: 54.11111111 | X135: 73.74074074 | Y135: -36.11111111 | Z135: -55.74074074 | AB135: 0.8925878386 | AC135: 0 | AD135: 0.1736657857 | AE135: 0 | AF135: -0.5000463991 | AG135: =AG134 -> 0 | AM135: 1871.273392 | AN135: 1871.286489 | AO135: 178.1111111 | AP135: 150.6703704 | AQ135: 27.44074074 | AS135: -0.1051170589 | AT135: -0.0105 | AY135: 1877.507546 | AZ135: 1877.546837 | BA135: 7.965517241 | BB135: 15.93472906 | BC135: -7.969211823 | BE135: 0.4964979138 | BF135: -0.196 | BK135: 1898.331715 | BL135: 1898.449587 | BM135: 20.22093023 | BN135: 29.37209302 | BO135: 24.6498708 | BP135: 4.722222222 | BQ135: -4.428940568 | BS135: 0.9996207558 | BT135: 0.0093 | BY135: 1775.744155 | BZ135: 1776.097773 | CA135: 13.01550388 | CB135: 60.07373154 | CC135: -47.05822766 | CE135: -0.6294247658 | CF135: -0.8665 | CK135: 1963.161674 | CL135: 1964.222527 | CM135: 20.06572165 | CN135: 84.33232829 | CO135: -64.26660664 | CQ135: 0.9912663911 | CR135: -14.45
A136: 1700-05-15 | B136: 1700.368423 | C136: 0 | D136: 5 | E136: 0 | H136: 1741.166667 | I136: 1741.208333 | J136: 45 | K136: 47.8620701 | L136: -2.862070098 | N136: -0.3018312832 | O136: 0 | T136: 1868.968327 | U136: 1868.972693 | V136: 77.33333333 | W136: 60.55555556 | X136: 81.22222222 | Y136: 16.77777778 | Z136: -3.888888889 | AB136: 0.3556892714 | AC136: 0 | AD136: 0.7660559359 | AE136: 0 | AF136: -0.4999535994 | AG136: =AG135 -> 0 | AM136: 1871.299586 | AN136: 1871.312683 | AO136: 148.7 | AP136: 150.9049383 | AQ136: -2.204938272 | AS136: 0.5587021345 | AT136: -0.0105 | AY136: 1877.586128 | AZ136: 1877.625419 | BA136: 9.172413793 | BB136: 15.10933224 | BC136: -5.936918446 | BE136: -0.1776245485 | BF136: -0.196 | BK136: 1898.56746 | BL136: 1898.685333 | BM136: 33.1744186 | BN136: 26.34108527 | BO136: 23.38242894 | BP136: 2.958656331 | BQ136: 9.791989664 | BS136: 0.7480528045 | BT136: 0.0093 | BY136: 1776.451391 | BZ136: 1776.805009 | CA136: 27.69767442 | CB136: 69.32010083 | CC136: -41.62242641 | CE136: 0.01731811424 | CF136: -0.8665 | CK136: 1965.283381 | CL136: 1966.344235 | CM136: 46.71705426 | CN136: 79.7558776 | CO136: -33.03882334 | CQ136: 0.6745866742 | CR136: -14.45
A137: 1700-05-16 | B137: 1700.371163 | C137: 0 | D137: 5 | E137: 0 | H137: 1741.25 | I137: 1741.291667 | J137: 45 | K137: 47.76283346 | L137: -2.762833456 | N137: -0.3511002822 | O137: 0 | T137: 1868.977058 | U137: 1868.981424 | V137: 86.33333333 | W137: 89.55555556 | X137: 78.55555556 | Y137: -3.222222222 | Z137: 7.777777778 | AB137: -0.3669699704 | AC137: 0 | AD137: 0.9999999998 | AE137: 0 | AF137: 0.9999999986 | AG137: =AG136 -> 0 | AM137: 1871.32578 | AN137: 1871.338877 | AO137: 148.3 | AP137: 143.9604938 | AQ137: 4.339506173 | AS137: 0.9610983899 | AT137: -0.0105 | AY137: 1877.66471 | AZ137: 1877.704 | BA137: 19.89285714 | BB137: 12.72619048 | BC137: 7.166666667 | BE137: -0.7686345105 | BF137: -0.196 | BK137: 1898.803205 | BL137: 1898.921078 | BM137: 25.62790698 | BN137: 24.76356589 | BO137: 22.07884107 | BP137: 2.684724821 | BQ137: 3.549065906 | BS137: 0.1464626322 | BT137: 0.0093 | BY137: 1777.158627 | BZ137: 1777.512245 | CA137: 92.79069767 | CB137: 74.82613012 | CC137: 17.96456756 | CE137: 0.6559576561 | CF137: -0.8665 | CK137: 1967.405089 | CL137: 1968.465943 | CM137: 105.2683871 | CN137: 61.30071696 | CO137: 43.96767014 | CQ137: =SIN((2*PI()*(CL137-2000+CR137)/19.0953697945932) + 5.663651193) -> 0.04226035523 | CR137: =CR136 -> -14.45
A138: 1700-05-17 | B138: 1700.373903 | C138: 0 | D138: 5 | E138: 0 | H138: 1741.333333 | I138: 1741.375 | J138: 44.8 | K138: 47.64069605 | L138: -2.840696052 | N138: -0.3994152598 | O138: 0 | T138: 1868.98579 | U138: 1868.990155 | V138: 105 | W138: 90.55555556 | X138: 72.7037037 | Y138: 14.44444444 | Z138: 32.2962963 | AB138: =SIN((2*PI()*(U138-2000)/0.074195756) + 2.57488197) -> -0.8979771307 | AC138: =AC137 -> 0 | AD138: =SIN((2*PI()*(U138-2000+AE138)/0.0785817687020297) + 3.39124283) -> 0.7660329501 | AE138: =AE137 -> 0 | AF138: -0.5000463991 | AG138: =AG137 -> 0 | AM138: 1871.351974 | AN138: 1871.365071 | AO138: 133.7777778 | AP138: 135.9975309 | AQ138: -2.219753086 | AS138: 0.9137860272 | AT138: -0.0105 | AY138: 1877.743291 | AZ138: 1877.782582 | BA138: 7.620689655 | BB138: 11.59592228 | BC138: -3.975232622 | BE138: -0.9999918426 | BF138: -0.196 | BK138: 1899.038951 | BL138: 1899.156823 | BM138: 15.48837209 | BN138: 19.09302326 | BO138: 20.63052066 | BP138: -1.537497401 | BQ138: -5.142148564 | BS138: -0.5236590334 | BT138: 0.0093 | BY138: 1777.865863 | BZ138: 1778.219481 | CA138: 160.4302326 | CB138: =AVERAGE(CA134:CA142) -> 81.13095155 | CC138: 79.29928101 | CE138: 0.9876673206 | CF138: -0.8665 | CK138: 1969.526797 | CL138: 1970.587651 | CM138: 91.32516129 | CN138: 60.22168619 | CO138: 31.1034751 | CQ138: -0.6098400536 | CR138: -14.45
A139: 1700-05-18 | B139: 1700.376642 | C139: 0 | D139: 5 | E139: 0 | H139: 1741.416667 | I139: 1741.458333 | J139: =AVERAGEIFS(Intl_SS,DecDate,">"&H139,DecDate,"<="&H140) -> 39 | K139: 47.52619224 | L139: -8.526192235 | N139: -0.4466449328 | O139: 0 | T139: 1868.994521 | U139: 1868.998887 | V139: 80.33333333 | W139: 96.33333333 | X139: 74.77777778 | Y139: -16 | Z139: 5.555555556 | AB139: -0.9600108048 | AC139: 0 | AD139: 0.1736305695 | AE139: 0 | AF139: -0.4999535995 | AG139: =AG138 -> 0 | AM139: 1871.378168 | AN139: 1871.391265 | AO139: 156.5 | AP139: 128.2975309 | AQ139: 28.20246914 | AS139: 0.4389030268 | AT139: -0.0105 | AY139: 1877.821873 | AZ139: 1877.861164 | BA139: 21.93103448 | BB139: 11.15544609 | BC139: 10.7755884 | BE139: =SIN((2*PI()*(AZ139-2000+BF139)/0.707235918318267) + 5.263726692) -> -0.7634418779 | BF139: =BF138 -> -0.196 | BK139: 1899.274696 | BL139: 1899.392569 | BM139: 16.1627907 | BN139: =AVERAGE(BM138:BM140) -> 14.08914729 | BO139: =AVERAGE(BM135:BM143) -> 18.58013306 | BP139: =BN139-BO139 -> -4.490985773 | BQ139: -2.417342362 | BS139: -0.9487548175 | BT139: 0.0093 | BY139: 1778.573099 | BZ139: 1778.926717 | CA139: 140.1589147 | CB139: 86.9698835 | CC139: 53.18903122 | CE139: 0.857236469 | CF139: -0.8665 | CK139: 1971.648505 | CL139: 1972.709358 | CM139: 58.2916129 | CN139: 71.54110621 | CO139: -13.24949331 | CQ139: -0.9765895237 | CR139: -14.45
A140: 1700-05-19 | B140: 1700.379382 | C140: 0 | D140: 5 | E140: 0 | H140: 1741.5 | I140: 1741.541667 | J140: 38.8 | K140: 47.26665025 | L140: -8.46665025 | N140: -0.4926609671 | O140: 0 | T140: 1869.003252 | U140: 1869.007618 | V140: 103.6666667 | W140: 85.66666667 | X140: 80.7037037 | Y140: 18 | Z140: 22.96296296 | AB140: -0.520673566 | AC140: 0 | AD140: -0.5000154842 | AE140: 0 | AF140: 0.9999999986 | AG140: =AG139 -> 0 | AM140: 1871.404362 | AN140: 1871.417459 | AO140: 112.7777778 | AP140: 118.9271605 | AQ140: -6.149382716 | AS140: -0.2413475777 | AT140: =AT139 -> -0.0105 | AY140: 1877.900455 | AZ140: 1877.939746 | BA140: 7.035714286 | BB140: 10.63054187 | BC140: -3.594827586 | BE140: -0.1696689738 | BF140: -0.196 | BK140: 1899.510441 | BL140: 1899.628314 | BM140: 10.61627907 | BN140: 13.91869375 | BO140: 17.71449999 | BP140: -3.795806231 | BQ140: -7.098220915 | BS140: -0.9299176782 | BT140: 0.0093 | BY140: 1779.280335 | BZ140: 1779.633953 | CA140: 122.9305019 | CB140: 89.83853122 | CC140: 33.09197071 | CE140: =SIN((2*PI()*(BZ140-2000+CF140)/6.3651232648644) + 1.28299025) -> 0.3256951465 | CF140: =CF139 -> -0.8665 | CK140: 1973.770212 | CL140: 1974.831066 | CM140: 28.0683871 | CN140: 78.45796151 | CO140: -50.38957442 | CQ140: -0.8863819021 | CR140: -14.45
A141: 1700-05-20 | B141: 1700.382122 | C141: 0 | D141: 5 | E141: 0 | H141: 1741.583333 | I141: 1741.625 | J141: 33 | K141: 47.04374949 | L141: -14.04374949 | N141: -0.5373383265 | O141: 0 | T141: 1869.011984 | U141: 1869.016349 | V141: 73 | W141: 73.44444444 | X141: 75.7037037 | Y141: -0.4444444444 | Z141: -2.703703704 | AB141: 0.1905883009 | AC141: 0 | AD141: -0.9396987359 | AE141: 0 | AF141: -0.5000463991 | AG141: =AG140 -> 0 | AM141: 1871.430556 | AN141: 1871.443653 | AO141: 115 | AP141: =AVERAGE(AO137:AO145) -> 115.9049383 | AQ141: -0.9049382716 | AS141: -0.8086689684 | AT141: -0.0105 | AY141: 1877.979037 | AZ141: 1878.018327 | BA141: 3.103448276 | BB141: =AVERAGE(BA137:BA145) -> 9.979200876 | BC141: -6.8757526 | BE141: 0.5034939288 | BF141: -0.196 | BK141: 1899.746187 | BL141: 1899.864059 | BM141: 14.97701149 | BN141: 13.42644569 | BO141: 15.19770412 | BP141: -1.771258428 | BQ141: -0.2206926253 | BS141: =SIN((2*PI()*(BL141-2000+BT141)/2.1217077549548) + 0.707378034) -> -0.4759617224 | BT141: =BT140 -> 0.0093 | BY141: 1779.987571 | BZ141: 1780.341189 | CA141: 91.3372093 | CB141: 89.96859152 | CC141: 1.368617787 | CE141: -0.3582425548 | CF141: -0.8665 | CK141: 1975.89192 | CL141: 1976.952774 | CM141: 21.64903226 | CN141: 75.71190889 | CO141: -54.06287663 | CQ141: -0.3814263375 | CR141: -14.45
A142: 1700-05-21 | B142: 1700.384862 | C142: 0 | D142: 5 | E142: 0 | H142: 1741.666667 | I142: 1741.708333 | J142: 33 | K142: 46.80201921 | L142: -13.80201921 | N142: -0.5805556121 | O142: 0 | T142: 1869.020715 | U142: 1869.025081 | V142: 43.66666667 | W142: 67.44444444 | X142: 68.69444444 | Y142: -23.77777778 | Z142: -25.02777778 | AB142: 0.8023143815 | AC142: 0 | AD142: -0.9396865054 | AE142: 0 | AF142: -0.4999535995 | AG142: =AG141 -> 0 | AM142: 1871.45675 | AN142: 1871.469847 | AO142: 68.11111111 | AP142: 108.5493827 | AQ142: -40.4382716 | AS142: -0.9976051613 | AT142: -0.0105 | AY142: 1878.057618 | AZ142: 1878.096909 | BA142: 12.03448276 | BB142: 9.259304871 | BC142: 2.775177887 | BE142: 0.9410664264 | BF142: -0.196 | BK142: 1899.981932 | BL142: 1900.099804 | BM142: 14.68604651 | BN142: 15.31016662 | BO142: 12.50907363 | BP142: 2.801092994 | BQ142: 2.176972883 | BS142: 0.200702013 | BT142: 0.0093 | BY142: 1780.694807 | BZ142: 1781.048425 | CA142: 75.53875969 | CB142: 81.28340633 | CC142: -5.74464664 | CE142: -0.8745545833 | CF142: -0.8665 | CK142: 1978.013628 | CL142: 1979.074482 | CM142: 126.5245478 | CN142: =AVERAGE(CM138:CM146) -> 68.65312753 | CO142: 57.87142028 | CQ142: 0.3020028496 | CR142: -14.45
A143: 1700-05-22 | B143: 1700.387601 | C143: 0 | D143: 5 | E143: 0 | H143: 1741.75 | I143: 1741.791667 | J143: 33 | K143: 46.59591234 | L143: -13.59591234 | N143: -0.6221953925 | O143: 0 | T143: 1869.029446 | U143: 1869.033812 | V143: 85.66666667 | W143: 66.88888889 | X143: 61.5462963 | Y143: 18.77777778 | Z143: 24.12037037 | AB143: 0.9950273719 | AC143: 0 | AD143: -0.4999845156 | AE143: 0 | AF143: 0.9999999986 | AG143: =AG142 -> 0 | AM143: 1871.482944 | AN143: 1871.496041 | AO143: 93.4 | AP143: 103.5987654 | AQ143: -10.19876543 | AS143: -0.7197508122 | AT143: -0.0105 | AY143: 1878.1362 | AZ143: 1878.175491 | BA143: 11.64285714 | BB143: 8.932402846 | BC143: 2.710454297 | BE143: 0.9383034843 | BF143: -0.196 | BK143: 1900.217677 | BL143: 1900.33555 | BM143: 16.26744186 | BN143: 14.46124031 | BO143: 11.59822092 | BP143: 2.863019395 | BQ143: 4.669220945 | BS143: 0.783455046 | BT143: 0.0093 | BY143: 1781.402043 | BZ143: 1781.75566 | CA143: 58.82945736 | CB143: 64.53118401 | CC143: -5.701726644 | CE143: -0.9816528026 | CF143: -0.8665 | CK143: 1980.135336 | CL143: 1981.196189 | CM143: 145.9600515 | CN143: 75.01427448 | CO143: 70.94577707 | CQ143: 0.8441215469 | CR143: -14.45
A144: 1700-05-23 | B144: 1700.390341 | C144: 0 | D144: 5 | E144: 0 | H144: =H143 +(1/12) -> 1741.833333 | I144: =I143 +(1/12) -> 1741.875 | J144: 27 | K144: 46.38904211 | L144: -19.38904211 | N144: -0.6621445226 | O144: 0 | T144: 1869.038178 | U144: 1869.042543 | V144: 71.33333333 | W144: 63.11111111 | X144: 59.65740741 | Y144: 8.222222222 | Z144: 11.67592593 | AB144: 0.668081855 | AC144: 0 | AD144: 0.1736657857 | AE144: 0 | AF144: -0.5000463991 | AG144: =AG143 -> 0 | AM144: 1871.509138 | AN144: 1871.522235 | AO144: 93.77777778 | AP144: 103.6876543 | AQ144: -9.909876543 | AS144: -0.1051170589 | AT144: -0.0105 | AY144: 1878.214782 | AZ144: 1878.254073 | BA144: 3.24137931 | BB144: 6.510946907 | BC144: -3.269567597 | BE144: 0.4964979138 | BF144: -0.196 | BK144: 1900.453422 | BL144: 1900.571295 | BM144: 12.43023256 | BN144: 13.07364341 | BO144: 10.40829843 | BP144: 2.665344976 | BQ144: 2.021934123 | BS144: 0.9996207558 | BT144: 0.0093 | BY144: 1782.109278 | BZ144: 1782.462896 | CA144: 38.83333333 | CB144: 50.91102897 | CC144: -12.07769564 | CE144: -0.6294247658 | CF144: -0.8665 | CK144: 1982.257043 | CL144: 1983.317897 | CM144: 82.31741935 | CN144: 82.29828882 | CO144: 0.01913053817 | CQ144: 0.9912663911 | CR144: -14.45
A145: 1700-05-24 | B145: 1700.393081 | C145: 0 | D145: 5 | E145: 0 | H145: 1741.916667 | I145: 1741.958333 | J145: 27 | K145: 46.16130674 | L145: -19.16130674 | N145: -0.7002944513 | O145: 0 | T145: 1869.046909 | U145: 1869.051275 | V145: 32.33333333 | W145: 42.30555556 | X145: 59.28703704 | Y145: -9.972222222 | Z145: -26.9537037 | AB145: -0.007773078239 | AC145: 0 | AD145: 0.7660559359 | AE145: 0 | AF145: -0.4999535995 | AG145: =AG144 -> 0 | AM145: 1871.535332 | AN145: 1871.548429 | AO145: 121.5 | AP145: 101.045679 | AQ145: 20.45432099 | AS145: 0.5587021345 | AT145: -0.0105 | AY145: 1878.293364 | AZ145: 1878.332655 | BA145: 3.310344828 | BB145: 6.089354132 | BC145: -2.779009305 | BE145: -0.1776245485 | BF145: -0.196 | BK145: 1900.689168 | BL145: 1900.80704 | BM145: =AVERAGEIFS(Intl_SS,DecDate,">"&BK145,DecDate,"<="&BK146) -> 10.52325581 | BN145: 8.127906977 | BO145: 9.653776471 | BP145: -1.525869494 | BQ145: =BM145-BO145 -> 0.869479343 | BS145: 0.7480528045 | BT145: 0.0093 | BY145: 1782.816514 | BZ145: 1783.170132 | CA145: 28.86821705 | CB145: 42.39894047 | CC145: -13.53072341 | CE145: 0.01731811424 | CF145: -0.8665 | CK145: 1984.378751 | CL145: 1985.439605 | CM145: 22.00258065 | CN145: 84.20972556 | CO145: -62.20714492 | CQ145: 0.6745866742 | CR145: -14.45
A146: 1700-05-25 | B146: 1700.395821 | C146: 0 | D146: 5 | E146: 0 | H146: 1742 | I146: 1742.041667 | J146: 22 | K146: 45.96970369 | L146: -23.96970369 | N146: -0.7365415164 | O146: 0 | T146: 1869.05564 | U146: 1869.060006 | V146: 23.25 | W146: 32.08333333 | X146: 62.58333333 | Y146: -8.833333333 | Z146: -39.33333333 | AB146: -0.6795684786 | AC146: 0 | AD146: 0.9999999998 | AE146: 0 | AF146: 0.9999999986 | AG146: =AG145 -> 0 | AM146: 1871.561525 | AN146: 1871.574622 | AO146: 82.1 | AP146: 95.44567901 | AQ146: -13.34567901 | AS146: 0.9610983899 | AT146: -0.0105 | AY146: 1878.371945 | AZ146: 1878.411236 | BA146: 13.4137931 | BB146: 6.379447181 | BC146: 7.034345922 | BE146: -0.7686345105 | BF146: -0.196 | BK146: 1900.924913 | BL146: 1901.042786 | BM146: 1.430232558 | BN146: 6.414728682 | BO146: 8.494832041 | BP146: -2.080103359 | BQ146: -7.064599483 | BS146: 0.1464626322 | BT146: 0.0093 | BY146: 1783.52375 | BZ146: 1783.877368 | CA146: 14.62403101 | CB146: 43.40970705 | CC146: -28.78567604 | CE146: 0.6559576561 | CF146: -0.8665 | CK146: 1986.500459 | CL146: 1987.561313 | CM146: 41.73935484 | CN146: 83.23010801 | CO146: -41.49075317 | CQ146: 0.04226035523 | CR146: -14.45
A147: 1700-05-26 | B147: 1700.39856 | C147: 0 | D147: 5 | E147: 0 | H147: 1742.083333 | I147: 1742.125 | J147: 21.93333333 | K147: 45.75723549 | L147: -23.82390216 | N147: -0.7707872262 | O147: 0 | T147: 1869.064371 | U147: 1869.068737 | V147: 40.66666667 | W147: 42.41666667 | X147: 63.42592593 | Y147: -1.75 | Z147: -22.75925926 | AB147: -0.9964555105 | AC147: 0 | AD147: 0.7660329501 | AE147: 0 | AF147: -0.500046399 | AG147: =AG146 -> 0 | AM147: 1871.587719 | AN147: 1871.600816 | AO147: 89.22222222 | AP147: 99.91481481 | AQ147: -10.69259259 | AS147: 0.9137860272 | AT147: -0.0105 | AY147: 1878.450527 | AZ147: 1878.489818 | BA147: 4.678571429 | BB147: 5.486726875 | BC147: -0.8081554461 | BE147: -0.9999918426 | BF147: -0.196 | BK147: 1901.160658 | BL147: 1901.278531 | BM147: 7.290697674 | BN147: 4.724806202 | BO147: 7.639534884 | BP147: -2.914728682 | BQ147: -0.3488372093 | BS147: -0.5236590334 | BT147: 0.0093 | BY147: 1784.230986 | BZ147: 1784.584604 | CA147: 9.66023166 | CB147: 48.74131773 | CC147: -39.08108607 | CE147: 0.9876673206 | CF147: -0.8665 | CK147: 1988.622167 | CL147: 1989.68302 | CM147: 148.5754839 | CN147: 74.43137128 | CO147: 74.14411259 | CQ147: -0.6098400536 | CR147: -14.45
A148: 1700-05-27 | B148: 1700.4013 | C148: 0 | D148: 5 | E148: 0 | H148: 1742.166667 | I148: 1742.208333 | J148: 21 | K148: 45.58166297 | L148: -24.58166297 | N148: -0.8029385269 | O148: 0 | T148: 1869.073103 | U148: 1869.077468 | V148: 63.33333333 | W148: 68.11111111 | X148: 58.57407407 | Y148: -4.777777778 | Z148: 4.759259259 | AB148: -0.7929381818 | AC148: 0 | AD148: 0.1736305696 | AE148: 0 | AF148: -0.4999535995 | AG148: =AG147 -> 0 | AM148: 1871.613913 | AN148: 1871.62701 | AO148: 157.3 | AP148: 97.41481481 | AQ148: 59.88518519 | AS148: 0.4389030268 | AT148: -0.0105 | AY148: 1878.529109 | AZ148: 1878.5684 | BA148: 0.1379310345 | BB148: 4.721811713 | BC148: -4.583880679 | BE148: -0.7634418779 | BF148: -0.196 | BK148: 1901.396404 | BL148: 1901.514276 | BM148: 5.453488372 | BN148: 5.523255814 | BO148: 6.164082687 | BP148: -0.6408268734 | BQ148: -0.7105943152 | BS148: -0.9487548175 | BT148: 0.0093 | BY148: 1784.938222 | BZ148: 1785.29184 | CA148: =AVERAGEIFS(Intl_SS,DecDate,">"&BY148,DecDate,"<="&BY149) -> 17.57751938 | CB148: 57.65518509 | CC148: =CA148-CB148 -> -40.07766571 | CE148: 0.857236469 | CF148: -0.8665 | CK148: 1990.743874 | CL148: 1991.804728 | CM148: 123.8477419 | CN148: 70.38698411 | CO148: 53.46075782 | CQ148: -0.9765895237 | CR148: -14.45
A149: 1700-05-28 | B149: 1700.40404 | C149: 0 | D149: 5 | E149: 0 | H149: 1742.25 | I149: 1742.291667 | J149: 21 | K149: 45.40609045 | L149: -24.40609045 | N149: =SIN((2*PI()*(I149-2000+O149)/10.04352) + 1.984402856) -> -0.8329080561 | O149: =O148 -> 0 | T149: 1869.081834 | U149: 1869.0862 | V149: 100.3333333 | W149: 88.77777778 | X149: 59.27777778 | Y149: 11.55555556 | Z149: 41.05555556 | AB149: -0.1753045347 | AC149: 0 | AD149: -0.5000154842 | AE149: 0 | AF149: 0.9999999986 | AG149: =AG148 -> 0 | AM149: 1871.640107 | AN149: 1871.653204 | AO149: 89 | AP149: 96.10617284 | AQ149: -7.10617284 | AS149: -0.2413475777 | AT149: -0.0105 | AY149: 1878.607691 | AZ149: 1878.646982 | BA149: =AVERAGEIFS(Intl_SS,DecDate,">"&AY149,DecDate,"<="&AY150) -> 3.24137931 | BB149: 4.532293377 | BC149: =BA149-BB149 -> -1.290914067 | BE149: -0.1696689738 | BF149: -0.196 | BK149: 1901.632149 | BL149: 1901.750022 | BM149: 3.825581395 | BN149: 4.608527132 | BO149: 5.894056848 | BP149: -1.285529716 | BQ149: -2.068475452 | BS149: -0.9299176782 | BT149: 0.0093 | BY149: 1785.645458 | BZ149: 1785.999076 | CA149: 46.32170543 | CB149: 67.6538931 | CC149: -21.33218767 | CE149: 0.3256951465 | CF149: -0.8665 | CK149: 1992.865582 | CL149: 1993.926436 | CM149: 45.27131783 | CN149: 72.22926339 | CO149: -26.95794556 | CQ149: -0.8863819021 | CR149: -14.45
A150: 1700-05-29 | B150: 1700.406779 | C150: 0 | D150: 5 | E150: 0 | H150: 1742.333333 | I150: 1742.375 | J150: 20.96666667 | K150: 45.20761717 | L150: -24.2409505 | N150: -0.8606143794 | O150: 0 | T150: 1869.090565 | U150: 1869.094931 | V150: 102.6666667 | W150: 84.75 | X150: 62.31481481 | Y150: 17.91666667 | Z150: 40.35185185 | AB150: 0.533882868 | AC150: 0 | AD150: -0.9396987359 | AE150: 0 | AF150: -0.500046399 | AG150: =AG149 -> 0 | AM150: 1871.666301 | AN150: 1871.679398 | AO150: =AVERAGEIFS(Intl_SS,DecDate,">"&AM150,DecDate,"<="&AM151) -> 64.6 | AP150: 94.35925926 | AQ150: =AO150-AP150 -> -29.75925926 | AS150: -0.8086689683 | AT150: -0.0105 | AY150: 1878.686272 | AZ150: 1878.725563 | BA150: 5.714285714 | BB150: 4.310071155 | BC150: 1.404214559 | BE150: 0.5034939288 | BF150: -0.196 | BK150: 1901.867894 | BL150: 1901.985767 | BM150: 4.546511628 | BN150: 5.120155039 | BO150: 5.865633075 | BP150: -0.7454780362 | BQ150: -1.319121447 | BS150: -0.4759617224 | BT150: 0.0093 | BY150: 1786.352694 | BZ150: 1786.706312 | CA150: 100.4341085 | CB150: 77.22966821 | CC150: 23.20444032 | CE150: -0.3582425548 | CF150: -0.8665 | CK150: 1994.98729 | CL150: 1996.048144 | CM150: 12.83247423 | CN150: 74.74086096 | CO150: -61.90838673 | CQ150: -0.3814263375 | CR150: -14.45
A151: 1700-05-30 | B151: 1700.409519 | C151: 0 | D151: 5 | E151: 0 | H151: 1742.416667 | I151: 1742.458333 | J151: 20 | K151: 45.04731183 | L151: -25.04731183 | N151: -0.8859822125 | O151: 0 | T151: 1869.099297 | U151: 1869.103662 | V151: 51.25 | W151: 65.30555556 | X151: 65.62037037 | Y151: -14.05555556 | Z151: -14.37037037 | AB151: 0.9642470121 | AC151: 0 | AD151: -0.9396865054 | AE151: 0 | AF151: -0.4999535995 | AG151: =AG150 -> 0 | AM151: 1871.692495 | AN151: 1871.705592 | AO151: 108.3333333 | AP151: 94.12592593 | AQ151: 14.20740741 | AS151: -0.9976051613 | AT151: -0.0105 | AY151: 1878.764854 | AZ151: 1878.804145 | BA151: 4 | BB151: 3.049534756 | BC151: 0.9504652436 | BE151: 0.9410664264 | BF151: -0.196 | BK151: 1902.10364 | BL151: 1902.221512 | BM151: 6.988372093 | BN151: 4.841085271 | BO151: 7.753229974 | BP151: -2.912144703 | BQ151: -0.7648578811 | BS151: 0.200702013 | BT151: 0.0093 | BY151: 1787.05993 | BZ151: 1787.413548 | CA151: 123.5232558 | CB151: 86.91786803 | CC151: 36.60538778 | CE151: -0.8745545833 | CF151: -0.8665 | CK151: 1997.108998 | CL151: 1998.169851 | CM151: 47.33591731 | CN151: 71.75130301 | CO151: -24.4153857 | CQ151: 0.3020028496 | CR151: -14.45
A152: 1700-05-31 | B152: 1700.412259 | C152: 0 | D152: 5 | E152: 0 | H152: 1742.5 | I152: 1742.541667 | J152: 19.96666667 | K152: 44.8793729 | L152: -24.91270623 | N152: -0.9089426248 | O152: 0 | T152: 1869.108028 | U152: 1869.112394 | V152: 42 | W152: 56.97222222 | X152: 65.5462963 | Y152: -14.97222222 | Z152: -23.5462963 | AB152: 0.8910278607 | AC152: 0 | AD152: -0.4999845156 | AE152: 0 | AF152: 0.9999999986 | AG152: =AG151 -> 0 | AM152: 1871.718689 | AN152: 1871.731786 | AO152: 70.9 | AP152: 93.94074074 | AQ152: -23.04074074 | AS152: -0.7197508122 | AT152: -0.0105 | AY152: 1878.843436 | AZ152: 1878.882727 | BA152: 4.75862069 | BB152: 2.533661741 | BC152: 2.224958949 | BE152: 0.9383034843 | BF152: -0.196 | BK152: 1902.339385 | BL152: 1902.457258 | BM152: 2.988372093 | BN152: 6.658914729 | BO152: 9.224806202 | BP152: -2.565891473 | BQ152: -6.236434109 | BS152: 0.783455046 | BT152: 0.0093 | BY152: 1787.767166 | BZ152: 1788.120784 | CA152: 139.0542636 | CB152: 94.35139957 | CC152: 44.70286399 | CE152: -0.9816528026 | CF152: -0.8665 | CK152: 1999.230705 | CL152: 2000.291559 | CM152: 109.560567 | CN152: 55.54839969 | CO152: 54.01216732 | CQ152: 0.8441215469 | CR152: -14.45
A153: 1700-06-01 | B153: 1700.414999 | C153: 0 | D153: 6 | E153: 0 | H153: 1742.583333 | I153: 1742.625 | J153: 19 | K153: 44.73280801 | L153: -25.73280801 | N153: -0.9294332277 | O153: 0 | T153: 1869.116759 | U153: 1869.121125 | V153: 77.66666667 | W153: 59.77777778 | X153: 62.28703704 | Y153: 17.88888889 | Z153: 15.37962963 | AB153: 0.3524645176 | AC153: 0 | AD153: 0.1736657857 | AE153: 0 | AF153: -0.500046399 | AG153: =AG152 -> 0 | AM153: 1871.744883 | AN153: 1871.75798 | AO153: 82 | AP153: 89.44074074 | AQ153: -7.440740741 | AS153: -0.1051170589 | AT153: -0.0105 | AY153: 1878.922018 | AZ153: 1878.961309 | BA153: 1.535714286 | BB153: 3.510673235 | BC153: -1.974958949 | BE153: 0.4964979138 | BF153: -0.196 | BK153: 1902.57513 | BL153: 1902.693003 | BM153: 10 | BN153: 7.751937984 | BO153: 11.28036176 | BP153: -3.528423773 | BQ153: -1.280361757 | BS153: 0.9996207558 | BT153: 0.0093 | BY153: 1788.474402 | BZ153: 1788.82802 | CA153: 128.8217054 | CB153: 99.57362179 | CC153: 29.24808363 | CE153: -0.6294247658 | CF153: -0.8665 | CK153: 2001.352413 | CL153: 2002.413267 | CM153: 98.89793282 | CQ153: 0.9912663911 | CR153: -14.45
A154: 1700-06-02 | B154: 1700.417738 | C154: 0 | D154: 6 | E154: 0 | H154: 1742.666667 | I154: 1742.708333 | J154: 19 | K154: 44.56588689 | L154: -25.56588689 | N154: -0.9473983433 | O154: 0 | T154: 1869.125491 | U154: 1869.129856 | V154: 59.66666667 | W154: =AVERAGE(V153:V155) -> 63.44444444 | X154: =AVERAGE(V150:V158) -> 55.36111111 | Y154: =V154-W154 -> -3.777777778 | Z154: 4.305555556 | AB154: -0.3701753546 | AC154: 0 | AD154: 0.7660559358 | AE154: 0 | AF154: -0.4999535996 | AG154: =AG153 -> 0 | AM154: 1871.771077 | AN154: 1871.784174 | AO154: 105.7777778 | AP154: 93.39135802 | AQ154: 12.38641975 | AS154: 0.5587021345 | AT154: -0.0105 | AY154: 1879.0006 | AZ154: 1879.03989 | BA154: 1.310344828 | BB154: 3.67925561 | BC154: -2.368910783 | BE154: -0.1776245485 | BF154: -0.196 | BK154: 1902.810875 | BL154: 1902.928748 | BM154: 10.26744186 | BN154: 12.89534884 | BO154: 15.8501292 | BP154: -2.954780362 | BQ154: -5.582687339 | BS154: 0.7480528045 | BT154: 0.0093 | BY154: 1789.181638 | BZ154: 1789.535256 | CA154: 115.0501931 | CB154: 101.2097114 | CC154: 13.84048168 | CE154: 0.01731811424 | CF154: -0.8665 | CK154: 2003.474121 | CL154: 2004.534975 | CM154: 44.60695876 | CQ154: 0.6745866742 | CR154: -14.45
A155: 1700-06-03 | B155: 1700.420478 | C155: 0 | D155: 6 | E155: 0 | H155: 1742.75 | I155: 1742.791667 | J155: 19 | K155: 44.41321514 | L155: -25.41321514 | N155: -0.9627891563 | O155: 0 | T155: 1869.134222 | U155: 1869.138588 | V155: 53 | W155: 50.88888889 | X155: 50.73148148 | Y155: 2.111111111 | Z155: 2.268518519 | AB155: -0.8994891158 | AC155: 0 | AD155: 0.9999999998 | AE155: 0 | AF155: 0.9999999986 | AG155: =AG154 -> 0 | AM155: 1871.797271 | AN155: 1871.810368 | AO155: 80 | AP155: 93.89135802 | AQ155: -13.89135802 | AS155: 0.9610983899 | AT155: -0.0105 | AY155: 1879.079181 | AZ155: 1879.118472 | BA155: 2.068965517 | BB155: 3.564176245 | BC155: -1.495210728 | BE155: -0.7686345105 | BF155: -0.196 | BK155: 1903.046621 | BL155: 1903.164493 | BM155: 18.41860465 | BN155: 16.40697674 | BO155: 18.6106062 | BP155: -2.203629451 | BQ155: -0.1920015444 | BS155: 0.1464626322 | BT155: 0.0093 | BY155: 1789.888874 | BZ155: 1790.242492 | CA155: 101.8178295 | CB155: 96.2269379 | CC155: 5.590891556 | CE155: 0.6559576561 | CF155: -0.8665 | CK155: 2005.595829 | CL155: 2006.656683 | CM155: 14.83333333 | CQ155: 0.04226035523 | CR155: -14.45
A156: 1700-06-04 | B156: 1700.423218 | C156: 0 | D156: 6 | E156: 0 | H156: 1742.833333 | I156: 1742.875 | J156: 18 | K156: 44.25978002 | L156: -26.25978002 | N156: -0.9755638463 | O156: 0 | T156: 1869.142953 | U156: 1869.147319 | V156: 40 | W156: 42.33333333 | X156: 49.48148148 | Y156: -2.333333333 | Z156: -9.481481481 | AB156: -0.9590397484 | AC156: 0 | AD156: 0.7660329502 | AE156: 0 | AF156: -0.500046399 | AG156: =AG155 -> 0 | AM156: 1871.823465 | AN156: 1871.836562 | AO156: 87.55555556 | AP156: 91.97777778 | AQ156: -4.422222222 | AS156: 0.9137860272 | AT156: -0.0105 | AY156: 1879.157763 | AZ156: 1879.197054 | BA156: 0.03571428571 | BB156: 4.579501916 | BC156: -4.54378763 | BE156: -0.9999918426 | BF156: -0.196 | BK156: 1903.282366 | BL156: 1903.400239 | BM156: 20.53488372 | BN156: 20.96899225 | BO156: 22.56538656 | BP156: -1.596394309 | BQ156: -2.030502836 | BS156: -0.5236590334 | BT156: 0.0093 | BY156: 1790.596109 | BZ156: 1790.949727 | CA156: 76.5620155 | CB156: 87.17095168 | CC156: -10.60893618 | CE156: 0.9876673206 | CF156: -0.8665 | CK156: 2007.717536 | CL156: 2008.77839 | CM156: 2.749354005 | CQ156: -0.6098400536 | CR156: -14.45
A157: 1700-06-05 | B157: 1700.425958 | C157: 0 | D157: 6 | E157: 0 | H157: 1742.916667 | I157: 1742.958333 | J157: 18 | K157: 44.08471641 | L157: -26.08471641 | N157: -0.9856877013 | O157: 0 | T157: 1869.151685 | U157: 1869.15605 | V157: 34 | W157: 37.33333333 | X157: 51.14814815 | Y157: -3.333333333 | Z157: -17.14814815 | AB157: -0.5177266076 | AC157: 0 | AD157: 0.1736305696 | AE157: 0 | AF157: -0.4999535996 | AG157: =AG156 -> 0 | AM157: 1871.849659 | AN157: 1871.862756 | AO157: 116.8 | AP157: 96.56666667 | AQ157: 20.23333333 | AS157: 0.4389030268 | AT157: -0.0105 | AY157: 1879.236345 | AZ157: 1879.275636 | BA157: 8.931034483 | BB157: 5.295977011 | BC157: 3.635057471 | BE157: -0.7634418779 | BF157: -0.196 | BK157: 1903.518111 | BL157: 1903.635984 | BM157: 23.95348837 | BN157: 29.81395349 | BO157: 27.66228578 | BP157: 2.151667706 | BQ157: -3.70879741 | BS157: -0.9487548175 | BT157: 0.0093 | BY157: 1791.303345 | BZ157: 1791.656963 | CA157: 64.57751938 | CB157: 75.75694299 | CC157: -11.17942361 | CE157: 0.857236469 | CF157: -0.8665 | CK157: 2009.839244 | CL157: 2010.900098 | CQ157: -0.9765895237 | CR157: -14.45
A158: 1700-06-06 | B158: 1700.428697 | C158: 0 | D158: 6 | E158: 0 | H158: 1743 | I158: 1743.041667 | J158: 18 | K158: 43.92364771 | L158: -25.92364771 | N158: -0.9931332125 | O158: 0 | T158: 1869.160416 | U158: 1869.164782 | V158: 38 | W158: 44.33333333 | X158: 51.74074074 | Y158: -6.333333333 | Z158: -13.74074074 | AB158: 0.1939720962 | AC158: 0 | AD158: -0.5000154842 | AE158: 0 | AF158: 0.9999999986 | AG158: =AG157 -> 0 | AM158: 1871.875853 | AN158: 1871.88895 | AO158: 124.5555556 | AP158: 95.01111111 | AQ158: 29.54444444 | AS158: -0.2413475777 | AT158: -0.0105 | AY158: 1879.314927 | AZ158: 1879.354218 | BA158: 4.75862069 | BB158: 6.657088123 | BC158: -1.898467433 | BE158: -0.1696689738 | BF158: -0.196 | BK158: 1903.753857 | BL158: 1903.871729 | BM158: 44.95348837 | BN158: 32.76592711 | BO158: 31.21267338 | BP158: 1.553253735 | BQ158: 13.74081499 | BS158: -0.9299176782 | BT158: 0.0093 | BY158: 1792.010581 | BZ158: 1792.364199 | CA158: 61.04651163 | CB158: 64.82498778 | CC158: -3.778476151 | CE158: 0.3256951465 | CF158: -0.8665 | CK158: 2011.960952 | CL158: 2013.021806 | CQ158: -0.8863819021 | CR158: -14.45
A159: 1700-06-07 | B159: 1700.431437 | C159: 0 | D159: 6 | E159: 0 | H159: 1743.083333 | I159: 1743.125 | J159: 17.93333333 | K159: 43.7409505 | L159: -25.80761717 | N159: -0.9978801488 | O159: 0 | T159: 1869.169147 | U159: 1869.173513 | V159: =AVERAGEIFS(Intl_SS,DecDate,">"&T159,DecDate,"<="&T160) -> 61 | W159: 46.33333333 | X159: 52.48148148 | Y159: 14.66666667 | Z159: =V159-X159 -> 8.518518519 | AB159: 0.8043678079 | AC159: 0 | AD159: -0.9396987358 | AE159: 0 | AF159: -0.500046399 | AG159: =AG158 -> 0 | AM159: 1871.902046 | AN159: 1871.915143 | AO159: 69.1 | AP159: 92.25802469 | AQ159: -23.15802469 | AS159: -0.8086689683 | AT159: -0.0105 | AY159: 1879.393508 | AZ159: 1879.432799 | BA159: 4.678571429 | BB159: 7.932950192 | BC159: -3.254378763 | BE159: 0.5034939288 | BF159: -0.196 | BK159: 1903.989602 | BL159: 1904.107475 | BM159: 29.3908046 | BN159: 38.97522944 | BO159: 37.64911343 | BP159: 1.326116012 | BQ159: -8.25830883 | BS159: -0.4759617224 | BT159: 0.0093 | BY159: 1792.717817 | BZ159: 1793.071435 | CA159: 55.58914729 | CB159: 54.30519889 | CC159: 1.2839484 | CE159: -0.3582425548 | CF159: -0.8665 | CK159: 2014.08266 | CL159: 2015.143514 | CQ159: -0.3814263375 | CR159: -14.45
A160: 1700-06-08 | B160: 1700.434177 | C160: 0 | D160: 6 | E160: 0 | H160: 1743.166667 | I160: 1743.208333 | J160: 17 | K160: 43.57301157 | L160: -26.57301157 | N160: -0.9999156115 | O160: 0 | T160: 1869.177878 | U160: 1869.182244 | V160: 40 | W160: 52.66666667 | X160: 55.18518519 | Y160: -12.66666667 | Z160: -15.18518519 | AB160: 0.9946780162 | AC160: 0 | AD160: -0.9396865054 | AE160: 0 | AF160: -0.4999535996 | AG160: =AG159 -> 0 | AM160: 1871.92824 | AN160: 1871.941337 | AO160: 91.11111111 | AP160: 93.15802469 | AQ160: -2.04691358 | AS160: -0.9976051613 | AT160: -0.0105 | AY160: 1879.47209 | AZ160: 1879.511381 | BA160: 13.13793103 | BB160: 9.72605364 | BC160: 3.411877395 | BE160: 0.9410664264 | BF160: -0.196 | BK160: 1904.225347 | BL160: 1904.34322 | BM160: 42.58139535 | BN160: 40.27755502 | BO160: 40.94368707 | BP160: -0.6661320503 | BQ160: 1.637708278 | BS160: 0.200702013 | BT160: 0.0093 | BY160: 1793.425053 | BZ160: 1793.778671 | CA160: 42.01937984 | CB160: 44.64154686 | CC160: -2.622167018 | CE160: -0.8745545833 | CF160: -0.8665 | CK160: 2016.204367 | CL160: 2017.265221 | CQ160: 0.3020028496 | CR160: -14.45
A161: 1700-06-09 | B161: 1700.436916 | C161: 0 | D161: 6 | E161: 0 | H161: =H160 +(1/12) -> 1743.25 | I161: =I160 +(1/12) -> 1743.291667 | J161: 17 | K161: 43.40556513 | L161: =J161-K161 -> -26.40556513 | N161: -0.9992340699 | O161: 0 | T161: 1869.18661 | U161: 1869.190975 | V161: 57 | W161: 60 | X161: 53.96296296 | Y161: -3 | Z161: 3.037037037 | AB161: 0.6655121702 | AC161: 0 | AD161: -0.4999845157 | AE161: 0 | AF161: 0.9999999986 | AG161: =AG160 -> 0 | AM161: 1871.954434 | AN161: 1871.967531 | AO161: 112.2 | AP161: 92.00987654 | AQ161: 20.19012346 | AS161: -0.7197508122 | AT161: -0.0105 | AY161: 1879.550672 | AZ161: 1879.589963 | BA161: 11.20689655 | BB161: 11.12055282 | BC161: 0.0863437329 | BE161: 0.9383034843 | BF161: -0.196 | BK161: 1904.461093 | BL161: 1904.578965 | BM161: 48.86046512 | BN161: 44.46511628 | BO161: 45.44627105 | BP161: -0.9811547715 | BQ161: 3.414194066 | BS161: 0.783455046 | BT161: 0.0093 | BY161: 1794.132289 | BZ161: 1794.485907 | CA161: 36.32818533 | CB161: 36.87668898 | CC161: -0.5485036532 | CE161: -0.9816528026 | CF161: -0.8665 | CK161: 2018.326075 | CL161: 2019.386929 | CQ161: 0.8441215469 | CR161: -14.45
A162: 1700-06-10 | B162: 1700.439656 | C162: 0 | D162: 6 | E162: 0 | H162: 1743.333333 | I162: 1743.375 | J162: 16.96666667 | K162: 43.22999261 | L162: -26.26332595 | N162: -0.9958373759 | O162: 0 | T162: 1869.195341 | U162: 1869.199707 | V162: 83 | W162: 68.77777778 | X162: 53.03703704 | Y162: 14.22222222 | Z162: 29.96296296 | AB162: -0.01122106021 | AC162: 0 | AD162: 0.1736657857 | AE162: 0 | AF162: -0.5000463989 | AG162: =AG161 -> 0 | AM162: 1871.980628 | AN162: 1871.993725 | AO162: 68 | AP162: 95.58765432 | AQ162: -27.58765432 | AS162: -0.1051170589 | AT162: -0.0105 | AY162: 1879.629254 | AZ162: 1879.668545 | BA162: 13.78571429 | BB162: 11.95361248 | BC162: 1.832101806 | BE162: 0.4964979138 | BF162: -0.196 | BK162: 1904.696838 | BL162: 1904.814711 | BM162: 41.95348837 | BN162: 53.0031186 | BO162: 50.9023434 | BP162: 2.100775194 | BQ162: -8.94885503 | BS162: 0.9996207558 | BT162: 0.0093 | BY162: 1794.839525 | BZ162: 1795.193143 | CA162: 30.43410853 | CB162: 30.23543144 | CC162: 0.1986770824 | CE162: -0.6294247658 | CF162: -0.8665 | CK162: 2020.447783 | CL162: 2021.508637 | CQ162: 0.9912663911 | CR162: -14.45
A163: 1700-06-11 | B163: 1700.442396 | C163: 0 | D163: 6 | E163: 0 | H163: 1743.416667 | I163: 1743.458333 | J163: 16 | K163: 43.05442009 | L163: -27.05442009 | N163: -0.9897347591 | O163: 0 | T163: 1869.204072 | U163: 1869.208438 | V163: 66.33333333 | W163: 75.55555556 | X163: 53.06481481 | Y163: -9.222222222 | Z163: 13.26851852 | AB163: -0.6820940303 | AC163: 0 | AD163: 0.7660559358 | AE163: 0 | AF163: -0.4999535996 | AG163: =AG162 -> 0 | AM163: 1872.006822 | AN163: 1872.019919 | AO163: 81 | AP163: 91.79753086 | AQ163: -10.79753086 | AS163: 0.5587021345 | AT163: -0.0105 | AY163: 1879.707835 | AZ163: 1879.747126 | BA163: 12.79310345 | BB163: 15.01491516 | BC163: -2.221811713 | BE163: -0.1776245485 | BF163: -0.196 | BK163: 1904.932583 | BL163: 1905.050456 | BM163: 68.1954023 | BN163: 52.7395527 | BO163: 52.24601265 | BP163: 0.4935400517 | BQ163: 15.94938965 | BS163: 0.7480528045 | BT163: 0.0093 | BY163: 1795.546761 | BZ163: 1795.900379 | CA163: 20.37209302 | CB163: 23.84611189 | CC163: -3.474018869 | CE163: 0.01731811424 | CF163: -0.8665 | CK163: 2022.569491 | CL163: 2023.630345 | CQ163: 0.6745866742 | CR163: -14.45
A164: 1700-06-12 | B164: 1700.445136 | C164: 0 | D164: 6 | E164: 0 | H164: 1743.5 | I164: 1743.541667 | J164: 15.96666667 | K164: 42.82541246 | L164: -26.85874579 | N164: -0.9809428016 | O164: 0 | T164: 1869.212804 | U164: 1869.217169 | V164: 77.33333333 | W164: 57.55555556 | X164: 48.10185185 | Y164: 19.77777778 | Z164: 29.23148148 | AB164: -0.9967396486 | AC164: 0 | AD164: 0.9999999998 | AE164: 0 | AF164: 0.9999999986 | AG164: =AG163 -> 0 | AM164: 1872.033016 | AN164: 1872.046113 | AO164: 88.1 | AP164: 97.3318743 | AQ164: -9.231874299 | AS164: 0.9610983899 | AT164: -0.0105 | AY164: 1879.786417 | AZ164: 1879.825708 | BA164: 18.20689655 | BB164: 17.48766648 | BC164: 0.7192300675 | BE164: -0.7686345105 | BF164: -0.196 | BK164: 1905.168329 | BL164: 1905.286201 | BM164: 48.06976744 | BN164: 59.10776976 | BO164: 54.83308088 | BP164: 4.274688883 | BQ164: -6.763313434 | BS164: 0.1464626322 | BT164: 0.0093 | BY164: 1796.253997 | BZ164: 1796.607615 | CA164: 14.84496124 | CB164: 18.53097283 | CC164: -3.686011593 | CE164: 0.6559576561 | CF164: -0.8665
A165: 1700-06-13 | B165: 1700.447875 | C165: 0 | D165: 6 | E165: 0 | H165: 1743.583333 | I165: 1743.625 | J165: 15 | K165: 42.5770664 | L165: -27.5770664 | N165: -0.9694853934 | O165: 0 | T165: 1869.221535 | U165: 1869.225901 | V165: 29 | W165: 44 | X165: 46.62037037 | Y165: -15 | Z165: -17.62037037 | AB165: -0.7908325137 | AC165: 0 | AD165: 0.7660329502 | AE165: 0 | AF165: -0.5000463989 | AG165: =AG164 -> 0 | AM165: 1872.05921 | AN165: 1872.072307 | AO165: 77.22222222 | AP165: 94.91952862 | AQ165: -17.6973064 | AS165: 0.9137860273 | AT165: -0.0105 | AY165: 1879.864999 | AZ165: 1879.90429 | BA165: 12.5862069 | BB165: 18.67472177 | BC165: -6.08851487 | BE165: -0.9999918426 | BF165: -0.196 | BK165: 1905.404074 | BL165: 1905.521947 | BM165: 61.05813953 | BN165: 60.72868217 | BO165: 58.70904987 | BP165: 2.019632303 | BQ165: 2.349089667 | BS165: -0.5236590334 | BT165: 0.0093 | BY165: 1796.961233 | BZ165: 1797.314851 | CA165: 6.678294574 | CB165: 14.82813046 | CC165: -8.149835882 | CE165: 0.9876673206 | CF165: -0.8665
A166: 1700-06-14 | B166: 1700.450615 | C166: 0 | D166: 6 | E166: 0 | H166: 1743.666667 | I166: 1743.708333 | J166: 15 | K166: 42.31345317 | L166: -27.31345317 | N166: -0.9553936669 | O166: 0 | T166: 1869.230266 | U166: 1869.234632 | V166: 25.66666667 | W166: 30.97222222 | X166: 42.84259259 | Y166: -5.305555556 | Z166: -17.17592593 | AB166: -0.1719087571 | AC166: 0 | AD166: 0.1736305696 | AE166: 0 | AF166: -0.4999535997 | AG166: =AG165 -> 0 | AM166: 1872.085404 | AN166: 1872.098501 | AO166: 149 | AP166: 88.42817059 | AQ166: 60.57182941 | AS166: 0.4389030269 | AT166: -0.0105 | AY166: 1879.943581 | AZ166: 1879.982872 | BA166: 16.42857143 | BB166: 19.92759533 | BC166: -3.499023901 | BE166: -0.7634418779 | BF166: -0.196 | BK166: 1905.639819 | BL166: 1905.757692 | BM166: 73.05813953 | BN166: 63.72093023 | BO166: 58.00103953 | BP166: 5.719890701 | BQ166: 15.0571 | BS166: -0.9487548175 | BT166: 0.0093 | BY166: 1797.668469 | BZ166: 1798.022087 | CA166: 4.80620155 | CB166: 13.23826318 | CC166: -8.43206163 | CE166: 0.857236469 | CF166: -0.8665
A167: 1700-06-15 | B167: 1700.453355 | C167: 0 | D167: 6 | E167: 0 | H167: 1743.75 | I167: 1743.791667 | J167: 15 | K167: 42.09615037 | L167: -27.09615037 | N167: -0.9387059126 | O167: 0 | T167: 1869.238998 | U167: 1869.243363 | V167: 38.25 | W167: 26.75 | X167: 38.39814815 | Y167: 11.5 | Z167: -0.1481481481 | AB167: 0.5367952916 | AC167: 0 | AD167: -0.5000154842 | AE167: 0 | AF167: 0.9999999986 | AG167: =AG166 -> 0 | AM167: 1872.111598 | AN167: 1872.124695 | AO167: 90.44444444 | AP167: 95.59483726 | AQ167: -5.150392817 | AS167: -0.2413475776 | AT167: -0.0105 | AY167: 1880.022163 | AZ167: 1880.061453 | BA167: 32.31034483 | BB167: 21.22726692 | BC167: 11.08307791 | BE167: -0.1696689738 | BF167: -0.196 | BK167: 1905.875564 | BL167: 1905.993437 | BM167: 57.04651163 | BN167: 60.92635659 | BO167: 59.66512222 | BP167: 1.26123437 | BQ167: -2.618610591 | BS167: -0.9299176782 | BT167: 0.0093 | BY167: 1798.375705 | BZ167: 1798.729323 | CA167: 3.542635659 | CB167: 13.64610125 | CC167: -10.10346559 | CE167: 0.3256951465 | CF167: -0.8665
A168: 1700-06-16 | B168: 1700.456095 | C168: 0 | D168: 6 | E168: 0 | H168: 1743.833333 | I168: 1743.875 | J168: 14 | K168: 41.78778626 | L168: -27.78778626 | N168: -0.919467475 | O168: 0 | T168: 1869.247729 | U168: 1869.252095 | V168: 16.33333333 | W168: 27.08333333 | X168: 36.50925926 | Y168: -10.75 | Z168: -20.17592593 | AB168: 0.9651550524 | AC168: 0 | AD168: -0.9396987358 | AE168: 0 | AF168: -0.5000463989 | AG168: =AG167 -> 0 | AM168: 1872.137792 | AN168: 1872.150889 | AO168: 118.9090909 | AP168: 97.97755331 | AQ168: 20.9315376 | AS168: -0.8086689683 | AT168: -0.0105 | AY168: 1880.100744 | AZ168: 1880.140035 | BA168: 26.93333333 | BB168: 23.60739828 | BC168: 3.325935048 | BE168: 0.5034939288 | BF168: -0.196 | BK168: 1906.11131 | BL168: 1906.229182 | BM168: 52.6744186 | BN168: 62.39534884 | BO168: 60.72997416 | BP168: 1.665374677 | BQ168: -8.055555556 | BS168: -0.4759617224 | BT168: 0.0093 | BY168: 1799.08294 | BZ168: 1799.436558 | CA168: 7.752895753 | CB168: 16.46220806 | CC168: -8.709312302 | CE168: -0.3582425548 | CF168: -0.8665
A169: 1700-06-17 | B169: 1700.458834 | C169: 0 | D169: 6 | E169: 0 | H169: 1743.916667 | I169: 1743.958333 | J169: 14 | K169: 41.62722646 | L169: -27.62722646 | N169: -0.8977306294 | O169: 0 | T169: 1869.25646 | U169: 1869.260826 | V169: 26.66666667 | W169: 22 | X169: 33.11111111 | Y169: 4.666666667 | Z169: -6.444444444 | AB169: 0.8894572888 | AC169: 0 | AD169: -0.9396865054 | AE169: 0 | AF169: -0.4999535997 | AG169: =AG168 -> 0 | AM169: 1872.163986 | AN169: 1872.177083 | AO169: 69.4 | AP169: 99.55533109 | AQ169: -30.15533109 | AS169: -0.9976051613 | AT169: -0.0105 | AY169: 1880.179326 | AZ169: 1880.218617 | BA169: 23.82142857 | BB169: 24.47713009 | BC169: -0.6557015143 | BE169: 0.9410664264 | BF169: -0.196 | BK169: 1906.347055 | BL169: 1906.464928 | BM169: 77.46511628 | BN169: 57.54263566 | BO169: 59.77906977 | BP169: -2.236434109 | BQ169: 17.68604651 | BS169: 0.200702013 | BT169: 0.0093 | BY169: 1799.790176 | BZ169: 1800.143794 | CA169: 8.69379845 | CB169: 19.4863252 | CC169: -10.79252675 | CE169: -0.8745545833 | CF169: -0.8665
A170: 1700-06-18 | B170: 1700.461574 | C170: 0 | D170: 6 | E170: 0 | H170: 1744 | I170: 1744.041667 | J170: 10 | K170: 41.46216039 | L170: -31.46216039 | N170: -0.87355444 | O170: 0 | T170: 1869.265192 | U170: 1869.269557 | V170: 23 | W170: 30.88888889 | X170: 34.25925926 | Y170: -7.888888889 | Z170: -11.25925926 | AB170: 0.3492355732 | AC170: 0 | AD170: -0.4999845157 | AE170: 0 | AF170: 0.9999999986 | AG170: =AG169 -> 0 | AM170: 1872.19018 | AN170: 1872.203277 | AO170: 53.77777778 | AP170: 102.9997755 | AQ170: -49.22199776 | AS170: -0.7197508122 | AT170: -0.0105 | AY170: 1880.257908 | AZ170: 1880.297199 | BA170: 22.48275862 | BB170: 28.42732166 | BC170: -5.944563036 | BE170: 0.9383034843 | BF170: -0.196 | BK170: 1906.5828 | BL170: 1906.700673 | BM170: 42.48837209 | BN170: 58.96124031 | BO170: 60.4250646 | BP170: -1.463824289 | BQ170: -17.93669251 | BS170: 0.783455046 | BT170: 0.0093 | BY170: 1800.497412 | BZ170: 1800.85103 | CA170: 22.01937984 | CB170: 23.73697119 | CC170: -1.717591345 | CE170: -0.9816528026 | CF170: -0.8665
A171: 1700-06-19 | B171: 1700.464314 | C171: 0 | D171: 6 | E171: 0 | H171: 1744.083333 | I171: 1744.125 | J171: 9.866666667 | K171: 41.29447591 | L171: -31.42780924 | N171: -0.847004599 | O171: 0 | T171: 1869.273923 | U171: 1869.278289 | V171: 43 | W171: 38.44444444 | X171: 34.74074074 | Y171: 4.555555556 | Z171: 8.259259259 | AB171: -0.3733763376 | AC171: 0 | AD171: 0.1736657857 | AE171: 0 | AF171: -0.5000463989 | AG171: =AG170 -> 0 | AM171: 1872.216374 | AN171: 1872.229471 | AO171: 132.5 | AP171: 98.55533109 | AQ171: 33.94466891 | AS171: -0.105117059 | AT171: -0.0105 | AY171: 1880.33649 | AZ171: 1880.375781 | BA171: 25.48275862 | BB171: 32.9233534 | BC171: -7.440594782 | BE171: 0.4964979138 | BF171: -0.196 | BK171: 1906.818546 | BL171: 1906.936418 | BM171: 56.93023256 | BN171: 59.06589147 | BO171: 58.76614987 | BP171: 0.2997416021 | BQ171: -1.835917313 | BS171: 0.9996207558 | BT171: 0.0093 | BY171: 1801.204648 | BZ171: 1801.558266 | CA171: 34.10465116 | CB171: 27.93782653 | CC171: 6.166824632 | CE171: -0.6294247658 | CF171: -0.8665
A172: 1700-06-20 | B172: 1700.467053 | C172: 0 | D172: 6 | E172: 0 | H172: 1744.166667 | I172: 1744.208333 | J172: 8 | K172: 40.94431585 | L172: -32.94431585 | N172: -0.8181532487 | O172: 0 | T172: 1869.282654 | U172: 1869.28702 | V172: 49.33333333 | W172: 46.36111111 | X172: 39.97222222 | Y172: 2.972222222 | Z172: 9.361111111 | AB172: -0.9009904064 | AC172: 0 | AD172: 0.7660559358 | AE172: 0 | AF172: -0.4999535997 | AG172: =AG171 -> 0 | AM172: 1872.242567 | AN172: 1872.255664 | AO172: 102.4444444 | AP172: 96.39483726 | AQ172: 6.049607183 | AS172: 0.5587021345 | AT172: -0.0105 | AY172: 1880.415071 | AZ172: 1880.454362 | BA172: 34.21428571 | BB172: 35.36779785 | BC172: -1.153512133 | BE172: -0.1776245485 | BF172: -0.196 | BK172: 1907.054291 | BL172: 1907.172164 | BM172: 77.77906977 | BN172: 58.07364341 | BO172: 56.35612878 | BP172: 1.717514628 | BQ172: 21.42294098 | BS172: 0.7480528045 | BT172: 0.0093 | BY172: 1801.911884 | BZ172: 1802.265502 | CA172: 45.71705426 | CB172: 33.26082395 | CC172: 12.45623032 | CE172: 0.01731811424 | CF172: -0.8665
A173: 1700-06-21 | B173: 1700.469793 | C173: 0 | D173: 6 | E173: 0 | H173: 1744.25 | I173: 1744.291667 | J173: 8 | K173: 40.6997948 | L173: -32.6997948 | N173: -0.7870787848 | O173: 0 | T173: 1869.291385 | U173: 1869.295751 | V173: 46.75 | W173: 45.13888889 | X173: 50.52777778 | Y173: 1.611111111 | Z173: -3.777777778 | AB173: -0.9580572894 | AC173: 0 | AD173: 0.9999999998 | AE173: 0 | AF173: 0.9999999986 | AG173: =AG172 -> 0 | AM173: 1872.268761 | AN173: 1872.281858 | AO173: 102.3 | AP173: 95.90493827 | AQ173: 6.395061728 | AS173: 0.9610983899 | AT173: -0.0105 | AY173: 1880.493653 | AZ173: 1880.532944 | BA173: 26.03448276 | BB173: 35.86179529 | BC173: -9.827312534 | BE173: -0.7686345105 | BF173: -0.196 | BK173: 1907.290036 | BL173: 1907.407909 | BM173: 39.51162791 | BN173: 61.3875969 | BO173: 55.90651638 | BP173: 5.481080519 | BQ173: -16.39488847 | BS173: 0.1464626322 | BT173: 0.0093 | BY173: 1802.61912 | BZ173: 1802.972738 | CA173: 42.0620155 | CB173: 36.63022657 | CC173: 5.431788932 | CE173: 0.6559576561 | CF173: -0.8665
A174: 1700-06-22 | B174: 1700.472533 | C174: 0 | D174: 6 | E174: 0 | H174: 1744.333333 | I174: 1744.375 | J174: 7.933333333 | K174: 40.46364606 | L174: -32.53031273 | N174: -0.753865644 | O174: 0 | T174: 1869.300117 | U174: 1869.304482 | V174: 39.33333333 | W174: 38.69444444 | X174: 61.34259259 | Y174: 0.6388888889 | Z174: -22.00925926 | AB174: -0.5147734935 | AC174: 0 | AD174: 0.7660329502 | AE174: 0 | AF174: -0.5000463989 | AG174: =AG173 -> 0 | AM174: 1872.294955 | AN174: 1872.308052 | AO174: 108.2222222 | AP174: 103.0382716 | AQ174: 5.183950617 | AS174: 0.9137860273 | AT174: -0.0105 | AY174: 1880.572235 | AZ174: 1880.611526 | BA174: 48.13793103 | BB174: 36.61576355 | BC174: 11.52216749 | BE174: -0.9999918426 | BF174: -0.196 | BK174: 1907.525782 | BL174: 1907.643654 | BM174: 66.87209302 | BN174: 54.8372093 | BO174: 54.67654222 | BP174: 0.1606670825 | BQ174: 12.1955508 | BS174: -0.5236590334 | BT174: 0.0093 | BY174: 1803.326356 | BZ174: 1803.679974 | CA174: 44.93410853 | CB174: 38.71205258 | CC174: 6.222055943 | CE174: 0.9876673206 | CF174: -0.8665
A175: 1700-06-23 | B175: 1700.475273 | C175: 0 | D175: 6 | E175: 0 | H175: 1744.416667 | I175: 1744.458333 | J175: 6 | K175: 40.86527128 | L175: -34.86527128 | N175: -0.7186040741 | O175: 0 | T175: 1869.308848 | U175: 1869.313214 | V175: 30 | W175: 51.55555556 | X175: 74.78703704 | Y175: -21.55555556 | Z175: -44.78703704 | AB175: 0.1973535852 | AC175: 0 | AD175: 0.1736305696 | AE175: 0 | AF175: -0.4999535997 | AG175: =AG174 -> 0 | AM175: 1872.321149 | AN175: 1872.334246 | AO175: 109 | AP175: 110.2604938 | AQ175: -1.260493827 | AS175: 0.4389030269 | AT175: -0.0105 | AY175: 1880.650817 | AZ175: 1880.690108 | BA175: 56.89285714 | BB175: 37.65024631 | BC175: 19.24261084 | BE175: -0.7634418779 | BF175: -0.196 | BK175: 1907.761527 | BL175: 1907.8794 | BM175: 58.12790698 | BN175: 53.45210728 | BO175: 55.10160682 | BP175: -1.64949954 | BQ175: 3.026300157 | BS175: -0.9487548175 | BT175: 0.0093 | BY175: 1804.033592 | BZ175: 1804.38721 | CA175: 42.61389961 | CB175: 37.97863312 | CC175: 4.635266496 | CE175: 0.857236469 | CF175: -0.8665
A176: 1700-06-24 | B176: 1700.478012 | C176: 0 | D176: 6 | E176: 0 | H176: 1744.5 | I176: 1744.541667 | J176: 5.933333333 | K176: 40.73550029 | L176: -34.80216695 | N176: -0.681389889 | O176: 0 | T176: 1869.317579 | U176: 1869.321945 | V176: 85.33333333 | W176: 75.55555556 | X176: 87.15740741 | Y176: 9.777777778 | Z176: -1.824074074 | AB176: 0.8064116707 | AC176: 0 | AD176: -0.5000154841 | AE176: 0 | AF176: 0.9999999986 | AG176: =AG175 -> 0 | AM176: 1872.347343 | AN176: 1872.36044 | AO176: 71 | AP176: 106.6271605 | AQ176: -35.62716049 | AS176: -0.2413475776 | AT176: -0.0105 | AY176: 1880.729398 | AZ176: 1880.768689 | BA176: 54.31034483 | BB176: 40.19430761 | BC176: 14.11603722 | BE176: -0.1696689738 | BF176: -0.196 | BK176: 1907.997272 | BL176: 1908.115145 | BM176: 35.35632184 | BN176: 47.37071193 | BO176: 54.60935876 | BP176: -7.238646826 | BQ176: -19.25303692 | BS176: -0.9299176782 | BT176: 0.0093 | BY176: 1804.740828 | BZ176: 1805.094446 | CA176: 51.4496124 | CB176: 34.71205258 | CC176: 16.73755982 | CE176: 0.3256951465 | CF176: -0.8665
A177: 1700-06-25 | B177: 1700.480752 | C177: 0 | D177: 6 | E177: 0 | H177: 1744.583333 | I177: 1744.625 | J177: 4 | K177: 40.51565296 | L177: -36.51565296 | N177: -0.6423242084 | O177: 0 | T177: 1869.326311 | U177: 1869.330676 | V177: 111.3333333 | W177: 106.8888889 | X177: 98.78703704 | Y177: 4.444444444 | Z177: 12.5462963 | AB177: 0.9943168342 | AC177: 0 | AD177: -0.9396987358 | AE177: 0 | AF177: -0.5000463988 | AG177: =AG176 -> 0 | AM177: 1872.373537 | AN177: 1872.386634 | AO177: 114.5 | AP177: 106.7506173 | AQ177: 7.749382716 | AS177: -0.8086689683 | AT177: -0.0105 | AY177: 1880.80798 | AZ177: 1880.847271 | BA177: 31.37931034 | BB177: 42.26176793 | BC177: -10.88245758 | BE177: 0.5034939288 | BF177: -0.196 | BK177: 1908.233018 | BL177: 1908.35089 | BM177: 48.62790698 | BN177: 50.12652588 | BO177: 50.66879028 | BP177: -0.5422643975 | BQ177: -2.040883305 | BS177: -0.4759617224 | BT177: 0.0093 | BY177: 1805.448064 | BZ177: 1805.801682 | CA177: 38.07751938 | CB177: 30.77880538 | CC177: 7.298713996 | CE177: -0.3582425548 | CF177: -0.8665
A178: 1700-06-26 | B178: 1700.483492 | C178: 0 | D178: 6 | E178: 0 | H178: 1744.666667 | I178: 1744.708333 | J178: 4 | K178: 40.34669622 | L178: -36.34669622 | N178: -0.6015131828 | O178: 0 | T178: 1869.335042 | U178: 1869.339408 | V178: 124 | W178: 126.4444444 | X178: 103.3333333 | Y178: -2.444444444 | Z178: 20.66666667 | AB178: 0.6629345726 | AC178: 0 | AD178: -0.9396865054 | AE178: 0 | AF178: -0.4999535997 | AG178: =AG177 -> 0 | AM178: 1872.399731 | AN178: 1872.412828 | AO178: 133.6 | AP178: 110.6506173 | AQ178: 22.94938272 | AS178: -0.9976051613 | AT178: -0.0105 | AY178: 1880.886562 | AZ178: 1880.925853 | BA178: 30.60714286 | BB178: 44.93992885 | BC178: -14.33278599 | BE178: 0.9410664264 | BF178: -0.196 | BK178: 1908.468763 | BL178: 1908.586635 | BM178: 66.39534884 | BN178: 53.77906977 | BO178: 49.5034156 | BP178: 4.275654163 | BQ178: 16.89193323 | BS178: 0.200702013 | BT178: 0.0093 | BY178: 1806.1553 | BZ178: 1806.508918 | CA178: 27.43023256 | CB178: 26.52040745 | CC178: 0.9098251075 | CE178: -0.8745545833 | CF178: -0.8665
A179: 1700-06-27 | B179: 1700.486232 | C179: 0 | D179: 6 | E179: 0 | H179: 1744.75 | I179: 1744.791667 | J179: 4 | K179: 40.27010589 | L179: -36.27010589 | N179: -0.5590677054 | O179: 0 | T179: 1869.343773 | U179: 1869.348139 | V179: 144 | W179: 140.7777778 | X179: 102.8240741 | Y179: 3.222222222 | Z179: 41.17592593 | AB179: -0.01466890877 | AC179: 0 | AD179: -0.4999845157 | AE179: 0 | AF179: 0.9999999986 | AG179: =AG178 -> 0 | AM179: 1872.425925 | AN179: 1872.439022 | AO179: 118.7777778 | AP179: 108.8728395 | AQ179: 9.904938272 | AS179: -0.7197508123 | AT179: -0.0105 | AY179: 1880.965144 | AZ179: 1881.004435 | BA179: 31.79310345 | BB179: 45.0816913 | BC179: -13.28858785 | BE179: 0.9383034843 | BF179: -0.196 | BK179: 1908.704508 | BL179: 1908.822381 | BM179: 46.31395349 | BN179: 55.06976744 | BO179: 47.2295138 | BP179: 7.840253646 | BQ179: -0.9155603077 | BS179: 0.783455046 | BT179: 0.0093 | BY179: 1806.862536 | BZ179: 1807.216154 | CA179: 15.41860465 | CB179: 21.52772873 | CC179: -6.109124074 | CE179: -0.9816528026 | CF179: -0.8665
A180: 1700-06-28 | B180: 1700.488971 | C180: 0 | D180: 6 | E180: 0 | H180: 1744.833333 | I180: 1744.875 | J180: 2 | K180: 40.18788476 | L180: -38.18788476 | N180: -0.5151031104 | O180: 0 | T180: 1869.352505 | U180: 1869.35687 | V180: 154.3333333 | W180: 150.7777778 | X180: 103.712963 | Y180: 3.555555556 | Z180: 50.62037037 | AB180: -0.684611472 | AC180: 0 | AD180: 0.1736657856 | AE180: 0 | AF180: -0.5000463988 | AG180: =AG179 -> 0 | AM180: 1872.452119 | AN180: 1872.465216 | AO180: 99.8 | AP180: 105.8950617 | AQ180: -6.095061728 | AS180: -0.105117059 | AT180: -0.0105 | AY180: 1881.043726 | AZ180: 1881.083016 | BA180: 48.37931034 | BB180: 44.22454844 | BC180: 4.154761905 | BE180: 0.4964979138 | BF180: -0.196 | BK180: 1908.940253 | BL180: 1909.058126 | BM180: 52.5 | BN180: 47.04263566 | BO180: 45.5179839 | BP180: 1.524651757 | BQ180: 6.982016098 | BS180: 0.9996207558 | BT180: 0.0093 | BY180: 1807.569772 | BZ180: 1807.923389 | CA180: 4.705426357 | CB180: 16.79285099 | CC180: -12.08742463 | CE180: -0.6294247658 | CF180: -0.8665
A181: 1700-06-29 | B181: 1700.491711 | C181: 0 | D181: 6 | E181: 0 | H181: 1744.916667 | I181: 1744.958333 | J181: 2 | K181: 40.14462776 | L181: -38.14462776 | N181: -0.46973886 | O181: 0 | T181: 1869.361236 | U181: 1869.365602 | V181: 154 | W181: 132 | X181: 104.5648148 | Y181: 22 | Z181: 49.43518519 | AB181: -0.9970119358 | AC181: 0 | AD181: 0.7660559358 | AE181: 0 | AF181: -0.4999535998 | AG181: =AG180 -> 0 | AM181: 1872.478313 | AN181: 1872.49141 | AO181: 103.5555556 | AP181: 113.0061728 | AQ181: -9.450617284 | AS181: 0.5587021344 | AT181: -0.0105 | AY181: 1881.122307 | AZ181: 1881.161598 | BA181: 52.82142857 | BB181: 45.69198139 | BC181: 7.129447181 | BE181: -0.1776245485 | BF181: -0.196 | BK181: 1909.175999 | BL181: 1909.293871 | BM181: 42.31395349 | BN181: 41.27906977 | BO181: 44.04299207 | BP181: -2.763922302 | BQ181: -1.729038581 | BS181: 0.7480528045 | BT181: 0.0093 | BY181: 1808.277007 | BZ181: 1808.630625 | CA181: 10.31782946 | CB181: 11.25753661 | CC181: -0.939707149 | CE181: 0.01731811424 | CF181: -0.8665
A182: 1700-06-30 | B182: 1700.494451 | C182: 0 | D182: 6 | E182: 0 | H182: 1745 | I182: 1745.041667 | J182: 1 | K182: 40.16853813 | L182: -39.16853813 | N182: -0.4230982192 | O182: 0 | T182: 1869.369967 | U182: 1869.374333 | V182: 87.66666667 | W182: 92.13888889 | X182: 105.1944444 | Y182: -4.472222222 | Z182: -17.52777778 | AB182: -0.7887174428 | AC182: 0 | AD182: 0.9999999998 | AE182: 0 | AF182: 0.9999999986 | AG182: =AG181 -> 0 | AM182: 1872.504507 | AN182: 1872.517604 | AO182: 137.4 | AP182: 109.3395062 | AQ182: 28.06049383 | AS182: 0.9610983899 | AT182: -0.0105 | AY182: 1881.200889 | AZ182: 1881.24018 | BA182: 50.13793103 | BB182: 50.89887794 | BC182: -0.7609469075 | BE182: -0.7686345105 | BF182: -0.196 | BK182: 1909.411744 | BL182: 1909.529617 | BM182: 29.02325581 | BN182: 39.24806202 | BO182: 40.6385993 | BP182: -1.390537289 | BQ182: -11.61534349 | BS182: 0.1464626322 | BT182: 0.0093 | BY182: 1808.984243 | BZ182: 1809.337861 | CA182: 3.736434109 | CB182: 7.285529716 | CC182: -3.549095607 | CE182: 0.6559576561 | CF182: -0.8665
A183: 1700-07-01 | B183: 1700.49719 | C183: 0 | D183: 6 | E183: 0 | H183: 1745.083333 | I183: 1745.125 | J183: 5 | K183: 40.11204958 | L183: -35.11204958 | N183: -0.3753079218 | O183: 0 | T183: 1869.378699 | U183: 1869.383064 | V183: 34.75 | W183: 53.47222222 | X183: 107.0833333 | Y183: -18.72222222 | Z183: -72.33333333 | AB183: -0.1685109355 | AC183: 0 | AD183: 0.7660329502 | AE183: 0 | AF183: -0.5000463988 | AG183: =AG182 -> 0 | AM183: 1872.530701 | AN183: 1872.543798 | AO183: 92.22222222 | AP183: 102.2839506 | AQ183: -10.0617284 | AS183: 0.9137860273 | AT183: -0.0105 | AY183: 1881.279471 | AZ183: 1881.318762 | BA183: 49.4137931 | BB183: 54.27969349 | BC183: -4.865900383 | BE183: -0.9999918426 | BF183: -0.196 | BK183: 1909.647489 | BL183: 1909.765362 | BM183: 46.40697674 | BN183: 39.38479016 | BO183: 36.46030473 | BP183: 2.924485432 | BQ183: 9.946672013 | BS183: -0.5236590334 | BT183: 0.0093 | BY183: 1809.691479 | BZ183: 1810.045097 | CA183: 0 | CB183: 4.956933678 | CC183: -4.956933678 | CE183: 0.9876673206 | CF183: -0.8665
A184: 1700-07-02 | B184: 1700.49993 | C184: 0 | D184: 6 | E184: 0 | H184: 1745.166667 | I184: 1745.208333 | J184: 5.066666667 | K184: 40.18838546 | L184: -35.12171879 | N184: -0.3264978251 | O184: 0 | T184: 1869.38743 | U184: 1869.391796 | V184: 38 | W184: 55.25 | X184: 109.6018519 | Y184: -17.25 | Z184: -71.60185185 | AB184: 0.5397013329 | AC184: 0 | AD184: 0.1736305697 | AE184: 0 | AF184: -0.4999535998 | AG184: =AG183 -> 0 | AM184: 1872.556895 | AN184: 1872.569991 | AO184: 82.2 | AP184: 99.08641975 | AQ184: -16.88641975 | AS184: 0.4389030269 | AT184: -0.0105 | AY184: 1881.358053 | AZ184: 1881.397344 | BA184: 49.17857143 | BB184: 56.39395183 | BC184: -7.215380405 | BE184: -0.7634418779 | BF184: -0.196 | BK184: 1909.883235 | BL184: 1910.001107 | BM184: 42.72413793 | BN184: 37.07083667 | BO184: 32.20707476 | BP184: 4.863761917 | BQ184: 10.51706317 | BS184: -0.9487548175 | BT184: 0.0093 | BY184: 1810.398715 | BZ184: 1810.752333 | CA184: =AVERAGEIFS(Intl_SS,DecDate,">"&BY184,DecDate,"<="&BY185) -> 0 | CB184: 4.868217054 | CC184: =CA184-CB184 -> -4.868217054 | CE184: 0.857236469 | CF184: -0.8665
A185: 1700-07-03 | B185: 1700.50267 | C185: 0 | D185: 6 | E185: 0 | H185: 1745.25 | I185: 1745.291667 | J185: 7.129032258 | K185: 40.16696216 | L185: -33.0379299 | N185: -0.2768005574 | O185: 0 | T185: 1869.396161 | U185: 1869.400527 | V185: 93 | W185: 82.66666667 | X185: 106.1203704 | Y185: 10.33333333 | Z185: -13.12037037 | AB185: 0.9660516174 | AC185: 0 | AD185: -0.5000154841 | AE185: 0 | AF185: 0.9999999986 | AG185: =AG184 -> 0 | AM185: 1872.583088 | AN185: 1872.596185 | AO185: 135 | AP185: 102.108642 | AQ185: 32.89135802 | AS185: -0.2413475776 | AT185: -0.0105 | AY185: 1881.436634 | AZ185: 1881.475925 | BA185: 67.51724138 | BB185: 58.30966065 | BC185: 9.207580733 | BE185: -0.1696689738 | BF185: -0.196 | BK185: 1910.11898 | BL185: 1910.236853 | BM185: 22.08139535 | BN185: 27.59796846 | BO185: 27.83368974 | BP185: -0.2357212866 | BQ185: -5.752294395 | BS185: -0.9299176782 | BT185: 0.0093 | BY185: 1811.105951 | BZ185: 1811.459569 | CA185: 1.631782946 | CB185: 5.851851852 | CC185: -4.220068906 | CE185: 0.3256951465 | CF185: -0.8665
A186: 1700-07-04 | B186: 1700.50541 | C186: 0 | D186: 6 | E186: 0 | H186: 1745.333333 | I186: 1745.375 | J186: 9.066666667 | K186: 39.98375605 | L186: -30.91708939 | N186: -0.226351158 | O186: 0 | T186: 1869.404892 | U186: 1869.409258 | V186: 117 | W186: 117 | X186: 98.34259259 | Y186: 0 | Z186: 18.65740741 | AB186: 0.8878761415 | AC186: 0 | AD186: -0.9396987358 | AE186: 0 | AF186: -0.5000463988 | AG186: =AG185 -> 0 | AM186: 1872.609282 | AN186: 1872.622379 | AO186: 81.5 | AP186: 102.9975309 | AQ186: -21.49753086 | AS186: -0.8086689683 | AT186: -0.0105 | AY186: 1881.515216 | AZ186: 1881.554507 | BA186: 78.24137931 | BB186: 58.65900383 | BC186: 19.58237548 | BE186: 0.5034939288 | BF186: -0.196 | BK186: 1910.354725 | BL186: 1910.472598 | BM186: 17.98837209 | BN186: 22.95348837 | BO186: 24.1515192 | BP186: -1.19803083 | BQ186: -6.163147109 | BS186: -0.4759617224 | BT186: 0.0093 | BY186: 1811.813187 | BZ186: 1812.166805 | CA186: 2.329457364 | CB186: 6.943950595 | CC186: -4.614493231 | CE186: -0.3582425548 | CF186: -0.8665
A187: 1700-07-05 | B187: 1700.508149 | C187: 0 | D187: 6 | E187: 0 | H187: 1745.416667 | I187: 1745.458333 | J187: 11 | K187: 39.78060412 | L187: -28.78060412 | N187: -0.1752867097 | O187: 0 | T187: 1869.413624 | U187: 1869.417989 | V187: 141 | W187: 141.5555556 | X187: 96.08333333 | Y187: -0.5555555556 | Z187: 44.91666667 | AB187: 0.3460024765 | AC187: 0 | AD187: -0.9396865055 | AE187: 0 | AF187: -0.4999535998 | AG187: =AG186 -> 0 | AM187: 1872.635476 | AN187: 1872.648573 | AO187: 70.1 | AP187: 103.5530864 | AQ187: -33.45308642 | AS187: -0.9976051613 | AT187: -0.0105 | AY187: 1881.593798 | AZ187: 1881.633089 | BA187: 61.03448276 | BB187: 58.69923372 | BC187: 2.335249042 | BE187: 0.9410664264 | BF187: -0.196 | BK187: 1910.590471 | BL187: 1910.708343 | BM187: 28.79069767 | BN187: 18.27131783 | BO187: 21.63601533 | BP187: -3.364697496 | BQ187: 7.154682349 | BS187: 0.200702013 | BT187: 0.0093 | BY187: 1812.520423 | BZ187: 1812.874041 | CA187: 6.472868217 | CB187: 10.90777488 | CC187: -4.434906667 | CE187: -0.8745545833 | CF187: -0.8665
A188: 1700-07-06 | B188: 1700.510889 | C188: 0 | D188: 6 | E188: 0 | H188: 1745.5 | I188: 1745.541667 | J188: 11.06666667 | K188: 39.76533694 | L188: -28.69867028 | N188: -0.1237459663 | O188: 0 | T188: 1869.422355 | U188: 1869.426721 | V188: 166.6666667 | W188: 143.5555556 | X188: 101.3703704 | Y188: 23.11111111 | Z188: 65.2962963 | AB188: -0.3765728812 | AC188: 0 | AD188: -0.4999845157 | AE188: 0 | AF188: 0.9999999986 | AG188: =AG187 -> 0 | AM188: 1872.66167 | AN188: 1872.674767 | AO188: 90 | AP188: 103.0098765 | AQ188: -13.00987654 | AS188: -0.7197508123 | AT188: -0.0105 | AY188: 1881.67238 | AZ188: 1881.711671 | BA188: 50.82142857 | BB188: 57.7183908 | BC188: -6.896962233 | BE188: 0.9383034843 | BF188: -0.196 | BK188: 1910.826216 | BL188: 1910.944089 | BM188: 8.034883721 | BN188: 16.65503876 | BO188: 16.96676468 | BP188: -0.31172592 | BQ188: -8.931880959 | BS188: 0.783455046 | BT188: 0.0093 | BY188: 1813.227659 | BZ188: 1813.581277 | CA188: 14.62015504 | CB188: 16.35049668 | CC188: -1.730341637 | CE188: -0.9816528026 | CF188: -0.8665
A189: 1700-07-07 | B189: 1700.513629 | C189: 0 | D189: 6 | E189: 0 | H189: 1745.583333 | I189: 1745.625 | J189: 13 | K189: 39.71444636 | L189: -26.71444636 | N189: -0.07186897631 | O189: 0 | T189: 1869.431086 | U189: 1869.435452 | V189: 123 | W189: 124.5555556 | X189: 109.037037 | Y189: -1.555555556 | Z189: 13.96296296 | AB189: -0.9024809845 | AC189: 0 | AD189: 0.1736657856 | AE189: 0 | AF189: -0.5000463987 | AG189: =AG188 -> 0 | AM189: 1872.687864 | AN189: 1872.700961 | AO189: 127 | AP189: 104.2320988 | AQ189: 22.76790123 | AS189: -0.105117059 | AT189: -0.0105 | AY189: 1881.750961 | AZ189: 1881.790252 | BA189: 65.62068966 | BB189: 60.10851122 | BC189: 5.512178435 | BE189: 0.4964979138 | BF189: -0.196 | BK189: 1911.061961 | BL189: 1911.179834 | BM189: 13.13953488 | BN189: 10.11627907 | BO189: 12.5210431 | BP189: -2.404764026 | BQ189: 0.6184917877 | BS189: 0.9996207558 | BT189: 0.0093 | BY189: 1813.934895 | BZ189: 1814.288513 | CA189: 13.55813953 | CB189: 21.2846052 | CC189: -7.726465668 | CE189: -0.6294247658 | CF189: -0.8665
A190: 1700-07-08 | B190: 1700.516368 | C190: 0 | D190: 6 | E190: 0 | H190: 1745.666667 | I190: 1745.708333 | J190: 15.06451613 | K190: 39.50121481 | L190: -24.43669868 | N190: -0.01979670148 | O190: 0 | T190: 1869.439818 | U190: 1869.444183 | V190: 84 | W190: 91.44444444 | X190: 113.0092593 | Y190: -7.444444444 | Z190: -29.00925926 | AB190: -0.9570634393 | AC190: 0 | AD190: 0.7660559358 | AE190: 0 | AF190: -0.4999535998 | AG190: =AG189 -> 0 | AM190: 1872.714058 | AN190: 1872.727155 | AO190: 111.5555556 | AP190: 98.47654321 | AQ190: 13.07901235 | AS190: 0.5587021344 | AT190: -0.0105 | AY190: 1881.829543 | AZ190: 1881.868834 | BA190: 55.96551724 | BB190: 59.63834154 | BC190: -3.672824302 | BE190: -0.1776245485 | BF190: -0.196 | BK190: 1911.297707 | BL190: 1911.415579 | BM190: 9.174418605 | BN190: 9.565891473 | BO190: 10.82724465 | BP190: -1.261353174 | BQ190: -1.652826042 | BS190: 0.7480528045 | BT190: 0.0093 | BY190: 1814.642131 | BZ190: 1814.995749 | CA190: 20.14671815 | CB190: 24.9637611 | CC190: -4.817042957 | CE190: 0.01731811424 | CF190: -0.8665
A191: 1700-07-09 | B191: 1700.519108 | C191: 0 | D191: 6 | E191: 0 | H191: 1745.75 | I191: 1745.791667 | J191: 17 | K191: 39.29790692 | L191: -22.29790692 | N191: 0.03232936561 | O191: 0 | T191: 1869.448549 | U191: 1869.452915 | V191: 67.33333333 | W191: 77.88888889 | X191: 109.0462963 | Y191: -10.55555556 | Z191: -41.71296296 | AB191: -0.511814259 | AC191: 0 | AD191: 0.9999999998 | AE191: 0 | AF191: 0.9999999986 | AG191: =AG190 -> 0 | AM191: 1872.740252 | AN191: 1872.753349 | AO191: 142.4 | AP191: 104.3222222 | AQ191: 38.07777778 | AS191: 0.9610983899 | AT191: -0.0105 | AY191: 1881.908125 | AZ191: 1881.947416 | BA191: 50.5 | BB191: 61.70347564 | BC191: -11.20347564 | BE191: -0.7686345105 | BF191: -0.196 | BK191: 1911.533452 | BL191: 1911.651324 | BM191: 6.38372093 | BN191: 6.647286822 | BO191: 9.403472037 | BP191: -2.756185215 | BQ191: -3.019751106 | BS191: 0.1464626322 | BT191: 0.0093 | BY191: 1815.349367 | BZ191: 1815.702985 | CA191: 39.41085271 | CB191: 28.31647428 | CC191: 11.09437843 | CE191: 0.6559576561 | CF191: -0.8665
A192: 1700-07-10 | B192: 1700.521848 | C192: 0 | D192: 6 | E192: 0 | H192: 1745.833333 | I192: 1745.875 | J192: 19.06451613 | K192: 39.17950423 | L192: -20.1149881 | N192: 0.08436758626 | O192: 0 | T192: 1869.45728 | U192: 1869.461646 | V192: 82.33333333 | W192: 85.55555556 | X192: 100.4166667 | Y192: -3.222222222 | Z192: -18.08333333 | AB192: 0.2007327277 | AC192: 0 | AD192: 0.7660329502 | AE192: 0 | AF192: -0.5000463987 | AG192: =AG191 -> 0 | AM192: 1872.766446 | AN192: 1872.779543 | AO192: 87.33333333 | AP192: 109.9333333 | AQ192: -22.6 | AS192: 0.9137860273 | AT192: -0.0105 | AY192: 1881.986707 | AZ192: 1882.025998 | BA192: 40.5862069 | BB192: 63.59236453 | BC192: -23.00615764 | BE192: -0.9999918426 | BF192: -0.196 | BK192: 1911.769197 | BL192: 1911.88707 | BM192: 4.38372093 | BN192: 4.493361846 | BO192: 6.873756274 | BP192: -2.380394428 | BQ192: -2.490035344 | BS192: -0.5236590334 | BT192: 0.0093 | BY192: 1816.056603 | BZ192: 1816.41022 | CA192: 48.98449612 | CB192: 30.43792131 | CC192: 18.54657481 | CE192: 0.9876673206 | CF192: -0.8665
A193: 1700-07-11 | B193: 1700.524588 | C193: 0 | D193: 6 | E193: 0 | H193: 1745.916667 | I193: 1745.958333 | J193: 21 | K193: 39.13115817 | L193: -18.13115817 | N193: 0.1361765605 | O193: 0 | T193: 1869.466012 | U193: 1869.470377 | V193: 107 | W193: 106.0277778 | X193: 88.26851852 | Y193: 0.9722222222 | Z193: 18.73148148 | AB193: 0.8084459455 | AC193: 0 | AD193: 0.1736305697 | AE193: 0 | AF193: -0.4999535998 | AG193: =AG192 -> 0 | AM193: 1872.79264 | AN193: 1872.805737 | AO193: 93.2 | AP193: 110.6617284 | AQ193: -17.4617284 | AS193: 0.4389030269 | AT193: -0.0105 | AY193: 1882.065289 | AZ193: 1882.104579 | BA193: 70.68965517 | BB193: 61.4137931 | BC193: 9.275862069 | BE193: -0.7634418779 | BF193: -0.196 | BK193: 1912.004942 | BL193: 1912.122815 | BM193: 2.712643678 | BN193: 4.644524637 | BO193: 6.611482373 | BP193: -1.966957736 | BQ193: -3.898838694 | BS193: -0.9487548175 | BT193: 0.0093 | BY193: 1816.763838 | BZ193: 1817.117456 | CA193: 44.40697674 | CB193: 31.55262738 | CC193: 12.85434937 | CE193: 0.857236469 | CF193: -0.8665
A194: 1700-07-12 | B194: 1700.527327 | C194: 0 | D194: 6 | E194: 0 | H194: 1746 | I194: 1746.041667 | J194: 20 | K194: 39.01768037 | L194: -19.01768037 | N194: 0.1876155111 | O194: 0 | T194: 1869.474743 | U194: 1869.479109 | V194: 128.75 | W194: 105.6944444 | X194: 82.26851852 | Y194: 23.05555556 | Z194: 46.48148148 | AB194: 0.9939438301 | AC194: 0 | AD194: -0.5000154841 | AE194: 0 | AF194: 0.9999999986 | AG194: =AG193 -> 0 | AM194: 1872.818834 | AN194: 1872.831931 | AO194: 83.2 | AP194: 108.8395062 | AQ194: -25.63950617 | AS194: -0.2413475776 | AT194: -0.0105 | AY194: 1882.14387 | AZ194: 1882.183161 | BA194: 63.28571429 | BB194: 59.65517241 | BC194: 3.630541872 | BE194: -0.1696689738 | BF194: -0.196 | BK194: 1912.240688 | BL194: 1912.35856 | BM194: 6.837209302 | BN194: 4.908090528 | BO194: 5.267813122 | BP194: -0.3597225935 | BQ194: 1.56939618 | BS194: -0.9299176782 | BT194: 0.0093 | BY194: 1817.471074 | BZ194: 1817.824692 | CA194: 34.74418605 | CB194: 31.97639999 | CC194: 2.767786058 | CE194: 0.3256951465 | CF194: -0.8665
A195: 1700-07-13 | B195: 1700.530067 | C195: 0 | D195: 6 | E195: 0 | H195: 1746.083333 | I195: 1746.125 | J195: 20.06666667 | K195: 39.04668801 | L195: -18.98002134 | N195: 0.2385446666 | O195: 0 | T195: 1869.483474 | U195: 1869.48784 | V195: 81.33333333 | W195: 91.13888889 | X195: 76.35185185 | Y195: -9.805555556 | Z195: 4.981481481 | AB195: 0.6603490931 | AC195: 0 | AD195: -0.9396987358 | AE195: 0 | AF195: -0.5000463987 | AG195: =AG194 -> 0 | AM195: 1872.845028 | AN195: 1872.858125 | AO195: 134.1111111 | AP195: 104.2839506 | AQ195: 29.82716049 | AS195: =SIN((2*PI()*(AN195-2000+AT195)/0.235745306106089) + 0.083216746) -> -0.8086689683 | AT195: -0.0105 | AY195: 1882.222452 | AZ195: 1882.261743 | BA195: 96.82758621 | BB195: 58 | BC195: 38.82758621 | BE195: 0.5034939288 | BF195: -0.196 | BK195: 1912.476433 | BL195: 1912.594306 | BM195: 5.174418605 | BN195: 6.011627907 | BO195: 4.39184413 | BP195: 1.619783777 | BQ195: 0.782574475 | BS195: -0.4759617224 | BT195: 0.0093 | BY195: 1818.17831 | BZ195: 1818.531928 | CA195: 32.50387597 | CB195: 30.66595499 | CC195: 1.837920977 | CE195: -0.3582425548 | CF195: -0.8665
A196: 1700-07-14 | B196: 1700.532807 | C196: 0 | D196: 6 | E196: 0 | H196: 1746.166667 | I196: 1746.208333 | J196: 21 | K196: =AVERAGE(J131:J261) -> 39.03142083 | L196: -18.03142083 | N196: 0.2888256406 | O196: 0 | T196: =T195+0.00873130763355885 -> 1869.492206 | U196: =U195+0.00873130763355885 -> 1869.496571 | V196: 63.33333333 | W196: 67.33333333 | X196: 73.12962963 | Y196: -4 | Z196: -9.796296296 | AB196: -0.01811658292 | AC196: 0 | AD196: -0.9396865055 | AE196: 0 | AF196: -0.4999535999 | AG196: =AG195 -> 0 | AM196: =AM195+0.0261939229006765 -> 1872.871222 | AN196: =AN195+0.0261939229006765 -> 1872.884319 | AO196: 120.6 | AP196: 96.53950617 | AQ196: 24.06049383 | AS196: -0.9976051613 | AT196: -0.0105 | AY196: =AY195+0.0785817687020297 -> 1882.301034 | AZ196: =AZ195+0.0785817687020297 -> 1882.340325 | BA196: 78.03448276 | BB196: 58.57539683 | BC196: 19.45908593 | BE196: 0.9410664264 | BF196: -0.196 | BK196: =BK195+0.235745306106089 -> 1912.712178 | BL196: =BL195+0.235745306106089 -> 1912.830051 | BM196: 6.023255814 | BN196: 5.624031008 | BO196: 3.995203303 | BP196: 1.628827705 | BQ196: 2.028052511 | BS196: 0.200702013 | BT196: 0.0093 | BY196: =BY195+0.707235918318267 -> 1818.885546 | BZ196: =BZ195+0.707235918318267 -> 1819.239164 | CA196: 25.56589147 | CB196: 27.35286283 | CC196: -1.786971357 | CE196: -0.8745545833 | CF196: -0.8665
A197: 1700-07-15 | B197: 1700.535547 | C197: 0 | D197: 6 | E197: 0 | H197: 1746.25 | I197: 1746.291667 | J197: 21 | K197: 38.74109825 | L197: -17.74109825 | N197: 0.3383218077 | O197: 0 | T197: 1869.500937 | U197: 1869.505303 | V197: 57.33333333 | W197: 63.22222222 | X197: 72.12962963 | Y197: -5.888888889 | Z197: -14.7962963 | AB197: -0.687120774 | AC197: 0 | AD197: -0.4999845158 | AE197: 0 | AF197: =SIN((2*PI()*(U197-2000+AG197)/0.0261939229006765) + 0.748950468) -> 0.9999999986 | AG197: =AG196 -> 0 | AM197: 1872.897416 | AN197: 1872.910512 | AO197: 96.55555556 | AP197: 95.73703704 | AQ197: 0.8185185185 | AS197: -0.7197508123 | AT197: -0.0105 | AY197: 1882.379616 | AZ197: 1882.418907 | BA197: 31.21428571 | BB197: 60.26888342 | BC197: -29.0545977 | BE197: 0.9383034843 | BF197: -0.196 | BK197: 1912.947924 | BL197: 1913.065796 | BM197: 5.674418605 | BN197: 4.248062016 | BO197: 4.139906145 | BP197: 0.1081558704 | BQ197: 1.53451246 | BS197: 0.783455046 | BT197: 0.0093 | BY197: 1819.592782 | BZ197: 1819.9464 | CA197: 24.65250965 | CB197: 22.23916774 | CC197: 2.413341913 | CE197: -0.9816528026 | CF197: -0.8665
A198: 1700-07-16 | B198: 1700.538286 | C198: 0 | D198: 6 | E198: 0 | H198: 1746.333333 | I198: 1746.375 | J198: 21.03333333 | K198: 38.48155627 | L198: -17.44822293 | N198: 0.3868986755 | O198: 0 | T198: 1869.509668 | U198: 1869.514034 | V198: 69 | W198: 52.36111111 | X198: 73.57407407 | Y198: 16.63888889 | Z198: -4.574074074 | AB198: -0.9972723688 | AC198: 0 | AD198: 0.1736657856 | AE198: 0 | AF198: -0.5000463987 | AG198: =AG197 -> 0 | AM198: 1872.923609 | AN198: 1872.936706 | AO198: 110.6 | AP198: 94.35925926 | AQ198: 16.24074074 | AS198: -0.105117059 | AT198: -0.0105 | AY198: 1882.458197 | AZ198: 1882.497488 | BA198: 49.79310345 | BB198: 59.4183087 | BC198: -9.625205255 | BE198: 0.4964979138 | BF198: -0.196 | BK198: 1913.183669 | BL198: 1913.301542 | BM198: 1.046511628 | BN198: 2.670542636 | BO198: 4.966408269 | BP198: -2.295865633 | BQ198: -3.919896641 | BS198: 0.9996207558 | BT198: 0.0093 | BY198: 1820.300018 | BZ198: 1820.653636 | CA198: 17.37209302 | CB198: 17.34295758 | CC198: 0.02913544774 | CE198: -0.6294247658 | CF198: -0.8665
A199: 1700-07-17 | B199: 1700.541026 | C199: 0 | D199: 6 | E199: 0 | H199: 1746.416667 | I199: 1746.458333 | J199: 22 | K199: 38.26412214 | L199: -16.26412214 | N199: 0.4344242491 | O199: 0 | T199: 1869.518399 | U199: 1869.522765 | V199: 30.75 | W199: 46.02777778 | X199: 68.30555556 | Y199: -15.27777778 | Z199: -37.55555556 | AB199: -0.7865929944 | AC199: 0 | AD199: 0.7660559358 | AE199: 0 | AF199: -0.4999535999 | AG199: =AG198 -> 0 | AM199: 1872.949803 | AN199: 1872.9629 | AO199: 70.55555556 | AP199: 94.48148148 | AQ199: -23.92592593 | AS199: 0.5587021344 | AT199: -0.0105 | AY199: 1882.536779 | AZ199: 1882.57607 | BA199: 41.06896552 | BB199: 60.86275315 | BC199: -19.79378763 | BE199: -0.1776245485 | BF199: -0.196 | BK199: 1913.419414 | BL199: 1913.537287 | BM199: 1.290697674 | BN199: 1.717054264 | BO199: 5.392764858 | BP199: -3.675710594 | BQ199: -4.102067183 | BS199: 0.7480528045 | BT199: 0.0093 | BY199: 1821.007254 | BZ199: 1821.360872 | CA199: 8.352713178 | CB199: 14.49632731 | CC199: -6.143614127 | CE199: 0.01731811424 | CF199: -0.8665
A200: 1700-07-18 | B200: 1700.543766 | C200: 0 | D200: 6 | E200: 0 | H200: 1746.5 | I200: 1746.541667 | J200: 22.03333333 | K200: 38.21068702 | L200: -16.17735369 | N200: 0.4807693906 | O200: 0 | T200: 1869.527131 | U200: 1869.531496 | V200: 38.33333333 | W200: 47.47222222 | X200: 63.78703704 | Y200: -9.138888889 | Z200: -25.4537037 | AB200: -0.1651111105 | AC200: 0 | AD200: 0.9999999998 | AE200: 0 | AF200: 0.9999999986 | AG200: =AG199 -> 0 | AM200: 1872.975997 | AN200: 1872.989094 | AO200: 72.7 | AP200: 90.49382716 | AQ200: -17.79382716 | AS200: 0.9610983899 | AT200: -0.0105 | AY200: 1882.615361 | AZ200: 1882.654652 | BA200: 55.67857143 | BB200: 55.77463054 | BC200: -0.0960591133 | BE200: -0.7686345105 | BF200: -0.196 | BK200: 1913.65516 | BL200: 1913.773032 | BM200: 2.813953488 | BN200: 3.263565891 | BO200: 6.313953488 | BP200: -3.050387597 | BQ200: -3.5 | BS200: 0.1464626322 | BT200: 0.0093 | BY200: 1821.71449 | BZ200: 1822.068108 | CA200: 9.593023256 | CB200: 12.37427502 | CC200: -2.781251765 | CE200: 0.6559576561 | CF200: -0.8665
... 2050 more rows

Sheet Documentation
A2: NOAA: Daily SS, [2009].
A3: FTP Directory of Sunspot Numbers.
A4: National Oceanic and Atmospheric Administration,
A5: National Geophysical Data Center.
A6: ftp://ftp.ngdc.noaa.gov/STP/SOLAR_DATA/SUNSPOT_NUMBERS

Sheet Charts

Sheet Statistics
A3: Table E28.1.1 – Information about the Daily Sunspot Time-Series.
A4: Description | B4: Details for this Time-Series
A6: Data Source
A7: Brief description of the data | B7: Daily index of international sunspot numbers.
A8: Abbreviated reference | B8: NOAA: Daily SS, 2009
A9: Details about the data source | B9: Multiple text files from NOAA’s National Geophysical Data Center.
A11: Original Time-Series
A12: Beginning time | B12: 1818
A13: Ending time | B13: 2009
A14: No. of samples (observations) | B14: 51830
A15: Estimated ages: Mean error | B15: No age errors
A16: Estimated ages: Minimum error | B16: No age errors
A17: Estimated ages: Maximum error | B17: No age errors
B20: Table E28.2.1 – Daily Sunspot Index: Data Preparation.
B21: Preparation Summary | C21: Test # 1 | D21: Test # 2 | E21: Test # 3 | F21: Test # 4 | G21: Test # 5 | H21: Test # 6
B23: Data Preparation Steps | C23: 28.7-day | D23: 28.7-day | E23: 28.7-day | F23: 28.7-day | G23: 28.7-day | H23: 86.1-day
B25: Bin Sizes for Histogram | C25: 3.19-day | D25: 3.19-day | E25: 3.19-day | F25: 3.19-day | G25: 3.19-day | H25: 9.57-day
B26: Detrending Method | C26: BP filter | D26: BP filter | E26: BP filter | F26: BP filter | G26: BP filter | H26: BP filter
B27: Band-Pass Filter Used | C27: 1-9 cell | D27: 1-9 cell | E27: 1-9 cell | F27: 1-9 cell | G27: 1-9 cell | H27: 1-9 cell
B28: Moving Avr. Indentation | C28: 4 cell | D28: 4 cell | E28: 4 cell | F28: 4 cell | G28: 4 cell | H28: 4 cell
B29: Empty Bins Interpolated | C29: 0 | D29: 0 | E29: 0 | F29: 0 | G29: 0 | H29: 0
B30: Beginning Time of Test | C30: 1868 | D30: 1900 | E30: 1929 | F30: 1958 | G30: 1987 | H30: 1987
B31: Ending Time of Test | C31: 1899 | D31: 1928 | E31: 1957 | F31: 1986 | G31: 2009 | H31: 2009
B33: Basic Time-Series Stats | C33: 28.7-day | D33: 28.7-day | E33: 28.7-day | F33: 28.7-day | G33: 28.7-day | H33: 86.1-day
B35: Number of observations | C35: 3665 | D35: 3321 | E35: 3322 | F35: 3321 | G35: 2582 | H35: 857
B36: Approximate # of cycles | C36: 407 | D36: 369 | E36: 369 | F36: 369 | G36: 287 | H36: 95
B38: Minimum | C38: -111.48 | D38: -64.11 | E38: -110.02 | F38: -102.18 | G38: -117.18 | H38: -64.23
B39: 1st Quartile | C39: -8.49 | D39: -8.62 | E39: -10.12 | F39: -12.46 | G39: -11.24 | H39: -10.39
B40: 2nd Quartile (Median) | C40: -1.25 | D40: -1.26 | E40: -1.06 | F40: -1.48 | G40: -0.82 | H40: -1.14
B41: 3rd Quartile | C41: 7.89 | D41: 7.09 | E41: 9.92 | F41: 11.86 | G41: 10.4 | H41: 9.27
B42: Maximum | C42: 129.68 | D42: 122.65 | E42: 116.97 | F42: 152.36 | G42: 109.54 | H42: 99.51
B43: Average (Mean) | C43: 0 | D43: -0.01 | E43: 0.04 | F43: -0.03 | G43: 0 | H43: 0
B45: Standard Error of Mean | C45: 0.30519 | D45: 0.33529 | E45: 0.3993 | F45: 0.42021 | G45: 0.44228 | H45: 0.70652
B46: Lower C.L. of the Mean | C46: -0.60286 | D46: -0.67088 | E46: -0.74497 | F46: -0.84922 | G46: -0.86585 | H46: -1.39102
B47: Upper C.L. of the Mean | C47: 0.59387 | D47: 0.64394 | E47: 0.82083 | F47: 0.79858 | G47: 0.86868 | H47: 1.38241
B48: Variance | C48: 341.3719 | D48: 373.3556 | E48: 529.6594 | F48: 586.4173 | G48: 505.0747 | H48: 427.7903
B49: Standard Deviation | C49: 18.47625 | D49: 19.32241 | E49: 23.01433 | F49: 24.21605 | G49: 22.4739 | H49: 20.68309
B51: Skewness | C51: 0.39 | D51: 0.62 | E51: 0.27 | F51: 0.34 | G51: 0.37 | H51: 0.59
B52: Kurtosis | C52: 3.01 | D52: 2.48 | E52: 2.93 | F52: 2.15 | G52: 2.55 | H52: 2.37
B55: Table E28.2.2 – Daily Sunspot Index: Data Preparation.
B56: Preparation Summary | C56: Test # 7 | D56: Test # 8 | E56: Test # 9 | F56: Test # 10 | G56: Test # 11
B58: Data Preparation Steps | C58: 258-day | D58: 2.12-yr | E58: 6.37-yr | F58: 19.1-yr | G58: 57.3-yr
B60: Bin Sizes for Histogram | C60: 28.7-day | D60: 86.1-day | E60: 258-day | F60: 2.12-yr | G60: 6.36-yr
B61: Detrending Method | C61: BP filter | D61: BP filter | E61: BP filter | F61: BP filter | G61: BP filter
B62: Band-Pass Filter Used | C62: 1-9 cell | D62: 1-9 cell | E62: 1-9 cell | F62: 1-9 cell | G62: 1-9 cell
B63: Moving Avr. Indentation | C63: 4 cell | D63: 4 cell | E63: 4 cell | F63: 4 cell | G63: 4 cell
B64: Empty Bins Interpolated | C64: 0 | D64: 0 | E64: 0 | F64: 0 | G64: 0
B65: Beginning Time of Test | C65: 1868.27 | D65: 1868.98 | E65: 1702.55 | F65: 1707.5 | G65: 1732.96
B66: Ending Time of Test | C66: 2009.33 | D66: 2008.78 | E66: 2006.66 | F66: 2000.29 | G66: 1981.2
B68: Basic Time-Series Stats | C68: 258-day | D68: 2.12-yr | E68: 6.37-yr | F68: 19.1-yr | G68: 57.3-yr
C69: 258-day | D69: 2.12-yr | E69: 6.37-yr | F69: 19.1-yr | G69: 57.3-yr
B70: Number of observations | C70: 1796 | D70: 594 | E70: 431 | F70: 139 | G70: 40
B71: Approximate # of cycles | C71: 200 | D71: 66 | E71: 48 | F71: 15 | G71: 4.5
B73: Minimum | C73: -61.67 | D73: -30.24 | E73: -60.19 | F73: -72 | G73: -43.56
B74: 1st Quartile | C74: -7.1 | D74: -6.97 | E74: -11.16 | F74: -27.69 | G74: -17.28
B75: 2nd Quartile (Median) | C75: -1.01 | D75: -1.3 | E75: -3.27 | F75: -5.84 | G75: -3.49
B76: 3rd Quartile | C76: 6.64 | D76: 5.47 | E76: 11.11 | F76: 27.87 | G76: 17.51
B77: Maximum | C77: 60.99 | D77: 47.03 | E77: 79.3 | F77: 108.56 | G77: 49.71
B78: Average (Mean) | C78: 0.01 | D78: 0.05 | E78: 0.08 | F78: -0.05 | G78: 0.41
B80: Standard Error of Mean | C80: 0.32164 | D80: 0.46727 | E80: 0.99079 | F80: 3.05716 | G80: 3.61099
B81: Lower C.L. of the Mean | C81: -0.62569 | D81: -0.86647 | E81: -1.868 | F81: -6.09721 | G81: -6.89692
B82: Upper C.L. of the Mean | C82: 0.63596 | D82: 0.96895 | E82: 2.02677 | F82: 5.99268 | G82: 7.71092
B83: Variance | C83: 185.7996 | D83: 129.696 | E83: 423.0932 | F83: 1299.129 | G83: 521.5699
B84: Standard Deviation | C84: 13.63083 | D84: 11.38842 | E84: 20.56923 | F84: 36.04343 | G84: 22.8379
B86: Skewness | C86: 0.28 | D86: 0.74 | E86: 0.56 | F86: 0.39 | G86: 0.37
B87: Kurtosis | C87: 1.9 | D87: 1.34 | E87: 0.99 | F87: -0.57 | G87: -0.69
B90: Table E28.3.1 – Results from Daily Sunspot Tests.
B91: Preparation Summary | C91: Test # 1 | D91: Test #2 | E91: Test # 3 | F91: Test # 4 | G91: Test # 5 | H91: Test # 6
B93: Least Squares Tests | C93: 28.7-day | D93: 28.7-day | E93: 28.7-day | F93: 28.7-day | G93: 28.7-day | H93: 86.1-day
B95: Stat. Signif. from p-value | C95: N.S. | D95: 0.95 | E95: N.S. | F95: N.S. | G95: 0.999 | H95: 0.99
B96: Practical Signif. (Adj. R2) | C96: 0.0003 | D96: 0.0009 | E96: 0 | F96: -0.0002 | G96: 0.0129 | H96: 0.0113
B98: Lomb-Scargle Period’gm
B100: Estimated Wavelength | C100: 28.15-day | D100: 27.78-day | E100: 25.38-day | F100: 27.99-day | G100: 26.58-day | H100: 53.91-day
B101: p-value | C101: 0 | D101: 0 | E101: 0 | F101: 0 | G101: 0 | H101: 0.53353
B102: Secondary Wavelength | C102: 25.20-day | D102: 25.02-day | E102: 29.35-day | F102: --- | G102: 28.50-day | H102: 86.16-day
B104: Smoothed Periodogram
B106: Estimated Wavelength | C106: 24.62-day | D106: 27.35-day | E106: 26.45-day | F106: 27.34-day | G106: 27.10-day | H106: 28.79-day
B107: Confidence Level | C107: 0.9999 | D107: 0.9999 | E107: 0.9999 | F107: 0.9999 | G107: 0.9999 | H107: 0.9999
B108: Secondary Wavelength | C108: 28.29-day | D108: --- | E108: --- | F108: --- | G108: --- | H108: 84.83-day
B110: Correlation & Lag Tests | C110: 28.7-day | D110: 28.7-day | E110: 28.7-day | F110: 28.7-day | G110: 28.7-day | H110: 86.1-day
B112: Correlation with lag | C112: 0.032 | D112: 0.043 | E112: 0.031 | F112: 0.038 | G112: 0.116 | H112: 0.116
B113: Confidence Level | C113: 0.75 | D113: 0.95 | E113: 0.75 | F113: 0.9 | G113: 0.999 | H113: 0.99
B114: Offset used with Model | C114: -3.29-day | D114: -2.16-day | E114: -18.7-day | F114: -8.18-day | G114: -0.33-day | H114: -3.83-day
B117: Table E28.3.2 – Results from Daily Sunspot Tests.
B118: Preparation Summary | C118: Test # 7 | D118: Test # 8 | E118: Test # 9 | F118: Test # 10 | G118: Test # 11
B120: Least Squares Tests | C120: 258-day | D120: 2.12-yr | E120: 6.37-yr | F120: 19.1-yr | G120: 57.3-yr
B122: Stat. Signif. from p-value | C122: N.S. | D122: 0.999 | E122: N.S. | F122: N.S. | G122: N.S.
B123: Practical Signif. (Adj. R2) | C123: -0.0005 | D123: 0.0271 | E123: -0.0014 | F123: -0.0073 | G123: 0.0449
B125: Lomb-Scargle Period’gm
B127: Estimated Wavelength | C127: 156.4-day | D127: 2.122-yr | E127: 11.00-yr | F127: 11.01-yr | G127: 54.29-yr
B128: p-value | C128: 0.01525 | D128: 0.09321 | E128: 0 | F128: 0 | G128: 1
B129: Secondary Wavelength | C129: 236.6-day | D129: --- | E129: --- | F129: --- | G129: ---
B131: Smoothed Periodogram
B133: Estimated Wavelength | C133: 159.1-day | D133: 2.003-yr | E133: 10.63-yr | F133: 10.75-yr | G133: 50.89-yr
B134: Confidence Level | C134: 0.9999 | D134: 0.99 | E134: N.S. | F134: N.S. | G134: 0.75
B135: Secondary Wavelength | C135: 244.2-day | D135: --- | E135: 5.40-yr | F135: --- | G135: ---
B137: Correlation & Lag Tests | C137: 258-day | D137: 2.12-yr | E137: 6.37-yr | F137: 19.1-yr | G137: 57.3-yr
B139: Correlation with lag | C139: 0.044 | D139: 0.169 | E139: 0.048 | F139: 0.035 | G139: 0.289
B140: Confidence Level | C140: 0.8 | D140: 0.999 | E140: 0.4 | F140: 0.15 | G140: 0.75
B141: Offset used with Model | C141: -71.6-day | D141: +3.40-day | E141: -0.867-yr | F141: -14.45-yr | G141: -3.82-yr

Sheet Input_Data
A1: File Name | B1: SS_a_28-day_1868-1899.txt | C1: SS_b_28-day_1900-1928.txt | D1: SS_c_28-day_1929-1957.txt | E1: SS_d_28-day_1958-1986.txt | F1: SS_e_28-day_1987-2009.txt | G1: SS_f_86-day.txt | H1: SS_g_258-day.txt | I1: SS_h_2-yr.txt | J1: SS_i_6-yr.txt | K1: SS_j_19-yr.txt | L1: SS_k_57-yr.txt
A2: Input data | B2: -15.907 | C2: -5.954 | D2: 21.583 | E2: -52.954 | F2: 6.667 | G2: -2.716 | H2: 9.733 | I2: 7.303 | J2: -3.82 | K2: 3.514 | L2: -13.789
A3: used in | B3: -12.537 | C3: -1.731 | D3: 4.917 | E3: -57.065 | F3: 3.046 | G3: 6.862 | H3: -3.614 | I3: -19.099 | J3: -3.909 | K3: -15.118 | L3: 30.176
A4: periodogram | B4: 17.981 | C4: -1.685 | D4: -4.194 | E4: -2.213 | F4: -4.213 | G4: -4.649 | H4: -3.713 | I4: 10.191 | J4: 0.898 | K4: -23.607 | L4: -23.194
A5: scripts. | B5: 9.731 | C5: 4.815 | D5: -3.009 | E5: 42.972 | F5: -8.954 | G5: -6.933 | H5: -5.218 | I5: -17.795 | J5: 8.5 | K5: -18.919 | L5: -2.178
B6: -0.926 | C6: 10.167 | D6: 9.519 | E6: 68.333 | F6: -4.361 | G6: -6.833 | H6: -5.941 | I6: -20.304 | J6: 25.667 | K6: 13.12 | L6: -7.173
B7: -6.583 | C7: -2.981 | D7: 27.769 | E7: 13.028 | F7: -1.148 | G7: 0 | H7: 0.969 | I7: 24.488 | J7: 11.917 | K7: 26.895 | L7: -18.716
B8: -6.176 | C8: -5.463 | D8: 15.694 | E8: -18.38 | F8: 5.657 | G8: -7.877 | H8: -8.564 | I8: 30.887 | J8: -0.904 | K8: -6.64 | L8: 23.936
B9: -2.324 | C9: -7.907 | D9: 16.991 | E9: -49.935 | F9: 8.398 | G9: -5.321 | H9: 20.593 | I9: 19.613 | J9: -2.527 | K9: -20.539 | L9: 22.126
B10: -0.62 | C10: -2.333 | D10: -4.676 | E10: -25.824 | F10: 7.139 | G10: -9.465 | H10: -0.307 | I10: 23.063 | J10: -6.015 | K10: -20.598 | L10: -4.647
B11: 1.148 | C11: -7.074 | D11: -43.593 | E11: -27.63 | F11: 5.435 | G11: 42.223 | H11: 20.064 | I11: -10.3 | J11: -4.194 | K11: 37.7 | L11: 49.707
B12: 1.815 | C12: -0.472 | D12: -32.833 | E12: -0.37 | F12: -7.481 | G12: 2.067 | H12: -1.16 | I12: 24.301 | J12: -1.669 | K12: 46.191 | L12: -25.112
B13: -5.296 | C13: 22.565 | D13: -16.472 | E13: 29.833 | F13: -5.889 | G13: -3.511 | H13: -19.699 | I13: -19.219 | J13: -2.61 | K13: -12.262 | L13: -4.586
B14: -2.481 | C14: 19.417 | D14: 36.898 | E14: 6.167 | F14: -2.093 | G14: -3.19 | H14: -19.664 | I14: -17.865 | J14: -3.723 | K14: -43.717 | L14: -32.378
B15: -5.222 | C15: -3.806 | D15: 37.824 | E15: 8.463 | F15: -3.278 | G15: 14.589 | H15: -21.255 | I15: -6.934 | J15: -3.552 | K15: -25.348 | L15: -12.528
B16: -4.639 | C16: -10.185 | D16: 7.583 | E16: -9.648 | F16: 2.13 | G16: 1.622 | H16: 31.85 | I16: -6.23 | J16: -5.136 | K16: 29.338 | L16: -26.253
B17: 15.472 | C17: -5.509 | D17: -19.519 | E17: -10.185 | F17: -4.87 | G17: -17.943 | H17: 37.516 | I17: 16.064 | J17: -7.952 | K17: 55.87 | L17: 12.967
B18: 2.213 | C18: -3.843 | D18: -10.194 | E18: 10.491 | F18: -4 | G18: -9.765 | H18: -11.275 | I18: 15.549 | J18: -10.351 | K18: -2.851 | L18: 16.961
B19: -2.639 | C19: -0.843 | D19: -6.602 | E19: 6.454 | F19: -3.463 | G19: 5.136 | H19: 1.202 | I19: 6.564 | J19: -8.201 | K19: -34.467 | L19: 7.028
B20: -1.593 | C20: -1.657 | D20: -2.565 | E20: -55.324 | F20: 0.5 | G20: -23.253 | H20: -8.49 | I20: 12.594 | J20: -3.146 | K20: -34.425 | L20: 23.69
B21: -6.565 | C21: -2.852 | D21: -15.343 | E21: 11.676 | F21: 7.759 | G21: -21.411 | H21: -10.926 | I21: -15.544 | J21: 3.113 | K21: 3.064 | L21: -19.739
B22: 2.75 | C22: 14.704 | D22: 2.667 | E22: 40.148 | F22: 11.759 | G22: 42.156 | H22: -24.297 | I22: -10.946 | J22: 10.597 | K22: 45.555 | L22: 14.727
B23: -5.954 | C23: 0.593 | D23: 35.12 | E23: 6.324 | F23: 0.593 | G23: 6.689 | H23: 9.954 | I23: -6.951 | J23: 17.993 | K23: 9.262 | L23: -15.69
B24: -1.361 | C24: -3.074 | D24: 32.38 | E24: -12.417 | F24: -11.222 | G24: 12.036 | H24: -21.846 | I24: 5.388 | J24: 20.074 | K24: -24.072 | L24: 31.005
B25: 18.796 | C25: -3.556 | D25: 11.935 | E25: -35.454 | F25: -0.231 | G25: 2.08 | H25: -26.757 | I25: -1.822 | J25: 7.976 | K25: -33.19 | L25: -18.498
B26: -1.407 | C26: -4.074 | D26: -23.102 | E26: -51.861 | F26: 0.583 | G26: -15.84 | H26: 13.979 | I26: 10.198 | J26: -2.028 | K26: 1.157 | L26: -2.396
B27: -13.37 | C27: -2.333 | D27: -30.963 | E27: -26.667 | F27: 3.324 | G27: 2.238 | H27: 46.292 | I27: -3.699 | J27: -6.232 | K27: 25.25 | L27: 6.315
B28: -10.278 | C28: -2.852 | D28: -15.139 | E28: 5 | F28: -2.639 | G28: -16.562 | H28: 5.499 | I28: -5.5 | J28: -4.761 | K28: 9.586 | L28: -14.196
B29: 4.833 | C29: 5.926 | D29: -15.593 | E29: 109.694 | F29: -13.556 | G29: -17.917 | H29: 22.193 | I29: -2.975 | J29: -0.77 | K29: -18.389 | L29: 2.343
B30: 10.204 | C30: 5.037 | D30: 5.556 | E30: 64.62 | F30: -19.731 | G30: 10.299 | H30: -1.164 | I30: -6.225 | J30: -2.212 | K30: -28.534 | L30: -21.648
B31: 11.13 | C31: 0.926 | D31: -1.926 | E31: 32.435 | F31: -19.806 | G31: 32.21 | H31: -22.521 | I31: -2.599 | J31: -10.123 | K31: 30.897 | L31: 19.194
B32: -2.926 | C32: -2.185 | D32: 2.028 | E32: 17.139 | F32: 18.528 | G32: 15.232 | H32: 18.81 | I32: 0.979 | J32: -19.423 | K32: 26.769 | L32: -16.877
B33: -12.537 | C33: -4.352 | D33: 15.963 | E33: -56.111 | F33: 36.75 | G33: -2.437 | H33: -11.439 | I33: -1.155 | J33: -19.224 | K33: -14.919 | L33: -11.295
B34: 7.204 | C34: -7.019 | D34: 14.204 | E34: -96.13 | F34: 39.222 | G34: -7.881 | H34: 15.394 | I34: -5.341 | J34: -17.695 | K34: -48.284 | L34: 9.474
B35: 19.611 | C35: -3.167 | D35: 3.093 | E35: -23.907 | F35: 5.046 | G35: 0.621 | H35: 17.952 | I35: 0.136 | J35: -9.841 | K35: 29.158 | L35: -28.369
B36: 2.648 | C36: -16.056 | D36: -0.833 | E36: 10.204 | F36: -22.065 | G36: -15.49 | H36: 0.423 | I36: 3.199 | J36: 14.635 | K36: 48.976 | L36: 43.43
B37: -7.37 | C37: -6.148 | D37: -9.685 | E37: 4.5 | F37: -10.361 | G37: -10.962 | H37: -43.605 | I37: 4.022 | J37: 43.827 | K37: -12.358 | L37: 19.174
B38: -16.259 | C38: 15.63 | D38: -20.37 | E38: 2.148 | F38: -14.361 | G38: -19.951 | H38: -30.527 | I38: 1.948 | J38: 35.554 | K38: -53.783 | L38: -8.203
B39: -0.991 | C39: 27.407 | D39: -17.824 | E39: 38.88 | F39: -1.519 | G39: -5.306 | H39: 18.244 | I39: -0.198 | J39: 25.189 | K39: -19.33 | L39: 6.929
B40: -7.954 | C40: 22.037 | D40: 22.361 | E40: 78.315 | F40: 4.028 | G40: 31.501 | H40: 38.797 | I40: -0.149 | J40: 4.385 | K40: 65.211 | L40: -43.56
B41: 0.861 | C41: -1.852 | D41: 16.62 | E41: 16.389 | F41: -1.889 | G41: 14.272 | H41: 26.098 | I41: 0.025 | J41: -8.262 | K41: 45.108 | L41: 48.123
B42: 13.713 | C42: -13.074 | D42: 16.361 | E42: -15.315 | F42: -7.111 | G42: 14.61 | H42: 11.277 | I42: -0.39 | J42: -7.109 | K42: 11.694
B43: 4.148 | C43: -8.611 | D43: 0.037 | E43: -48.787 | F43: -9.815 | G43: -20.301 | H43: -30.49 | I43: -4.269 | J43: -8.219 | K43: -15.397
B44: -9.944 | C44: -4.889 | D44: 11.519 | E44: -58.259 | F44: 0.676 | G44: -25.826 | H44: -13.224 | I44: -4.081 | J44: -13.899 | K44: -36.5
B45: 3.426 | C45: -9.074 | D45: -12.75 | E45: -17.509 | F45: 26.704 | G45: -13.151 | H45: 0.781 | I45: -8.007 | J45: -17.169 | K45: -32.36
B46: -8.981 | C46: -0.037 | D46: -18.343 | E46: 16.046 | F46: 10.685 | G46: -20.613 | H46: -10.166 | I46: -4.684 | J46: -20.584 | K46: -5.774
B47: -6.241 | C47: 0.907 | D47: -2.602 | E47: 6.38 | F47: 11.056 | G47: 17.02 | H47: -4.884 | I47: -1.346 | J47: -17.392 | K47: 23.423
B48: -3.148 | C48: 9.519 | D48: 9.102 | E48: 3.602 | F48: 0.278 | G48: 30.209 | H48: 7.059 | I48: -4.451 | J48: -9.702 | K48: 25.976
B49: 26.324 | C49: 6.5 | D49: -18.519 | E49: 1.667 | F49: -7.944 | G49: 21.188 | H49: -5.992 | I49: 2.638 | J49: -6.506 | K49: -4.684
B50: 7.546 | C50: -8.907 | D50: -20.537 | E50: 26.713 | F50: -11.593 | G50: 43.44 | H50: -13.525 | I50: -4.29 | J50: 6.911 | K50: -19.396
B51: 1.176 | C51: -3.907 | D51: 5.093 | E51: 26.861 | F51: -14.88 | G51: -36.285 | H51: 21.109 | I51: 1.373 | J51: 7.555 | K51: -22.857
B52: -5.639 | C52: -4.87 | D52: -1.722 | E52: 26.12 | F52: -11.25 | G52: -7.541 | H52: -15.345 | I52: 7.468 | J52: 14.557 | K52: -8.486
B53: -16.444 | C53: -6.741 | D53: 15.611 | E53: -16.731 | F53: -1.361 | G53: -43.975 | H53: 3.085 | I53: -6.781 | J53: 33.921 | K53: 20.17
B54: -5.648 | C54: 3.12 | D54: 1.704 | E54: -66.111 | F54: -5.435 | G54: -23.909 | H54: -2.671 | I54: 1.236 | J54: 27.986 | K54: 19.21
B55: -5.917 | C55: 14.898 | D55: -0.87 | E55: -36.231 | F55: 4.333 | G55: 41.465 | H55: 11.963 | I55: 12.372 | J55: 16.674 | K55: -1.659
B56: 0.083 | C56: 7.009 | D56: 26.833 | E56: 14.843 | F56: 20 | G56: -10.886 | H56: 8.613 | I56: 4.837 | J56: 2.027 | K56: -24.382
B57: 3.38 | C57: -2.88 | D57: 4.278 | E57: 30.287 | F57: 18.824 | G57: 2.447 | H57: -7.64 | I57: -7.183 | J57: -9.928 | K57: -25.245
B58: 19.546 | C58: 2.148 | D58: -9.796 | E58: 5.102 | F58: 9.824 | G58: 15.142 | H58: -6.771 | I58: 19.535 | J58: -15.93 | K58: 1.808
B59: 8.481 | C59: -4.769 | D59: 1.185 | E59: 11.704 | F59: -12.25 | G59: 1.531 | H59: 13.417 | I59: -5.429 | J59: -11.268 | K59: 18.143
B60: -5.333 | C60: -5.769 | D60: -14.75 | E60: 30.296 | F60: -16.139 | G60: -12.206 | H60: 0.877 | I60: -8.195 | J60: -7.359 | K60: 15.538
B61: -7.556 | C61: -5.287 | D61: -7.333 | E61: 10.593 | F61: -7.815 | G61: 28.172 | H61: 11.363 | I61: 3.043 | J61: -11.126 | K61: -29.41
B62: -10.926 | C62: -5.028 | D62: 8.889 | E62: -45.593 | F62: -25.111 | G62: 27.9 | H62: -21.221 | I62: -15.64 | J62: -16.383 | K62: -25.893
B63: -20.593 | C63: 3.667 | D63: 12.519 | E63: -43.037 | F63: -19.444 | G63: -62.178 | H63: -3.702 | I63: -3.646 | J63: -9.011 | K63: 70.358
B64: 6.556 | C64: 10.37 | D64: 7.306 | E64: -10.778 | F64: -17.259 | G64: 23.322 | H64: 34.788 | I64: 3.253 | J64: -8.112 | K64: 34.116
B65: 13.778 | C65: 7.148 | D65: 14.963 | E65: -13.407 | F65: 24.333 | G65: -24.438 | H65: 2.597 | I65: 6.141 | J65: -8.154 | K65: -16.629
B66: 28.481 | C66: -0.963 | D66: -14.963 | E66: 10.25 | F66: 49.593 | G66: -1.727 | H66: -1.302 | I66: 28.637 | J66: 0.055 | K66: -47.591
B67: 4.074 | C67: -4.185 | D67: -6.037 | E67: 47.991 | F67: 18.315 | G67: 24.933 | H67: -17.447 | I67: 9.795 | J67: 4.632 | K67: -28.856
B68: -4.593 | C68: -5.704 | D68: -11.889 | E68: 40.25 | F68: 5.093 | G68: 8.344 | H68: -14.493 | I68: -12.329 | J68: 15.445 | K68: 41.921
B69: -9.889 | C69: -6.37 | D69: -5.37 | E69: -23.898 | F69: -15.463 | G69: 1.842 | H69: 2.196 | I69: -13.103 | J69: 29.905 | K69: 43.643
B70: -15.639 | C70: -2.778 | D70: -20.667 | E70: 18.444 | F70: -19.5 | G70: -9.436 | H70: 7.469 | I70: -7.168 | J70: 26.573 | K70: 6.303
B71: -8.491 | C71: 10.889 | D71: -16.491 | E71: 34.88 | F71: -0.704 | G71: -18.806 | H71: -2.335 | I71: 5.393 | J71: 1.356 | K71: -25.986
B72: -12.343 | C72: 9.667 | D72: -0.991 | E72: 4.509 | F72: 3.991 | G72: 16.916 | H72: -6.708 | I72: 23.093 | J72: -4.661 | K72: -50.755
B73: 12.472 | C73: -3.407 | D73: 49.083 | E73: -31.231 | F73: 10.343 | G73: -40.428 | H73: 6.649 | I73: -0.691 | J73: 0.428 | K73: -5.838
B74: 21.926 | C74: -3.926 | D74: 45.454 | E74: -63.38 | F74: 7.713 | G74: -26.677 | H74: -17.488 | I74: -7.752 | J74: -0.334 | K74: 48.397
B75: -0.111 | C75: -5.185 | D75: 16.13 | E75: -18.963 | F75: 1.231 | G75: 29.968 | H75: 2.497 | I75: 5.497 | J75: -14.01 | K75: 10.539
B76: 11.157 | C76: -5.685 | D76: -6.519 | E76: 5 | F76: -5.426 | G76: 49.936 | H76: 16.972 | I76: 0.726 | J76: -12.486 | K76: -16.451
B77: -23.398 | C77: -5.093 | D77: -28.787 | E77: 26 | F77: -23.963 | G77: 2.014 | H77: 8.424 | I77: -2.488 | J77: -16.107 | K77: -44.816
B78: -18.806 | C78: -1.167 | D78: -34.898 | E78: 16.444 | F78: -8.63 | G78: 19.009 | H78: -5.44 | I78: -13.872 | J78: -15.741 | K78: -8.332
B79: -9.731 | C79: 7.093 | D79: -17.157 | E79: 14.889 | F79: 1.259 | G79: -21.447 | H79: -12.243 | I79: -8.54 | J79: -9.889 | K79: 74.077
B80: 6.704 | C80: 12.815 | D80: 15.287 | E80: -38.481 | F80: 19.519 | G80: -8.702 | H80: -18.763 | I80: -0.302 | J80: 3.207 | K80: 37.051
B81: 27.972 | C81: 3.898 | D81: 16.407 | E81: 46.185 | F81: 25.296 | G81: 8.514 | H81: 10.833 | I81: 9.128 | J81: 8.275 | K81: -17.506
B82: 24.898 | C82: -3.806 | D82: 2.963 | E82: 23.213 | F82: -7.185 | G82: 24.28 | H82: 23.597 | I82: -0.136 | J82: -3.254 | K82: -38.418
B83: 0.343 | C83: -3.917 | D83: -3.333 | E83: -5.861 | F83: -7.722 | G83: -11.919 | H83: 7.135 | I83: 2.254 | J83: 6.386 | K83: -37.868
B84: -15.324 | C84: -2.88 | D84: -12 | E84: -31.157 | F84: 1.056 | G84: -11.652 | H84: -4.987 | I84: -2.749 | J84: 5.521 | K84: 16.635
B85: -11.667 | C85: -1.815 | D85: 5.259 | E85: -20.343 | F85: -8.315 | G85: 18.726 | H85: -5.001 | I85: -5.006 | J85: 24.931 | K85: 31.547
B86: -9.815 | C86: -2.037 | D86: -23.926 | E86: 16.741 | F86: -17.722 | G86: -27.13 | H86: -6.966 | I86: -1.011 | J86: 14.48 | K86: 6.453
B87: 13.278 | C87: -0.259 | D87: -13.194 | E87: 48.065 | F87: -11.37 | G87: 5.162 | H87: 0.924 | I87: -2.113 | J87: 9.987 | K87: -29.863
B88: 0.611 | C88: 0.519 | D88: 4.917 | E88: 10.889 | F88: -7 | G88: -3.194 | H88: -6.553 | I88: 0.619 | J88: -8.154 | K88: -34.393
B89: 0.019 | C89: -1 | D89: 8.213 | E89: -49.185 | F89: -2.5 | G89: -10.249 | H89: -6.292 | I89: 3.935 | J89: 7.59 | K89: 17.729
B90: -13.093 | C90: 0.667 | D90: 24.139 | E90: -61.444 | F90: -0.093 | G90: -33.593 | H90: 9.192 | I90: 1.715 | J90: -10.757 | K90: 46.88
B91: 1.074 | C91: -6.991 | D91: 31.444 | E91: -40.62 | F91: 9.463 | G91: -8.915 | H91: 6.24 | I91: -2.827 | J91: -15.351 | K91: 14.276
B92: -24.074 | C92: -4.083 | D92: 8.704 | E92: 36.963 | F92: 38.315 | G92: 8.096 | H92: -2.54 | I92: -6.356 | J92: -24.569 | K92: -14.231
B93: -14.111 | C93: 11.102 | D93: -26.667 | E93: 47.565 | F93: 21.407 | G93: -12.037 | H93: 0.4 | I93: -6.627 | J93: -31.494 | K93: -32.49
B94: 3.889 | C94: 18.176 | D94: -32.037 | E94: 35.343 | F94: -15.62 | G94: 70.517 | H94: 0.46 | I94: -3.974 | J94: -14.708 | K94: -26.713
B95: -10.852 | C95: 2.759 | D95: -31.259 | E95: -14.065 | F95: -31.25 | G95: 51.962 | H95: -1.823 | I95: -8.218 | J95: 0.094 | K95: 21.233
B96: 49.481 | C96: -3.556 | D96: 7.852 | E96: 12.231 | F96: 18.75 | G96: -26.178 | H96: -4.476 | I96: -8.837 | J96: 14.486 | K96: 29.822
B97: 58.722 | C97: -4.065 | D97: 6.444 | E97: 45.704 | F97: 17.861 | G97: -52.693 | H97: -8.258 | I97: 3.058 | J97: 50.625 | K97: 9.863
B98: 4.88 | C98: -6.435 | D98: 15.861 | E98: 23.824 | F98: 7.593 | G98: -14.226 | H98: -1.463 | I98: 5.747 | J98: 20.928 | K98: -28.415
B99: -19.935 | C99: -4.25 | D99: 18.972 | E99: -24.509 | F99: -10.639 | G99: -24.637 | H99: 5.365 | I99: -8.422 | J99: 13.326 | K99: -37.553
B100: -27.565 | C100: -3.25 | D100: 16.269 | E100: -55.731 | F100: -14.824 | G100: 45.163 | H100: -2.951 | I100: 5.576 | J100: 13.792 | K100: 3.123
B101: -25.25 | C101: -0.889 | D101: 0.824 | E101: -51.694 | F101: -21.676 | G101: 25.198 | H101: 4.158 | I101: 8.756 | J101: -0.282 | K101: 46.836
B102: 6.148 | C102: 2.981 | D102: 0.333 | E102: -63.148 | F102: -4.231 | G102: -64.225 | H102: 3.825 | I102: 15.981 | J102: -10.311 | K102: 16.974
B103: 10.657 | C103: 7.87 | D103: -32.028 | E103: -33.065 | F103: 15.37 | G103: 75.181 | H103: 21.036 | I103: -7.971 | J103: -0.678 | K103: -19.036
B104: 1.065 | C104: 2.426 | D104: -41.204 | E104: 10.093 | F104: 32.63 | G104: 14.948 | H104: -12.131 | I104: -2.612 | J104: -24.14 | K104: -32.152
B105: 1.065 | C105: -0.352 | D105: -6.463 | E105: 57.833 | F105: 3.972 | G105: -60.096 | H105: -7.541 | I105: -1.574 | J105: -45.105 | K105: 13.032
B106: -12.083 | C106: -0.852 | D106: 44.685 | E106: 52.389 | F106: -16.62 | G106: 9.372 | H106: -12.022 | I106: 14.568 | J106: -47.058 | K106: 28.854
B107: -17.333 | C107: -3.491 | D107: 38.898 | E107: 21.12 | F107: -16.213 | G107: 7.938 | H107: 3.892 | I107: 0.708 | J107: -41.622 | K107: -2.467
B108: -20.722 | C108: -1.898 | D108: -2.852 | E108: 36.444 | F108: -11.657 | G108: -33.185 | H108: 0.255 | I108: 6.455 | J108: 17.965 | K108: -36.184
B109: 36.87 | C109: -0.972 | D109: -51.537 | E109: 51.315 | F109: 10.111 | G109: 38.215 | H109: 1.522 | I109: -7.981 | J109: 79.299 | K109: -38.855
B110: 32.796 | C110: -0.676 | D110: -20.944 | E110: 3.167 | F110: -6.009 | G110: -1.988 | H110: 2.018 | I110: 26.098 | J110: 53.189 | K110: 38.034
B111: -2.759 | C111: -0.333 | D111: 24.648 | E111: -47.5 | F111: 10.176 | G111: -7.765 | H111: -0.698 | I111: -1.029 | J111: 33.092 | K111: 46.613
B112: -55.741 | C112: -0.333 | D112: 34.796 | E112: -93.204 | F112: 6.435 | G112: 22.977 | H112: -6.466 | I112: -15.581 | J112: 1.369 | K112: -6.867
B113: -3.889 | C113: -0.333 | D113: 33.852 | E113: -48.074 | F113: -8.343 | G113: -39.968 | H113: 5.523 | I113: -2.962 | J113: -5.745 | K113: -45.734
B114: 7.778 | C114: 2 | D114: 27.306 | E114: 38.898 | F114: -9.963 | G114: -16.946 | H114: 4.396 | I114: 7.024 | J114: -5.702 | K114: -42.959
B115: 32.296 | C115: 0.333 | D115: 3.787 | E115: -9.324 | F115: -6.352 | G115: 42.943 | H115: -2.335 | I115: -0.555 | J115: -12.078 | K115: 57.386
B116: 5.556 | C116: -0.593 | D116: -29.546 | E116: 21.454 | F116: 4.065 | G116: -3.768 | H116: -3.04 | I116: 9.377 | J116: -13.531 | K116: 53.917
B117: 22.963 | C117: -0.593 | D117: -38.806 | E117: 40.713 | F117: -18.75 | G117: 29.13 | H117: 7.151 | I117: -5.081 | J117: -28.786 | K117: -26.851
B118: -2.704 | C118: -0.593 | D118: -29.481 | E118: 39.593 | F118: -7.75 | G118: 38.707 | H118: 5.203 | I118: -5.611 | J118: -39.081 | K118: -72.001
B119: -25.028 | C119: -0.333 | D119: -11.778 | E119: 5.259 | F119: 6.454 | G119: -58.688 | H119: 0.32 | I119: -3.438 | J119: -40.078 | K119: -18.735
B120: 24.12 | C120: 2.074 | D120: 7.343 | E120: -71.62 | F120: 20.111 | G120: -57.599 | H120: -7.969 | I120: 4.589 | J120: -21.332 | K120: 108.556
B121: 11.676 | C121: -0.259 | D121: 31.046 | E121: -51.324 | F121: 22.861 | G121: 66.722 | H121: -5.937 | I121: 2.46 | J121: 23.204 | K121: 60.011
B122: -26.954 | C122: -0.407 | D122: 44.083 | E122: 28.083 | F122: 12.491 | G122: -42.233 | H122: 7.167 | I122: -3.035 | J122: 36.605 | K122: -35.641
B123: -39.333 | C123: -1.222 | D123: -7.694 | E123: 78.491 | F123: -1.769 | G123: 10.522 | H123: -3.975 | I123: -9.386 | J123: 44.703 | K123: -64.267
B124: -22.759 | C124: -2.278 | D124: -32.407 | E124: 73.815 | F124: -23.102 | G124: 30.447 | H124: 10.776 | I124: -4.048 | J124: 29.248 | K124: -33.039
B125: 4.759 | C125: -2.426 | D125: -33.731 | E125: 0.889 | F125: -0.074 | G125: -28.053 | H125: -3.595 | I125: -1.023 | J125: 13.84 | K125: 43.968
B126: 41.056 | C126: -1.315 | D126: -15.028 | E126: -29.667 | F126: 9.944 | G126: 15.77 | H126: -6.876 | I126: 8.441 | J126: 5.591 | K126: 31.103
B127: 40.352 | C127: 4.463 | D127: 29.861 | E127: -37.259 | F127: 17.426 | G127: 17.904 | H127: 2.775 | I127: -4.429 | J127: -10.609 | K127: -13.249
B128: -14.37 | C128: 6.407 | D128: 54.009 | E128: -51.593 | F128: -3.167 | G128: -39.288 | H128: 2.71 | I128: 9.792 | J128: -11.179 | K128: -50.39
B129: -23.546 | C129: 0.352 | D129: 27 | E129: -42.778 | F129: -6.907 | G129: 20.723 | H129: -3.27 | I129: 3.549 | J129: -3.778 | K129: -54.063
B130: 15.38 | C130: -1.537 | D130: -5.537 | E130: -9.269 | F130: -16.769 | G130: 31.435 | H130: -2.779 | I130: -5.142 | J130: 1.284 | K130: 57.871
B131: 4.306 | C131: -2.278 | D131: -21.722 | E131: 25.861 | F131: 2.806 | G131: -37.496 | H131: 7.034 | I131: -2.417 | J131: -2.622 | K131: 70.946
B132: 2.269 | C132: -3.759 | D132: -26.685 | E132: 16.231 | F132: 6.602 | G132: -16.941 | H132: -0.808 | I132: -7.098 | J132: -0.549 | K132: 0.019
B133: -9.481 | C133: -4.481 | D133: -22.352 | E133: 30.787 | F133: -26.176 | G133: -52.417 | H133: -4.584 | I133: -0.221 | J133: 0.199 | K133: -62.207
B134: -17.148 | C134: -4.963 | D134: -12.704 | E134: 15.389 | F134: -16.222 | G134: 76.649 | H134: -1.291 | I134: 2.177 | J134: -3.474 | K134: -41.491
B135: -13.741 | C135: 0.704 | D135: -3.426 | E135: -15.815 | F135: 15.657 | G135: -17.49 | H135: 1.404 | I135: 4.669 | J135: -3.686 | K135: 74.144
B136: 8.519 | C136: 13.037 | D136: 16.167 | E136: -24.074 | F136: 17.12 | G136: -46.079 | H136: 0.95 | I136: 2.022 | J136: -8.15 | K136: 53.461
B137: -15.185 | C137: 8.037 | D137: 18.019 | E137: -20.852 | F137: 4.648 | G137: 4.648 | H137: 2.225 | I137: 0.869 | J137: -8.432 | K137: -26.958
B138: 3.037 | C138: -0.296 | D138: 0.093 | E138: -35.222 | F138: -31.352 | G138: -22.107 | H138: -1.975 | I138: -7.065 | J138: -10.103 | K138: -61.908
B139: 29.963 | C139: -3.63 | D139: -9.185 | E139: 23.519 | F139: -12.065 | G139: 97.804 | H139: -2.369 | I139: -0.349 | J139: -8.709 | K139: -24.415
B140: 13.269 | C140: -3.157 | D140: 7 | E140: 41.37 | F140: 12.528 | G140: 64.357 | H140: -1.495 | I140: -0.711 | J140: -10.793 | K140: 54.027
B141: 29.231 | C141: -0.861 | D141: -0.37 | E141: 16.787 | F141: 6.444 | G141: -44.243 | H141: -4.544 | I141: -2.068 | J141: -1.718
B142: -17.62 | C142: 0.917 | D142: -14.333 | E142: -0.287 | F142: 1.454 | G142: -17.795 | H142: 3.635 | I142: -1.319 | J142: 6.167
B143: -17.176 | C143: 1.806 | D143: -11.778 | E143: -3.731 | F143: 12.009 | G143: -41.928 | H143: -1.898 | I143: -0.765 | J143: 12.456
B144: -0.148 | C144: 1.111 | D144: -3.185 | E144: 50.269 | F144: 14.528 | G144: -20.632 | H144: -3.254 | I144: -6.236 | J144: 5.432
B145: -20.176 | C145: -2.083 | D145: 10.704 | E145: -7.259 | F145: -2.509 | G145: 53.923 | H145: 3.412 | I145: -1.28 | J145: 6.222
B146: -6.444 | C146: -1.528 | D146: 13.13 | E146: -55.157 | F146: -35.778 | G146: -1.035 | H146: 0.086 | I146: -5.583 | J146: 4.635
B147: -11.259 | C147: -0.972 | D147: 8.648 | E147: 9.454 | F147: -2.241 | G147: -24.49 | H147: 1.832 | I147: -0.192 | J147: 16.738
B148: 8.259 | C148: -0.417 | D148: 12.093 | E148: 17.269 | F148: 17.694 | G148: 21.499 | H148: -2.222 | I148: -2.031 | J148: 7.299
B149: 9.361 | C149: 0 | D149: 7.093 | E149: -9.102 | F149: 54.694 | G149: -27.507 | H149: 0.719 | I149: -3.709 | J149: 0.91
B150: -3.778 | C150: -0.741 | D150: -21.519 | E150: -31.463 | F150: 41.398 | G150: 21.015 | H150: -6.089 | I150: 13.741 | J150: -6.109
B151: -22.009 | C151: -1.852 | D151: -8.5 | E151: 5.889 | F151: -11.028 | G151: 28.796 | H151: -3.499 | I151: -8.258 | J151: -12.087
B152: -44.787 | C152: -2.963 | D152: -10.343 | E152: 36.759 | F152: -46.852 | G152: -25.704 | H152: 11.083 | I152: 1.638 | J152: -0.94
B153: -1.824 | C153: -4.074 | D153: -3.269 | E153: -9.204 | F153: -42.194 | G153: -24.574 | H153: 3.326 | I153: 3.414 | J153: -3.549
B154: 12.546 | C154: 1.481 | D154: 14.657 | E154: -57.796 | F154: -2.528 | G154: -33.707 | H154: -0.656 | I154: -8.949 | J154: -4.957
B155: 20.667 | C155: 3.704 | D155: 16.157 | E155: -62.019 | F155: 32.843 | G155: -18.607 | H155: -5.945 | I155: 15.949 | J155: -4.868
B156: 41.176 | C156: 1.12 | D156: -2.556 | E156: 30.481 | F156: 9.287 | G156: 49.669 | H156: -7.441 | I156: -6.763 | J156: -4.22
B157: 50.62 | C157: -2.62 | D157: -12.583 | E157: 96.093 | F157: 16.444 | G157: 6.325 | H157: -1.154 | I157: 2.349 | J157: -4.614
B158: 49.435 | C158: -5.472 | D158: -13.435 | E158: 29.5 | F158: -15.12 | G158: 13.6 | H158: -9.827 | I158: 15.057 | J158: -4.435
B159: -17.528 | C159: -6.398 | D159: -0.324 | E159: 13.537 | F159: -7.046 | G159: 29.4 | H159: 11.522 | I159: -2.619 | J159: -1.73
B160: -72.333 | C160: 6.926 | D160: -2.843 | E160: -19.019 | F160: -37.12 | G160: -51.677 | H160: 19.243 | I160: -8.056 | J160: -7.726
B161: -71.602 | C161: 17.787 | D161: 9.444 | E161: -11.444 | F161: -26.306 | G161: 18.835 | H161: 14.116 | I161: 17.686 | J161: -4.817
B162: -13.12 | C162: 10.231 | D162: 9.731 | E162: -29.574 | F162: -11.778 | G162: 8.667 | H162: -10.882 | I162: -17.937 | J162: 11.094
B163: 18.657 | C163: 0.009 | D163: 4.509 | E163: -32.176 | F163: -1.583 | G163: -9.086 | H163: -14.333 | I163: -1.836 | J163: 18.547
B164: 44.917 | C164: -5.472 | D164: -9.157 | E164: -8.583 | F164: 13.287 | G164: 60.68 | H164: -13.289 | I164: 21.423 | J164: 12.854
B165: 65.296 | C165: -7.444 | D165: -9.194 | E165: 13.713 | F165: 35.806 | G165: -40.544 | H165: 4.155 | I165: -16.395 | J165: 2.768
B166: 13.963 | C166: -4.63 | D166: 22.63 | E166: 18.398 | F166: 60.398 | G166: -39.722 | H166: 7.129 | I166: 12.196 | J166: 1.838
B167: -29.009 | C167: -3.694 | D167: 17.991 | E167: 4.963 | F167: 11.167 | G167: -13.962 | H167: -0.761 | I167: 3.026 | J167: -1.787
B168: -41.713 | C168: -0.361 | D168: -1.065 | E168: -5.796 | F168: -40.37 | G168: -28.617 | H168: -4.866 | I168: -19.253 | J168: 2.413
B169: -18.083 | C169: 3.046 | D169: -10.62 | E169: 8.648 | F169: -34.704 | G169: 14.178 | H169: -7.215 | I169: -2.041 | J169: 0.029
B170: 18.731 | C170: 0.935 | D170: -17.657 | E170: 9.426 | F170: -18.259 | G170: 52.811 | H170: 9.208 | I170: 16.892 | J170: -6.144
B171: 46.481 | C171: 10.407 | D171: -15.907 | E171: 15.685 | F171: -2.444 | G171: -17.867 | H171: 19.582 | I171: -0.916 | J171: -2.781
B172: 4.981 | C172: -0.287 | D172: 0.778 | E172: 9.111 | F172: 13.037 | G172: 14.449 | H172: 2.335 | I172: 6.982 | J172: -8.739
B173: -9.796 | C173: -2.806 | D173: 6.361 | E173: -20.731 | F173: 27.704 | G173: 28.305 | H173: -6.897 | I173: -1.729 | J173: -12.44
B174: -14.796 | C174: -3.361 | D174: 11.028 | E174: -16.324 | F174: 20.426 | G174: -45.854 | H174: 5.512 | I174: -11.615 | J174: -7.079
B175: -4.574 | C175: -2.546 | D175: 2.213 | E175: -25.028 | F175: -5.759 | G175: 18.546 | H175: -3.673 | I175: 9.947 | J175: -7.47
B176: -37.556 | C176: -1.407 | D176: 2.88 | E176: -13.287 | F176: -24.389 | G176: -45.732 | H176: -11.203 | I176: 10.517 | J176: -7.853
B177: -25.454 | C177: -0.852 | D177: -2.037 | E177: 32.185 | F177: 2.278 | G177: 33.468 | H177: -23.006 | I177: -5.752 | J177: 0.391
B178: 11.111 | C178: -0.667 | D178: 3.602 | E178: 40.352 | F178: 12.778 | G178: 68.968 | H178: 9.276 | I178: -6.163 | J178: 6.648
B179: 58.556 | C179: -1.222 | D179: -12.065 | E179: -29.444 | F179: -7.074 | G179: -4.254 | H179: 3.631 | I179: 7.155 | J179: 2.027
B180: 23.481 | C180: 4.778 | D180: 1.491 | E180: -53.185 | F180: -13.556 | G180: -20.843 | H180: 38.828 | I180: -8.932 | J180: 14.57
B181: -19.324 | C181: -1.222 | D181: -2.806 | E181: -13.074 | F181: -38.111 | G181: -43.914 | H181: 19.459 | I181: 0.618 | J181: 6.869
B182: -17.926 | C182: -1.222 | D182: 10.519 | E182: 20.648 | F182: 19.333 | G182: 1.209 | H182: -29.055 | I182: -1.653 | J182: 13.676
B183: -24.278 | C183: 3.778 | D183: 0.963 | E183: 47.704 | F183: 17.926 | G183: 2.136 | H183: -9.625 | I183: -3.02 | J183: 20.36
B184: -37.315 | C184: -1.222 | D184: -10.519 | E184: 31.333 | F184: 9.296 | G184: -11.631 | H184: -19.794 | I184: -2.49 | J184: 12.364
B185: -25.981 | C185: -0.556 | D185: -1.667 | E185: -11.333 | F185: 42.991 | G185: 62.199 | H185: -0.096 | I185: -3.899 | J185: 0.543
B186: 22.352 | C186: -1 | D186: -0.148 | E186: -29.593 | F186: 28.657 | G186: -11.812 | H186: 2.467 | I186: 1.569 | J186: -18.169
B187: 56.963 | C187: -1 | D187: -2.519 | E187: -46.852 | F187: 14.324 | G187: -48.584 | H187: 7.805 | I187: 0.783 | J187: -32.58
B188: 33.713 | C188: -0.444 | D188: -11.926 | E188: -26.704 | F188: -42.75 | G188: -38.212 | H188: 21.73 | I188: 2.028 | J188: -42.919
B189: 15.759 | C189: -0.444 | D189: -1.954 | E189: 1.639 | F189: -67.963 | G189: 32.654 | H189: -8.345 | I189: 1.535 | J189: -40.469
B190: -8.352 | C190: 3.556 | D190: -1.102 | E190: 17.824 | F190: -59.454 | G190: 4.577 | H190: -0.955 | I190: -3.92 | J190: -8.992
B191: -22.204 | C191: -0.444 | D191: -1.102 | E191: 70.602 | F191: 25.463 | G191: -0.001 | H191: -9.908 | I191: -4.102 | J191: 33.148
B192: -63.361 | C192: -1 | D192: 7.824 | E192: 89.528 | F192: 61.907 | G192: 35.577 | H192: -16.721 | I192: -3.5 | J192: 60.114
B193: -22.111 | C193: -1 | D193: 6.519 | E193: -1.889 | F193: 36.759 | G193: -43.601 | H193: 27.123 | I193: -2.343 | J193: 38.078
B194: 34.62 | C194: -1 | D194: 27.231 | E194: -43.75 | F194: 17.25 | G194: 0.406 | H194: -22.768 | I194: -1.737 | J194: 22.503
B195: 64.583 | C195: -0.556 | D195: 11.491 | E195: -26.324 | F195: -34.741 | G195: 48.717 | H195: 1.605 | I195: -7.056 | J195: -8.426
B196: 15.213 | C196: 4.444 | D196: 1.157 | E196: -3.88 | F196: -36.102 | G196: 3.962 | H196: 21.737 | I196: -11.019 | J196: 7.191
B197: -6.935 | C197: -0.556 | D197: -4.769 | E197: -11.917 | F197: -29.62 | G197: 21.759 | H197: -17.982 | I197: -7.854 | J197: -1.88
B198: -10.704 | C198: -0.778 | D198: -13 | E198: -2.13 | F198: -21.065 | G198: -5.496 | H198: 1.188 | I198: 5.531 | J198: -8.602
B199: -54.426 | C199: -1.111 | D199: -19.519 | E199: 27.296 | F199: 44.935 | G199: -12.253 | H199: -8.99 | I199: 12.11 | J199: -12.109
B200: -5.907 | C200: -1.852 | D200: -9.787 | E200: -2.954 | F200: 42.593 | G200: -14.342 | H200: 2.699 | I200: 16.164 | J200: -10.625
... 3466 more rows

Sheet Periodograms
B1: Periodogram for 28.7-day test 1.
B52: Periodogram for 28.7-day test 2.
B103: Periodogram for 28.7-day test 3.
B154: Periodogram for 28.7-day test 4.
B205: Periodogram for 28.7-day test 5.
B256: Periodogram for 86.1-day test.
B307: Periodogram for 258-day test.
B358: Periodogram for 2.12-year test.
B409: Periodogram for 6.37-year test.
B460: Periodogram for 19.1-year test.
B511: Periodogram for 57.3-year test.
